Workbook

Sheet DEPAN
C6: NAMA LEMBAGA | D6: MI | E6: Nurul Islam Labruk Kidul | Y6: =IF(LEMBAGA="MI","Madrasah Ibtidaiyah","Sekolah Dasar") -> Madrasah Ibtidaiyah | AA6: =E6 -> Nurul Islam Labruk Kidul
Y7: =LEMBAGA&" "&E6 -> MI Nurul Islam Labruk Kidul
C8: NAMA KEPALA SEKOLAH | D8: Sahroni,S.Pd.I
C10: NIP KS | D10: -
C12: KECAMATAN | D12: SUMBERSUKO
C14: KABUPATEN | D14: LUMAJANG | Y14: =C14&" "&D14 -> KABUPATEN LUMAJANG
C16: TAHUN PELAJARAN | D16: 2018/2019 | Y16: =C16&" "&D16 -> TAHUN PELAJARAN 2018/2019

Sheet SISWA
A5: NO | B5: No Induk | C5: NISN | D5: Nomor Peserta | E5: Nama Peserta | F5: Tempat Lahir | G5: Tanggal Lahir | H5: Nama Orang Tua | I5: L/P | J5: NO | K5: MATA PELAJARAN | N5: NO PESERTA | P5: HASIL | Q5: YANG HARUS DI ISI | S5: HASIL
L6: SKM | Q6: NO URUT SURAT | R6: ISI NOMOR SURAT
P7: TANGGAL LAHIR TEXT | Q7: 051 | R7: /MINI.L-Kid/30.02.02/S.1-2/VI/2019 | S7: =Q7&R7 -> 051/MINI.L-Kid/30.02.02/S.1-2/VI/2019
A8: 1 | B8: 4270 | C8: 0067566336 | D8: =N8&TEXT(A8,"#000"&"-"&O8) -> 1-18-05-80-162-001-9 | E8: ADITYA MAULA FANDY TAULANI | F8: LUMAJANG | G8: 2006-06-13 | H8: MUHAMMAD KHAMDANI SYAIFULLAH | I8: L | J8: 1 | K8: Pendidikan Agama | N8: 1-18-05-80-162- | O8: 9 | P8: =F8&", "&TEXT(G8,"[$-id-ID]dd mmmm yyyy") -> LUMAJANG, 13 Juni 2006 | Q8: 052 | R8: /MINI.L-Kid/30.02.02/S.1-2/VI/2019 | S8: =Q8&R8 -> 052/MINI.L-Kid/30.02.02/S.1-2/VI/2019
A9: 2 | B9: 4300 | C9: 0066364963 | D9: 1-18-05-80-162-002-8 | E9: AHMAD FERDIAN ALAMSYAH | F9: LUMAJANG | G9: 2006-08-19 | H9: SUAMAT | I9: L | J9: 2 | K9: Pendidikan Kewarganegaraan | L9: 65 | N9: 1-18-05-80-162- | O9: 8 | P9: LUMAJANG, 19 Agustus 2006 | Q9: 053 | R9: /MINI.L-Kid/30.02.02/S.1-2/VI/2019 | S9: 053/MINI.L-Kid/30.02.02/S.1-2/VI/2019
A10: 3 | B10: 4271 | C10: 0062805893 | D10: 1-18-05-80-162-003-7 | E10: AHMAD RAMADHANI FADLULLOH | F10: LUMAJANG | G10: 2006-10-18 | H10: MUHAMMAD SHODIKUL MUNIR | I10: L | J10: 3 | K10: Bahasa Indonesia | L10: 65 | N10: 1-18-05-80-162- | O10: 7 | P10: LUMAJANG, 18 Oktober 2006 | Q10: 054 | R10: /MINI.L-Kid/30.02.02/S.1-2/VI/2019 | S10: 054/MINI.L-Kid/30.02.02/S.1-2/VI/2019
A11: 4 | B11: 4398 | C11: 0062399399 | D11: 1-18-05-80-162-004-6 | E11: ANANDA AMILIA | F11: LUMAJANG | G11: 2006-02-10 | H11: AKHMADI | I11: P | J11: 4 | K11: Matematika | L11: 65 | N11: 1-18-05-80-162- | O11: 6 | P11: LUMAJANG, 10 Februari 2006 | Q11: 055 | R11: /MINI.L-Kid/30.02.02/S.1-2/VI/2019 | S11: 055/MINI.L-Kid/30.02.02/S.1-2/VI/2019
A12: 5 | B12: 4272 | C12: 0071551428 | D12: 1-18-05-80-162-005-5 | E12: ANDINI MAULID DWI LESTARI | F12: LUMAJANG | G12: 2007-03-30 | H12: EDI HARTONO | I12: P | J12: 5 | K12: Ilmu Pengetahuan Alam | L12: 65 | N12: 1-18-05-80-162- | O12: 5 | P12: LUMAJANG, 30 Maret 2007 | Q12: 056 | R12: /MINI.L-Kid/30.02.02/S.1-2/VI/2019 | S12: 056/MINI.L-Kid/30.02.02/S.1-2/VI/2019
A13: 6 | B13: 4301 | C13: 0061907599 | D13: 1-18-05-80-162-006-4 | E13: ANDRIK YUSRI | F13: LUMAJANG | G13: 2006-05-15 | H13: SUYONO | I13: L | J13: 6 | K13: Ilmu Pengetahuan Sosial | L13: 65 | N13: 1-18-05-80-162- | O13: 4 | P13: LUMAJANG, 15 Mei 2006 | Q13: 057 | R13: /MINI.L-Kid/30.02.02/S.1-2/VI/2019 | S13: 057/MINI.L-Kid/30.02.02/S.1-2/VI/2019
A14: 7 | B14: 4273 | C14: 0067280519 | D14: 1-18-05-80-162-007-3 | E14: DEWI SAKINAH ISWARA | F14: LUMAJANG | G14: 2006-08-31 | H14: SUPRIYANTO | I14: P | J14: 7 | K14: Seni Budaya dan Keterampilan | L14: 70 | N14: 1-18-05-80-162- | O14: 3 | P14: LUMAJANG, 31 Agustus 2006 | Q14: 058 | R14: /MINI.L-Kid/30.02.02/S.1-2/VI/2019 | S14: 058/MINI.L-Kid/30.02.02/S.1-2/VI/2019
A15: 8 | B15: 4307 | C15: 0066012198 | D15: 1-18-05-80-162-008-2 | E15: CHAKIM | F15: LUMAJANG | G15: 2006-05-05 | H15: RIFAI | I15: L | J15: 8 | K15: Pendidikan Jasmani Olahraga dan Kesehatan | L15: 70 | N15: 1-18-05-80-162- | O15: 2 | P15: LUMAJANG, 05 Mei 2006 | Q15: 059 | R15: /MINI.L-Kid/30.02.02/S.1-2/VI/2019 | S15: 059/MINI.L-Kid/30.02.02/S.1-2/VI/2019
A16: 9 | B16: 4275 | C16: 0078199679 | D16: 1-18-05-80-162-009-9 | E16: HANIK APRILIA SARI | F16: LUMAJANG | G16: 2007-04-23 | H16: IMAM HANAFI | I16: P | J16: 9 | K16: Bahasa Daerah | L16: 65 | N16: 1-18-05-80-162- | O16: 9 | P16: LUMAJANG, 23 April 2007 | Q16: 060 | R16: /MINI.L-Kid/30.02.02/S.1-2/VI/2019 | S16: 060/MINI.L-Kid/30.02.02/S.1-2/VI/2019
A17: 10 | B17: 4238 | C17: 0051503260 | D17: 1-18-05-80-162-010-8 | E17: DESI NATALIA SAPUTRI | F17: LUMAJANG | G17: 2005-12-24 | H17: EKO HARIANTO | I17: P | J17: 10 | K17: Bahasa Inggris | L17: 65 | N17: 1-18-05-80-162- | O17: 8 | P17: LUMAJANG, 24 Desember 2005 | Q17: 061 | R17: /MINI.L-Kid/30.02.02/S.1-2/VI/2019 | S17: 061/MINI.L-Kid/30.02.02/S.1-2/VI/2019
A18: 11 | B18: 4391 | C18: 0079418518 | D18: 1-18-05-80-162-011-7 | E18: HIDAYATUL KHUMAINIA | F18: LUMAJANG | G18: 2007-10-04 | H18: YOYOK HARIYANTO | I18: P | J18: 11 | K18: Aqidah Akhlaq | L18: 65 | N18: 1-18-05-80-162- | O18: 7 | P18: LUMAJANG, 04 Oktober 2007 | Q18: 062 | R18: /MINI.L-Kid/30.02.02/S.1-2/VI/2019 | S18: 062/MINI.L-Kid/30.02.02/S.1-2/VI/2019
A19: 12 | B19: 4274 | C19: 0077670297 | D19: 1-18-05-80-162-012-6 | E19: DWITA FITA WULANDARI | F19: LUMAJANG | G19: 2007-02-25 | H19: MOCHAMAD SUDI | I19: P | J19: 12 | K19: Al Qur'an Hadits | L19: 65 | N19: 1-18-05-80-162- | O19: 6 | P19: LUMAJANG, 25 Februari 2007 | Q19: 063 | R19: /MINI.L-Kid/30.02.02/S.1-2/VI/2019 | S19: 063/MINI.L-Kid/30.02.02/S.1-2/VI/2019
A20: 13 | B20: 4276 | C20: 0067236848 | D20: 1-18-05-80-162-013-5 | E20: IZZA ILMIA AZZAHRA | F20: LUMAJANG | G20: 2006-12-15 | H20: MISKADIONO | I20: P | J20: 13 | K20: Fiqih | L20: 65 | N20: 1-18-05-80-162- | O20: 5 | P20: LUMAJANG, 15 Desember 2006 | Q20: 064 | R20: /MINI.L-Kid/30.02.02/S.1-2/VI/2019 | S20: 064/MINI.L-Kid/30.02.02/S.1-2/VI/2019
A21: 14 | B21: 4303 | C21: 0064031376 | D21: 1-18-05-80-162-014-4 | E21: FARIDATUS SAHDIAH | F21: LUMAJANG | G21: 2006-06-29 | H21: URIFAN RAIS | I21: P | J21: 14 | K21: Sejarah Kebudayaan Islam | L21: 65 | N21: 1-18-05-80-162- | O21: 4 | P21: LUMAJANG, 29 Juni 2006 | Q21: 065 | R21: /MINI.L-Kid/30.02.02/S.1-2/VI/2019 | S21: 065/MINI.L-Kid/30.02.02/S.1-2/VI/2019
A22: 15 | B22: 4278 | C22: 0079672823 | D22: 1-18-05-80-162-015-3 | E22: KHARISYA AZZAHRO | F22: LUMAJANG | G22: 2007-01-21 | H22: NUR SALIM | I22: P | J22: 15 | K22: Bahasa Arab | L22: 65 | N22: 1-18-05-80-162- | O22: 3 | P22: LUMAJANG, 21 Januari 2007 | Q22: 066 | R22: /MINI.L-Kid/30.02.02/S.1-2/VI/2019 | S22: 066/MINI.L-Kid/30.02.02/S.1-2/VI/2019
A23: 16 | B23: 4277 | C23: 0077101453 | D23: 1-18-05-80-162-016-2 | E23: KARINA FEBBY CAHYA AMILIA | F23: LUMAJANG | G23: 2007-02-01 | H23: SENO | I23: P | N23: 1-18-05-80-162- | O23: 2 | P23: LUMAJANG, 01 Februari 2007 | Q23: 067 | R23: /MINI.L-Kid/30.02.02/S.1-2/VI/2019 | S23: 067/MINI.L-Kid/30.02.02/S.1-2/VI/2019
A24: 17 | B24: 4601 | C24: 0069718082 | D24: 1-18-05-80-162-017-9 | E24: MOCHAMAD RIFKY ROSAN | F24: LUMAJANG | G24: 17/06/2006 | H24: AHMAD ROFIK | I24: L | N24: 1-18-05-80-162- | O24: 9 | P24: LUMAJANG, 17 Juni 2006 | Q24: 068 | R24: /MINI.L-Kid/30.02.02/S.1-2/VI/2019 | S24: 068/MINI.L-Kid/30.02.02/S.1-2/VI/2019
A25: 18 | B25: 4241 | C25: 0057006145 | D25: 1-18-05-80-162-018-8 | E25: KHUSNI CAHYONO | F25: LUMAJANG | G25: 2005-07-14 | H25: NUR SUBUR | I25: L | N25: 1-18-05-80-162- | O25: 8 | P25: LUMAJANG, 14 Juli 2005 | Q25: 069 | R25: /MINI.L-Kid/30.02.02/S.1-2/VI/2019 | S25: 069/MINI.L-Kid/30.02.02/S.1-2/VI/2019
A26: 19 | B26: 4280 | C26: 0062061356 | D26: 1-18-05-80-162-019-7 | E26: MUCHAMMAD ALIEF FERDIANSYAH | F26: LUMAJANG | G26: 2006-06-22 | H26: ALI USMAN | I26: L | N26: 1-18-05-80-162- | O26: 7 | P26: LUMAJANG, 22 Juni 2006 | Q26: 070 | R26: /MINI.L-Kid/30.02.02/S.1-2/VI/2019 | S26: 070/MINI.L-Kid/30.02.02/S.1-2/VI/2019
A27: 20 | B27: 4306 | C27: 0069095925 | D27: 1-18-05-80-162-020-6 | E27: LENNY AGUSTIN NINGTYAS | F27: LUMAJANG | G27: 2006-08-17 | H27: SARONI | I27: P | N27: 1-18-05-80-162- | O27: 6 | P27: LUMAJANG, 17 Agustus 2006 | Q27: 071 | R27: /MINI.L-Kid/30.02.02/S.1-2/VI/2019 | S27: 071/MINI.L-Kid/30.02.02/S.1-2/VI/2019
A28: 21 | B28: 4281 | C28: 0069153972 | D28: 1-18-05-80-162-021-5 | E28: MUHAMMAD AGUS ANDRIANTO | F28: LUMAJANG | G28: 2006-08-11 | H28: TOTOK YULIANTO | I28: L | N28: 1-18-05-80-162- | O28: 5 | P28: LUMAJANG, 11 Agustus 2006 | Q28: 072 | R28: /MINI.L-Kid/30.02.02/S.1-2/VI/2019 | S28: 072/MINI.L-Kid/30.02.02/S.1-2/VI/2019
A29: 22 | B29: 4308 | C29: 0063078335 | D29: 1-18-05-80-162-022-4 | E29: MAURIS HIDAYATUR ROCHMAN | F29: LUMAJANG | G29: 2006-12-11 | H29: MOKHAMAD SOLIKHIN | I29: L | N29: 1-18-05-80-162- | O29: 4 | P29: LUMAJANG, 11 Desember 2006 | Q29: 073 | R29: /MINI.L-Kid/30.02.02/S.1-2/VI/2019 | S29: 073/MINI.L-Kid/30.02.02/S.1-2/VI/2019
A30: 23 | B30: 4314 | C30: 0072178353 | D30: 1-18-05-80-162-023-3 | E30: MUHAMMAD BISMAR TAUFIQUROHMAN | F30: LUMAJANG | G30: 2007-02-20 | H30: BUSTANUL ABEN | I30: L | N30: 1-18-05-80-162- | O30: 3 | P30: LUMAJANG, 20 Februari 2007 | Q30: 074 | R30: /MINI.L-Kid/30.02.02/S.1-2/VI/2019 | S30: 074/MINI.L-Kid/30.02.02/S.1-2/VI/2019
A31: 24 | B31: 4309 | C31: 0072198448 | D31: 1-18-05-80-162-024-2 | E31: MAYA BUNGA ANJANI | F31: LUMAJANG | G31: 2007-05-04 | H31: NGATERI | I31: P | N31: 1-18-05-80-162- | O31: 2 | P31: LUMAJANG, 04 Mei 2007 | Q31: 075 | R31: /MINI.L-Kid/30.02.02/S.1-2/VI/2019 | S31: 075/MINI.L-Kid/30.02.02/S.1-2/VI/2019
A32: 25 | B32: 4320 | C32: 0064566227 | D32: 1-18-05-80-162-025-9 | E32: MUHAMMAD SAHLAN SHODIQ | F32: LUMAJANG | G32: 2006-04-26 | H32: ABDULLOH SHIDIQ | I32: L | N32: 1-18-05-80-162- | O32: 9 | P32: LUMAJANG, 26 April 2006 | Q32: 076 | R32: /MINI.L-Kid/30.02.02/S.1-2/VI/2019 | S32: 076/MINI.L-Kid/30.02.02/S.1-2/VI/2019
A33: 26 | B33: 4279 | C33: 0066637092 | D33: 1-18-05-80-162-026-8 | E33: MITA SEPTIANI ISLAMIA | F33: LUMAJANG | G33: 2006-09-16 | H33: SUBEKHAN | I33: P | N33: 1-18-05-80-162- | O33: 8 | P33: LUMAJANG, 16 September 2006 | Q33: 077 | R33: /MINI.L-Kid/30.02.02/S.1-2/VI/2019 | S33: 077/MINI.L-Kid/30.02.02/S.1-2/VI/2019
A34: 27 | B34: 4321 | C34: 0061244045 | D34: 1-18-05-80-162-027-7 | E34: MUHAMMAD SEPTYAN EKA PRATAMA | F34: LUMAJANG | G34: 2006-09-14 | H34: ADI SUPARTO | I34: L | N34: 1-18-05-80-162- | O34: 7 | P34: LUMAJANG, 14 September 2006 | Q34: 078 | R34: /MINI.L-Kid/30.02.02/S.1-2/VI/2019 | S34: 078/MINI.L-Kid/30.02.02/S.1-2/VI/2019
A35: 28 | B35: 4247 | C35: 0053546157 | D35: 1-18-05-80-162-028-6 | E35: MOCHAMAD ARIEL FRANS TITO | F35: LUMAJANG | G35: 2005-02-12 | H35: MARSUGIANTO | I35: L | N35: 1-18-05-80-162- | O35: 6 | P35: LUMAJANG, 12 Februari 2005 | Q35: 079 | R35: /MINI.L-Kid/30.02.02/S.1-2/VI/2019 | S35: 079/MINI.L-Kid/30.02.02/S.1-2/VI/2019
A36: 29 | B36: 4285 | C36: 0067871553 | D36: 1-18-05-80-162-029-5 | E36: MUHAMMAD VERYANSYAH | F36: LUMAJANG | G36: 2006-05-21 | H36: SUTIKNO | I36: L | N36: 1-18-05-80-162- | O36: 5 | P36: LUMAJANG, 21 Mei 2006 | Q36: 080 | R36: /MINI.L-Kid/30.02.02/S.1-2/VI/2019 | S36: 080/MINI.L-Kid/30.02.02/S.1-2/VI/2019
A37: 30 | B37: 4310 | C37: 0066383678 | D37: 1-18-05-80-162-030-4 | E37: MOCHAMMAD BIMA RISFANDA | F37: LUMAJANG | G37: 2006-08-25 | H37: IMAM WAHYUDI | I37: L | N37: 1-18-05-80-162- | O37: 4 | P37: LUMAJANG, 25 Agustus 2006 | Q37: 081 | R37: /MINI.L-Kid/30.02.02/S.1-2/VI/2019 | S37: 081/MINI.L-Kid/30.02.02/S.1-2/VI/2019
A38: 31 | B38: 4286 | C38: 0064443822 | D38: 1-18-05-80-162-031-3 | E38: MUHAMMAD ZIDNY NA'IM | F38: LUMAJANG | G38: 2006-07-31 | H38: AGUS MUSHADI | I38: L | N38: 1-18-05-80-162- | O38: 3 | P38: LUMAJANG, 31 Juli 2006 | Q38: 082 | R38: /MINI.L-Kid/30.02.02/S.1-2/VI/2019 | S38: 082/MINI.L-Kid/30.02.02/S.1-2/VI/2019
A39: 32 | B39: 4282 | C39: 0068336765 | D39: 1-18-05-80-162-032-2 | E39: MUHAMMAD AGUS FERDIANSYAH | F39: LUMAJANG | G39: 2006-08-11 | H39: TOTOK YULIANTO | I39: L | N39: 1-18-05-80-162- | O39: 2 | P39: LUMAJANG, 11 Agustus 2006 | Q39: 083 | R39: /MINI.L-Kid/30.02.02/S.1-2/VI/2019 | S39: 083/MINI.L-Kid/30.02.02/S.1-2/VI/2019
A40: 33 | B40: 4287 | C40: 0064528717 | D40: =N40&TEXT(A40,"#000"&"-"&O40) -> 1-18-05-80-162-033-9 | E40: MUHAMMAD FARDAN ABDILLAH | F40: LUMAJANG | G40: 2006-01-18 | H40: EDI SUSANTO | I40: L | N40: 1-18-05-80-162- | O40: 9 | P40: =F40&", "&TEXT(G40,"[$-id-ID]dd mmmm yyyy") -> LUMAJANG, 18 Januari 2006 | Q40: 084 | R40: /MINI.L-Kid/30.02.02/S.1-2/VI/2019 | S40: 084/MINI.L-Kid/30.02.02/S.1-2/VI/2019
A41: 34 | B41: 4315 | C41: 0067870495 | D41: 1-18-05-80-162-034-8 | E41: NABILA ARISKA PUTRI | F41: LUMAJANG | G41: 2006-06-16 | H41: MUHAMMAD ZAINURI | I41: P | N41: 1-18-05-80-162- | O41: 8 | P41: LUMAJANG, 16 Juni 2006 | Q41: 085 | R41: /MINI.L-Kid/30.02.02/S.1-2/VI/2019 | S41: 085/MINI.L-Kid/30.02.02/S.1-2/VI/2019
A42: 35 | B42: 4288 | C42: 0068641191 | D42: 1-18-05-80-162-035-7 | E42: MUHAMMAD FERDINAN JAYYIDAH RIFQI | F42: LUMAJANG | G42: 2007-05-13 | H42: MUHAMAD SHOLEH | I42: L | N42: 1-18-05-80-162- | O42: 7 | P42: LUMAJANG, 13 Mei 2007 | Q42: 086 | R42: /MINI.L-Kid/30.02.02/S.1-2/VI/2019 | S42: 086/MINI.L-Kid/30.02.02/S.1-2/VI/2019
A43: 36 | B43: 4283 | C43: 0077212388 | D43: 1-18-05-80-162-036-6 | E43: NAFISA INDRIANI | F43: LUMAJANG | G43: 2006-06-03 | H43: ABDUL GHOFAR | I43: P | N43: 1-18-05-80-162- | O43: 6 | P43: LUMAJANG, 03 Juni 2006 | Q43: 087 | R43: /MINI.L-Kid/30.02.02/S.1-2/VI/2019 | S43: 087/MINI.L-Kid/30.02.02/S.1-2/VI/2019
A44: 37 | B44: 4257 | C44: 0069944706 | D44: 1-18-05-80-162-037-5 | E44: MUHAMMAD FIRMANSYAH | F44: LUMAJANG | G44: 2006-09-27 | H44: MULYADI | I44: L | N44: 1-18-05-80-162- | O44: 5 | P44: LUMAJANG, 27 September 2006 | Q44: 088 | R44: /MINI.L-Kid/30.02.02/S.1-2/VI/2019 | S44: 088/MINI.L-Kid/30.02.02/S.1-2/VI/2019
A45: 38 | B45: 4317 | C45: 0068498059 | D45: 1-18-05-80-162-038-4 | E45: NAJWA FARISYA BAROROH | F45: LUMAJANG | G45: 2006-12-25 | H45: MOCHAMAD SYAIR | I45: P | N45: 1-18-05-80-162- | O45: 4 | P45: LUMAJANG, 25 Desember 2006 | Q45: 089 | R45: /MINI.L-Kid/30.02.02/S.1-2/VI/2019 | S45: 089/MINI.L-Kid/30.02.02/S.1-2/VI/2019
A46: 39 | B46: 4289 | C46: 0065225517 | D46: 1-18-05-80-162-039-3 | E46: NUR FITRIYAH | F46: LUMAJANG | G46: 2006-11-02 | H46: SLAMET | I46: P | N46: 1-18-05-80-162- | O46: 3 | P46: LUMAJANG, 02 November 2006 | Q46: 090 | R46: /MINI.L-Kid/30.02.02/S.1-2/VI/2019 | S46: 090/MINI.L-Kid/30.02.02/S.1-2/VI/2019
A47: 40 | B47: 4318 | C47: 0061441364 | D47: 1-18-05-80-162-040-2 | E47: MUHAMMAD HILDAN DWI SAPUTRA | F47: LUMAJANG | G47: 2006-05-04 | H47: SUDIYO | I47: L | N47: 1-18-05-80-162- | O47: 2 | P47: LUMAJANG, 04 Mei 2006 | Q47: 091 | R47: /MINI.L-Kid/30.02.02/S.1-2/VI/2019 | S47: 091/MINI.L-Kid/30.02.02/S.1-2/VI/2019
A48: 41 | B48: 4392 | C48: 0075794532 | D48: 1-18-05-80-162-041-9 | E48: PUTRI NAFI'ATUS SOLIKHAH | F48: LUMAJANG | G48: 2007-02-24 | H48: KUSNO WIBOWO | I48: P | N48: 1-18-05-80-162- | O48: 9 | P48: LUMAJANG, 24 Februari 2007 | Q48: 092 | R48: /MINI.L-Kid/30.02.02/S.1-2/VI/2019 | S48: 092/MINI.L-Kid/30.02.02/S.1-2/VI/2019
A49: 42 | B49: 4284 | C49: 0069578000 | D49: 1-18-05-80-162-042-8 | E49: MUHAMMAD RAYA KAFAF JAUHARI | F49: LUMAJANG | G49: 2006-09-06 | H49: WAWAN JAUHARI | I49: L | N49: 1-18-05-80-162- | O49: 8 | P49: LUMAJANG, 06 September 2006 | Q49: 093 | R49: /MINI.L-Kid/30.02.02/S.1-2/VI/2019 | S49: 093/MINI.L-Kid/30.02.02/S.1-2/VI/2019
A50: 43 | B50: 4290 | C50: 0063558216 | D50: 1-18-05-80-162-043-7 | E50: QORIATUN SHOLIHAH | F50: LUMAJANG | G50: 2006-05-04 | H50: HOTIB | I50: P | N50: 1-18-05-80-162- | O50: 7 | P50: LUMAJANG, 04 Mei 2006 | Q50: 094 | R50: /MINI.L-Kid/30.02.02/S.1-2/VI/2019 | S50: 094/MINI.L-Kid/30.02.02/S.1-2/VI/2019
A51: 44 | B51: 4319 | C51: 0065329770 | D51: 1-18-05-80-162-044-6 | E51: MUHAMMAD RUDI TANTOWIK | F51: LUMAJANG | G51: 2006-09-09 | H51: MUHAMMAD SOLEH | I51: L | N51: 1-18-05-80-162- | O51: 6 | P51: LUMAJANG, 09 September 2006 | Q51: 095 | R51: /MINI.L-Kid/30.02.02/S.1-2/VI/2019 | S51: 095/MINI.L-Kid/30.02.02/S.1-2/VI/2019
A52: 45 | B52: 4291 | C52: 0067071679 | D52: 1-18-05-80-162-045-5 | E52: RACHMAD HIDAYAT | F52: LUMAJANG | G52: 2006-08-27 | H52: MASDUKI | I52: L | N52: 1-18-05-80-162- | O52: 5 | P52: LUMAJANG, 27 Agustus 2006 | Q52: 096 | R52: /MINI.L-Kid/30.02.02/S.1-2/VI/2019 | S52: 096/MINI.L-Kid/30.02.02/S.1-2/VI/2019
A53: 46 | B53: 4322 | C53: 0051101989 | D53: 1-18-05-80-162-046-4 | E53: MUHAMMAD ZULDIENUR HABIBIE | F53: LUMAJANG | G53: 2005-11-30 | H53: MA'LUM (Alm) | I53: L | N53: 1-18-05-80-162- | O53: 4 | P53: LUMAJANG, 30 November 2005 | Q53: 097 | R53: /MINI.L-Kid/30.02.02/S.1-2/VI/2019 | S53: 097/MINI.L-Kid/30.02.02/S.1-2/VI/2019
A54: 47 | B54: 4292 | C54: 0072001696 | D54: 1-18-05-80-162-047-3 | E54: RHEA RAYSHANADA NUGRAHA | F54: SURABAYA | G54: 2007-02-06 | H54: DANANG ARI NUGROHO | I54: P | N54: 1-18-05-80-162- | O54: 3 | P54: SURABAYA, 06 Februari 2007 | Q54: 098 | R54: /MINI.L-Kid/30.02.02/S.1-2/VI/2019 | S54: 098/MINI.L-Kid/30.02.02/S.1-2/VI/2019
A55: 48 | B55: 4323 | C55: 0078949167 | D55: 1-18-05-80-162-048-2 | E55: MUKHAMAD KHOIRUL AMIN | F55: LUMAJANG | G55: 2007-05-02 | H55: SUPIYANTO | I55: L | N55: 1-18-05-80-162- | O55: 2 | P55: LUMAJANG, 02 Mei 2007 | Q55: 099 | R55: /MINI.L-Kid/30.02.02/S.1-2/VI/2019 | S55: 099/MINI.L-Kid/30.02.02/S.1-2/VI/2019
A56: 49 | B56: 4293 | C56: 0064217705 | D56: 1-18-05-80-162-049-9 | E56: RIYANTI APRILIA | F56: LUMAJANG | G56: 2006-04-26 | H56: M KHODIRIN | I56: P | N56: 1-18-05-80-162- | O56: 9 | P56: LUMAJANG, 26 April 2006 | Q56: 100 | R56: /MINI.L-Kid/30.02.02/S.1-2/VI/2019 | S56: 100/MINI.L-Kid/30.02.02/S.1-2/VI/2019
A57: 50 | B57: 4256 | C57: 0065699742 | D57: 1-18-05-80-162-050-8 | E57: MUKHAMMAD YAASIIN HASAN KHASBULLOH | F57: LUMAJANG | G57: 2006-01-19 | H57: SAMSUHAR | I57: L | N57: 1-18-05-80-162- | O57: 8 | P57: LUMAJANG, 19 Januari 2006 | Q57: 101 | R57: /MINI.L-Kid/30.02.02/S.1-2/VI/2019 | S57: 101/MINI.L-Kid/30.02.02/S.1-2/VI/2019
A58: 51 | B58: 4295 | C58: 0061359184 | D58: 1-18-05-80-162-051-7 | E58: SHONIA AULIA AS'AD | F58: LUMAJANG | G58: 2006-09-01 | H58: ABU ANCAR | I58: P | N58: 1-18-05-80-162- | O58: 7 | P58: LUMAJANG, 01 September 2006 | Q58: 102 | R58: /MINI.L-Kid/30.02.02/S.1-2/VI/2019 | S58: 102/MINI.L-Kid/30.02.02/S.1-2/VI/2019
A59: 52 | B59: 4294 | C59: 0064723905 | D59: 1-18-05-80-162-052-6 | E59: RIZKA AYU WULANDARI | F59: BANYUWANGI | G59: 2006-05-23 | H59: HARIYONO | I59: P | N59: 1-18-05-80-162- | O59: 6 | P59: BANYUWANGI, 23 Mei 2006 | Q59: 103 | R59: /MINI.L-Kid/30.02.02/S.1-2/VI/2019 | S59: 103/MINI.L-Kid/30.02.02/S.1-2/VI/2019
A60: 53 | B60: 4298 | C60: 0065530554 | D60: 1-18-05-80-162-053-5 | E60: VERLINA DWI MAULANI | F60: LUMAJANG | G60: 2006-04-22 | H60: MUCHAMMAD KHOIDIN | I60: P | N60: 1-18-05-80-162- | O60: 5 | P60: LUMAJANG, 22 April 2006 | Q60: 104 | R60: /MINI.L-Kid/30.02.02/S.1-2/VI/2019 | S60: 104/MINI.L-Kid/30.02.02/S.1-2/VI/2019
A61: 54 | B61: 4297 | C61: 0063846732 | D61: 1-18-05-80-162-054-4 | E61: USWATUN KHASANAH | F61: LUMAJANG | G61: 2006-12-19 | H61: GATOT | I61: P | N61: 1-18-05-80-162- | O61: 4 | P61: LUMAJANG, 19 Desember 2006 | Q61: 105 | R61: /MINI.L-Kid/30.02.02/S.1-2/VI/2019 | S61: 105/MINI.L-Kid/30.02.02/S.1-2/VI/2019
A62: 55 | B62: 4324 | C62: 0078966795 | D62: 1-18-05-80-162-055-3 | E62: VIKA KUSUMA WATI | F62: LUMAJANG | G62: 2007-05-03 | H62: SELAMET EFENDI | I62: P | N62: 1-18-05-80-162- | O62: 3 | P62: LUMAJANG, 03 Mei 2007 | Q62: 106 | R62: /MINI.L-Kid/30.02.02/S.1-2/VI/2019 | S62: 106/MINI.L-Kid/30.02.02/S.1-2/VI/2019
A63: 56 | B63: 4326 | C63: 0064124533 | D63: 1-18-05-80-162-056-2 | E63: YOHAN EGA GILANG PERMANA | F63: LUMAJANG | G63: 2006-11-24 | H63: MARTONO | I63: L | N63: 1-18-05-80-162- | O63: 2 | P63: LUMAJANG, 24 November 2006 | Q63: 107 | R63: /MINI.L-Kid/30.02.02/S.1-2/VI/2019 | S63: 107/MINI.L-Kid/30.02.02/S.1-2/VI/2019
A64: 57 | D64: =N64&TEXT(A64,"#000"&"-"&O64) -> 1-18-05-80-162-057-9 | N64: 1-18-05-80-162- | O64: 9 | P64: =F65&", "&TEXT(G65,"[$-id-ID]dd mmmm yyyy") -> , 00 Januari 1900 | Q64: 108 | S64: 108
A65: 58 | D65: 1-18-05-80-162-058-8 | N65: 1-18-05-80-162- | O65: 8 | P65: , 00 Januari 1900 | Q65: 109 | S65: 109
A66: 59 | D66: 1-18-05-80-162-059-7 | N66: 1-18-05-80-162- | O66: 7 | P66: , 00 Januari 1900 | Q66: 110 | S66: 110
A67: 60 | D67: 1-18-05-80-162-060-6 | N67: 1-18-05-80-162- | O67: 6 | P67: , 00 Januari 1900 | Q67: 111 | S67: 111
A68: 61 | D68: 1-18-05-80-162-061-5 | N68: 1-18-05-80-162- | O68: 5 | P68: , 00 Januari 1900 | Q68: 112 | S68: 112
A69: 62 | D69: 062-4 | O69: 4 | P69: , 00 Januari 1900 | Q69: 113 | S69: 113
A70: 63 | D70: 063-3 | O70: 3 | P70: , 00 Januari 1900 | Q70: 114 | S70: 114
A71: 64 | D71: 064-2 | O71: 2 | P71: , 00 Januari 1900 | Q71: 115 | S71: 115
A72: 65 | D72: 065- | P72: =F73&", "&TEXT(G73,"[$-id-ID]dd mmmm yyyy") -> , 00 Januari 1900 | Q72: 116 | S72: =Q72&R72 -> 116
A73: 66 | D73: =N73&TEXT(A73,"#000"&"-"&O73) -> 066- | P73: , 00 Januari 1900 | Q73: 117 | S73: 117
A74: 67 | D74: 067- | P74: , 00 Januari 1900 | Q74: 118 | S74: 118
A75: 68 | D75: 068- | P75: , 00 Januari 1900 | Q75: 119 | S75: 119
A76: 69 | D76: 069- | P76: , 00 Januari 1900 | Q76: 120 | S76: 120
A77: 70 | D77: 070- | P77: , 00 Januari 1900 | Q77: 121 | S77: 121
A78: 71 | D78: 071- | P78: , 00 Januari 1900 | Q78: 122 | S78: 122
A79: 72 | D79: 072- | P79: , 00 Januari 1900 | Q79: 123 | S79: 123
A80: 73 | D80: 073- | P80: , 00 Januari 1900 | Q80: 124 | S80: 124
A81: 74 | D81: 074- | P81: , 00 Januari 1900 | Q81: 125 | S81: 125
A82: 75 | D82: 075- | P82: , 00 Januari 1900 | Q82: 126 | S82: 126
A83: 76 | D83: 076- | P83: , 00 Januari 1900 | Q83: 127 | S83: 127
A84: 77 | D84: 077- | P84: , 00 Januari 1900 | Q84: 128 | S84: 128
A85: 78 | D85: 078- | P85: , 00 Januari 1900 | Q85: 129 | S85: 129
A86: 79 | D86: 079- | P86: , 00 Januari 1900 | Q86: 130 | S86: 130
A87: 80 | D87: 080- | P87: , 00 Januari 1900 | Q87: 131 | S87: 131
A88: 81 | D88: 081- | P88: , 00 Januari 1900 | Q88: 132 | S88: 132
A89: 82 | D89: 082- | P89: , 00 Januari 1900 | Q89: 133 | S89: 133
A90: 83 | D90: 083- | P90: , 00 Januari 1900 | Q90: 134 | S90: 134
A91: 84 | D91: 084- | P91: , 00 Januari 1900 | Q91: 135 | S91: 135
A92: 85 | D92: 085- | P92: , 00 Januari 1900 | Q92: 136 | S92: 136
A93: 86 | D93: 086- | P93: , 00 Januari 1900 | Q93: 137 | S93: 137
A94: 87 | D94: 087- | P94: , 00 Januari 1900 | Q94: 138 | S94: 138
A95: 88 | D95: 088- | P95: , 00 Januari 1900 | Q95: 139 | S95: 139
A96: 89 | D96: 089- | P96: , 00 Januari 1900 | Q96: 140 | S96: 140
A97: 90 | D97: 090- | P97: , 00 Januari 1900 | Q97: 141 | S97: 141
A98: 91 | D98: 091- | P98: , 00 Januari 1900 | Q98: 142 | S98: 142
A99: 92 | D99: 092- | P99: , 00 Januari 1900 | Q99: 143 | S99: 143
A100: 93 | D100: 093- | P100: , 00 Januari 1900 | Q100: 144 | S100: 144
A101: 94 | D101: 094- | P101: , 00 Januari 1900 | Q101: 145 | S101: 145
A102: 95 | D102: 095- | P102: , 00 Januari 1900 | Q102: 146 | S102: 146
A103: 96 | D103: 096- | P103: , 00 Januari 1900 | Q103: 147 | S103: 147
A104: 97 | D104: 097- | P104: , 00 Januari 1900 | Q104: 148 | S104: 148
A105: 98 | D105: 098- | P105: , 00 Januari 1900 | Q105: 149 | S105: 149
A106: 99 | D106: 099- | P106: , 00 Januari 1900 | Q106: 150 | S106: 150
A107: 100 | D107: 100- | P107: , 00 Januari 1900 | Q107: 151 | S107: 151
A108: 101 | D108: 101- | P108: , 00 Januari 1900 | Q108: 152 | S108: 152
A109: 102 | D109: 102- | P109: , 00 Januari 1900 | Q109: 153 | S109: 153
A110: 103 | D110: 103- | P110: , 00 Januari 1900 | Q110: 154 | S110: 154
A111: 104 | D111: 104- | P111: , 00 Januari 1900 | Q111: 155 | S111: 155
A112: 105 | D112: 105- | P112: , 00 Januari 1900 | Q112: 156 | S112: 156
A113: 106 | D113: 106- | P113: , 00 Januari 1900 | Q113: 157 | S113: 157
A114: 107 | D114: 107- | P114: , 00 Januari 1900 | Q114: 158 | S114: 158
A115: 108 | D115: 108- | P115: , 00 Januari 1900 | Q115: 159 | S115: 159
A116: 109 | D116: 109- | P116: , 00 Januari 1900 | Q116: 160 | S116: 160
A117: 110 | D117: 110- | P117: , 00 Januari 1900 | Q117: 161 | S117: 161
A118: 111 | D118: 111- | P118: , 00 Januari 1900 | Q118: 162 | S118: 162
A119: 112 | D119: 112- | P119: , 00 Januari 1900 | Q119: 163 | S119: 163
A120: 113 | D120: 113- | P120: , 00 Januari 1900 | Q120: 164 | S120: 164
A121: 114 | D121: 114- | P121: , 00 Januari 1900 | Q121: 165 | S121: 165
A122: 115 | D122: 115- | P122: , 00 Januari 1900 | Q122: 166 | S122: 166
A123: 116 | D123: 116- | P123: , 00 Januari 1900 | Q123: 167 | S123: 167
A124: 117 | D124: 117- | P124: , 00 Januari 1900 | Q124: 168 | S124: 168
A125: 118 | D125: 118- | P125: , 00 Januari 1900 | Q125: 169 | S125: 169
A126: 119 | D126: 119- | P126: , 00 Januari 1900 | Q126: 170 | S126: 170
A127: 120 | D127: 120- | P127: , 00 Januari 1900 | Q127: 171 | S127: 171
A128: 121 | D128: 121- | P128: , 00 Januari 1900 | Q128: 172 | S128: 172
A129: 122 | D129: 122- | P129: , 00 Januari 1900 | Q129: 173 | S129: 173
A130: 123 | D130: 123- | P130: , 00 Januari 1900 | Q130: 174 | S130: 174
A131: 124 | D131: 124- | P131: , 00 Januari 1900 | Q131: 175 | S131: 175
A132: 125 | D132: 125- | P132: , 00 Januari 1900 | Q132: 176 | S132: 176
A133: 126 | D133: 126- | P133: , 00 Januari 1900 | Q133: 177 | S133: 177
A134: 127 | D134: 127- | P134: , 00 Januari 1900 | Q134: 178 | S134: 178
A135: 128 | D135: 128- | P135: , 00 Januari 1900 | Q135: 179 | S135: 179
A136: 129 | D136: 129- | P136: =F137&", "&TEXT(G137,"[$-id-ID]dd mmmm yyyy") -> , 00 Januari 1900 | Q136: 180 | S136: =Q136&R136 -> 180
A137: 130 | D137: =N137&TEXT(A137,"#000"&"-"&O137) -> 130- | P137: , 00 Januari 1900 | Q137: 181 | S137: 181
A138: 131 | D138: 131- | P138: , 00 Januari 1900 | Q138: 182 | S138: 182
A139: 132 | D139: 132- | P139: , 00 Januari 1900 | Q139: 183 | S139: 183
A140: 133 | D140: 133- | P140: , 00 Januari 1900 | Q140: 184 | S140: 184
A141: 134 | D141: 134- | P141: , 00 Januari 1900 | Q141: 185 | S141: 185
A142: 135 | D142: 135- | P142: , 00 Januari 1900 | Q142: 186 | S142: 186
A143: 136 | D143: 136- | P143: , 00 Januari 1900 | Q143: 187 | S143: 187
A144: 137 | D144: 137- | P144: , 00 Januari 1900 | Q144: 188 | S144: 188
A145: 138 | D145: 138- | P145: , 00 Januari 1900 | Q145: 189 | S145: 189
A146: 139 | D146: 139- | P146: , 00 Januari 1900 | Q146: 190 | S146: 190
A147: 140 | D147: 140- | P147: , 00 Januari 1900 | Q147: 191 | S147: 191
A148: 141 | D148: 141- | P148: , 00 Januari 1900 | Q148: 192 | S148: 192
A149: 142 | D149: 142- | P149: , 00 Januari 1900 | Q149: 193 | S149: 193
A150: 143 | D150: 143- | P150: , 00 Januari 1900 | Q150: 194 | S150: 194
A151: 144 | D151: 144- | P151: , 00 Januari 1900 | Q151: 195 | S151: 195
A152: 145 | D152: 145- | P152: , 00 Januari 1900 | Q152: 196 | S152: 196
A153: 146 | D153: 146- | P153: , 00 Januari 1900 | Q153: 197 | S153: 197
A154: 147 | D154: 147- | P154: , 00 Januari 1900 | Q154: 198 | S154: 198
A155: 148 | D155: 148- | P155: , 00 Januari 1900 | Q155: 199 | S155: 199
A156: 149 | D156: 149- | P156: , 00 Januari 1900 | Q156: 200 | S156: 200
A157: 150 | D157: 150- | P157: , 00 Januari 1900 | Q157: 201 | S157: 201
A158: 151 | D158: 151- | P158: , 00 Januari 1900 | Q158: 202 | S158: 202
A159: 152 | D159: 152- | P159: , 00 Januari 1900 | Q159: 203 | S159: 203
A160: 153 | D160: 153- | P160: , 00 Januari 1900 | Q160: 204 | S160: 204
A161: 154 | D161: 154- | P161: , 00 Januari 1900 | Q161: 205 | S161: 205
A162: 155 | D162: 155- | P162: , 00 Januari 1900 | Q162: 206 | S162: 206
A163: 156 | D163: 156- | P163: , 00 Januari 1900 | Q163: 207 | S163: 207
A164: 157 | D164: 157- | P164: , 00 Januari 1900 | Q164: 208 | S164: 208
A165: 158 | D165: 158- | P165: , 00 Januari 1900 | Q165: 209 | S165: 209
A166: 159 | D166: 159- | P166: , 00 Januari 1900 | Q166: 210 | S166: 210
A167: 160 | D167: 160- | P167: , 00 Januari 1900 | Q167: 211 | S167: 211
A168: 161 | D168: 161- | P168: , 00 Januari 1900 | Q168: 212 | S168: 212
A169: 162 | D169: 162- | P169: , 00 Januari 1900 | Q169: 213 | S169: 213
A170: 163 | D170: 163- | P170: , 00 Januari 1900 | Q170: 214 | S170: 214
A171: 164 | D171: 164- | P171: , 00 Januari 1900 | Q171: 215 | S171: 215
A172: 165 | D172: 165- | P172: , 00 Januari 1900 | Q172: 216 | S172: 216
A173: 166 | D173: 166- | P173: , 00 Januari 1900 | Q173: 217 | S173: 217
A174: 167 | D174: 167- | P174: , 00 Januari 1900 | Q174: 218 | S174: 218
A175: 168 | D175: 168- | P175: , 00 Januari 1900 | Q175: 219 | S175: 219
A176: 169 | D176: 169- | P176: , 00 Januari 1900 | Q176: 220 | S176: 220
A177: 170 | D177: 170- | P177: , 00 Januari 1900 | Q177: 221 | S177: 221
A178: 171 | D178: 171- | P178: , 00 Januari 1900 | Q178: 222 | S178: 222
A179: 172 | D179: 172- | P179: , 00 Januari 1900 | Q179: 223 | S179: 223
A180: 173 | D180: 173- | P180: , 00 Januari 1900 | Q180: 224 | S180: 224
A181: 174 | D181: 174- | P181: , 00 Januari 1900 | Q181: 225 | S181: 225
A182: 175 | D182: 175- | P182: , 00 Januari 1900 | Q182: 226 | S182: 226
A183: 176 | D183: 176- | P183: , 00 Januari 1900 | Q183: 227 | S183: 227
A184: 177 | D184: 177- | P184: , 00 Januari 1900 | Q184: 228 | S184: 228
A185: 178 | D185: 178- | P185: , 00 Januari 1900 | Q185: 229 | S185: 229
A186: 179 | D186: 179- | P186: , 00 Januari 1900 | Q186: 230 | S186: 230
A187: 180 | D187: 180- | P187: , 00 Januari 1900 | Q187: 231 | S187: 231
A188: 181 | D188: 181- | P188: , 00 Januari 1900 | Q188: 232 | S188: 232
A189: 182 | D189: 182- | P189: , 00 Januari 1900 | Q189: 233 | S189: 233
A190: 183 | D190: 183- | P190: , 00 Januari 1900 | Q190: 234 | S190: 234
A191: 184 | D191: 184- | P191: , 00 Januari 1900 | Q191: 235 | S191: 235
A192: 185 | D192: 185- | P192: , 00 Januari 1900 | Q192: 236 | S192: 236
A193: 186 | D193: 186- | P193: , 00 Januari 1900 | Q193: 237 | S193: 237
A194: 187 | D194: 187- | P194: , 00 Januari 1900 | Q194: 238 | S194: 238
A195: 188 | D195: 188- | P195: , 00 Januari 1900 | Q195: 239 | S195: 239
A196: 189 | D196: 189- | P196: , 00 Januari 1900 | Q196: 240 | S196: 240
A197: 190 | D197: 190- | P197: , 00 Januari 1900 | Q197: 241 | S197: 241
A198: 191 | D198: 191- | P198: , 00 Januari 1900 | Q198: 242 | S198: 242
A199: 192 | D199: 192- | P199: , 00 Januari 1900 | Q199: 243 | S199: 243
A200: 193 | D200: 193- | P200: =F201&", "&TEXT(G201,"[$-id-ID]dd mmmm yyyy") -> , 00 Januari 1900 | Q200: 244 | S200: =Q200&R200 -> 244
A201: 194 | D201: =N201&TEXT(A201,"#000"&"-"&O201) -> 194- | P201: , 00 Januari 1900 | Q201: 245 | S201: 245
A202: 195 | D202: 195- | P202: , 00 Januari 1900 | Q202: 246 | S202: 246
A203: 196 | D203: 196- | P203: , 00 Januari 1900 | Q203: 247 | S203: 247
A204: 197 | D204: 197- | P204: , 00 Januari 1900 | Q204: 248 | S204: 248
... 3 more rows

Sheet AH
A1: DAFTAR NILAI AKHIR SEKOLAH
A2: =AA!A2 -> MADRASAH IBTIDAIYAH NURUL ISLAM LABRUK KIDUL
A3: =AA!A3 -> TAHUN PELAJARAN 2018/2019
A5: NO | B5: No Induk | C5: NISN | D5: Nomor Peserta | E5: Nama Peserta | F5: ALQURAN HADITS | O5: rata-rata UAM & PRAKTEK
F6: Nilai Semester | K6: Rata- 2 | L6: NILAI UAMBD
F7: 7 | G7: 8 | H7: 9 | I7: 10 | J7: 11 | K7: Rapor | L7: TULIS | M7: PRAKTIK
A8: 1 | B8: =IF(SISWA!B8=0,"",SISWA!B8) -> 4270 | C8: =IF(SISWA!C8=0,"",SISWA!C8) -> 0067566336 | D8: =IF(SISWA!D8=0,"",SISWA!D8) -> 1-18-05-80-162-001-9 | E8: =IF(SISWA!E8=0,"",SISWA!E8) -> ADITYA MAULA FANDY TAULANI | F8: 85 | G8: 81 | H8: 85 | I8: 88 | J8: 91 | K8: =AVERAGE(F8:J8) -> 86 | L8: 65 | M8: =K8 -> 86 | N8: =AVERAGE(L8:M8) -> 75.5 | O8: =AVERAGE(L8:M8) -> 75.5
A9: 2 | B9: =IF(SISWA!B9=0,"",SISWA!B9) -> 4300 | C9: =IF(SISWA!C9=0,"",SISWA!C9) -> 0066364963 | D9: =IF(SISWA!D9=0,"",SISWA!D9) -> 1-18-05-80-162-002-8 | E9: =IF(SISWA!E9=0,"",SISWA!E9) -> AHMAD FERDIAN ALAMSYAH | F9: 73 | G9: 67 | H9: 78 | I9: 73 | J9: 80 | K9: =AVERAGE(F9:J9) -> 74.2 | L9: 65 | M9: =K9 -> 74.2 | N9: =AVERAGE(L9:M9) -> 69.6 | O9: =AVERAGE(L9:M9) -> 69.6
A10: 3 | B10: =IF(SISWA!B10=0,"",SISWA!B10) -> 4271 | C10: =IF(SISWA!C10=0,"",SISWA!C10) -> 0062805893 | D10: =IF(SISWA!D10=0,"",SISWA!D10) -> 1-18-05-80-162-003-7 | E10: =IF(SISWA!E10=0,"",SISWA!E10) -> AHMAD RAMADHANI FADLULLOH | F10: 78 | G10: 76 | H10: 82 | I10: 81 | J10: 84 | K10: 80.2 | L10: 65 | M10: 80.2 | N10: 72.6 | O10: 72.6
A11: 4 | B11: =IF(SISWA!B11=0,"",SISWA!B11) -> 4398 | C11: =IF(SISWA!C11=0,"",SISWA!C11) -> 0062399399 | D11: =IF(SISWA!D11=0,"",SISWA!D11) -> 1-18-05-80-162-004-6 | E11: =IF(SISWA!E11=0,"",SISWA!E11) -> ANANDA AMILIA | F11: 74 | G11: 68 | H11: 77 | I11: 80 | J11: 86 | K11: 77 | L11: 71.9 | M11: 77 | N11: 74.45 | O11: 74.45
A12: 5 | B12: =IF(SISWA!B12=0,"",SISWA!B12) -> 4272 | C12: =IF(SISWA!C12=0,"",SISWA!C12) -> 0071551428 | D12: =IF(SISWA!D12=0,"",SISWA!D12) -> 1-18-05-80-162-005-5 | E12: =IF(SISWA!E12=0,"",SISWA!E12) -> ANDINI MAULID DWI LESTARI | F12: 75 | G12: 74 | H12: 79 | I12: 76 | J12: 84 | K12: 77.6 | L12: 65 | M12: 77.6 | N12: 71.3 | O12: 71.3
A13: 6 | B13: =IF(SISWA!B13=0,"",SISWA!B13) -> 4301 | C13: =IF(SISWA!C13=0,"",SISWA!C13) -> 0061907599 | D13: =IF(SISWA!D13=0,"",SISWA!D13) -> 1-18-05-80-162-006-4 | E13: =IF(SISWA!E13=0,"",SISWA!E13) -> ANDRIK YUSRI | F13: 70 | G13: 61 | H13: 73 | I13: 69 | J13: 82 | K13: 71 | L13: 65 | M13: 71 | N13: 68 | O13: 68
A14: 7 | B14: =IF(SISWA!B14=0,"",SISWA!B14) -> 4273 | C14: =IF(SISWA!C14=0,"",SISWA!C14) -> 0067280519 | D14: =IF(SISWA!D14=0,"",SISWA!D14) -> 1-18-05-80-162-007-3 | E14: =IF(SISWA!E14=0,"",SISWA!E14) -> DEWI SAKINAH ISWARA | F14: 81 | G14: 81 | H14: 88 | I14: 86 | J14: 89 | K14: 85 | L14: 73.1 | M14: 85 | N14: 79.05 | O14: 79.05
A15: 8 | B15: =IF(SISWA!B15=0,"",SISWA!B15) -> 4307 | C15: =IF(SISWA!C15=0,"",SISWA!C15) -> 0066012198 | D15: =IF(SISWA!D15=0,"",SISWA!D15) -> 1-18-05-80-162-008-2 | E15: =IF(SISWA!E15=0,"",SISWA!E15) -> CHAKIM | F15: 70 | G15: 63 | H15: 70 | I15: 66 | J15: 78 | K15: 69.4 | L15: 67.1 | M15: 69.4 | N15: 68.25 | O15: 68.25
A16: 9 | B16: =IF(SISWA!B16=0,"",SISWA!B16) -> 4275 | C16: =IF(SISWA!C16=0,"",SISWA!C16) -> 0078199679 | D16: =IF(SISWA!D16=0,"",SISWA!D16) -> 1-18-05-80-162-009-9 | E16: =IF(SISWA!E16=0,"",SISWA!E16) -> HANIK APRILIA SARI | F16: 80 | G16: 81 | H16: 81 | I16: 82 | J16: 84 | K16: 81.6 | L16: 67.1 | M16: 81.6 | N16: 74.35 | O16: 74.35
A17: 10 | B17: =IF(SISWA!B17=0,"",SISWA!B17) -> 4238 | C17: =IF(SISWA!C17=0,"",SISWA!C17) -> 0051503260 | D17: =IF(SISWA!D17=0,"",SISWA!D17) -> 1-18-05-80-162-010-8 | E17: =IF(SISWA!E17=0,"",SISWA!E17) -> DESI NATALIA SAPUTRI | F17: 70 | G17: 59 | H17: 71 | I17: 71 | J17: 78 | K17: 69.8 | L17: 65 | M17: 69.8 | N17: 67.4 | O17: 67.4
A18: 11 | B18: =IF(SISWA!B18=0,"",SISWA!B18) -> 4391 | C18: =IF(SISWA!C18=0,"",SISWA!C18) -> 0079418518 | D18: =IF(SISWA!D18=0,"",SISWA!D18) -> 1-18-05-80-162-011-7 | E18: =IF(SISWA!E18=0,"",SISWA!E18) -> HIDAYATUL KHUMAINIA | F18: 71 | G18: 64 | H18: 79 | I18: 78 | J18: 83 | K18: 75 | L18: 70.9 | M18: 75 | N18: 72.95 | O18: 72.95
A19: 12 | B19: =IF(SISWA!B19=0,"",SISWA!B19) -> 4274 | C19: =IF(SISWA!C19=0,"",SISWA!C19) -> 0077670297 | D19: =IF(SISWA!D19=0,"",SISWA!D19) -> 1-18-05-80-162-012-6 | E19: =IF(SISWA!E19=0,"",SISWA!E19) -> DWITA FITA WULANDARI | F19: 73 | G19: 71 | H19: 74 | I19: 75 | J19: 86 | K19: 75.8 | L19: 65 | M19: 75.8 | N19: 70.4 | O19: 70.4
A20: 13 | B20: =IF(SISWA!B20=0,"",SISWA!B20) -> 4276 | C20: =IF(SISWA!C20=0,"",SISWA!C20) -> 0067236848 | D20: =IF(SISWA!D20=0,"",SISWA!D20) -> 1-18-05-80-162-013-5 | E20: =IF(SISWA!E20=0,"",SISWA!E20) -> IZZA ILMIA AZZAHRA | F20: 80 | G20: 76 | H20: 83 | I20: 86 | J20: 91 | K20: 83.2 | L20: 65 | M20: 83.2 | N20: 74.1 | O20: 74.1
A21: 14 | B21: =IF(SISWA!B21=0,"",SISWA!B21) -> 4303 | C21: =IF(SISWA!C21=0,"",SISWA!C21) -> 0064031376 | D21: =IF(SISWA!D21=0,"",SISWA!D21) -> 1-18-05-80-162-014-4 | E21: =IF(SISWA!E21=0,"",SISWA!E21) -> FARIDATUS SAHDIAH | F21: 73 | G21: 72 | H21: 74 | I21: 80 | J21: 82 | K21: 76.2 | L21: 66.29 | M21: 76.2 | N21: 71.245 | O21: 71.245
A22: 15 | B22: =IF(SISWA!B22=0,"",SISWA!B22) -> 4278 | C22: =IF(SISWA!C22=0,"",SISWA!C22) -> 0079672823 | D22: =IF(SISWA!D22=0,"",SISWA!D22) -> 1-18-05-80-162-015-3 | E22: =IF(SISWA!E22=0,"",SISWA!E22) -> KHARISYA AZZAHRO | F22: 86 | G22: 86 | H22: 89 | I22: 80 | J22: 94 | K22: 87 | L22: 65 | M22: 87 | N22: 76 | O22: 76
A23: 16 | B23: =IF(SISWA!B23=0,"",SISWA!B23) -> 4277 | C23: =IF(SISWA!C23=0,"",SISWA!C23) -> 0077101453 | D23: =IF(SISWA!D23=0,"",SISWA!D23) -> 1-18-05-80-162-016-2 | E23: =IF(SISWA!E23=0,"",SISWA!E23) -> KARINA FEBBY CAHYA AMILIA | F23: 78 | G23: 77 | H23: 80 | I23: 78 | J23: 89 | K23: 80.4 | L23: 65 | M23: 80.4 | N23: 72.7 | O23: 72.7
A24: 17 | B24: =IF(SISWA!B24=0,"",SISWA!B24) -> 4601 | C24: =IF(SISWA!C24=0,"",SISWA!C24) -> 0069718082 | D24: =IF(SISWA!D24=0,"",SISWA!D24) -> 1-18-05-80-162-017-9 | E24: =IF(SISWA!E24=0,"",SISWA!E24) -> MOCHAMAD RIFKY ROSAN | F24: 72 | G24: 76 | H24: 78 | I24: 76 | J24: 83 | K24: 77 | L24: 65 | M24: 77 | N24: 71 | O24: 71
A25: 18 | B25: =IF(SISWA!B25=0,"",SISWA!B25) -> 4241 | C25: =IF(SISWA!C25=0,"",SISWA!C25) -> 0057006145 | D25: =IF(SISWA!D25=0,"",SISWA!D25) -> 1-18-05-80-162-018-8 | E25: =IF(SISWA!E25=0,"",SISWA!E25) -> KHUSNI CAHYONO | F25: 70 | G25: 53 | H25: 69 | I25: 63 | J25: 76 | K25: 66.2 | L25: 79.1 | M25: 66.2 | N25: 72.65 | O25: 72.65
A26: 19 | B26: =IF(SISWA!B26=0,"",SISWA!B26) -> 4280 | C26: =IF(SISWA!C26=0,"",SISWA!C26) -> 0062061356 | D26: =IF(SISWA!D26=0,"",SISWA!D26) -> 1-18-05-80-162-019-7 | E26: =IF(SISWA!E26=0,"",SISWA!E26) -> MUCHAMMAD ALIEF FERDIANSYAH | F26: 81 | G26: 85 | H26: 82 | I26: 87 | J26: 91 | K26: 85.2 | L26: 65 | M26: 85.2 | N26: 75.1 | O26: 75.1
A27: 20 | B27: =IF(SISWA!B27=0,"",SISWA!B27) -> 4306 | C27: =IF(SISWA!C27=0,"",SISWA!C27) -> 0069095925 | D27: =IF(SISWA!D27=0,"",SISWA!D27) -> 1-18-05-80-162-020-6 | E27: =IF(SISWA!E27=0,"",SISWA!E27) -> LENNY AGUSTIN NINGTYAS | F27: 70 | G27: 62 | H27: 70 | I27: 67 | J27: 78 | K27: 69.4 | L27: 65 | M27: 69.4 | N27: 67.2 | O27: 67.2
A28: 21 | B28: =IF(SISWA!B28=0,"",SISWA!B28) -> 4281 | C28: =IF(SISWA!C28=0,"",SISWA!C28) -> 0069153972 | D28: =IF(SISWA!D28=0,"",SISWA!D28) -> 1-18-05-80-162-021-5 | E28: =IF(SISWA!E28=0,"",SISWA!E28) -> MUHAMMAD AGUS ANDRIANTO | F28: 78 | G28: 80 | H28: 73 | I28: 78 | J28: 84 | K28: 78.6 | L28: 65 | M28: 78.6 | N28: 71.8 | O28: 71.8
A29: 22 | B29: =IF(SISWA!B29=0,"",SISWA!B29) -> 4308 | C29: =IF(SISWA!C29=0,"",SISWA!C29) -> 0063078335 | D29: =IF(SISWA!D29=0,"",SISWA!D29) -> 1-18-05-80-162-022-4 | E29: =IF(SISWA!E29=0,"",SISWA!E29) -> MAURIS HIDAYATUR ROCHMAN | F29: 76 | G29: 75 | H29: 81 | I29: 80 | J29: 87 | K29: 79.8 | L29: 68.3 | M29: 79.8 | N29: 74.05 | O29: 74.05
A30: 23 | B30: =IF(SISWA!B30=0,"",SISWA!B30) -> 4314 | C30: =IF(SISWA!C30=0,"",SISWA!C30) -> 0072178353 | D30: =IF(SISWA!D30=0,"",SISWA!D30) -> 1-18-05-80-162-023-3 | E30: =IF(SISWA!E30=0,"",SISWA!E30) -> MUHAMMAD BISMAR TAUFIQUROHMAN | F30: 78 | G30: 75 | H30: 82 | I30: 88 | J30: 91 | K30: 82.8 | L30: 65 | M30: 82.8 | N30: 73.9 | O30: 73.9
A31: 24 | B31: =IF(SISWA!B31=0,"",SISWA!B31) -> 4309 | C31: =IF(SISWA!C31=0,"",SISWA!C31) -> 0072198448 | D31: =IF(SISWA!D31=0,"",SISWA!D31) -> 1-18-05-80-162-024-2 | E31: =IF(SISWA!E31=0,"",SISWA!E31) -> MAYA BUNGA ANJANI | F31: 71 | G31: 66 | H31: 71 | I31: 69 | J31: 80 | K31: 71.4 | L31: 67.31 | M31: 71.4 | N31: 69.355 | O31: 69.355
A32: 25 | B32: =IF(SISWA!B32=0,"",SISWA!B32) -> 4320 | C32: =IF(SISWA!C32=0,"",SISWA!C32) -> 0064566227 | D32: =IF(SISWA!D32=0,"",SISWA!D32) -> 1-18-05-80-162-025-9 | E32: =IF(SISWA!E32=0,"",SISWA!E32) -> MUHAMMAD SAHLAN SHODIQ | F32: 81 | G32: 76 | H32: 89 | I32: 83 | J32: 92 | K32: 84.2 | L32: 65 | M32: 84.2 | N32: 74.6 | O32: 74.6
A33: 26 | B33: =IF(SISWA!B33=0,"",SISWA!B33) -> 4279 | C33: =IF(SISWA!C33=0,"",SISWA!C33) -> 0066637092 | D33: =IF(SISWA!D33=0,"",SISWA!D33) -> 1-18-05-80-162-026-8 | E33: =IF(SISWA!E33=0,"",SISWA!E33) -> MITA SEPTIANI ISLAMIA | F33: 70 | G33: 62 | H33: 80 | I33: 78 | J33: 78 | K33: 73.6 | L33: 65 | M33: 73.6 | N33: 69.3 | O33: 69.3
A34: 27 | B34: =IF(SISWA!B34=0,"",SISWA!B34) -> 4321 | C34: =IF(SISWA!C34=0,"",SISWA!C34) -> 0061244045 | D34: =IF(SISWA!D34=0,"",SISWA!D34) -> 1-18-05-80-162-027-7 | E34: =IF(SISWA!E34=0,"",SISWA!E34) -> MUHAMMAD SEPTYAN EKA PRATAMA | F34: 80 | G34: 76 | H34: 76 | I34: 78 | J34: 84 | K34: 78.8 | L34: 65 | M34: 78.8 | N34: 71.9 | O34: 71.9
A35: 28 | B35: =IF(SISWA!B35=0,"",SISWA!B35) -> 4247 | C35: =IF(SISWA!C35=0,"",SISWA!C35) -> 0053546157 | D35: =IF(SISWA!D35=0,"",SISWA!D35) -> 1-18-05-80-162-028-6 | E35: =IF(SISWA!E35=0,"",SISWA!E35) -> MOCHAMAD ARIEL FRANS TITO | F35: 70 | G35: 61 | H35: 70 | I35: 68 | J35: 78 | K35: 69.4 | L35: 65 | M35: 69.4 | N35: 67.2 | O35: 67.2
A36: 29 | B36: =IF(SISWA!B36=0,"",SISWA!B36) -> 4285 | C36: =IF(SISWA!C36=0,"",SISWA!C36) -> 0067871553 | D36: =IF(SISWA!D36=0,"",SISWA!D36) -> 1-18-05-80-162-029-5 | E36: =IF(SISWA!E36=0,"",SISWA!E36) -> MUHAMMAD VERYANSYAH | F36: 78 | G36: 76 | H36: 73 | I36: 80 | J36: 89 | K36: 79.2 | L36: 65 | M36: 79.2 | N36: 72.1 | O36: 72.1
A37: 30 | B37: =IF(SISWA!B37=0,"",SISWA!B37) -> 4310 | C37: =IF(SISWA!C37=0,"",SISWA!C37) -> 0066383678 | D37: =IF(SISWA!D37=0,"",SISWA!D37) -> 1-18-05-80-162-030-4 | E37: =IF(SISWA!E37=0,"",SISWA!E37) -> MOCHAMMAD BIMA RISFANDA | F37: 71 | G37: 57 | H37: 71 | I37: 72 | J37: 78 | K37: 69.8 | L37: 65 | M37: 69.8 | N37: 67.4 | O37: 67.4
A38: 31 | B38: =IF(SISWA!B38=0,"",SISWA!B38) -> 4286 | C38: =IF(SISWA!C38=0,"",SISWA!C38) -> 0064443822 | D38: =IF(SISWA!D38=0,"",SISWA!D38) -> 1-18-05-80-162-031-3 | E38: =IF(SISWA!E38=0,"",SISWA!E38) -> MUHAMMAD ZIDNY NA'IM | F38: 86 | G38: 85 | H38: 89 | I38: 80 | J38: 92 | K38: 86.4 | L38: 65 | M38: 86.4 | N38: 75.7 | O38: 75.7
A39: 32 | B39: =IF(SISWA!B39=0,"",SISWA!B39) -> 4282 | C39: =IF(SISWA!C39=0,"",SISWA!C39) -> 0068336765 | D39: =IF(SISWA!D39=0,"",SISWA!D39) -> 1-18-05-80-162-032-2 | E39: =IF(SISWA!E39=0,"",SISWA!E39) -> MUHAMMAD AGUS FERDIANSYAH | F39: 78 | G39: 77 | H39: 79 | I39: 83 | J39: 87 | K39: 80.8 | L39: 65 | M39: 80.8 | N39: 72.9 | O39: 72.9
A40: 33 | B40: =IF(SISWA!B40=0,"",SISWA!B40) -> 4287 | C40: =IF(SISWA!C40=0,"",SISWA!C40) -> 0064528717 | D40: =IF(SISWA!D40=0,"",SISWA!D40) -> 1-18-05-80-162-033-9 | E40: =IF(SISWA!E40=0,"",SISWA!E40) -> MUHAMMAD FARDAN ABDILLAH | F40: 77 | H40: 77 | I40: 80 | K40: 78 | L40: 65 | M40: 78 | N40: 71.5 | O40: 71.5
A41: 34 | B41: =IF(SISWA!B41=0,"",SISWA!B41) -> 4315 | C41: =IF(SISWA!C41=0,"",SISWA!C41) -> 0067870495 | D41: =IF(SISWA!D41=0,"",SISWA!D41) -> 1-18-05-80-162-034-8 | E41: =IF(SISWA!E41=0,"",SISWA!E41) -> NABILA ARISKA PUTRI | F41: 81 | G41: 84 | H41: 83 | I41: 83 | J41: 88 | K41: 83.8 | L41: 65 | M41: 83.8 | N41: 74.4 | O41: 74.4
A42: 35 | B42: =IF(SISWA!B42=0,"",SISWA!B42) -> 4288 | C42: =IF(SISWA!C42=0,"",SISWA!C42) -> 0068641191 | D42: =IF(SISWA!D42=0,"",SISWA!D42) -> 1-18-05-80-162-035-7 | E42: =IF(SISWA!E42=0,"",SISWA!E42) -> MUHAMMAD FERDINAN JAYYIDAH RIFQI | F42: 80 | G42: 80 | H42: 77 | I42: 85 | J42: 88 | K42: 82 | L42: 65 | M42: 82 | N42: 73.5 | O42: 73.5
A43: 36 | B43: =IF(SISWA!B43=0,"",SISWA!B43) -> 4283 | C43: =IF(SISWA!C43=0,"",SISWA!C43) -> 0077212388 | D43: =IF(SISWA!D43=0,"",SISWA!D43) -> 1-18-05-80-162-036-6 | E43: =IF(SISWA!E43=0,"",SISWA!E43) -> NAFISA INDRIANI | F43: 81 | G43: 84 | H43: 90 | I43: 91 | J43: 95 | K43: 88.2 | L43: 65 | M43: 88.2 | N43: 76.6 | O43: 76.6
A44: 37 | B44: =IF(SISWA!B44=0,"",SISWA!B44) -> 4257 | C44: =IF(SISWA!C44=0,"",SISWA!C44) -> 0069944706 | D44: =IF(SISWA!D44=0,"",SISWA!D44) -> 1-18-05-80-162-037-5 | E44: =IF(SISWA!E44=0,"",SISWA!E44) -> MUHAMMAD FIRMANSYAH | F44: 72 | G44: 63 | H44: 71 | I44: 74 | J44: 83 | K44: 72.6 | L44: 65 | M44: 72.6 | N44: 68.8 | O44: 68.8
A45: 38 | B45: =IF(SISWA!B45=0,"",SISWA!B45) -> 4317 | C45: =IF(SISWA!C45=0,"",SISWA!C45) -> 0068498059 | D45: =IF(SISWA!D45=0,"",SISWA!D45) -> 1-18-05-80-162-038-4 | E45: =IF(SISWA!E45=0,"",SISWA!E45) -> NAJWA FARISYA BAROROH | F45: 76 | G45: 75 | H45: 86 | I45: 87 | J45: 94 | K45: 83.6 | L45: 65 | M45: 83.6 | N45: 74.3 | O45: 74.3
A46: 39 | B46: =IF(SISWA!B46=0,"",SISWA!B46) -> 4289 | C46: =IF(SISWA!C46=0,"",SISWA!C46) -> 0065225517 | D46: =IF(SISWA!D46=0,"",SISWA!D46) -> 1-18-05-80-162-039-3 | E46: =IF(SISWA!E46=0,"",SISWA!E46) -> NUR FITRIYAH | F46: 78 | G46: 76 | H46: 82 | I46: 79 | J46: 88 | K46: 80.6 | L46: 65 | M46: 80.6 | N46: 72.8 | O46: 72.8
A47: 40 | B47: =IF(SISWA!B47=0,"",SISWA!B47) -> 4318 | C47: =IF(SISWA!C47=0,"",SISWA!C47) -> 0061441364 | D47: =IF(SISWA!D47=0,"",SISWA!D47) -> 1-18-05-80-162-040-2 | E47: =IF(SISWA!E47=0,"",SISWA!E47) -> MUHAMMAD HILDAN DWI SAPUTRA | F47: 71 | G47: 72 | H47: 80 | I47: 78 | J47: 78 | K47: 75.8 | L47: 65 | M47: 75.8 | N47: 70.4 | O47: 70.4
A48: 41 | B48: =IF(SISWA!B48=0,"",SISWA!B48) -> 4392 | C48: =IF(SISWA!C48=0,"",SISWA!C48) -> 0075794532 | D48: =IF(SISWA!D48=0,"",SISWA!D48) -> 1-18-05-80-162-041-9 | E48: =IF(SISWA!E48=0,"",SISWA!E48) -> PUTRI NAFI'ATUS SOLIKHAH | F48: 74 | G48: 71 | H48: 80 | I48: 80 | J48: 89 | K48: 78.8 | L48: 65 | M48: 78.8 | N48: 71.9 | O48: 71.9
A49: 42 | B49: =IF(SISWA!B49=0,"",SISWA!B49) -> 4284 | C49: =IF(SISWA!C49=0,"",SISWA!C49) -> 0069578000 | D49: =IF(SISWA!D49=0,"",SISWA!D49) -> 1-18-05-80-162-042-8 | E49: =IF(SISWA!E49=0,"",SISWA!E49) -> MUHAMMAD RAYA KAFAF JAUHARI | F49: 79 | G49: 75 | H49: 80 | I49: 79 | J49: 81 | K49: 78.8 | L49: 65 | M49: 78.8 | N49: 71.9 | O49: 71.9
A50: 43 | B50: =IF(SISWA!B50=0,"",SISWA!B50) -> 4290 | C50: =IF(SISWA!C50=0,"",SISWA!C50) -> 0063558216 | D50: =IF(SISWA!D50=0,"",SISWA!D50) -> 1-18-05-80-162-043-7 | E50: =IF(SISWA!E50=0,"",SISWA!E50) -> QORIATUN SHOLIHAH | F50: 79 | G50: 80 | H50: 72 | I50: 84 | J50: 88 | K50: 80.6 | L50: 65 | M50: 80.6 | N50: 72.8 | O50: 72.8
A51: 44 | B51: =IF(SISWA!B51=0,"",SISWA!B51) -> 4319 | C51: =IF(SISWA!C51=0,"",SISWA!C51) -> 0065329770 | D51: =IF(SISWA!D51=0,"",SISWA!D51) -> 1-18-05-80-162-044-6 | E51: =IF(SISWA!E51=0,"",SISWA!E51) -> MUHAMMAD RUDI TANTOWIK | F51: 70 | G51: 71 | H51: 70 | I51: 69 | J51: 78 | K51: 71.6 | L51: 65 | M51: 71.6 | N51: 68.3 | O51: 68.3
A52: 45 | B52: =IF(SISWA!B52=0,"",SISWA!B52) -> 4291 | C52: =IF(SISWA!C52=0,"",SISWA!C52) -> 0067071679 | D52: =IF(SISWA!D52=0,"",SISWA!D52) -> 1-18-05-80-162-045-5 | E52: =IF(SISWA!E52=0,"",SISWA!E52) -> RACHMAD HIDAYAT | F52: 77 | G52: 77 | H52: 72 | I52: 78 | J52: 84 | K52: 77.6 | L52: 65 | M52: 77.6 | N52: 71.3 | O52: 71.3
A53: 46 | B53: =IF(SISWA!B53=0,"",SISWA!B53) -> 4322 | C53: =IF(SISWA!C53=0,"",SISWA!C53) -> 0051101989 | D53: =IF(SISWA!D53=0,"",SISWA!D53) -> 1-18-05-80-162-046-4 | E53: =IF(SISWA!E53=0,"",SISWA!E53) -> MUHAMMAD ZULDIENUR HABIBIE | F53: 70 | G53: 60 | H53: 76 | I53: 75 | J53: 76 | K53: 71.4 | L53: 65 | M53: 71.4 | N53: 68.2 | O53: 68.2
A54: 47 | B54: =IF(SISWA!B54=0,"",SISWA!B54) -> 4292 | C54: =IF(SISWA!C54=0,"",SISWA!C54) -> 0072001696 | D54: =IF(SISWA!D54=0,"",SISWA!D54) -> 1-18-05-80-162-047-3 | E54: =IF(SISWA!E54=0,"",SISWA!E54) -> RHEA RAYSHANADA NUGRAHA | F54: 80 | G54: 78 | H54: 86 | I54: 86 | J54: 91 | K54: 84.2 | L54: 65 | M54: 84.2 | N54: 74.6 | O54: 74.6
A55: 48 | B55: =IF(SISWA!B55=0,"",SISWA!B55) -> 4323 | C55: =IF(SISWA!C55=0,"",SISWA!C55) -> 0078949167 | D55: =IF(SISWA!D55=0,"",SISWA!D55) -> 1-18-05-80-162-048-2 | E55: =IF(SISWA!E55=0,"",SISWA!E55) -> MUKHAMAD KHOIRUL AMIN | F55: 70 | G55: 64 | H55: 76 | I55: 79 | J55: 81 | K55: 74 | L55: 65 | M55: 74 | N55: 69.5 | O55: 69.5
A56: 49 | B56: =IF(SISWA!B56=0,"",SISWA!B56) -> 4293 | C56: =IF(SISWA!C56=0,"",SISWA!C56) -> 0064217705 | D56: =IF(SISWA!D56=0,"",SISWA!D56) -> 1-18-05-80-162-049-9 | E56: =IF(SISWA!E56=0,"",SISWA!E56) -> RIYANTI APRILIA | F56: 81 | G56: 75 | H56: 82 | I56: 84 | J56: 89 | K56: 82.2 | L56: 65 | M56: 82.2 | N56: 73.6 | O56: 73.6
A57: 50 | B57: =IF(SISWA!B57=0,"",SISWA!B57) -> 4256 | C57: =IF(SISWA!C57=0,"",SISWA!C57) -> 0065699742 | D57: =IF(SISWA!D57=0,"",SISWA!D57) -> 1-18-05-80-162-050-8 | E57: =IF(SISWA!E57=0,"",SISWA!E57) -> MUKHAMMAD YAASIIN HASAN KHASBULLOH | F57: 75 | G57: 69 | H57: 70 | I57: 72 | J57: 84 | K57: 74 | L57: 70.81 | M57: 74 | N57: 72.405 | O57: 72.405
A58: 51 | B58: =IF(SISWA!B58=0,"",SISWA!B58) -> 4295 | C58: =IF(SISWA!C58=0,"",SISWA!C58) -> 0061359184 | D58: =IF(SISWA!D58=0,"",SISWA!D58) -> 1-18-05-80-162-051-7 | E58: =IF(SISWA!E58=0,"",SISWA!E58) -> SHONIA AULIA AS'AD | F58: 83 | G58: 86 | H58: 90 | I58: 90 | J58: 96 | K58: 89 | L58: 65 | M58: 89 | N58: 77 | O58: 77
A59: 52 | B59: =IF(SISWA!B59=0,"",SISWA!B59) -> 4294 | C59: =IF(SISWA!C59=0,"",SISWA!C59) -> 0064723905 | D59: =IF(SISWA!D59=0,"",SISWA!D59) -> 1-18-05-80-162-052-6 | E59: =IF(SISWA!E59=0,"",SISWA!E59) -> RIZKA AYU WULANDARI | F59: 78 | G59: 71 | H59: 80 | I59: 81 | J59: 80 | K59: 78 | L59: 65 | M59: 78 | N59: 71.5 | O59: 71.5
A60: 53 | B60: =IF(SISWA!B60=0,"",SISWA!B60) -> 4298 | C60: =IF(SISWA!C60=0,"",SISWA!C60) -> 0065530554 | D60: =IF(SISWA!D60=0,"",SISWA!D60) -> 1-18-05-80-162-053-5 | E60: =IF(SISWA!E60=0,"",SISWA!E60) -> VERLINA DWI MAULANI | F60: 79 | G60: 75 | H60: 80 | I60: 82 | J60: 88 | K60: 80.8 | L60: 65 | M60: 80.8 | N60: 72.9 | O60: 72.9
A61: 54 | B61: =IF(SISWA!B61=0,"",SISWA!B61) -> 4297 | C61: =IF(SISWA!C61=0,"",SISWA!C61) -> 0063846732 | D61: =IF(SISWA!D61=0,"",SISWA!D61) -> 1-18-05-80-162-054-4 | E61: =IF(SISWA!E61=0,"",SISWA!E61) -> USWATUN KHASANAH | F61: 74 | G61: 64 | H61: 82 | I61: 84 | J61: 85 | K61: 77.8 | L61: 65 | M61: 77.8 | N61: 71.4 | O61: 71.4
A62: 55 | B62: =IF(SISWA!B62=0,"",SISWA!B62) -> 4324 | C62: =IF(SISWA!C62=0,"",SISWA!C62) -> 0078966795 | D62: =IF(SISWA!D62=0,"",SISWA!D62) -> 1-18-05-80-162-055-3 | E62: =IF(SISWA!E62=0,"",SISWA!E62) -> VIKA KUSUMA WATI | F62: 75 | G62: 68 | H62: 81 | I62: 82 | J62: 86 | K62: 78.4 | L62: 65 | M62: 78.4 | N62: 71.7 | O62: 71.7
A63: 56 | B63: =IF(SISWA!B63=0,"",SISWA!B63) -> 4326 | C63: =IF(SISWA!C63=0,"",SISWA!C63) -> 0064124533 | D63: =IF(SISWA!D63=0,"",SISWA!D63) -> 1-18-05-80-162-056-2 | E63: =IF(SISWA!E63=0,"",SISWA!E63) -> YOHAN EGA GILANG PERMANA | F63: 71 | H63: 76 | I63: 75 | J63: 75 | K63: 74.25 | L63: 65 | M63: 74.25 | N63: 69.625 | O63: 69.625
A64: 57 | B64: =IF(SISWA!B64=0,"",SISWA!B64) ->  | C64: =IF(SISWA!C64=0,"",SISWA!C64) ->  | D64: =IF(SISWA!D64=0,"",SISWA!D64) -> 1-18-05-80-162-057-9 | E64: =IF(SISWA!E64=0,"",SISWA!E64) ->  | K64: =AVERAGE(F64:J64) ->  | M64: =K64 ->  | N64: =AVERAGE(L64:M64) ->  | O64: =AVERAGE(L64:M64) -> 
A65: 58 | B65: =IF(SISWA!B65=0,"",SISWA!B65) ->  | C65: =IF(SISWA!C65=0,"",SISWA!C65) ->  | D65: =IF(SISWA!D65=0,"",SISWA!D65) -> 1-18-05-80-162-058-8 | E65: =IF(SISWA!E65=0,"",SISWA!E65) -> 
A66: 59 | B66: =IF(SISWA!B66=0,"",SISWA!B66) ->  | C66: =IF(SISWA!C66=0,"",SISWA!C66) ->  | D66: =IF(SISWA!D66=0,"",SISWA!D66) -> 1-18-05-80-162-059-7 | E66: =IF(SISWA!E66=0,"",SISWA!E66) -> 
A67: 60 | B67: =IF(SISWA!B67=0,"",SISWA!B67) ->  | C67: =IF(SISWA!C67=0,"",SISWA!C67) ->  | D67: =IF(SISWA!D67=0,"",SISWA!D67) -> 1-18-05-80-162-060-6 | E67: =IF(SISWA!E67=0,"",SISWA!E67) -> 
A68: 61 | B68: =IF(SISWA!B68=0,"",SISWA!B68) ->  | C68: =IF(SISWA!C68=0,"",SISWA!C68) ->  | D68: =IF(SISWA!D68=0,"",SISWA!D68) -> 1-18-05-80-162-061-5 | E68: =IF(SISWA!E68=0,"",SISWA!E68) -> 
A69: 62 | B69: =IF(SISWA!B69=0,"",SISWA!B69) ->  | C69: =IF(SISWA!C69=0,"",SISWA!C69) ->  | D69: =IF(SISWA!D69=0,"",SISWA!D69) -> 062-4 | E69: =IF(SISWA!E69=0,"",SISWA!E69) -> 
A70: 63 | B70: =IF(SISWA!B70=0,"",SISWA!B70) ->  | C70: =IF(SISWA!C70=0,"",SISWA!C70) ->  | D70: =IF(SISWA!D70=0,"",SISWA!D70) -> 063-3 | E70: =IF(SISWA!E70=0,"",SISWA!E70) -> 
A71: 64 | B71: =IF(SISWA!B71=0,"",SISWA!B71) ->  | C71: =IF(SISWA!C71=0,"",SISWA!C71) ->  | D71: =IF(SISWA!D71=0,"",SISWA!D71) -> 064-2 | E71: =IF(SISWA!E71=0,"",SISWA!E71) -> 
A72: 65 | B72: =IF(SISWA!B72=0,"",SISWA!B72) ->  | C72: =IF(SISWA!C72=0,"",SISWA!C72) ->  | D72: =IF(SISWA!D72=0,"",SISWA!D72) -> 065- | E72: =IF(SISWA!E72=0,"",SISWA!E72) -> 
A73: 66 | B73: =IF(SISWA!B73=0,"",SISWA!B73) ->  | C73: =IF(SISWA!C73=0,"",SISWA!C73) ->  | D73: =IF(SISWA!D73=0,"",SISWA!D73) -> 066- | E73: =IF(SISWA!E73=0,"",SISWA!E73) ->  | K73: =AVERAGE(F73:J73) ->  | N73: =AVERAGE(L73:M73) ->  | O73: =AVERAGE(L73:M73) -> 
A74: 67 | B74: =IF(SISWA!B74=0,"",SISWA!B74) ->  | C74: =IF(SISWA!C74=0,"",SISWA!C74) ->  | D74: =IF(SISWA!D74=0,"",SISWA!D74) -> 067- | E74: =IF(SISWA!E74=0,"",SISWA!E74) -> 
A75: 68 | B75: =IF(SISWA!B75=0,"",SISWA!B75) ->  | C75: =IF(SISWA!C75=0,"",SISWA!C75) ->  | D75: =IF(SISWA!D75=0,"",SISWA!D75) -> 068- | E75: =IF(SISWA!E75=0,"",SISWA!E75) -> 
A76: 69 | B76: =IF(SISWA!B76=0,"",SISWA!B76) ->  | C76: =IF(SISWA!C76=0,"",SISWA!C76) ->  | D76: =IF(SISWA!D76=0,"",SISWA!D76) -> 069- | E76: =IF(SISWA!E76=0,"",SISWA!E76) -> 
A77: 70 | B77: =IF(SISWA!B77=0,"",SISWA!B77) ->  | C77: =IF(SISWA!C77=0,"",SISWA!C77) ->  | D77: =IF(SISWA!D77=0,"",SISWA!D77) -> 070- | E77: =IF(SISWA!E77=0,"",SISWA!E77) -> 
A78: 71 | B78: =IF(SISWA!B78=0,"",SISWA!B78) ->  | C78: =IF(SISWA!C78=0,"",SISWA!C78) ->  | D78: =IF(SISWA!D78=0,"",SISWA!D78) -> 071- | E78: =IF(SISWA!E78=0,"",SISWA!E78) -> 
A79: 72 | B79: =IF(SISWA!B79=0,"",SISWA!B79) ->  | C79: =IF(SISWA!C79=0,"",SISWA!C79) ->  | D79: =IF(SISWA!D79=0,"",SISWA!D79) -> 072- | E79: =IF(SISWA!E79=0,"",SISWA!E79) -> 
A80: 73 | B80: =IF(SISWA!B80=0,"",SISWA!B80) ->  | C80: =IF(SISWA!C80=0,"",SISWA!C80) ->  | D80: =IF(SISWA!D80=0,"",SISWA!D80) -> 073- | E80: =IF(SISWA!E80=0,"",SISWA!E80) -> 
A81: 74 | B81: =IF(SISWA!B81=0,"",SISWA!B81) ->  | C81: =IF(SISWA!C81=0,"",SISWA!C81) ->  | D81: =IF(SISWA!D81=0,"",SISWA!D81) -> 074- | E81: =IF(SISWA!E81=0,"",SISWA!E81) -> 
A82: 75 | B82: =IF(SISWA!B82=0,"",SISWA!B82) ->  | C82: =IF(SISWA!C82=0,"",SISWA!C82) ->  | D82: =IF(SISWA!D82=0,"",SISWA!D82) -> 075- | E82: =IF(SISWA!E82=0,"",SISWA!E82) -> 
A83: 76 | B83: =IF(SISWA!B83=0,"",SISWA!B83) ->  | C83: =IF(SISWA!C83=0,"",SISWA!C83) ->  | D83: =IF(SISWA!D83=0,"",SISWA!D83) -> 076- | E83: =IF(SISWA!E83=0,"",SISWA!E83) -> 
A84: 77 | B84: =IF(SISWA!B84=0,"",SISWA!B84) ->  | C84: =IF(SISWA!C84=0,"",SISWA!C84) ->  | D84: =IF(SISWA!D84=0,"",SISWA!D84) -> 077- | E84: =IF(SISWA!E84=0,"",SISWA!E84) -> 
A85: 78 | B85: =IF(SISWA!B85=0,"",SISWA!B85) ->  | C85: =IF(SISWA!C85=0,"",SISWA!C85) ->  | D85: =IF(SISWA!D85=0,"",SISWA!D85) -> 078- | E85: =IF(SISWA!E85=0,"",SISWA!E85) -> 
A86: 79 | B86: =IF(SISWA!B86=0,"",SISWA!B86) ->  | C86: =IF(SISWA!C86=0,"",SISWA!C86) ->  | D86: =IF(SISWA!D86=0,"",SISWA!D86) -> 079- | E86: =IF(SISWA!E86=0,"",SISWA!E86) -> 
A87: 80 | B87: =IF(SISWA!B87=0,"",SISWA!B87) ->  | C87: =IF(SISWA!C87=0,"",SISWA!C87) ->  | D87: =IF(SISWA!D87=0,"",SISWA!D87) -> 080- | E87: =IF(SISWA!E87=0,"",SISWA!E87) -> 
A88: 81 | B88: =IF(SISWA!B88=0,"",SISWA!B88) ->  | C88: =IF(SISWA!C88=0,"",SISWA!C88) ->  | D88: =IF(SISWA!D88=0,"",SISWA!D88) -> 081- | E88: =IF(SISWA!E88=0,"",SISWA!E88) -> 
A89: 82 | B89: =IF(SISWA!B89=0,"",SISWA!B89) ->  | C89: =IF(SISWA!C89=0,"",SISWA!C89) ->  | D89: =IF(SISWA!D89=0,"",SISWA!D89) -> 082- | E89: =IF(SISWA!E89=0,"",SISWA!E89) -> 
A90: 83 | B90: =IF(SISWA!B90=0,"",SISWA!B90) ->  | C90: =IF(SISWA!C90=0,"",SISWA!C90) ->  | D90: =IF(SISWA!D90=0,"",SISWA!D90) -> 083- | E90: =IF(SISWA!E90=0,"",SISWA!E90) -> 
A91: 84 | B91: =IF(SISWA!B91=0,"",SISWA!B91) ->  | C91: =IF(SISWA!C91=0,"",SISWA!C91) ->  | D91: =IF(SISWA!D91=0,"",SISWA!D91) -> 084- | E91: =IF(SISWA!E91=0,"",SISWA!E91) -> 
A92: 85 | B92: =IF(SISWA!B92=0,"",SISWA!B92) ->  | C92: =IF(SISWA!C92=0,"",SISWA!C92) ->  | D92: =IF(SISWA!D92=0,"",SISWA!D92) -> 085- | E92: =IF(SISWA!E92=0,"",SISWA!E92) -> 
A93: 86 | B93: =IF(SISWA!B93=0,"",SISWA!B93) ->  | C93: =IF(SISWA!C93=0,"",SISWA!C93) ->  | D93: =IF(SISWA!D93=0,"",SISWA!D93) -> 086- | E93: =IF(SISWA!E93=0,"",SISWA!E93) -> 
A94: 87 | B94: =IF(SISWA!B94=0,"",SISWA!B94) ->  | C94: =IF(SISWA!C94=0,"",SISWA!C94) ->  | D94: =IF(SISWA!D94=0,"",SISWA!D94) -> 087- | E94: =IF(SISWA!E94=0,"",SISWA!E94) -> 
A95: 88 | B95: =IF(SISWA!B95=0,"",SISWA!B95) ->  | C95: =IF(SISWA!C95=0,"",SISWA!C95) ->  | D95: =IF(SISWA!D95=0,"",SISWA!D95) -> 088- | E95: =IF(SISWA!E95=0,"",SISWA!E95) -> 
A96: 89 | B96: =IF(SISWA!B96=0,"",SISWA!B96) ->  | C96: =IF(SISWA!C96=0,"",SISWA!C96) ->  | D96: =IF(SISWA!D96=0,"",SISWA!D96) -> 089- | E96: =IF(SISWA!E96=0,"",SISWA!E96) -> 
A97: 90 | B97: =IF(SISWA!B97=0,"",SISWA!B97) ->  | C97: =IF(SISWA!C97=0,"",SISWA!C97) ->  | D97: =IF(SISWA!D97=0,"",SISWA!D97) -> 090- | E97: =IF(SISWA!E97=0,"",SISWA!E97) -> 
A98: 91 | B98: =IF(SISWA!B98=0,"",SISWA!B98) ->  | C98: =IF(SISWA!C98=0,"",SISWA!C98) ->  | D98: =IF(SISWA!D98=0,"",SISWA!D98) -> 091- | E98: =IF(SISWA!E98=0,"",SISWA!E98) -> 
A99: 92 | B99: =IF(SISWA!B99=0,"",SISWA!B99) ->  | C99: =IF(SISWA!C99=0,"",SISWA!C99) ->  | D99: =IF(SISWA!D99=0,"",SISWA!D99) -> 092- | E99: =IF(SISWA!E99=0,"",SISWA!E99) -> 
A100: 93 | B100: =IF(SISWA!B100=0,"",SISWA!B100) ->  | C100: =IF(SISWA!C100=0,"",SISWA!C100) ->  | D100: =IF(SISWA!D100=0,"",SISWA!D100) -> 093- | E100: =IF(SISWA!E100=0,"",SISWA!E100) -> 
A101: 94 | B101: =IF(SISWA!B101=0,"",SISWA!B101) ->  | C101: =IF(SISWA!C101=0,"",SISWA!C101) ->  | D101: =IF(SISWA!D101=0,"",SISWA!D101) -> 094- | E101: =IF(SISWA!E101=0,"",SISWA!E101) -> 
A102: 95 | B102: =IF(SISWA!B102=0,"",SISWA!B102) ->  | C102: =IF(SISWA!C102=0,"",SISWA!C102) ->  | D102: =IF(SISWA!D102=0,"",SISWA!D102) -> 095- | E102: =IF(SISWA!E102=0,"",SISWA!E102) -> 
A103: 96 | B103: =IF(SISWA!B103=0,"",SISWA!B103) ->  | C103: =IF(SISWA!C103=0,"",SISWA!C103) ->  | D103: =IF(SISWA!D103=0,"",SISWA!D103) -> 096- | E103: =IF(SISWA!E103=0,"",SISWA!E103) -> 
A104: 97 | B104: =IF(SISWA!B104=0,"",SISWA!B104) ->  | C104: =IF(SISWA!C104=0,"",SISWA!C104) ->  | D104: =IF(SISWA!D104=0,"",SISWA!D104) -> 097- | E104: =IF(SISWA!E104=0,"",SISWA!E104) -> 
A105: 98 | B105: =IF(SISWA!B105=0,"",SISWA!B105) ->  | C105: =IF(SISWA!C105=0,"",SISWA!C105) ->  | D105: =IF(SISWA!D105=0,"",SISWA!D105) -> 098- | E105: =IF(SISWA!E105=0,"",SISWA!E105) -> 
A106: 99 | B106: =IF(SISWA!B106=0,"",SISWA!B106) ->  | C106: =IF(SISWA!C106=0,"",SISWA!C106) ->  | D106: =IF(SISWA!D106=0,"",SISWA!D106) -> 099- | E106: =IF(SISWA!E106=0,"",SISWA!E106) -> 
A107: 100 | B107: =IF(SISWA!B107=0,"",SISWA!B107) ->  | C107: =IF(SISWA!C107=0,"",SISWA!C107) ->  | D107: =IF(SISWA!D107=0,"",SISWA!D107) -> 100- | E107: =IF(SISWA!E107=0,"",SISWA!E107) -> 
A108: 101 | B108: =IF(SISWA!B108=0,"",SISWA!B108) ->  | C108: =IF(SISWA!C108=0,"",SISWA!C108) ->  | D108: =IF(SISWA!D108=0,"",SISWA!D108) -> 101- | E108: =IF(SISWA!E108=0,"",SISWA!E108) -> 
A109: 102 | B109: =IF(SISWA!B109=0,"",SISWA!B109) ->  | C109: =IF(SISWA!C109=0,"",SISWA!C109) ->  | D109: =IF(SISWA!D109=0,"",SISWA!D109) -> 102- | E109: =IF(SISWA!E109=0,"",SISWA!E109) -> 
A110: 103 | B110: =IF(SISWA!B110=0,"",SISWA!B110) ->  | C110: =IF(SISWA!C110=0,"",SISWA!C110) ->  | D110: =IF(SISWA!D110=0,"",SISWA!D110) -> 103- | E110: =IF(SISWA!E110=0,"",SISWA!E110) -> 
A111: 104 | B111: =IF(SISWA!B111=0,"",SISWA!B111) ->  | C111: =IF(SISWA!C111=0,"",SISWA!C111) ->  | D111: =IF(SISWA!D111=0,"",SISWA!D111) -> 104- | E111: =IF(SISWA!E111=0,"",SISWA!E111) -> 
A112: 105 | B112: =IF(SISWA!B112=0,"",SISWA!B112) ->  | C112: =IF(SISWA!C112=0,"",SISWA!C112) ->  | D112: =IF(SISWA!D112=0,"",SISWA!D112) -> 105- | E112: =IF(SISWA!E112=0,"",SISWA!E112) -> 
A113: 106 | B113: =IF(SISWA!B113=0,"",SISWA!B113) ->  | C113: =IF(SISWA!C113=0,"",SISWA!C113) ->  | D113: =IF(SISWA!D113=0,"",SISWA!D113) -> 106- | E113: =IF(SISWA!E113=0,"",SISWA!E113) -> 
A114: 107 | B114: =IF(SISWA!B114=0,"",SISWA!B114) ->  | C114: =IF(SISWA!C114=0,"",SISWA!C114) ->  | D114: =IF(SISWA!D114=0,"",SISWA!D114) -> 107- | E114: =IF(SISWA!E114=0,"",SISWA!E114) -> 
A115: 108 | B115: =IF(SISWA!B115=0,"",SISWA!B115) ->  | C115: =IF(SISWA!C115=0,"",SISWA!C115) ->  | D115: =IF(SISWA!D115=0,"",SISWA!D115) -> 108- | E115: =IF(SISWA!E115=0,"",SISWA!E115) -> 
A116: 109 | B116: =IF(SISWA!B116=0,"",SISWA!B116) ->  | C116: =IF(SISWA!C116=0,"",SISWA!C116) ->  | D116: =IF(SISWA!D116=0,"",SISWA!D116) -> 109- | E116: =IF(SISWA!E116=0,"",SISWA!E116) -> 
A117: 110 | B117: =IF(SISWA!B117=0,"",SISWA!B117) ->  | C117: =IF(SISWA!C117=0,"",SISWA!C117) ->  | D117: =IF(SISWA!D117=0,"",SISWA!D117) -> 110- | E117: =IF(SISWA!E117=0,"",SISWA!E117) -> 
A118: 111 | B118: =IF(SISWA!B118=0,"",SISWA!B118) ->  | C118: =IF(SISWA!C118=0,"",SISWA!C118) ->  | D118: =IF(SISWA!D118=0,"",SISWA!D118) -> 111- | E118: =IF(SISWA!E118=0,"",SISWA!E118) -> 
A119: 112 | B119: =IF(SISWA!B119=0,"",SISWA!B119) ->  | C119: =IF(SISWA!C119=0,"",SISWA!C119) ->  | D119: =IF(SISWA!D119=0,"",SISWA!D119) -> 112- | E119: =IF(SISWA!E119=0,"",SISWA!E119) -> 
A120: 113 | B120: =IF(SISWA!B120=0,"",SISWA!B120) ->  | C120: =IF(SISWA!C120=0,"",SISWA!C120) ->  | D120: =IF(SISWA!D120=0,"",SISWA!D120) -> 113- | E120: =IF(SISWA!E120=0,"",SISWA!E120) -> 
A121: 114 | B121: =IF(SISWA!B121=0,"",SISWA!B121) ->  | C121: =IF(SISWA!C121=0,"",SISWA!C121) ->  | D121: =IF(SISWA!D121=0,"",SISWA!D121) -> 114- | E121: =IF(SISWA!E121=0,"",SISWA!E121) -> 
A122: 115 | B122: =IF(SISWA!B122=0,"",SISWA!B122) ->  | C122: =IF(SISWA!C122=0,"",SISWA!C122) ->  | D122: =IF(SISWA!D122=0,"",SISWA!D122) -> 115- | E122: =IF(SISWA!E122=0,"",SISWA!E122) -> 
A123: 116 | B123: =IF(SISWA!B123=0,"",SISWA!B123) ->  | C123: =IF(SISWA!C123=0,"",SISWA!C123) ->  | D123: =IF(SISWA!D123=0,"",SISWA!D123) -> 116- | E123: =IF(SISWA!E123=0,"",SISWA!E123) -> 
A124: 117 | B124: =IF(SISWA!B124=0,"",SISWA!B124) ->  | C124: =IF(SISWA!C124=0,"",SISWA!C124) ->  | D124: =IF(SISWA!D124=0,"",SISWA!D124) -> 117- | E124: =IF(SISWA!E124=0,"",SISWA!E124) -> 
A125: 118 | B125: =IF(SISWA!B125=0,"",SISWA!B125) ->  | C125: =IF(SISWA!C125=0,"",SISWA!C125) ->  | D125: =IF(SISWA!D125=0,"",SISWA!D125) -> 118- | E125: =IF(SISWA!E125=0,"",SISWA!E125) -> 
A126: 119 | B126: =IF(SISWA!B126=0,"",SISWA!B126) ->  | C126: =IF(SISWA!C126=0,"",SISWA!C126) ->  | D126: =IF(SISWA!D126=0,"",SISWA!D126) -> 119- | E126: =IF(SISWA!E126=0,"",SISWA!E126) -> 
A127: 120 | B127: =IF(SISWA!B127=0,"",SISWA!B127) ->  | C127: =IF(SISWA!C127=0,"",SISWA!C127) ->  | D127: =IF(SISWA!D127=0,"",SISWA!D127) -> 120- | E127: =IF(SISWA!E127=0,"",SISWA!E127) -> 
A128: 121 | B128: =IF(SISWA!B128=0,"",SISWA!B128) ->  | C128: =IF(SISWA!C128=0,"",SISWA!C128) ->  | D128: =IF(SISWA!D128=0,"",SISWA!D128) -> 121- | E128: =IF(SISWA!E128=0,"",SISWA!E128) -> 
A129: 122 | B129: =IF(SISWA!B129=0,"",SISWA!B129) ->  | C129: =IF(SISWA!C129=0,"",SISWA!C129) ->  | D129: =IF(SISWA!D129=0,"",SISWA!D129) -> 122- | E129: =IF(SISWA!E129=0,"",SISWA!E129) -> 
A130: 123 | B130: =IF(SISWA!B130=0,"",SISWA!B130) ->  | C130: =IF(SISWA!C130=0,"",SISWA!C130) ->  | D130: =IF(SISWA!D130=0,"",SISWA!D130) -> 123- | E130: =IF(SISWA!E130=0,"",SISWA!E130) -> 
A131: 124 | B131: =IF(SISWA!B131=0,"",SISWA!B131) ->  | C131: =IF(SISWA!C131=0,"",SISWA!C131) ->  | D131: =IF(SISWA!D131=0,"",SISWA!D131) -> 124- | E131: =IF(SISWA!E131=0,"",SISWA!E131) -> 
A132: 125 | B132: =IF(SISWA!B132=0,"",SISWA!B132) ->  | C132: =IF(SISWA!C132=0,"",SISWA!C132) ->  | D132: =IF(SISWA!D132=0,"",SISWA!D132) -> 125- | E132: =IF(SISWA!E132=0,"",SISWA!E132) -> 
A133: 126 | B133: =IF(SISWA!B133=0,"",SISWA!B133) ->  | C133: =IF(SISWA!C133=0,"",SISWA!C133) ->  | D133: =IF(SISWA!D133=0,"",SISWA!D133) -> 126- | E133: =IF(SISWA!E133=0,"",SISWA!E133) -> 
A134: 127 | B134: =IF(SISWA!B134=0,"",SISWA!B134) ->  | C134: =IF(SISWA!C134=0,"",SISWA!C134) ->  | D134: =IF(SISWA!D134=0,"",SISWA!D134) -> 127- | E134: =IF(SISWA!E134=0,"",SISWA!E134) -> 
A135: 128 | B135: =IF(SISWA!B135=0,"",SISWA!B135) ->  | C135: =IF(SISWA!C135=0,"",SISWA!C135) ->  | D135: =IF(SISWA!D135=0,"",SISWA!D135) -> 128- | E135: =IF(SISWA!E135=0,"",SISWA!E135) -> 
A136: 129 | B136: =IF(SISWA!B136=0,"",SISWA!B136) ->  | C136: =IF(SISWA!C136=0,"",SISWA!C136) ->  | D136: =IF(SISWA!D136=0,"",SISWA!D136) -> 129- | E136: =IF(SISWA!E136=0,"",SISWA!E136) -> 
A137: 130 | B137: =IF(SISWA!B137=0,"",SISWA!B137) ->  | C137: =IF(SISWA!C137=0,"",SISWA!C137) ->  | D137: =IF(SISWA!D137=0,"",SISWA!D137) -> 130- | E137: =IF(SISWA!E137=0,"",SISWA!E137) ->  | K137: =AVERAGE(F137:J137) ->  | N137: =AVERAGE(L137:M137) ->  | O137: =AVERAGE(L137:M137) -> 
A138: 131 | B138: =IF(SISWA!B138=0,"",SISWA!B138) ->  | C138: =IF(SISWA!C138=0,"",SISWA!C138) ->  | D138: =IF(SISWA!D138=0,"",SISWA!D138) -> 131- | E138: =IF(SISWA!E138=0,"",SISWA!E138) -> 
A139: 132 | B139: =IF(SISWA!B139=0,"",SISWA!B139) ->  | C139: =IF(SISWA!C139=0,"",SISWA!C139) ->  | D139: =IF(SISWA!D139=0,"",SISWA!D139) -> 132- | E139: =IF(SISWA!E139=0,"",SISWA!E139) -> 
A140: 133 | B140: =IF(SISWA!B140=0,"",SISWA!B140) ->  | C140: =IF(SISWA!C140=0,"",SISWA!C140) ->  | D140: =IF(SISWA!D140=0,"",SISWA!D140) -> 133- | E140: =IF(SISWA!E140=0,"",SISWA!E140) -> 
A141: 134 | B141: =IF(SISWA!B141=0,"",SISWA!B141) ->  | C141: =IF(SISWA!C141=0,"",SISWA!C141) ->  | D141: =IF(SISWA!D141=0,"",SISWA!D141) -> 134- | E141: =IF(SISWA!E141=0,"",SISWA!E141) -> 
A142: 135 | B142: =IF(SISWA!B142=0,"",SISWA!B142) ->  | C142: =IF(SISWA!C142=0,"",SISWA!C142) ->  | D142: =IF(SISWA!D142=0,"",SISWA!D142) -> 135- | E142: =IF(SISWA!E142=0,"",SISWA!E142) -> 
A143: 136 | B143: =IF(SISWA!B143=0,"",SISWA!B143) ->  | C143: =IF(SISWA!C143=0,"",SISWA!C143) ->  | D143: =IF(SISWA!D143=0,"",SISWA!D143) -> 136- | E143: =IF(SISWA!E143=0,"",SISWA!E143) -> 
A144: 137 | B144: =IF(SISWA!B144=0,"",SISWA!B144) ->  | C144: =IF(SISWA!C144=0,"",SISWA!C144) ->  | D144: =IF(SISWA!D144=0,"",SISWA!D144) -> 137- | E144: =IF(SISWA!E144=0,"",SISWA!E144) -> 
A145: 138 | B145: =IF(SISWA!B145=0,"",SISWA!B145) ->  | C145: =IF(SISWA!C145=0,"",SISWA!C145) ->  | D145: =IF(SISWA!D145=0,"",SISWA!D145) -> 138- | E145: =IF(SISWA!E145=0,"",SISWA!E145) -> 
A146: 139 | B146: =IF(SISWA!B146=0,"",SISWA!B146) ->  | C146: =IF(SISWA!C146=0,"",SISWA!C146) ->  | D146: =IF(SISWA!D146=0,"",SISWA!D146) -> 139- | E146: =IF(SISWA!E146=0,"",SISWA!E146) -> 
A147: 140 | B147: =IF(SISWA!B147=0,"",SISWA!B147) ->  | C147: =IF(SISWA!C147=0,"",SISWA!C147) ->  | D147: =IF(SISWA!D147=0,"",SISWA!D147) -> 140- | E147: =IF(SISWA!E147=0,"",SISWA!E147) -> 
A148: 141 | B148: =IF(SISWA!B148=0,"",SISWA!B148) ->  | C148: =IF(SISWA!C148=0,"",SISWA!C148) ->  | D148: =IF(SISWA!D148=0,"",SISWA!D148) -> 141- | E148: =IF(SISWA!E148=0,"",SISWA!E148) -> 
A149: 142 | B149: =IF(SISWA!B149=0,"",SISWA!B149) ->  | C149: =IF(SISWA!C149=0,"",SISWA!C149) ->  | D149: =IF(SISWA!D149=0,"",SISWA!D149) -> 142- | E149: =IF(SISWA!E149=0,"",SISWA!E149) -> 
A150: 143 | B150: =IF(SISWA!B150=0,"",SISWA!B150) ->  | C150: =IF(SISWA!C150=0,"",SISWA!C150) ->  | D150: =IF(SISWA!D150=0,"",SISWA!D150) -> 143- | E150: =IF(SISWA!E150=0,"",SISWA!E150) -> 
A151: 144 | B151: =IF(SISWA!B151=0,"",SISWA!B151) ->  | C151: =IF(SISWA!C151=0,"",SISWA!C151) ->  | D151: =IF(SISWA!D151=0,"",SISWA!D151) -> 144- | E151: =IF(SISWA!E151=0,"",SISWA!E151) -> 
A152: 145 | B152: =IF(SISWA!B152=0,"",SISWA!B152) ->  | C152: =IF(SISWA!C152=0,"",SISWA!C152) ->  | D152: =IF(SISWA!D152=0,"",SISWA!D152) -> 145- | E152: =IF(SISWA!E152=0,"",SISWA!E152) -> 
A153: 146 | B153: =IF(SISWA!B153=0,"",SISWA!B153) ->  | C153: =IF(SISWA!C153=0,"",SISWA!C153) ->  | D153: =IF(SISWA!D153=0,"",SISWA!D153) -> 146- | E153: =IF(SISWA!E153=0,"",SISWA!E153) -> 
A154: 147 | B154: =IF(SISWA!B154=0,"",SISWA!B154) ->  | C154: =IF(SISWA!C154=0,"",SISWA!C154) ->  | D154: =IF(SISWA!D154=0,"",SISWA!D154) -> 147- | E154: =IF(SISWA!E154=0,"",SISWA!E154) -> 
A155: 148 | B155: =IF(SISWA!B155=0,"",SISWA!B155) ->  | C155: =IF(SISWA!C155=0,"",SISWA!C155) ->  | D155: =IF(SISWA!D155=0,"",SISWA!D155) -> 148- | E155: =IF(SISWA!E155=0,"",SISWA!E155) -> 
A156: 149 | B156: =IF(SISWA!B156=0,"",SISWA!B156) ->  | C156: =IF(SISWA!C156=0,"",SISWA!C156) ->  | D156: =IF(SISWA!D156=0,"",SISWA!D156) -> 149- | E156: =IF(SISWA!E156=0,"",SISWA!E156) -> 
A157: 150 | B157: =IF(SISWA!B157=0,"",SISWA!B157) ->  | C157: =IF(SISWA!C157=0,"",SISWA!C157) ->  | D157: =IF(SISWA!D157=0,"",SISWA!D157) -> 150- | E157: =IF(SISWA!E157=0,"",SISWA!E157) -> 
A158: 151 | B158: =IF(SISWA!B158=0,"",SISWA!B158) ->  | C158: =IF(SISWA!C158=0,"",SISWA!C158) ->  | D158: =IF(SISWA!D158=0,"",SISWA!D158) -> 151- | E158: =IF(SISWA!E158=0,"",SISWA!E158) -> 
A159: 152 | B159: =IF(SISWA!B159=0,"",SISWA!B159) ->  | C159: =IF(SISWA!C159=0,"",SISWA!C159) ->  | D159: =IF(SISWA!D159=0,"",SISWA!D159) -> 152- | E159: =IF(SISWA!E159=0,"",SISWA!E159) -> 
A160: 153 | B160: =IF(SISWA!B160=0,"",SISWA!B160) ->  | C160: =IF(SISWA!C160=0,"",SISWA!C160) ->  | D160: =IF(SISWA!D160=0,"",SISWA!D160) -> 153- | E160: =IF(SISWA!E160=0,"",SISWA!E160) -> 
A161: 154 | B161: =IF(SISWA!B161=0,"",SISWA!B161) ->  | C161: =IF(SISWA!C161=0,"",SISWA!C161) ->  | D161: =IF(SISWA!D161=0,"",SISWA!D161) -> 154- | E161: =IF(SISWA!E161=0,"",SISWA!E161) -> 
A162: 155 | B162: =IF(SISWA!B162=0,"",SISWA!B162) ->  | C162: =IF(SISWA!C162=0,"",SISWA!C162) ->  | D162: =IF(SISWA!D162=0,"",SISWA!D162) -> 155- | E162: =IF(SISWA!E162=0,"",SISWA!E162) -> 
A163: 156 | B163: =IF(SISWA!B163=0,"",SISWA!B163) ->  | C163: =IF(SISWA!C163=0,"",SISWA!C163) ->  | D163: =IF(SISWA!D163=0,"",SISWA!D163) -> 156- | E163: =IF(SISWA!E163=0,"",SISWA!E163) -> 
A164: 157 | B164: =IF(SISWA!B164=0,"",SISWA!B164) ->  | C164: =IF(SISWA!C164=0,"",SISWA!C164) ->  | D164: =IF(SISWA!D164=0,"",SISWA!D164) -> 157- | E164: =IF(SISWA!E164=0,"",SISWA!E164) -> 
A165: 158 | B165: =IF(SISWA!B165=0,"",SISWA!B165) ->  | C165: =IF(SISWA!C165=0,"",SISWA!C165) ->  | D165: =IF(SISWA!D165=0,"",SISWA!D165) -> 158- | E165: =IF(SISWA!E165=0,"",SISWA!E165) -> 
A166: 159 | B166: =IF(SISWA!B166=0,"",SISWA!B166) ->  | C166: =IF(SISWA!C166=0,"",SISWA!C166) ->  | D166: =IF(SISWA!D166=0,"",SISWA!D166) -> 159- | E166: =IF(SISWA!E166=0,"",SISWA!E166) -> 
A167: 160 | B167: =IF(SISWA!B167=0,"",SISWA!B167) ->  | C167: =IF(SISWA!C167=0,"",SISWA!C167) ->  | D167: =IF(SISWA!D167=0,"",SISWA!D167) -> 160- | E167: =IF(SISWA!E167=0,"",SISWA!E167) -> 
A168: 161 | B168: =IF(SISWA!B168=0,"",SISWA!B168) ->  | C168: =IF(SISWA!C168=0,"",SISWA!C168) ->  | D168: =IF(SISWA!D168=0,"",SISWA!D168) -> 161- | E168: =IF(SISWA!E168=0,"",SISWA!E168) -> 
A169: 162 | B169: =IF(SISWA!B169=0,"",SISWA!B169) ->  | C169: =IF(SISWA!C169=0,"",SISWA!C169) ->  | D169: =IF(SISWA!D169=0,"",SISWA!D169) -> 162- | E169: =IF(SISWA!E169=0,"",SISWA!E169) -> 
A170: 163 | B170: =IF(SISWA!B170=0,"",SISWA!B170) ->  | C170: =IF(SISWA!C170=0,"",SISWA!C170) ->  | D170: =IF(SISWA!D170=0,"",SISWA!D170) -> 163- | E170: =IF(SISWA!E170=0,"",SISWA!E170) -> 
A171: 164 | B171: =IF(SISWA!B171=0,"",SISWA!B171) ->  | C171: =IF(SISWA!C171=0,"",SISWA!C171) ->  | D171: =IF(SISWA!D171=0,"",SISWA!D171) -> 164- | E171: =IF(SISWA!E171=0,"",SISWA!E171) -> 
A172: 165 | B172: =IF(SISWA!B172=0,"",SISWA!B172) ->  | C172: =IF(SISWA!C172=0,"",SISWA!C172) ->  | D172: =IF(SISWA!D172=0,"",SISWA!D172) -> 165- | E172: =IF(SISWA!E172=0,"",SISWA!E172) -> 
A173: 166 | B173: =IF(SISWA!B173=0,"",SISWA!B173) ->  | C173: =IF(SISWA!C173=0,"",SISWA!C173) ->  | D173: =IF(SISWA!D173=0,"",SISWA!D173) -> 166- | E173: =IF(SISWA!E173=0,"",SISWA!E173) -> 
A174: 167 | B174: =IF(SISWA!B174=0,"",SISWA!B174) ->  | C174: =IF(SISWA!C174=0,"",SISWA!C174) ->  | D174: =IF(SISWA!D174=0,"",SISWA!D174) -> 167- | E174: =IF(SISWA!E174=0,"",SISWA!E174) -> 
A175: 168 | B175: =IF(SISWA!B175=0,"",SISWA!B175) ->  | C175: =IF(SISWA!C175=0,"",SISWA!C175) ->  | D175: =IF(SISWA!D175=0,"",SISWA!D175) -> 168- | E175: =IF(SISWA!E175=0,"",SISWA!E175) -> 
A176: 169 | B176: =IF(SISWA!B176=0,"",SISWA!B176) ->  | C176: =IF(SISWA!C176=0,"",SISWA!C176) ->  | D176: =IF(SISWA!D176=0,"",SISWA!D176) -> 169- | E176: =IF(SISWA!E176=0,"",SISWA!E176) -> 
A177: 170 | B177: =IF(SISWA!B177=0,"",SISWA!B177) ->  | C177: =IF(SISWA!C177=0,"",SISWA!C177) ->  | D177: =IF(SISWA!D177=0,"",SISWA!D177) -> 170- | E177: =IF(SISWA!E177=0,"",SISWA!E177) -> 
A178: 171 | B178: =IF(SISWA!B178=0,"",SISWA!B178) ->  | C178: =IF(SISWA!C178=0,"",SISWA!C178) ->  | D178: =IF(SISWA!D178=0,"",SISWA!D178) -> 171- | E178: =IF(SISWA!E178=0,"",SISWA!E178) -> 
A179: 172 | B179: =IF(SISWA!B179=0,"",SISWA!B179) ->  | C179: =IF(SISWA!C179=0,"",SISWA!C179) ->  | D179: =IF(SISWA!D179=0,"",SISWA!D179) -> 172- | E179: =IF(SISWA!E179=0,"",SISWA!E179) -> 
A180: 173 | B180: =IF(SISWA!B180=0,"",SISWA!B180) ->  | C180: =IF(SISWA!C180=0,"",SISWA!C180) ->  | D180: =IF(SISWA!D180=0,"",SISWA!D180) -> 173- | E180: =IF(SISWA!E180=0,"",SISWA!E180) -> 
A181: 174 | B181: =IF(SISWA!B181=0,"",SISWA!B181) ->  | C181: =IF(SISWA!C181=0,"",SISWA!C181) ->  | D181: =IF(SISWA!D181=0,"",SISWA!D181) -> 174- | E181: =IF(SISWA!E181=0,"",SISWA!E181) -> 
A182: 175 | B182: =IF(SISWA!B182=0,"",SISWA!B182) ->  | C182: =IF(SISWA!C182=0,"",SISWA!C182) ->  | D182: =IF(SISWA!D182=0,"",SISWA!D182) -> 175- | E182: =IF(SISWA!E182=0,"",SISWA!E182) -> 
A183: 176 | B183: =IF(SISWA!B183=0,"",SISWA!B183) ->  | C183: =IF(SISWA!C183=0,"",SISWA!C183) ->  | D183: =IF(SISWA!D183=0,"",SISWA!D183) -> 176- | E183: =IF(SISWA!E183=0,"",SISWA!E183) -> 
A184: 177 | B184: =IF(SISWA!B184=0,"",SISWA!B184) ->  | C184: =IF(SISWA!C184=0,"",SISWA!C184) ->  | D184: =IF(SISWA!D184=0,"",SISWA!D184) -> 177- | E184: =IF(SISWA!E184=0,"",SISWA!E184) -> 
A185: 178 | B185: =IF(SISWA!B185=0,"",SISWA!B185) ->  | C185: =IF(SISWA!C185=0,"",SISWA!C185) ->  | D185: =IF(SISWA!D185=0,"",SISWA!D185) -> 178- | E185: =IF(SISWA!E185=0,"",SISWA!E185) -> 
A186: 179 | B186: =IF(SISWA!B186=0,"",SISWA!B186) ->  | C186: =IF(SISWA!C186=0,"",SISWA!C186) ->  | D186: =IF(SISWA!D186=0,"",SISWA!D186) -> 179- | E186: =IF(SISWA!E186=0,"",SISWA!E186) -> 
A187: 180 | B187: =IF(SISWA!B187=0,"",SISWA!B187) ->  | C187: =IF(SISWA!C187=0,"",SISWA!C187) ->  | D187: =IF(SISWA!D187=0,"",SISWA!D187) -> 180- | E187: =IF(SISWA!E187=0,"",SISWA!E187) -> 
A188: 181 | B188: =IF(SISWA!B188=0,"",SISWA!B188) ->  | C188: =IF(SISWA!C188=0,"",SISWA!C188) ->  | D188: =IF(SISWA!D188=0,"",SISWA!D188) -> 181- | E188: =IF(SISWA!E188=0,"",SISWA!E188) -> 
A189: 182 | B189: =IF(SISWA!B189=0,"",SISWA!B189) ->  | C189: =IF(SISWA!C189=0,"",SISWA!C189) ->  | D189: =IF(SISWA!D189=0,"",SISWA!D189) -> 182- | E189: =IF(SISWA!E189=0,"",SISWA!E189) -> 
A190: 183 | B190: =IF(SISWA!B190=0,"",SISWA!B190) ->  | C190: =IF(SISWA!C190=0,"",SISWA!C190) ->  | D190: =IF(SISWA!D190=0,"",SISWA!D190) -> 183- | E190: =IF(SISWA!E190=0,"",SISWA!E190) -> 
A191: 184 | B191: =IF(SISWA!B191=0,"",SISWA!B191) ->  | C191: =IF(SISWA!C191=0,"",SISWA!C191) ->  | D191: =IF(SISWA!D191=0,"",SISWA!D191) -> 184- | E191: =IF(SISWA!E191=0,"",SISWA!E191) -> 
A192: 185 | B192: =IF(SISWA!B192=0,"",SISWA!B192) ->  | C192: =IF(SISWA!C192=0,"",SISWA!C192) ->  | D192: =IF(SISWA!D192=0,"",SISWA!D192) -> 185- | E192: =IF(SISWA!E192=0,"",SISWA!E192) -> 
A193: 186 | B193: =IF(SISWA!B193=0,"",SISWA!B193) ->  | C193: =IF(SISWA!C193=0,"",SISWA!C193) ->  | D193: =IF(SISWA!D193=0,"",SISWA!D193) -> 186- | E193: =IF(SISWA!E193=0,"",SISWA!E193) -> 
A194: 187 | B194: =IF(SISWA!B194=0,"",SISWA!B194) ->  | C194: =IF(SISWA!C194=0,"",SISWA!C194) ->  | D194: =IF(SISWA!D194=0,"",SISWA!D194) -> 187- | E194: =IF(SISWA!E194=0,"",SISWA!E194) -> 
A195: 188 | B195: =IF(SISWA!B195=0,"",SISWA!B195) ->  | C195: =IF(SISWA!C195=0,"",SISWA!C195) ->  | D195: =IF(SISWA!D195=0,"",SISWA!D195) -> 188- | E195: =IF(SISWA!E195=0,"",SISWA!E195) -> 
A196: 189 | B196: =IF(SISWA!B196=0,"",SISWA!B196) ->  | C196: =IF(SISWA!C196=0,"",SISWA!C196) ->  | D196: =IF(SISWA!D196=0,"",SISWA!D196) -> 189- | E196: =IF(SISWA!E196=0,"",SISWA!E196) -> 
A197: 190 | B197: =IF(SISWA!B197=0,"",SISWA!B197) ->  | C197: =IF(SISWA!C197=0,"",SISWA!C197) ->  | D197: =IF(SISWA!D197=0,"",SISWA!D197) -> 190- | E197: =IF(SISWA!E197=0,"",SISWA!E197) -> 
A198: 191 | B198: =IF(SISWA!B198=0,"",SISWA!B198) ->  | C198: =IF(SISWA!C198=0,"",SISWA!C198) ->  | D198: =IF(SISWA!D198=0,"",SISWA!D198) -> 191- | E198: =IF(SISWA!E198=0,"",SISWA!E198) -> 
A199: 192 | B199: =IF(SISWA!B199=0,"",SISWA!B199) ->  | C199: =IF(SISWA!C199=0,"",SISWA!C199) ->  | D199: =IF(SISWA!D199=0,"",SISWA!D199) -> 192- | E199: =IF(SISWA!E199=0,"",SISWA!E199) -> 
A200: 193 | B200: =IF(SISWA!B200=0,"",SISWA!B200) ->  | C200: =IF(SISWA!C200=0,"",SISWA!C200) ->  | D200: =IF(SISWA!D200=0,"",SISWA!D200) -> 193- | E200: =IF(SISWA!E200=0,"",SISWA!E200) -> 
A201: 194 | B201: =IF(SISWA!B201=0,"",SISWA!B201) ->  | C201: =IF(SISWA!C201=0,"",SISWA!C201) ->  | D201: =IF(SISWA!D201=0,"",SISWA!D201) -> 194- | E201: =IF(SISWA!E201=0,"",SISWA!E201) ->  | K201: =AVERAGE(F201:J201) ->  | N201: =AVERAGE(L201:M201) ->  | O201: =AVERAGE(L201:M201) -> 
... 6 more rows

Sheet AA
A1: DAFTAR NILAI AKHIR SEKOLAH
A2: =UPPER(DEPAN!Y6)&" "&UPPER(DEPAN!AA6) -> MADRASAH IBTIDAIYAH NURUL ISLAM LABRUK KIDUL
A3: =DEPAN!Y16 -> TAHUN PELAJARAN 2018/2019
A5: NO | B5: No Induk | C5: NISN | D5: Nomor Peserta | E5: Nama Peserta | F5: Akhidah Akhlak | O5: rata-rata UAM & PRAKTEK
F6: Nilai Semester | K6: Rata- 2 | L6: NILAI UAMBD
F7: 7 | G7: 8 | H7: 9 | I7: 10 | J7: 11 | K7: Rapor | L7: TULIS | M7: PRAKTIK
A8: 1 | B8: =IF(SISWA!B8=0,"",SISWA!B8) -> 4270 | C8: =IF(SISWA!C8=0,"",SISWA!C8) -> 0067566336 | D8: =IF(SISWA!D8=0,"",SISWA!D8) -> 1-18-05-80-162-001-9 | E8: =IF(SISWA!E8=0,"",SISWA!E8) -> ADITYA MAULA FANDY TAULANI | F8: 81 | G8: 82 | H8: 80 | I8: 89 | J8: 96 | K8: =AVERAGE(F8:J8) -> 85.6 | L8: 65 | M8: =K8 -> 85.6 | N8: =AVERAGE(L8:M8) -> 75.3 | O8: =AVERAGE(L8:M8) -> 75.3
A9: 2 | B9: =IF(SISWA!B9=0,"",SISWA!B9) -> 4300 | C9: =IF(SISWA!C9=0,"",SISWA!C9) -> 0066364963 | D9: =IF(SISWA!D9=0,"",SISWA!D9) -> 1-18-05-80-162-002-8 | E9: =IF(SISWA!E9=0,"",SISWA!E9) -> AHMAD FERDIAN ALAMSYAH | F9: 71 | G9: 65 | H9: 75 | I9: 72 | J9: 83 | K9: =AVERAGE(F9:J9) -> 73.2 | L9: 71 | M9: =K9 -> 73.2 | N9: =AVERAGE(L9:M9) -> 72.1 | O9: =AVERAGE(L9:M9) -> 72.1
A10: 3 | B10: =IF(SISWA!B10=0,"",SISWA!B10) -> 4271 | C10: =IF(SISWA!C10=0,"",SISWA!C10) -> 0062805893 | D10: =IF(SISWA!D10=0,"",SISWA!D10) -> 1-18-05-80-162-003-7 | E10: =IF(SISWA!E10=0,"",SISWA!E10) -> AHMAD RAMADHANI FADLULLOH | F10: 77 | G10: 79 | H10: 80 | I10: 80 | J10: 83 | K10: 79.8 | L10: 68 | M10: 79.8 | N10: 73.9 | O10: 73.9
A11: 4 | B11: =IF(SISWA!B11=0,"",SISWA!B11) -> 4398 | C11: =IF(SISWA!C11=0,"",SISWA!C11) -> 0062399399 | D11: =IF(SISWA!D11=0,"",SISWA!D11) -> 1-18-05-80-162-004-6 | E11: =IF(SISWA!E11=0,"",SISWA!E11) -> ANANDA AMILIA | F11: 73 | G11: 71 | H11: 75 | I11: 78 | J11: 85 | K11: 76.4 | L11: 74 | M11: 76.4 | N11: 75.2 | O11: 75.2
A12: 5 | B12: =IF(SISWA!B12=0,"",SISWA!B12) -> 4272 | C12: =IF(SISWA!C12=0,"",SISWA!C12) -> 0071551428 | D12: =IF(SISWA!D12=0,"",SISWA!D12) -> 1-18-05-80-162-005-5 | E12: =IF(SISWA!E12=0,"",SISWA!E12) -> ANDINI MAULID DWI LESTARI | F12: 78 | G12: 70 | H12: 76 | I12: 78 | J12: 85 | K12: 77.4 | L12: 71 | M12: 77.4 | N12: 74.2 | O12: 74.2
A13: 6 | B13: =IF(SISWA!B13=0,"",SISWA!B13) -> 4301 | C13: =IF(SISWA!C13=0,"",SISWA!C13) -> 0061907599 | D13: =IF(SISWA!D13=0,"",SISWA!D13) -> 1-18-05-80-162-006-4 | E13: =IF(SISWA!E13=0,"",SISWA!E13) -> ANDRIK YUSRI | F13: 70 | G13: 61 | H13: 75 | I13: 67 | J13: 81 | K13: 70.8 | L13: 65 | M13: 70.8 | N13: 67.9 | O13: 67.9
A14: 7 | B14: =IF(SISWA!B14=0,"",SISWA!B14) -> 4273 | C14: =IF(SISWA!C14=0,"",SISWA!C14) -> 0067280519 | D14: =IF(SISWA!D14=0,"",SISWA!D14) -> 1-18-05-80-162-007-3 | E14: =IF(SISWA!E14=0,"",SISWA!E14) -> DEWI SAKINAH ISWARA | F14: 79 | G14: 79 | H14: 79 | I14: 82 | J14: 92 | K14: 82.2 | L14: 91 | M14: 82.2 | N14: 86.6 | O14: 86.6
A15: 8 | B15: =IF(SISWA!B15=0,"",SISWA!B15) -> 4307 | C15: =IF(SISWA!C15=0,"",SISWA!C15) -> 0066012198 | D15: =IF(SISWA!D15=0,"",SISWA!D15) -> 1-18-05-80-162-008-2 | E15: =IF(SISWA!E15=0,"",SISWA!E15) -> CHAKIM | F15: 69 | G15: 57 | H15: 73 | I15: 63 | J15: 81 | K15: 68.6 | L15: 65 | M15: =K15 -> 68.6 | N15: =AVERAGE(L15:M15) -> 66.8 | O15: =AVERAGE(L15:M15) -> 66.8
A16: 9 | B16: =IF(SISWA!B16=0,"",SISWA!B16) -> 4275 | C16: =IF(SISWA!C16=0,"",SISWA!C16) -> 0078199679 | D16: =IF(SISWA!D16=0,"",SISWA!D16) -> 1-18-05-80-162-009-9 | E16: =IF(SISWA!E16=0,"",SISWA!E16) -> HANIK APRILIA SARI | F16: 79 | G16: 77 | H16: 76 | I16: 80 | J16: 84 | K16: 79.2 | L16: 74 | M16: 79.2 | N16: 76.6 | O16: 76.6
A17: 10 | B17: =IF(SISWA!B17=0,"",SISWA!B17) -> 4238 | C17: =IF(SISWA!C17=0,"",SISWA!C17) -> 0051503260 | D17: =IF(SISWA!D17=0,"",SISWA!D17) -> 1-18-05-80-162-010-8 | E17: =IF(SISWA!E17=0,"",SISWA!E17) -> DESI NATALIA SAPUTRI | F17: 69 | G17: 59 | H17: 74 | I17: 66 | J17: 79 | K17: 69.4 | L17: 65 | M17: 69.4 | N17: 67.2 | O17: 67.2
A18: 11 | B18: =IF(SISWA!B18=0,"",SISWA!B18) -> 4391 | C18: =IF(SISWA!C18=0,"",SISWA!C18) -> 0079418518 | D18: =IF(SISWA!D18=0,"",SISWA!D18) -> 1-18-05-80-162-011-7 | E18: =IF(SISWA!E18=0,"",SISWA!E18) -> HIDAYATUL KHUMAINIA | F18: 70 | G18: 70 | H18: 76 | I18: 79 | J18: 83 | K18: 75.6 | L18: 83 | M18: 75.6 | N18: 79.3 | O18: 79.3
A19: 12 | B19: =IF(SISWA!B19=0,"",SISWA!B19) -> 4274 | C19: =IF(SISWA!C19=0,"",SISWA!C19) -> 0077670297 | D19: =IF(SISWA!D19=0,"",SISWA!D19) -> 1-18-05-80-162-012-6 | E19: =IF(SISWA!E19=0,"",SISWA!E19) -> DWITA FITA WULANDARI | F19: 75 | G19: 63 | H19: 75 | I19: 73 | J19: 85 | K19: 74.2 | L19: 65 | M19: 74.2 | N19: 69.6 | O19: 69.6
A20: 13 | B20: =IF(SISWA!B20=0,"",SISWA!B20) -> 4276 | C20: =IF(SISWA!C20=0,"",SISWA!C20) -> 0067236848 | D20: =IF(SISWA!D20=0,"",SISWA!D20) -> 1-18-05-80-162-013-5 | E20: =IF(SISWA!E20=0,"",SISWA!E20) -> IZZA ILMIA AZZAHRA | F20: 78 | G20: 79 | H20: 76 | I20: 83 | J20: 90 | K20: 81.2 | L20: 65 | M20: 81.2 | N20: 73.1 | O20: 73.1
A21: 14 | B21: =IF(SISWA!B21=0,"",SISWA!B21) -> 4303 | C21: =IF(SISWA!C21=0,"",SISWA!C21) -> 0064031376 | D21: =IF(SISWA!D21=0,"",SISWA!D21) -> 1-18-05-80-162-014-4 | E21: =IF(SISWA!E21=0,"",SISWA!E21) -> FARIDATUS SAHDIAH | F21: 73 | G21: 69 | H21: 77 | I21: 75 | J21: 83 | K21: 75.4 | L21: 83 | M21: 75.4 | N21: 79.2 | O21: 79.2
A22: 15 | B22: =IF(SISWA!B22=0,"",SISWA!B22) -> 4278 | C22: =IF(SISWA!C22=0,"",SISWA!C22) -> 0079672823 | D22: =IF(SISWA!D22=0,"",SISWA!D22) -> 1-18-05-80-162-015-3 | E22: =IF(SISWA!E22=0,"",SISWA!E22) -> KHARISYA AZZAHRO | F22: 87 | G22: 87 | H22: 78 | I22: 87 | J22: 95 | K22: 86.8 | L22: 68 | M22: 86.8 | N22: 77.4 | O22: 77.4
A23: 16 | B23: =IF(SISWA!B23=0,"",SISWA!B23) -> 4277 | C23: =IF(SISWA!C23=0,"",SISWA!C23) -> 0077101453 | D23: =IF(SISWA!D23=0,"",SISWA!D23) -> 1-18-05-80-162-016-2 | E23: =IF(SISWA!E23=0,"",SISWA!E23) -> KARINA FEBBY CAHYA AMILIA | F23: 78 | G23: 78 | H23: 77 | I23: 82 | J23: 89 | K23: 80.8 | L23: 68 | M23: 80.8 | N23: 74.4 | O23: 74.4
A24: 17 | B24: =IF(SISWA!B24=0,"",SISWA!B24) -> 4601 | C24: =IF(SISWA!C24=0,"",SISWA!C24) -> 0069718082 | D24: =IF(SISWA!D24=0,"",SISWA!D24) -> 1-18-05-80-162-017-9 | E24: =IF(SISWA!E24=0,"",SISWA!E24) -> MOCHAMAD RIFKY ROSAN | F24: 74 | G24: 75 | H24: 74 | I24: 89 | J24: 84 | K24: 79.2 | L24: 65 | M24: 95 | N24: 80 | O24: 80
A25: 18 | B25: =IF(SISWA!B25=0,"",SISWA!B25) -> 4241 | C25: =IF(SISWA!C25=0,"",SISWA!C25) -> 0057006145 | D25: =IF(SISWA!D25=0,"",SISWA!D25) -> 1-18-05-80-162-018-8 | E25: =IF(SISWA!E25=0,"",SISWA!E25) -> KHUSNI CAHYONO | F25: 70 | G25: 58 | H25: 72 | I25: 60 | J25: 81 | K25: 68.2 | L25: 89 | M25: 68.2 | N25: 78.6 | O25: 78.6
A26: 19 | B26: =IF(SISWA!B26=0,"",SISWA!B26) -> 4280 | C26: =IF(SISWA!C26=0,"",SISWA!C26) -> 0062061356 | D26: =IF(SISWA!D26=0,"",SISWA!D26) -> 1-18-05-80-162-019-7 | E26: =IF(SISWA!E26=0,"",SISWA!E26) -> MUCHAMMAD ALIEF FERDIANSYAH | F26: 78 | G26: 78 | H26: 78 | I26: 78 | J26: 89 | K26: 80.2 | L26: 65 | M26: 80.2 | N26: 72.6 | O26: 72.6
A27: 20 | B27: =IF(SISWA!B27=0,"",SISWA!B27) -> 4306 | C27: =IF(SISWA!C27=0,"",SISWA!C27) -> 0069095925 | D27: =IF(SISWA!D27=0,"",SISWA!D27) -> 1-18-05-80-162-020-6 | E27: =IF(SISWA!E27=0,"",SISWA!E27) -> LENNY AGUSTIN NINGTYAS | F27: 69 | G27: 57 | H27: 73 | I27: 64 | J27: 79 | K27: 68.4 | L27: 77 | M27: 68.4 | N27: 72.7 | O27: 72.7
A28: 21 | B28: =IF(SISWA!B28=0,"",SISWA!B28) -> 4281 | C28: =IF(SISWA!C28=0,"",SISWA!C28) -> 0069153972 | D28: =IF(SISWA!D28=0,"",SISWA!D28) -> 1-18-05-80-162-021-5 | E28: =IF(SISWA!E28=0,"",SISWA!E28) -> MUHAMMAD AGUS ANDRIANTO | F28: 76 | G28: 74 | H28: 75 | I28: 74 | J28: 85 | K28: 76.8 | L28: 65 | M28: 76.8 | N28: 70.9 | O28: 70.9
A29: 22 | B29: =IF(SISWA!B29=0,"",SISWA!B29) -> 4308 | C29: =IF(SISWA!C29=0,"",SISWA!C29) -> 0063078335 | D29: =IF(SISWA!D29=0,"",SISWA!D29) -> 1-18-05-80-162-022-4 | E29: =IF(SISWA!E29=0,"",SISWA!E29) -> MAURIS HIDAYATUR ROCHMAN | F29: 75 | G29: 76 | H29: 75 | I29: 79 | J29: 86 | K29: 78.2 | L29: 80 | M29: 78.2 | N29: 79.1 | O29: 79.1
A30: 23 | B30: =IF(SISWA!B30=0,"",SISWA!B30) -> 4314 | C30: =IF(SISWA!C30=0,"",SISWA!C30) -> 0072178353 | D30: =IF(SISWA!D30=0,"",SISWA!D30) -> 1-18-05-80-162-023-3 | E30: =IF(SISWA!E30=0,"",SISWA!E30) -> MUHAMMAD BISMAR TAUFIQUROHMAN | F30: 79 | G30: 78 | H30: 77 | I30: 83 | J30: 88 | K30: 81 | L30: 65 | M30: 81 | N30: 73 | O30: 73
A31: 24 | B31: =IF(SISWA!B31=0,"",SISWA!B31) -> 4309 | C31: =IF(SISWA!C31=0,"",SISWA!C31) -> 0072198448 | D31: =IF(SISWA!D31=0,"",SISWA!D31) -> 1-18-05-80-162-024-2 | E31: =IF(SISWA!E31=0,"",SISWA!E31) -> MAYA BUNGA ANJANI | F31: 70 | G31: 59 | H31: 75 | I31: 72 | J31: 79 | K31: 71 | L31: 74 | M31: 95 | N31: 84.5 | O31: 84.5
A32: 25 | B32: =IF(SISWA!B32=0,"",SISWA!B32) -> 4320 | C32: =IF(SISWA!C32=0,"",SISWA!C32) -> 0064566227 | D32: =IF(SISWA!D32=0,"",SISWA!D32) -> 1-18-05-80-162-025-9 | E32: =IF(SISWA!E32=0,"",SISWA!E32) -> MUHAMMAD SAHLAN SHODIQ | F32: 80 | G32: 82 | H32: 77 | I32: 83 | J32: 87 | K32: 81.8 | L32: 65 | M32: 95 | N32: 80 | O32: 80
A33: 26 | B33: =IF(SISWA!B33=0,"",SISWA!B33) -> 4279 | C33: =IF(SISWA!C33=0,"",SISWA!C33) -> 0066637092 | D33: =IF(SISWA!D33=0,"",SISWA!D33) -> 1-18-05-80-162-026-8 | E33: =IF(SISWA!E33=0,"",SISWA!E33) -> MITA SEPTIANI ISLAMIA | F33: 70 | G33: 66 | H33: 75 | I33: 75 | J33: 78 | K33: 72.8 | L33: 86 | M33: 72.8 | N33: 79.4 | O33: 79.4
A34: 27 | B34: =IF(SISWA!B34=0,"",SISWA!B34) -> 4321 | C34: =IF(SISWA!C34=0,"",SISWA!C34) -> 0061244045 | D34: =IF(SISWA!D34=0,"",SISWA!D34) -> 1-18-05-80-162-027-7 | E34: =IF(SISWA!E34=0,"",SISWA!E34) -> MUHAMMAD SEPTYAN EKA PRATAMA | F34: 78 | G34: 81 | H34: 77 | I34: 79 | J34: 84 | K34: 79.8 | L34: 65 | M34: 79.8 | N34: 72.4 | O34: 72.4
A35: 28 | B35: =IF(SISWA!B35=0,"",SISWA!B35) -> 4247 | C35: =IF(SISWA!C35=0,"",SISWA!C35) -> 0053546157 | D35: =IF(SISWA!D35=0,"",SISWA!D35) -> 1-18-05-80-162-028-6 | E35: =IF(SISWA!E35=0,"",SISWA!E35) -> MOCHAMAD ARIEL FRANS TITO | F35: 70 | G35: 60 | H35: 74 | I35: 70 | J35: 79 | K35: 70.6 | L35: 71 | M35: 70.6 | N35: 70.8 | O35: 70.8
A36: 29 | B36: =IF(SISWA!B36=0,"",SISWA!B36) -> 4285 | C36: =IF(SISWA!C36=0,"",SISWA!C36) -> 0067871553 | D36: =IF(SISWA!D36=0,"",SISWA!D36) -> 1-18-05-80-162-029-5 | E36: =IF(SISWA!E36=0,"",SISWA!E36) -> MUHAMMAD VERYANSYAH | F36: 78 | G36: 73 | H36: 79 | I36: 77 | J36: 86 | K36: 78.6 | L36: 65 | M36: 78.6 | N36: 71.8 | O36: 71.8
A37: 30 | B37: =IF(SISWA!B37=0,"",SISWA!B37) -> 4310 | C37: =IF(SISWA!C37=0,"",SISWA!C37) -> 0066383678 | D37: =IF(SISWA!D37=0,"",SISWA!D37) -> 1-18-05-80-162-030-4 | E37: =IF(SISWA!E37=0,"",SISWA!E37) -> MOCHAMMAD BIMA RISFANDA | F37: 71 | G37: 63 | H37: 75 | I37: 70 | J37: 81 | K37: 72 | L37: 80 | M37: 72 | N37: 76 | O37: 76
A38: 31 | B38: =IF(SISWA!B38=0,"",SISWA!B38) -> 4286 | C38: =IF(SISWA!C38=0,"",SISWA!C38) -> 0064443822 | D38: =IF(SISWA!D38=0,"",SISWA!D38) -> 1-18-05-80-162-031-3 | E38: =IF(SISWA!E38=0,"",SISWA!E38) -> MUHAMMAD ZIDNY NA'IM | F38: 81 | G38: 86 | H38: 79 | I38: 84 | J38: 90 | K38: 84 | L38: 65 | M38: 84 | N38: 74.5 | O38: 74.5
A39: 32 | B39: =IF(SISWA!B39=0,"",SISWA!B39) -> 4282 | C39: =IF(SISWA!C39=0,"",SISWA!C39) -> 0068336765 | D39: =IF(SISWA!D39=0,"",SISWA!D39) -> 1-18-05-80-162-032-2 | E39: =IF(SISWA!E39=0,"",SISWA!E39) -> MUHAMMAD AGUS FERDIANSYAH | F39: 75 | G39: 72 | H39: 75 | I39: 80 | J39: 84 | K39: 77.2 | L39: 80 | M39: 77.2 | N39: 78.6 | O39: 78.6
A40: 33 | B40: =IF(SISWA!B40=0,"",SISWA!B40) -> 4287 | C40: =IF(SISWA!C40=0,"",SISWA!C40) -> 0064528717 | D40: =IF(SISWA!D40=0,"",SISWA!D40) -> 1-18-05-80-162-033-9 | E40: =IF(SISWA!E40=0,"",SISWA!E40) -> MUHAMMAD FARDAN ABDILLAH | F40: 78 | H40: 76 | I40: 75 | K40: 76.33333333 | L40: 65 | M40: 76.33333333 | N40: 70.66666667 | O40: 70.66666667
A41: 34 | B41: =IF(SISWA!B41=0,"",SISWA!B41) -> 4315 | C41: =IF(SISWA!C41=0,"",SISWA!C41) -> 0067870495 | D41: =IF(SISWA!D41=0,"",SISWA!D41) -> 1-18-05-80-162-034-8 | E41: =IF(SISWA!E41=0,"",SISWA!E41) -> NABILA ARISKA PUTRI | F41: 81 | G41: 81 | H41: 77 | I41: 86 | J41: 86 | K41: 82.2 | L41: 80 | M41: 82.2 | N41: 81.1 | O41: 81.1
A42: 35 | B42: =IF(SISWA!B42=0,"",SISWA!B42) -> 4288 | C42: =IF(SISWA!C42=0,"",SISWA!C42) -> 0068641191 | D42: =IF(SISWA!D42=0,"",SISWA!D42) -> 1-18-05-80-162-035-7 | E42: =IF(SISWA!E42=0,"",SISWA!E42) -> MUHAMMAD FERDINAN JAYYIDAH RIFQI | F42: 79 | G42: 79 | H42: 77 | I42: 78 | J42: 89 | K42: 80.4 | L42: 65 | M42: 80.4 | N42: 72.7 | O42: 72.7
A43: 36 | B43: =IF(SISWA!B43=0,"",SISWA!B43) -> 4283 | C43: =IF(SISWA!C43=0,"",SISWA!C43) -> 0077212388 | D43: =IF(SISWA!D43=0,"",SISWA!D43) -> 1-18-05-80-162-036-6 | E43: =IF(SISWA!E43=0,"",SISWA!E43) -> NAFISA INDRIANI | F43: 80 | G43: 86 | H43: 83 | I43: 85 | J43: 94 | K43: 85.6 | L43: 71 | M43: 85.6 | N43: 78.3 | O43: 78.3
A44: 37 | B44: =IF(SISWA!B44=0,"",SISWA!B44) -> 4257 | C44: =IF(SISWA!C44=0,"",SISWA!C44) -> 0069944706 | D44: =IF(SISWA!D44=0,"",SISWA!D44) -> 1-18-05-80-162-037-5 | E44: =IF(SISWA!E44=0,"",SISWA!E44) -> MUHAMMAD FIRMANSYAH | F44: 72 | G44: 68 | H44: 79 | I44: 71 | J44: 83 | K44: 74.6 | L44: 65 | M44: 74.6 | N44: 69.8 | O44: 69.8
A45: 38 | B45: =IF(SISWA!B45=0,"",SISWA!B45) -> 4317 | C45: =IF(SISWA!C45=0,"",SISWA!C45) -> 0068498059 | D45: =IF(SISWA!D45=0,"",SISWA!D45) -> 1-18-05-80-162-038-4 | E45: =IF(SISWA!E45=0,"",SISWA!E45) -> NAJWA FARISYA BAROROH | F45: 80 | G45: 79 | H45: 78 | I45: 84 | J45: 93 | K45: 82.8 | L45: 80 | M45: 82.8 | N45: 81.4 | O45: 81.4
A46: 39 | B46: =IF(SISWA!B46=0,"",SISWA!B46) -> 4289 | C46: =IF(SISWA!C46=0,"",SISWA!C46) -> 0065225517 | D46: =IF(SISWA!D46=0,"",SISWA!D46) -> 1-18-05-80-162-039-3 | E46: =IF(SISWA!E46=0,"",SISWA!E46) -> NUR FITRIYAH | F46: 78 | G46: 79 | H46: 78 | I46: 79 | J46: 89 | K46: 80.6 | L46: 65 | M46: 80.6 | N46: 72.8 | O46: 72.8
A47: 40 | B47: =IF(SISWA!B47=0,"",SISWA!B47) -> 4318 | C47: =IF(SISWA!C47=0,"",SISWA!C47) -> 0061441364 | D47: =IF(SISWA!D47=0,"",SISWA!D47) -> 1-18-05-80-162-040-2 | E47: =IF(SISWA!E47=0,"",SISWA!E47) -> MUHAMMAD HILDAN DWI SAPUTRA | F47: 70 | G47: 70 | H47: 75 | I47: 76 | J47: 79 | K47: 74 | L47: 65 | M47: 74 | N47: 69.5 | O47: 69.5
A48: 41 | B48: =IF(SISWA!B48=0,"",SISWA!B48) -> 4392 | C48: =IF(SISWA!C48=0,"",SISWA!C48) -> 0075794532 | D48: =IF(SISWA!D48=0,"",SISWA!D48) -> 1-18-05-80-162-041-9 | E48: =IF(SISWA!E48=0,"",SISWA!E48) -> PUTRI NAFI'ATUS SOLIKHAH | F48: 76 | G48: 72 | H48: 76 | I48: 79 | J48: 87 | K48: 78 | L48: 65 | M48: 78 | N48: 71.5 | O48: 71.5
A49: 42 | B49: =IF(SISWA!B49=0,"",SISWA!B49) -> 4284 | C49: =IF(SISWA!C49=0,"",SISWA!C49) -> 0069578000 | D49: =IF(SISWA!D49=0,"",SISWA!D49) -> 1-18-05-80-162-042-8 | E49: =IF(SISWA!E49=0,"",SISWA!E49) -> MUHAMMAD RAYA KAFAF JAUHARI | F49: 80 | G49: 77 | H49: 78 | I49: 81 | J49: 83 | K49: 79.8 | L49: 80 | M49: 79.8 | N49: 79.9 | O49: 79.9
A50: 43 | B50: =IF(SISWA!B50=0,"",SISWA!B50) -> 4290 | C50: =IF(SISWA!C50=0,"",SISWA!C50) -> 0063558216 | D50: =IF(SISWA!D50=0,"",SISWA!D50) -> 1-18-05-80-162-043-7 | E50: =IF(SISWA!E50=0,"",SISWA!E50) -> QORIATUN SHOLIHAH | F50: 81 | G50: 78 | H50: 79 | I50: 84 | J50: 87 | K50: =AVERAGE(F50:J50) -> 81.8 | L50: 65 | M50: 81.8 | N50: 73.4 | O50: 73.4
A51: 44 | B51: =IF(SISWA!B51=0,"",SISWA!B51) -> 4319 | C51: =IF(SISWA!C51=0,"",SISWA!C51) -> 0065329770 | D51: =IF(SISWA!D51=0,"",SISWA!D51) -> 1-18-05-80-162-044-6 | E51: =IF(SISWA!E51=0,"",SISWA!E51) -> MUHAMMAD RUDI TANTOWIK | F51: 71 | G51: 64 | H51: 74 | I51: 63 | J51: 79 | K51: 70.2 | L51: 65 | M51: 70.2 | N51: 67.6 | O51: 67.6
A52: 45 | B52: =IF(SISWA!B52=0,"",SISWA!B52) -> 4291 | C52: =IF(SISWA!C52=0,"",SISWA!C52) -> 0067071679 | D52: =IF(SISWA!D52=0,"",SISWA!D52) -> 1-18-05-80-162-045-5 | E52: =IF(SISWA!E52=0,"",SISWA!E52) -> RACHMAD HIDAYAT | F52: 77 | G52: 73 | H52: 76 | I52: 72 | J52: 83 | K52: 76.2 | L52: 80 | M52: 76.2 | N52: 78.1 | O52: 78.1
A53: 46 | B53: =IF(SISWA!B53=0,"",SISWA!B53) -> 4322 | C53: =IF(SISWA!C53=0,"",SISWA!C53) -> 0051101989 | D53: =IF(SISWA!D53=0,"",SISWA!D53) -> 1-18-05-80-162-046-4 | E53: =IF(SISWA!E53=0,"",SISWA!E53) -> MUHAMMAD ZULDIENUR HABIBIE | F53: 67 | G53: 59 | H53: 75 | I53: 75 | J53: 79 | K53: 71 | L53: 86 | M53: 71 | N53: 78.5 | O53: 78.5
A54: 47 | B54: =IF(SISWA!B54=0,"",SISWA!B54) -> 4292 | C54: =IF(SISWA!C54=0,"",SISWA!C54) -> 0072001696 | D54: =IF(SISWA!D54=0,"",SISWA!D54) -> 1-18-05-80-162-047-3 | E54: =IF(SISWA!E54=0,"",SISWA!E54) -> RHEA RAYSHANADA NUGRAHA | F54: 79 | G54: 82 | H54: 76 | I54: 85 | J54: 88 | K54: 82 | L54: 71 | M54: 82 | N54: 76.5 | O54: 76.5
A55: 48 | B55: =IF(SISWA!B55=0,"",SISWA!B55) -> 4323 | C55: =IF(SISWA!C55=0,"",SISWA!C55) -> 0078949167 | D55: =IF(SISWA!D55=0,"",SISWA!D55) -> 1-18-05-80-162-048-2 | E55: =IF(SISWA!E55=0,"",SISWA!E55) -> MUKHAMAD KHOIRUL AMIN | F55: 70 | G55: 70 | H55: 75 | I55: 72 | J55: 81 | K55: 73.6 | L55: 65 | M55: 73.6 | N55: 69.3 | O55: 69.3
A56: 49 | B56: =IF(SISWA!B56=0,"",SISWA!B56) -> 4293 | C56: =IF(SISWA!C56=0,"",SISWA!C56) -> 0064217705 | D56: =IF(SISWA!D56=0,"",SISWA!D56) -> 1-18-05-80-162-049-9 | E56: =IF(SISWA!E56=0,"",SISWA!E56) -> RIYANTI APRILIA | F56: 81 | G56: 78 | H56: 77 | I56: 89 | J56: 89 | K56: 82.8 | L56: 65 | M56: 82.8 | N56: 73.9 | O56: 73.9
A57: 50 | B57: =IF(SISWA!B57=0,"",SISWA!B57) -> 4256 | C57: =IF(SISWA!C57=0,"",SISWA!C57) -> 0065699742 | D57: =IF(SISWA!D57=0,"",SISWA!D57) -> 1-18-05-80-162-050-8 | E57: =IF(SISWA!E57=0,"",SISWA!E57) -> MUKHAMMAD YAASIIN HASAN KHASBULLOH | F57: 76 | G57: 67 | H57: 75 | I57: 77 | J57: 83 | K57: 75.6 | L57: 71 | M57: 75.6 | N57: 73.3 | O57: 73.3
A58: 51 | B58: =IF(SISWA!B58=0,"",SISWA!B58) -> 4295 | C58: =IF(SISWA!C58=0,"",SISWA!C58) -> 0061359184 | D58: =IF(SISWA!D58=0,"",SISWA!D58) -> 1-18-05-80-162-051-7 | E58: =IF(SISWA!E58=0,"",SISWA!E58) -> SHONIA AULIA AS'AD | F58: 84 | G58: 92 | H58: 80 | I58: 90 | J58: 96 | K58: 88.4 | L58: 65 | M58: 88.4 | N58: 76.7 | O58: 76.7
A59: 52 | B59: =IF(SISWA!B59=0,"",SISWA!B59) -> 4294 | C59: =IF(SISWA!C59=0,"",SISWA!C59) -> 0064723905 | D59: =IF(SISWA!D59=0,"",SISWA!D59) -> 1-18-05-80-162-052-6 | E59: =IF(SISWA!E59=0,"",SISWA!E59) -> RIZKA AYU WULANDARI | F59: 78 | G59: 74 | H59: 77 | I59: 78 | J59: 83 | K59: 78 | L59: 74 | M59: 78 | N59: 76 | O59: 76
A60: 53 | B60: =IF(SISWA!B60=0,"",SISWA!B60) -> 4298 | C60: =IF(SISWA!C60=0,"",SISWA!C60) -> 0065530554 | D60: =IF(SISWA!D60=0,"",SISWA!D60) -> 1-18-05-80-162-053-5 | E60: =IF(SISWA!E60=0,"",SISWA!E60) -> VERLINA DWI MAULANI | F60: 81 | G60: 80 | H60: 77 | I60: 81 | J60: 86 | K60: 81 | L60: 65 | M60: 81 | N60: 73 | O60: 73
A61: 54 | B61: =IF(SISWA!B61=0,"",SISWA!B61) -> 4297 | C61: =IF(SISWA!C61=0,"",SISWA!C61) -> 0063846732 | D61: =IF(SISWA!D61=0,"",SISWA!D61) -> 1-18-05-80-162-054-4 | E61: =IF(SISWA!E61=0,"",SISWA!E61) -> USWATUN KHASANAH | F61: 74 | G61: 67 | H61: 76 | I61: 78 | J61: 83 | K61: 75.6 | L61: 65 | M61: 75.6 | N61: 70.3 | O61: 70.3
A62: 55 | B62: =IF(SISWA!B62=0,"",SISWA!B62) -> 4324 | C62: =IF(SISWA!C62=0,"",SISWA!C62) -> 0078966795 | D62: =IF(SISWA!D62=0,"",SISWA!D62) -> 1-18-05-80-162-055-3 | E62: =IF(SISWA!E62=0,"",SISWA!E62) -> VIKA KUSUMA WATI | F62: 77 | G62: 72 | H62: 76 | I62: 77 | J62: 84 | K62: 77.2 | L62: 65 | M62: 77.2 | N62: 71.1 | O62: 71.1
A63: 56 | B63: =IF(SISWA!B63=0,"",SISWA!B63) -> 4326 | C63: =IF(SISWA!C63=0,"",SISWA!C63) -> 0064124533 | D63: =IF(SISWA!D63=0,"",SISWA!D63) -> 1-18-05-80-162-056-2 | E63: =IF(SISWA!E63=0,"",SISWA!E63) -> YOHAN EGA GILANG PERMANA | F63: 70 | H63: 75 | I63: 75 | J63: 77 | K63: 74.25 | L63: 65 | M63: 74.25 | N63: 69.625 | O63: 69.625
A64: 57 | B64: =IF(SISWA!B64=0,"",SISWA!B64) ->  | C64: =IF(SISWA!C64=0,"",SISWA!C64) ->  | D64: =IF(SISWA!D64=0,"",SISWA!D64) -> 1-18-05-80-162-057-9 | E64: =IF(SISWA!E64=0,"",SISWA!E64) -> 
A65: 58 | B65: =IF(SISWA!B65=0,"",SISWA!B65) ->  | C65: =IF(SISWA!C65=0,"",SISWA!C65) ->  | D65: =IF(SISWA!D65=0,"",SISWA!D65) -> 1-18-05-80-162-058-8 | E65: =IF(SISWA!E65=0,"",SISWA!E65) -> 
A66: 59 | B66: =IF(SISWA!B66=0,"",SISWA!B66) ->  | C66: =IF(SISWA!C66=0,"",SISWA!C66) ->  | D66: =IF(SISWA!D66=0,"",SISWA!D66) -> 1-18-05-80-162-059-7 | E66: =IF(SISWA!E66=0,"",SISWA!E66) -> 
A67: 60 | B67: =IF(SISWA!B67=0,"",SISWA!B67) ->  | C67: =IF(SISWA!C67=0,"",SISWA!C67) ->  | D67: =IF(SISWA!D67=0,"",SISWA!D67) -> 1-18-05-80-162-060-6 | E67: =IF(SISWA!E67=0,"",SISWA!E67) -> 
A68: 61 | B68: =IF(SISWA!B68=0,"",SISWA!B68) ->  | C68: =IF(SISWA!C68=0,"",SISWA!C68) ->  | D68: =IF(SISWA!D68=0,"",SISWA!D68) -> 1-18-05-80-162-061-5 | E68: =IF(SISWA!E68=0,"",SISWA!E68) -> 
A69: 62 | B69: =IF(SISWA!B69=0,"",SISWA!B69) ->  | C69: =IF(SISWA!C69=0,"",SISWA!C69) ->  | D69: =IF(SISWA!D69=0,"",SISWA!D69) -> 062-4 | E69: =IF(SISWA!E69=0,"",SISWA!E69) -> 
A70: 63 | B70: =IF(SISWA!B70=0,"",SISWA!B70) ->  | C70: =IF(SISWA!C70=0,"",SISWA!C70) ->  | D70: =IF(SISWA!D70=0,"",SISWA!D70) -> 063-3 | E70: =IF(SISWA!E70=0,"",SISWA!E70) -> 
A71: 64 | B71: =IF(SISWA!B71=0,"",SISWA!B71) ->  | C71: =IF(SISWA!C71=0,"",SISWA!C71) ->  | D71: =IF(SISWA!D71=0,"",SISWA!D71) -> 064-2 | E71: =IF(SISWA!E71=0,"",SISWA!E71) -> 
A72: 65 | B72: =IF(SISWA!B72=0,"",SISWA!B72) ->  | C72: =IF(SISWA!C72=0,"",SISWA!C72) ->  | D72: =IF(SISWA!D72=0,"",SISWA!D72) -> 065- | E72: =IF(SISWA!E72=0,"",SISWA!E72) -> 
A73: 66 | B73: =IF(SISWA!B73=0,"",SISWA!B73) ->  | C73: =IF(SISWA!C73=0,"",SISWA!C73) ->  | D73: =IF(SISWA!D73=0,"",SISWA!D73) -> 066- | E73: =IF(SISWA!E73=0,"",SISWA!E73) ->  | K73: =AVERAGE(F73:J73) ->  | N73: =AVERAGE(L73:M73) ->  | O73: =AVERAGE(L73:M73) -> 
A74: 67 | B74: =IF(SISWA!B74=0,"",SISWA!B74) ->  | C74: =IF(SISWA!C74=0,"",SISWA!C74) ->  | D74: =IF(SISWA!D74=0,"",SISWA!D74) -> 067- | E74: =IF(SISWA!E74=0,"",SISWA!E74) -> 
A75: 68 | B75: =IF(SISWA!B75=0,"",SISWA!B75) ->  | C75: =IF(SISWA!C75=0,"",SISWA!C75) ->  | D75: =IF(SISWA!D75=0,"",SISWA!D75) -> 068- | E75: =IF(SISWA!E75=0,"",SISWA!E75) -> 
A76: 69 | B76: =IF(SISWA!B76=0,"",SISWA!B76) ->  | C76: =IF(SISWA!C76=0,"",SISWA!C76) ->  | D76: =IF(SISWA!D76=0,"",SISWA!D76) -> 069- | E76: =IF(SISWA!E76=0,"",SISWA!E76) -> 
A77: 70 | B77: =IF(SISWA!B77=0,"",SISWA!B77) ->  | C77: =IF(SISWA!C77=0,"",SISWA!C77) ->  | D77: =IF(SISWA!D77=0,"",SISWA!D77) -> 070- | E77: =IF(SISWA!E77=0,"",SISWA!E77) -> 
A78: 71 | B78: =IF(SISWA!B78=0,"",SISWA!B78) ->  | C78: =IF(SISWA!C78=0,"",SISWA!C78) ->  | D78: =IF(SISWA!D78=0,"",SISWA!D78) -> 071- | E78: =IF(SISWA!E78=0,"",SISWA!E78) -> 
A79: 72 | B79: =IF(SISWA!B79=0,"",SISWA!B79) ->  | C79: =IF(SISWA!C79=0,"",SISWA!C79) ->  | D79: =IF(SISWA!D79=0,"",SISWA!D79) -> 072- | E79: =IF(SISWA!E79=0,"",SISWA!E79) -> 
A80: 73 | B80: =IF(SISWA!B80=0,"",SISWA!B80) ->  | C80: =IF(SISWA!C80=0,"",SISWA!C80) ->  | D80: =IF(SISWA!D80=0,"",SISWA!D80) -> 073- | E80: =IF(SISWA!E80=0,"",SISWA!E80) -> 
A81: 74 | B81: =IF(SISWA!B81=0,"",SISWA!B81) ->  | C81: =IF(SISWA!C81=0,"",SISWA!C81) ->  | D81: =IF(SISWA!D81=0,"",SISWA!D81) -> 074- | E81: =IF(SISWA!E81=0,"",SISWA!E81) -> 
A82: 75 | B82: =IF(SISWA!B82=0,"",SISWA!B82) ->  | C82: =IF(SISWA!C82=0,"",SISWA!C82) ->  | D82: =IF(SISWA!D82=0,"",SISWA!D82) -> 075- | E82: =IF(SISWA!E82=0,"",SISWA!E82) -> 
A83: 76 | B83: =IF(SISWA!B83=0,"",SISWA!B83) ->  | C83: =IF(SISWA!C83=0,"",SISWA!C83) ->  | D83: =IF(SISWA!D83=0,"",SISWA!D83) -> 076- | E83: =IF(SISWA!E83=0,"",SISWA!E83) -> 
A84: 77 | B84: =IF(SISWA!B84=0,"",SISWA!B84) ->  | C84: =IF(SISWA!C84=0,"",SISWA!C84) ->  | D84: =IF(SISWA!D84=0,"",SISWA!D84) -> 077- | E84: =IF(SISWA!E84=0,"",SISWA!E84) -> 
A85: 78 | B85: =IF(SISWA!B85=0,"",SISWA!B85) ->  | C85: =IF(SISWA!C85=0,"",SISWA!C85) ->  | D85: =IF(SISWA!D85=0,"",SISWA!D85) -> 078- | E85: =IF(SISWA!E85=0,"",SISWA!E85) -> 
A86: 79 | B86: =IF(SISWA!B86=0,"",SISWA!B86) ->  | C86: =IF(SISWA!C86=0,"",SISWA!C86) ->  | D86: =IF(SISWA!D86=0,"",SISWA!D86) -> 079- | E86: =IF(SISWA!E86=0,"",SISWA!E86) -> 
A87: 80 | B87: =IF(SISWA!B87=0,"",SISWA!B87) ->  | C87: =IF(SISWA!C87=0,"",SISWA!C87) ->  | D87: =IF(SISWA!D87=0,"",SISWA!D87) -> 080- | E87: =IF(SISWA!E87=0,"",SISWA!E87) -> 
A88: 81 | B88: =IF(SISWA!B88=0,"",SISWA!B88) ->  | C88: =IF(SISWA!C88=0,"",SISWA!C88) ->  | D88: =IF(SISWA!D88=0,"",SISWA!D88) -> 081- | E88: =IF(SISWA!E88=0,"",SISWA!E88) -> 
A89: 82 | B89: =IF(SISWA!B89=0,"",SISWA!B89) ->  | C89: =IF(SISWA!C89=0,"",SISWA!C89) ->  | D89: =IF(SISWA!D89=0,"",SISWA!D89) -> 082- | E89: =IF(SISWA!E89=0,"",SISWA!E89) -> 
A90: 83 | B90: =IF(SISWA!B90=0,"",SISWA!B90) ->  | C90: =IF(SISWA!C90=0,"",SISWA!C90) ->  | D90: =IF(SISWA!D90=0,"",SISWA!D90) -> 083- | E90: =IF(SISWA!E90=0,"",SISWA!E90) -> 
A91: 84 | B91: =IF(SISWA!B91=0,"",SISWA!B91) ->  | C91: =IF(SISWA!C91=0,"",SISWA!C91) ->  | D91: =IF(SISWA!D91=0,"",SISWA!D91) -> 084- | E91: =IF(SISWA!E91=0,"",SISWA!E91) -> 
A92: 85 | B92: =IF(SISWA!B92=0,"",SISWA!B92) ->  | C92: =IF(SISWA!C92=0,"",SISWA!C92) ->  | D92: =IF(SISWA!D92=0,"",SISWA!D92) -> 085- | E92: =IF(SISWA!E92=0,"",SISWA!E92) -> 
A93: 86 | B93: =IF(SISWA!B93=0,"",SISWA!B93) ->  | C93: =IF(SISWA!C93=0,"",SISWA!C93) ->  | D93: =IF(SISWA!D93=0,"",SISWA!D93) -> 086- | E93: =IF(SISWA!E93=0,"",SISWA!E93) -> 
A94: 87 | B94: =IF(SISWA!B94=0,"",SISWA!B94) ->  | C94: =IF(SISWA!C94=0,"",SISWA!C94) ->  | D94: =IF(SISWA!D94=0,"",SISWA!D94) -> 087- | E94: =IF(SISWA!E94=0,"",SISWA!E94) -> 
A95: 88 | B95: =IF(SISWA!B95=0,"",SISWA!B95) ->  | C95: =IF(SISWA!C95=0,"",SISWA!C95) ->  | D95: =IF(SISWA!D95=0,"",SISWA!D95) -> 088- | E95: =IF(SISWA!E95=0,"",SISWA!E95) -> 
A96: 89 | B96: =IF(SISWA!B96=0,"",SISWA!B96) ->  | C96: =IF(SISWA!C96=0,"",SISWA!C96) ->  | D96: =IF(SISWA!D96=0,"",SISWA!D96) -> 089- | E96: =IF(SISWA!E96=0,"",SISWA!E96) -> 
A97: 90 | B97: =IF(SISWA!B97=0,"",SISWA!B97) ->  | C97: =IF(SISWA!C97=0,"",SISWA!C97) ->  | D97: =IF(SISWA!D97=0,"",SISWA!D97) -> 090- | E97: =IF(SISWA!E97=0,"",SISWA!E97) -> 
A98: 91 | B98: =IF(SISWA!B98=0,"",SISWA!B98) ->  | C98: =IF(SISWA!C98=0,"",SISWA!C98) ->  | D98: =IF(SISWA!D98=0,"",SISWA!D98) -> 091- | E98: =IF(SISWA!E98=0,"",SISWA!E98) -> 
A99: 92 | B99: =IF(SISWA!B99=0,"",SISWA!B99) ->  | C99: =IF(SISWA!C99=0,"",SISWA!C99) ->  | D99: =IF(SISWA!D99=0,"",SISWA!D99) -> 092- | E99: =IF(SISWA!E99=0,"",SISWA!E99) -> 
A100: 93 | B100: =IF(SISWA!B100=0,"",SISWA!B100) ->  | C100: =IF(SISWA!C100=0,"",SISWA!C100) ->  | D100: =IF(SISWA!D100=0,"",SISWA!D100) -> 093- | E100: =IF(SISWA!E100=0,"",SISWA!E100) -> 
A101: 94 | B101: =IF(SISWA!B101=0,"",SISWA!B101) ->  | C101: =IF(SISWA!C101=0,"",SISWA!C101) ->  | D101: =IF(SISWA!D101=0,"",SISWA!D101) -> 094- | E101: =IF(SISWA!E101=0,"",SISWA!E101) -> 
A102: 95 | B102: =IF(SISWA!B102=0,"",SISWA!B102) ->  | C102: =IF(SISWA!C102=0,"",SISWA!C102) ->  | D102: =IF(SISWA!D102=0,"",SISWA!D102) -> 095- | E102: =IF(SISWA!E102=0,"",SISWA!E102) -> 
A103: 96 | B103: =IF(SISWA!B103=0,"",SISWA!B103) ->  | C103: =IF(SISWA!C103=0,"",SISWA!C103) ->  | D103: =IF(SISWA!D103=0,"",SISWA!D103) -> 096- | E103: =IF(SISWA!E103=0,"",SISWA!E103) -> 
A104: 97 | B104: =IF(SISWA!B104=0,"",SISWA!B104) ->  | C104: =IF(SISWA!C104=0,"",SISWA!C104) ->  | D104: =IF(SISWA!D104=0,"",SISWA!D104) -> 097- | E104: =IF(SISWA!E104=0,"",SISWA!E104) -> 
A105: 98 | B105: =IF(SISWA!B105=0,"",SISWA!B105) ->  | C105: =IF(SISWA!C105=0,"",SISWA!C105) ->  | D105: =IF(SISWA!D105=0,"",SISWA!D105) -> 098- | E105: =IF(SISWA!E105=0,"",SISWA!E105) -> 
A106: 99 | B106: =IF(SISWA!B106=0,"",SISWA!B106) ->  | C106: =IF(SISWA!C106=0,"",SISWA!C106) ->  | D106: =IF(SISWA!D106=0,"",SISWA!D106) -> 099- | E106: =IF(SISWA!E106=0,"",SISWA!E106) -> 
A107: 100 | B107: =IF(SISWA!B107=0,"",SISWA!B107) ->  | C107: =IF(SISWA!C107=0,"",SISWA!C107) ->  | D107: =IF(SISWA!D107=0,"",SISWA!D107) -> 100- | E107: =IF(SISWA!E107=0,"",SISWA!E107) -> 
A108: 101 | B108: =IF(SISWA!B108=0,"",SISWA!B108) ->  | C108: =IF(SISWA!C108=0,"",SISWA!C108) ->  | D108: =IF(SISWA!D108=0,"",SISWA!D108) -> 101- | E108: =IF(SISWA!E108=0,"",SISWA!E108) -> 
A109: 102 | B109: =IF(SISWA!B109=0,"",SISWA!B109) ->  | C109: =IF(SISWA!C109=0,"",SISWA!C109) ->  | D109: =IF(SISWA!D109=0,"",SISWA!D109) -> 102- | E109: =IF(SISWA!E109=0,"",SISWA!E109) -> 
A110: 103 | B110: =IF(SISWA!B110=0,"",SISWA!B110) ->  | C110: =IF(SISWA!C110=0,"",SISWA!C110) ->  | D110: =IF(SISWA!D110=0,"",SISWA!D110) -> 103- | E110: =IF(SISWA!E110=0,"",SISWA!E110) -> 
A111: 104 | B111: =IF(SISWA!B111=0,"",SISWA!B111) ->  | C111: =IF(SISWA!C111=0,"",SISWA!C111) ->  | D111: =IF(SISWA!D111=0,"",SISWA!D111) -> 104- | E111: =IF(SISWA!E111=0,"",SISWA!E111) -> 
A112: 105 | B112: =IF(SISWA!B112=0,"",SISWA!B112) ->  | C112: =IF(SISWA!C112=0,"",SISWA!C112) ->  | D112: =IF(SISWA!D112=0,"",SISWA!D112) -> 105- | E112: =IF(SISWA!E112=0,"",SISWA!E112) -> 
A113: 106 | B113: =IF(SISWA!B113=0,"",SISWA!B113) ->  | C113: =IF(SISWA!C113=0,"",SISWA!C113) ->  | D113: =IF(SISWA!D113=0,"",SISWA!D113) -> 106- | E113: =IF(SISWA!E113=0,"",SISWA!E113) -> 
A114: 107 | B114: =IF(SISWA!B114=0,"",SISWA!B114) ->  | C114: =IF(SISWA!C114=0,"",SISWA!C114) ->  | D114: =IF(SISWA!D114=0,"",SISWA!D114) -> 107- | E114: =IF(SISWA!E114=0,"",SISWA!E114) -> 
A115: 108 | B115: =IF(SISWA!B115=0,"",SISWA!B115) ->  | C115: =IF(SISWA!C115=0,"",SISWA!C115) ->  | D115: =IF(SISWA!D115=0,"",SISWA!D115) -> 108- | E115: =IF(SISWA!E115=0,"",SISWA!E115) -> 
A116: 109 | B116: =IF(SISWA!B116=0,"",SISWA!B116) ->  | C116: =IF(SISWA!C116=0,"",SISWA!C116) ->  | D116: =IF(SISWA!D116=0,"",SISWA!D116) -> 109- | E116: =IF(SISWA!E116=0,"",SISWA!E116) -> 
A117: 110 | B117: =IF(SISWA!B117=0,"",SISWA!B117) ->  | C117: =IF(SISWA!C117=0,"",SISWA!C117) ->  | D117: =IF(SISWA!D117=0,"",SISWA!D117) -> 110- | E117: =IF(SISWA!E117=0,"",SISWA!E117) -> 
A118: 111 | B118: =IF(SISWA!B118=0,"",SISWA!B118) ->  | C118: =IF(SISWA!C118=0,"",SISWA!C118) ->  | D118: =IF(SISWA!D118=0,"",SISWA!D118) -> 111- | E118: =IF(SISWA!E118=0,"",SISWA!E118) -> 
A119: 112 | B119: =IF(SISWA!B119=0,"",SISWA!B119) ->  | C119: =IF(SISWA!C119=0,"",SISWA!C119) ->  | D119: =IF(SISWA!D119=0,"",SISWA!D119) -> 112- | E119: =IF(SISWA!E119=0,"",SISWA!E119) -> 
A120: 113 | B120: =IF(SISWA!B120=0,"",SISWA!B120) ->  | C120: =IF(SISWA!C120=0,"",SISWA!C120) ->  | D120: =IF(SISWA!D120=0,"",SISWA!D120) -> 113- | E120: =IF(SISWA!E120=0,"",SISWA!E120) -> 
A121: 114 | B121: =IF(SISWA!B121=0,"",SISWA!B121) ->  | C121: =IF(SISWA!C121=0,"",SISWA!C121) ->  | D121: =IF(SISWA!D121=0,"",SISWA!D121) -> 114- | E121: =IF(SISWA!E121=0,"",SISWA!E121) -> 
A122: 115 | B122: =IF(SISWA!B122=0,"",SISWA!B122) ->  | C122: =IF(SISWA!C122=0,"",SISWA!C122) ->  | D122: =IF(SISWA!D122=0,"",SISWA!D122) -> 115- | E122: =IF(SISWA!E122=0,"",SISWA!E122) -> 
A123: 116 | B123: =IF(SISWA!B123=0,"",SISWA!B123) ->  | C123: =IF(SISWA!C123=0,"",SISWA!C123) ->  | D123: =IF(SISWA!D123=0,"",SISWA!D123) -> 116- | E123: =IF(SISWA!E123=0,"",SISWA!E123) -> 
A124: 117 | B124: =IF(SISWA!B124=0,"",SISWA!B124) ->  | C124: =IF(SISWA!C124=0,"",SISWA!C124) ->  | D124: =IF(SISWA!D124=0,"",SISWA!D124) -> 117- | E124: =IF(SISWA!E124=0,"",SISWA!E124) -> 
A125: 118 | B125: =IF(SISWA!B125=0,"",SISWA!B125) ->  | C125: =IF(SISWA!C125=0,"",SISWA!C125) ->  | D125: =IF(SISWA!D125=0,"",SISWA!D125) -> 118- | E125: =IF(SISWA!E125=0,"",SISWA!E125) -> 
A126: 119 | B126: =IF(SISWA!B126=0,"",SISWA!B126) ->  | C126: =IF(SISWA!C126=0,"",SISWA!C126) ->  | D126: =IF(SISWA!D126=0,"",SISWA!D126) -> 119- | E126: =IF(SISWA!E126=0,"",SISWA!E126) -> 
A127: 120 | B127: =IF(SISWA!B127=0,"",SISWA!B127) ->  | C127: =IF(SISWA!C127=0,"",SISWA!C127) ->  | D127: =IF(SISWA!D127=0,"",SISWA!D127) -> 120- | E127: =IF(SISWA!E127=0,"",SISWA!E127) -> 
A128: 121 | B128: =IF(SISWA!B128=0,"",SISWA!B128) ->  | C128: =IF(SISWA!C128=0,"",SISWA!C128) ->  | D128: =IF(SISWA!D128=0,"",SISWA!D128) -> 121- | E128: =IF(SISWA!E128=0,"",SISWA!E128) -> 
A129: 122 | B129: =IF(SISWA!B129=0,"",SISWA!B129) ->  | C129: =IF(SISWA!C129=0,"",SISWA!C129) ->  | D129: =IF(SISWA!D129=0,"",SISWA!D129) -> 122- | E129: =IF(SISWA!E129=0,"",SISWA!E129) -> 
A130: 123 | B130: =IF(SISWA!B130=0,"",SISWA!B130) ->  | C130: =IF(SISWA!C130=0,"",SISWA!C130) ->  | D130: =IF(SISWA!D130=0,"",SISWA!D130) -> 123- | E130: =IF(SISWA!E130=0,"",SISWA!E130) -> 
A131: 124 | B131: =IF(SISWA!B131=0,"",SISWA!B131) ->  | C131: =IF(SISWA!C131=0,"",SISWA!C131) ->  | D131: =IF(SISWA!D131=0,"",SISWA!D131) -> 124- | E131: =IF(SISWA!E131=0,"",SISWA!E131) -> 
A132: 125 | B132: =IF(SISWA!B132=0,"",SISWA!B132) ->  | C132: =IF(SISWA!C132=0,"",SISWA!C132) ->  | D132: =IF(SISWA!D132=0,"",SISWA!D132) -> 125- | E132: =IF(SISWA!E132=0,"",SISWA!E132) -> 
A133: 126 | B133: =IF(SISWA!B133=0,"",SISWA!B133) ->  | C133: =IF(SISWA!C133=0,"",SISWA!C133) ->  | D133: =IF(SISWA!D133=0,"",SISWA!D133) -> 126- | E133: =IF(SISWA!E133=0,"",SISWA!E133) -> 
A134: 127 | B134: =IF(SISWA!B134=0,"",SISWA!B134) ->  | C134: =IF(SISWA!C134=0,"",SISWA!C134) ->  | D134: =IF(SISWA!D134=0,"",SISWA!D134) -> 127- | E134: =IF(SISWA!E134=0,"",SISWA!E134) -> 
A135: 128 | B135: =IF(SISWA!B135=0,"",SISWA!B135) ->  | C135: =IF(SISWA!C135=0,"",SISWA!C135) ->  | D135: =IF(SISWA!D135=0,"",SISWA!D135) -> 128- | E135: =IF(SISWA!E135=0,"",SISWA!E135) -> 
A136: 129 | B136: =IF(SISWA!B136=0,"",SISWA!B136) ->  | C136: =IF(SISWA!C136=0,"",SISWA!C136) ->  | D136: =IF(SISWA!D136=0,"",SISWA!D136) -> 129- | E136: =IF(SISWA!E136=0,"",SISWA!E136) -> 
A137: 130 | B137: =IF(SISWA!B137=0,"",SISWA!B137) ->  | C137: =IF(SISWA!C137=0,"",SISWA!C137) ->  | D137: =IF(SISWA!D137=0,"",SISWA!D137) -> 130- | E137: =IF(SISWA!E137=0,"",SISWA!E137) ->  | K137: =AVERAGE(F137:J137) ->  | N137: =AVERAGE(L137:M137) ->  | O137: =AVERAGE(L137:M137) -> 
A138: 131 | B138: =IF(SISWA!B138=0,"",SISWA!B138) ->  | C138: =IF(SISWA!C138=0,"",SISWA!C138) ->  | D138: =IF(SISWA!D138=0,"",SISWA!D138) -> 131- | E138: =IF(SISWA!E138=0,"",SISWA!E138) -> 
A139: 132 | B139: =IF(SISWA!B139=0,"",SISWA!B139) ->  | C139: =IF(SISWA!C139=0,"",SISWA!C139) ->  | D139: =IF(SISWA!D139=0,"",SISWA!D139) -> 132- | E139: =IF(SISWA!E139=0,"",SISWA!E139) -> 
A140: 133 | B140: =IF(SISWA!B140=0,"",SISWA!B140) ->  | C140: =IF(SISWA!C140=0,"",SISWA!C140) ->  | D140: =IF(SISWA!D140=0,"",SISWA!D140) -> 133- | E140: =IF(SISWA!E140=0,"",SISWA!E140) -> 
A141: 134 | B141: =IF(SISWA!B141=0,"",SISWA!B141) ->  | C141: =IF(SISWA!C141=0,"",SISWA!C141) ->  | D141: =IF(SISWA!D141=0,"",SISWA!D141) -> 134- | E141: =IF(SISWA!E141=0,"",SISWA!E141) -> 
A142: 135 | B142: =IF(SISWA!B142=0,"",SISWA!B142) ->  | C142: =IF(SISWA!C142=0,"",SISWA!C142) ->  | D142: =IF(SISWA!D142=0,"",SISWA!D142) -> 135- | E142: =IF(SISWA!E142=0,"",SISWA!E142) -> 
A143: 136 | B143: =IF(SISWA!B143=0,"",SISWA!B143) ->  | C143: =IF(SISWA!C143=0,"",SISWA!C143) ->  | D143: =IF(SISWA!D143=0,"",SISWA!D143) -> 136- | E143: =IF(SISWA!E143=0,"",SISWA!E143) -> 
A144: 137 | B144: =IF(SISWA!B144=0,"",SISWA!B144) ->  | C144: =IF(SISWA!C144=0,"",SISWA!C144) ->  | D144: =IF(SISWA!D144=0,"",SISWA!D144) -> 137- | E144: =IF(SISWA!E144=0,"",SISWA!E144) -> 
A145: 138 | B145: =IF(SISWA!B145=0,"",SISWA!B145) ->  | C145: =IF(SISWA!C145=0,"",SISWA!C145) ->  | D145: =IF(SISWA!D145=0,"",SISWA!D145) -> 138- | E145: =IF(SISWA!E145=0,"",SISWA!E145) -> 
A146: 139 | B146: =IF(SISWA!B146=0,"",SISWA!B146) ->  | C146: =IF(SISWA!C146=0,"",SISWA!C146) ->  | D146: =IF(SISWA!D146=0,"",SISWA!D146) -> 139- | E146: =IF(SISWA!E146=0,"",SISWA!E146) -> 
A147: 140 | B147: =IF(SISWA!B147=0,"",SISWA!B147) ->  | C147: =IF(SISWA!C147=0,"",SISWA!C147) ->  | D147: =IF(SISWA!D147=0,"",SISWA!D147) -> 140- | E147: =IF(SISWA!E147=0,"",SISWA!E147) -> 
A148: 141 | B148: =IF(SISWA!B148=0,"",SISWA!B148) ->  | C148: =IF(SISWA!C148=0,"",SISWA!C148) ->  | D148: =IF(SISWA!D148=0,"",SISWA!D148) -> 141- | E148: =IF(SISWA!E148=0,"",SISWA!E148) -> 
A149: 142 | B149: =IF(SISWA!B149=0,"",SISWA!B149) ->  | C149: =IF(SISWA!C149=0,"",SISWA!C149) ->  | D149: =IF(SISWA!D149=0,"",SISWA!D149) -> 142- | E149: =IF(SISWA!E149=0,"",SISWA!E149) -> 
A150: 143 | B150: =IF(SISWA!B150=0,"",SISWA!B150) ->  | C150: =IF(SISWA!C150=0,"",SISWA!C150) ->  | D150: =IF(SISWA!D150=0,"",SISWA!D150) -> 143- | E150: =IF(SISWA!E150=0,"",SISWA!E150) -> 
A151: 144 | B151: =IF(SISWA!B151=0,"",SISWA!B151) ->  | C151: =IF(SISWA!C151=0,"",SISWA!C151) ->  | D151: =IF(SISWA!D151=0,"",SISWA!D151) -> 144- | E151: =IF(SISWA!E151=0,"",SISWA!E151) -> 
A152: 145 | B152: =IF(SISWA!B152=0,"",SISWA!B152) ->  | C152: =IF(SISWA!C152=0,"",SISWA!C152) ->  | D152: =IF(SISWA!D152=0,"",SISWA!D152) -> 145- | E152: =IF(SISWA!E152=0,"",SISWA!E152) -> 
A153: 146 | B153: =IF(SISWA!B153=0,"",SISWA!B153) ->  | C153: =IF(SISWA!C153=0,"",SISWA!C153) ->  | D153: =IF(SISWA!D153=0,"",SISWA!D153) -> 146- | E153: =IF(SISWA!E153=0,"",SISWA!E153) -> 
A154: 147 | B154: =IF(SISWA!B154=0,"",SISWA!B154) ->  | C154: =IF(SISWA!C154=0,"",SISWA!C154) ->  | D154: =IF(SISWA!D154=0,"",SISWA!D154) -> 147- | E154: =IF(SISWA!E154=0,"",SISWA!E154) -> 
A155: 148 | B155: =IF(SISWA!B155=0,"",SISWA!B155) ->  | C155: =IF(SISWA!C155=0,"",SISWA!C155) ->  | D155: =IF(SISWA!D155=0,"",SISWA!D155) -> 148- | E155: =IF(SISWA!E155=0,"",SISWA!E155) -> 
A156: 149 | B156: =IF(SISWA!B156=0,"",SISWA!B156) ->  | C156: =IF(SISWA!C156=0,"",SISWA!C156) ->  | D156: =IF(SISWA!D156=0,"",SISWA!D156) -> 149- | E156: =IF(SISWA!E156=0,"",SISWA!E156) -> 
A157: 150 | B157: =IF(SISWA!B157=0,"",SISWA!B157) ->  | C157: =IF(SISWA!C157=0,"",SISWA!C157) ->  | D157: =IF(SISWA!D157=0,"",SISWA!D157) -> 150- | E157: =IF(SISWA!E157=0,"",SISWA!E157) -> 
A158: 151 | B158: =IF(SISWA!B158=0,"",SISWA!B158) ->  | C158: =IF(SISWA!C158=0,"",SISWA!C158) ->  | D158: =IF(SISWA!D158=0,"",SISWA!D158) -> 151- | E158: =IF(SISWA!E158=0,"",SISWA!E158) -> 
A159: 152 | B159: =IF(SISWA!B159=0,"",SISWA!B159) ->  | C159: =IF(SISWA!C159=0,"",SISWA!C159) ->  | D159: =IF(SISWA!D159=0,"",SISWA!D159) -> 152- | E159: =IF(SISWA!E159=0,"",SISWA!E159) -> 
A160: 153 | B160: =IF(SISWA!B160=0,"",SISWA!B160) ->  | C160: =IF(SISWA!C160=0,"",SISWA!C160) ->  | D160: =IF(SISWA!D160=0,"",SISWA!D160) -> 153- | E160: =IF(SISWA!E160=0,"",SISWA!E160) -> 
A161: 154 | B161: =IF(SISWA!B161=0,"",SISWA!B161) ->  | C161: =IF(SISWA!C161=0,"",SISWA!C161) ->  | D161: =IF(SISWA!D161=0,"",SISWA!D161) -> 154- | E161: =IF(SISWA!E161=0,"",SISWA!E161) -> 
A162: 155 | B162: =IF(SISWA!B162=0,"",SISWA!B162) ->  | C162: =IF(SISWA!C162=0,"",SISWA!C162) ->  | D162: =IF(SISWA!D162=0,"",SISWA!D162) -> 155- | E162: =IF(SISWA!E162=0,"",SISWA!E162) -> 
A163: 156 | B163: =IF(SISWA!B163=0,"",SISWA!B163) ->  | C163: =IF(SISWA!C163=0,"",SISWA!C163) ->  | D163: =IF(SISWA!D163=0,"",SISWA!D163) -> 156- | E163: =IF(SISWA!E163=0,"",SISWA!E163) -> 
A164: 157 | B164: =IF(SISWA!B164=0,"",SISWA!B164) ->  | C164: =IF(SISWA!C164=0,"",SISWA!C164) ->  | D164: =IF(SISWA!D164=0,"",SISWA!D164) -> 157- | E164: =IF(SISWA!E164=0,"",SISWA!E164) -> 
A165: 158 | B165: =IF(SISWA!B165=0,"",SISWA!B165) ->  | C165: =IF(SISWA!C165=0,"",SISWA!C165) ->  | D165: =IF(SISWA!D165=0,"",SISWA!D165) -> 158- | E165: =IF(SISWA!E165=0,"",SISWA!E165) -> 
A166: 159 | B166: =IF(SISWA!B166=0,"",SISWA!B166) ->  | C166: =IF(SISWA!C166=0,"",SISWA!C166) ->  | D166: =IF(SISWA!D166=0,"",SISWA!D166) -> 159- | E166: =IF(SISWA!E166=0,"",SISWA!E166) -> 
A167: 160 | B167: =IF(SISWA!B167=0,"",SISWA!B167) ->  | C167: =IF(SISWA!C167=0,"",SISWA!C167) ->  | D167: =IF(SISWA!D167=0,"",SISWA!D167) -> 160- | E167: =IF(SISWA!E167=0,"",SISWA!E167) -> 
A168: 161 | B168: =IF(SISWA!B168=0,"",SISWA!B168) ->  | C168: =IF(SISWA!C168=0,"",SISWA!C168) ->  | D168: =IF(SISWA!D168=0,"",SISWA!D168) -> 161- | E168: =IF(SISWA!E168=0,"",SISWA!E168) -> 
A169: 162 | B169: =IF(SISWA!B169=0,"",SISWA!B169) ->  | C169: =IF(SISWA!C169=0,"",SISWA!C169) ->  | D169: =IF(SISWA!D169=0,"",SISWA!D169) -> 162- | E169: =IF(SISWA!E169=0,"",SISWA!E169) -> 
A170: 163 | B170: =IF(SISWA!B170=0,"",SISWA!B170) ->  | C170: =IF(SISWA!C170=0,"",SISWA!C170) ->  | D170: =IF(SISWA!D170=0,"",SISWA!D170) -> 163- | E170: =IF(SISWA!E170=0,"",SISWA!E170) -> 
A171: 164 | B171: =IF(SISWA!B171=0,"",SISWA!B171) ->  | C171: =IF(SISWA!C171=0,"",SISWA!C171) ->  | D171: =IF(SISWA!D171=0,"",SISWA!D171) -> 164- | E171: =IF(SISWA!E171=0,"",SISWA!E171) -> 
A172: 165 | B172: =IF(SISWA!B172=0,"",SISWA!B172) ->  | C172: =IF(SISWA!C172=0,"",SISWA!C172) ->  | D172: =IF(SISWA!D172=0,"",SISWA!D172) -> 165- | E172: =IF(SISWA!E172=0,"",SISWA!E172) -> 
A173: 166 | B173: =IF(SISWA!B173=0,"",SISWA!B173) ->  | C173: =IF(SISWA!C173=0,"",SISWA!C173) ->  | D173: =IF(SISWA!D173=0,"",SISWA!D173) -> 166- | E173: =IF(SISWA!E173=0,"",SISWA!E173) -> 
A174: 167 | B174: =IF(SISWA!B174=0,"",SISWA!B174) ->  | C174: =IF(SISWA!C174=0,"",SISWA!C174) ->  | D174: =IF(SISWA!D174=0,"",SISWA!D174) -> 167- | E174: =IF(SISWA!E174=0,"",SISWA!E174) -> 
A175: 168 | B175: =IF(SISWA!B175=0,"",SISWA!B175) ->  | C175: =IF(SISWA!C175=0,"",SISWA!C175) ->  | D175: =IF(SISWA!D175=0,"",SISWA!D175) -> 168- | E175: =IF(SISWA!E175=0,"",SISWA!E175) -> 
A176: 169 | B176: =IF(SISWA!B176=0,"",SISWA!B176) ->  | C176: =IF(SISWA!C176=0,"",SISWA!C176) ->  | D176: =IF(SISWA!D176=0,"",SISWA!D176) -> 169- | E176: =IF(SISWA!E176=0,"",SISWA!E176) -> 
A177: 170 | B177: =IF(SISWA!B177=0,"",SISWA!B177) ->  | C177: =IF(SISWA!C177=0,"",SISWA!C177) ->  | D177: =IF(SISWA!D177=0,"",SISWA!D177) -> 170- | E177: =IF(SISWA!E177=0,"",SISWA!E177) -> 
A178: 171 | B178: =IF(SISWA!B178=0,"",SISWA!B178) ->  | C178: =IF(SISWA!C178=0,"",SISWA!C178) ->  | D178: =IF(SISWA!D178=0,"",SISWA!D178) -> 171- | E178: =IF(SISWA!E178=0,"",SISWA!E178) -> 
A179: 172 | B179: =IF(SISWA!B179=0,"",SISWA!B179) ->  | C179: =IF(SISWA!C179=0,"",SISWA!C179) ->  | D179: =IF(SISWA!D179=0,"",SISWA!D179) -> 172- | E179: =IF(SISWA!E179=0,"",SISWA!E179) -> 
A180: 173 | B180: =IF(SISWA!B180=0,"",SISWA!B180) ->  | C180: =IF(SISWA!C180=0,"",SISWA!C180) ->  | D180: =IF(SISWA!D180=0,"",SISWA!D180) -> 173- | E180: =IF(SISWA!E180=0,"",SISWA!E180) -> 
A181: 174 | B181: =IF(SISWA!B181=0,"",SISWA!B181) ->  | C181: =IF(SISWA!C181=0,"",SISWA!C181) ->  | D181: =IF(SISWA!D181=0,"",SISWA!D181) -> 174- | E181: =IF(SISWA!E181=0,"",SISWA!E181) -> 
A182: 175 | B182: =IF(SISWA!B182=0,"",SISWA!B182) ->  | C182: =IF(SISWA!C182=0,"",SISWA!C182) ->  | D182: =IF(SISWA!D182=0,"",SISWA!D182) -> 175- | E182: =IF(SISWA!E182=0,"",SISWA!E182) -> 
A183: 176 | B183: =IF(SISWA!B183=0,"",SISWA!B183) ->  | C183: =IF(SISWA!C183=0,"",SISWA!C183) ->  | D183: =IF(SISWA!D183=0,"",SISWA!D183) -> 176- | E183: =IF(SISWA!E183=0,"",SISWA!E183) -> 
A184: 177 | B184: =IF(SISWA!B184=0,"",SISWA!B184) ->  | C184: =IF(SISWA!C184=0,"",SISWA!C184) ->  | D184: =IF(SISWA!D184=0,"",SISWA!D184) -> 177- | E184: =IF(SISWA!E184=0,"",SISWA!E184) -> 
A185: 178 | B185: =IF(SISWA!B185=0,"",SISWA!B185) ->  | C185: =IF(SISWA!C185=0,"",SISWA!C185) ->  | D185: =IF(SISWA!D185=0,"",SISWA!D185) -> 178- | E185: =IF(SISWA!E185=0,"",SISWA!E185) -> 
A186: 179 | B186: =IF(SISWA!B186=0,"",SISWA!B186) ->  | C186: =IF(SISWA!C186=0,"",SISWA!C186) ->  | D186: =IF(SISWA!D186=0,"",SISWA!D186) -> 179- | E186: =IF(SISWA!E186=0,"",SISWA!E186) -> 
A187: 180 | B187: =IF(SISWA!B187=0,"",SISWA!B187) ->  | C187: =IF(SISWA!C187=0,"",SISWA!C187) ->  | D187: =IF(SISWA!D187=0,"",SISWA!D187) -> 180- | E187: =IF(SISWA!E187=0,"",SISWA!E187) -> 
A188: 181 | B188: =IF(SISWA!B188=0,"",SISWA!B188) ->  | C188: =IF(SISWA!C188=0,"",SISWA!C188) ->  | D188: =IF(SISWA!D188=0,"",SISWA!D188) -> 181- | E188: =IF(SISWA!E188=0,"",SISWA!E188) -> 
A189: 182 | B189: =IF(SISWA!B189=0,"",SISWA!B189) ->  | C189: =IF(SISWA!C189=0,"",SISWA!C189) ->  | D189: =IF(SISWA!D189=0,"",SISWA!D189) -> 182- | E189: =IF(SISWA!E189=0,"",SISWA!E189) -> 
A190: 183 | B190: =IF(SISWA!B190=0,"",SISWA!B190) ->  | C190: =IF(SISWA!C190=0,"",SISWA!C190) ->  | D190: =IF(SISWA!D190=0,"",SISWA!D190) -> 183- | E190: =IF(SISWA!E190=0,"",SISWA!E190) -> 
A191: 184 | B191: =IF(SISWA!B191=0,"",SISWA!B191) ->  | C191: =IF(SISWA!C191=0,"",SISWA!C191) ->  | D191: =IF(SISWA!D191=0,"",SISWA!D191) -> 184- | E191: =IF(SISWA!E191=0,"",SISWA!E191) -> 
A192: 185 | B192: =IF(SISWA!B192=0,"",SISWA!B192) ->  | C192: =IF(SISWA!C192=0,"",SISWA!C192) ->  | D192: =IF(SISWA!D192=0,"",SISWA!D192) -> 185- | E192: =IF(SISWA!E192=0,"",SISWA!E192) -> 
A193: 186 | B193: =IF(SISWA!B193=0,"",SISWA!B193) ->  | C193: =IF(SISWA!C193=0,"",SISWA!C193) ->  | D193: =IF(SISWA!D193=0,"",SISWA!D193) -> 186- | E193: =IF(SISWA!E193=0,"",SISWA!E193) -> 
A194: 187 | B194: =IF(SISWA!B194=0,"",SISWA!B194) ->  | C194: =IF(SISWA!C194=0,"",SISWA!C194) ->  | D194: =IF(SISWA!D194=0,"",SISWA!D194) -> 187- | E194: =IF(SISWA!E194=0,"",SISWA!E194) -> 
A195: 188 | B195: =IF(SISWA!B195=0,"",SISWA!B195) ->  | C195: =IF(SISWA!C195=0,"",SISWA!C195) ->  | D195: =IF(SISWA!D195=0,"",SISWA!D195) -> 188- | E195: =IF(SISWA!E195=0,"",SISWA!E195) -> 
A196: 189 | B196: =IF(SISWA!B196=0,"",SISWA!B196) ->  | C196: =IF(SISWA!C196=0,"",SISWA!C196) ->  | D196: =IF(SISWA!D196=0,"",SISWA!D196) -> 189- | E196: =IF(SISWA!E196=0,"",SISWA!E196) -> 
A197: 190 | B197: =IF(SISWA!B197=0,"",SISWA!B197) ->  | C197: =IF(SISWA!C197=0,"",SISWA!C197) ->  | D197: =IF(SISWA!D197=0,"",SISWA!D197) -> 190- | E197: =IF(SISWA!E197=0,"",SISWA!E197) -> 
A198: 191 | B198: =IF(SISWA!B198=0,"",SISWA!B198) ->  | C198: =IF(SISWA!C198=0,"",SISWA!C198) ->  | D198: =IF(SISWA!D198=0,"",SISWA!D198) -> 191- | E198: =IF(SISWA!E198=0,"",SISWA!E198) -> 
A199: 192 | B199: =IF(SISWA!B199=0,"",SISWA!B199) ->  | C199: =IF(SISWA!C199=0,"",SISWA!C199) ->  | D199: =IF(SISWA!D199=0,"",SISWA!D199) -> 192- | E199: =IF(SISWA!E199=0,"",SISWA!E199) -> 
A200: 193 | B200: =IF(SISWA!B200=0,"",SISWA!B200) ->  | C200: =IF(SISWA!C200=0,"",SISWA!C200) ->  | D200: =IF(SISWA!D200=0,"",SISWA!D200) -> 193- | E200: =IF(SISWA!E200=0,"",SISWA!E200) -> 
A201: 194 | B201: =IF(SISWA!B201=0,"",SISWA!B201) ->  | C201: =IF(SISWA!C201=0,"",SISWA!C201) ->  | D201: =IF(SISWA!D201=0,"",SISWA!D201) -> 194- | E201: =IF(SISWA!E201=0,"",SISWA!E201) ->  | K201: =AVERAGE(F201:J201) ->  | N201: =AVERAGE(L201:M201) ->  | O201: =AVERAGE(L201:M201) -> 
... 6 more rows

Sheet FQ
A1: DAFTAR NILAI AKHIR SEKOLAH
A2: =AA!A2 -> MADRASAH IBTIDAIYAH NURUL ISLAM LABRUK KIDUL
A3: =AA!A3 -> TAHUN PELAJARAN 2018/2019
A5: NO | B5: No Induk | C5: NISN | D5: Nomor Peserta | E5: Nama Peserta | F5: FIQIH | N5: rata-rata UAM & PRAKTEK
F6: Nilai Semester | K6: Rata- 2 | L6: NILAI UAMBD
F7: 7 | G7: 8 | H7: 9 | I7: 10 | J7: 11 | K7: Rapor | L7: TULIS | M7: PRAKTIK
A8: 1 | B8: =IF(SISWA!B8=0,"",SISWA!B8) -> 4270 | C8: =IF(SISWA!C8=0,"",SISWA!C8) -> 0067566336 | D8: =IF(SISWA!D8=0,"",SISWA!D8) -> 1-18-05-80-162-001-9 | E8: =IF(SISWA!E8=0,"",SISWA!E8) -> ADITYA MAULA FANDY TAULANI | F8: 79 | G8: 85 | H8: 87 | I8: 84 | J8: 91 | K8: =AVERAGE(F8:J8) -> 85.2 | L8: 65 | M8: =K8 -> 85.2 | N8: =AVERAGE(K8:L8) -> 75.1 | O8: =N8 -> 75.1
A9: 2 | B9: =IF(SISWA!B9=0,"",SISWA!B9) -> 4300 | C9: =IF(SISWA!C9=0,"",SISWA!C9) -> 0066364963 | D9: =IF(SISWA!D9=0,"",SISWA!D9) -> 1-18-05-80-162-002-8 | E9: =IF(SISWA!E9=0,"",SISWA!E9) -> AHMAD FERDIAN ALAMSYAH | F9: 74 | G9: 73 | H9: 77 | I9: 71 | J9: 80 | K9: =AVERAGE(F9:J9) -> 75 | L9: 65 | M9: =K9 -> 75 | N9: =AVERAGE(K9:L9) -> 70 | O9: =N9 -> 70
A10: 3 | B10: =IF(SISWA!B10=0,"",SISWA!B10) -> 4271 | C10: =IF(SISWA!C10=0,"",SISWA!C10) -> 0062805893 | D10: =IF(SISWA!D10=0,"",SISWA!D10) -> 1-18-05-80-162-003-7 | E10: =IF(SISWA!E10=0,"",SISWA!E10) -> AHMAD RAMADHANI FADLULLOH | F10: 76 | G10: 74 | H10: 82 | I10: 78 | J10: 83 | K10: 78.6 | L10: 65 | M10: 78.6 | N10: 71.8 | O10: 71.8
A11: 4 | B11: =IF(SISWA!B11=0,"",SISWA!B11) -> 4398 | C11: =IF(SISWA!C11=0,"",SISWA!C11) -> 0062399399 | D11: =IF(SISWA!D11=0,"",SISWA!D11) -> 1-18-05-80-162-004-6 | E11: =IF(SISWA!E11=0,"",SISWA!E11) -> ANANDA AMILIA | F11: 75 | G11: 76 | H11: 75 | I11: 75 | J11: 85 | K11: 77.2 | L11: 76.7 | M11: 77.2 | N11: 76.95 | O11: 76.95
A12: 5 | B12: =IF(SISWA!B12=0,"",SISWA!B12) -> 4272 | C12: =IF(SISWA!C12=0,"",SISWA!C12) -> 0071551428 | D12: =IF(SISWA!D12=0,"",SISWA!D12) -> 1-18-05-80-162-005-5 | E12: =IF(SISWA!E12=0,"",SISWA!E12) -> ANDINI MAULID DWI LESTARI | F12: 77 | G12: 80 | H12: 77 | I12: 77 | J12: 88 | K12: 79.8 | L12: 65 | M12: 79.8 | N12: 72.4 | O12: 72.4
A13: 6 | B13: =IF(SISWA!B13=0,"",SISWA!B13) -> 4301 | C13: =IF(SISWA!C13=0,"",SISWA!C13) -> 0061907599 | D13: =IF(SISWA!D13=0,"",SISWA!D13) -> 1-18-05-80-162-006-4 | E13: =IF(SISWA!E13=0,"",SISWA!E13) -> ANDRIK YUSRI | F13: 70 | G13: 62 | H13: 75 | I13: 73 | J13: 75 | K13: 71 | L13: 65 | M13: 71 | N13: 68 | O13: 68
A14: 7 | B14: =IF(SISWA!B14=0,"",SISWA!B14) -> 4273 | C14: =IF(SISWA!C14=0,"",SISWA!C14) -> 0067280519 | D14: =IF(SISWA!D14=0,"",SISWA!D14) -> 1-18-05-80-162-007-3 | E14: =IF(SISWA!E14=0,"",SISWA!E14) -> DEWI SAKINAH ISWARA | F14: 79 | G14: 77 | H14: 95 | I14: 90 | J14: 92 | K14: 86.6 | L14: 93.3 | M14: 86.6 | N14: 89.95 | O14: 89.95
A15: 8 | B15: =IF(SISWA!B15=0,"",SISWA!B15) -> 4307 | C15: =IF(SISWA!C15=0,"",SISWA!C15) -> 0066012198 | D15: =IF(SISWA!D15=0,"",SISWA!D15) -> 1-18-05-80-162-008-2 | E15: =IF(SISWA!E15=0,"",SISWA!E15) -> CHAKIM | F15: 70 | G15: 64 | H15: 76 | I15: 69 | J15: 76 | K15: 71 | L15: 68.7 | M15: 71 | N15: 69.85 | O15: 69.85
A16: 9 | B16: =IF(SISWA!B16=0,"",SISWA!B16) -> 4275 | C16: =IF(SISWA!C16=0,"",SISWA!C16) -> 0078199679 | D16: =IF(SISWA!D16=0,"",SISWA!D16) -> 1-18-05-80-162-009-9 | E16: =IF(SISWA!E16=0,"",SISWA!E16) -> HANIK APRILIA SARI | F16: 79 | G16: 78 | H16: 83 | I16: 89 | J16: 87 | K16: 83.2 | L16: 65 | M16: 83.2 | N16: 74.1 | O16: 74.1
A17: 10 | B17: =IF(SISWA!B17=0,"",SISWA!B17) -> 4238 | C17: =IF(SISWA!C17=0,"",SISWA!C17) -> 0051503260 | D17: =IF(SISWA!D17=0,"",SISWA!D17) -> 1-18-05-80-162-010-8 | E17: =IF(SISWA!E17=0,"",SISWA!E17) -> DESI NATALIA SAPUTRI | F17: 70 | G17: 64 | H17: 76 | I17: 67 | J17: 77 | K17: 70.8 | L17: 65 | M17: 70.8 | N17: 67.9 | O17: 67.9
A18: 11 | B18: =IF(SISWA!B18=0,"",SISWA!B18) -> 4391 | C18: =IF(SISWA!C18=0,"",SISWA!C18) -> 0079418518 | D18: =IF(SISWA!D18=0,"",SISWA!D18) -> 1-18-05-80-162-011-7 | E18: =IF(SISWA!E18=0,"",SISWA!E18) -> HIDAYATUL KHUMAINIA | F18: 72 | G18: 72 | H18: 77 | I18: 76 | J18: 83 | K18: 76 | L18: 76.7 | M18: 76 | N18: 76.35 | O18: 76.35
A19: 12 | B19: =IF(SISWA!B19=0,"",SISWA!B19) -> 4274 | C19: =IF(SISWA!C19=0,"",SISWA!C19) -> 0077670297 | D19: =IF(SISWA!D19=0,"",SISWA!D19) -> 1-18-05-80-162-012-6 | E19: =IF(SISWA!E19=0,"",SISWA!E19) -> DWITA FITA WULANDARI | F19: 74 | G19: 71 | H19: 79 | I19: 73 | J19: 87 | K19: 76.8 | L19: 65 | M19: 76.8 | N19: 70.9 | O19: 70.9
A20: 13 | B20: =IF(SISWA!B20=0,"",SISWA!B20) -> 4276 | C20: =IF(SISWA!C20=0,"",SISWA!C20) -> 0067236848 | D20: =IF(SISWA!D20=0,"",SISWA!D20) -> 1-18-05-80-162-013-5 | E20: =IF(SISWA!E20=0,"",SISWA!E20) -> IZZA ILMIA AZZAHRA | F20: 78 | G20: 83 | H20: 91 | I20: 90 | J20: 91 | K20: 86.6 | L20: 65 | M20: 86.6 | N20: 75.8 | O20: 75.8
A21: 14 | B21: =IF(SISWA!B21=0,"",SISWA!B21) -> 4303 | C21: =IF(SISWA!C21=0,"",SISWA!C21) -> 0064031376 | D21: =IF(SISWA!D21=0,"",SISWA!D21) -> 1-18-05-80-162-014-4 | E21: =IF(SISWA!E21=0,"",SISWA!E21) -> FARIDATUS SAHDIAH | F21: 73 | G21: 76 | H21: 79 | I21: 77 | J21: 79 | K21: 76.8 | L21: 65 | M21: 76.8 | N21: 70.9 | O21: 70.9
A22: 15 | B22: =IF(SISWA!B22=0,"",SISWA!B22) -> 4278 | C22: =IF(SISWA!C22=0,"",SISWA!C22) -> 0079672823 | D22: =IF(SISWA!D22=0,"",SISWA!D22) -> 1-18-05-80-162-015-3 | E22: =IF(SISWA!E22=0,"",SISWA!E22) -> KHARISYA AZZAHRO | F22: 86 | G22: 87 | H22: 80 | I22: 84 | J22: 96 | K22: 86.6 | L22: 65 | M22: 86.6 | N22: 75.8 | O22: 75.8
A23: 16 | B23: =IF(SISWA!B23=0,"",SISWA!B23) -> 4277 | C23: =IF(SISWA!C23=0,"",SISWA!C23) -> 0077101453 | D23: =IF(SISWA!D23=0,"",SISWA!D23) -> 1-18-05-80-162-016-2 | E23: =IF(SISWA!E23=0,"",SISWA!E23) -> KARINA FEBBY CAHYA AMILIA | F23: 77 | G23: 77 | H23: 84 | I23: 83 | J23: 84 | K23: 81 | L23: 65 | M23: 81 | N23: 73 | O23: 73
A24: 17 | B24: =IF(SISWA!B24=0,"",SISWA!B24) -> 4601 | C24: =IF(SISWA!C24=0,"",SISWA!C24) -> 0069718082 | D24: =IF(SISWA!D24=0,"",SISWA!D24) -> 1-18-05-80-162-017-9 | E24: =IF(SISWA!E24=0,"",SISWA!E24) -> MOCHAMAD RIFKY ROSAN | F24: 75 | G24: 71 | H24: 78 | I24: 85 | J24: 83 | K24: 78.4 | L24: 65 | M24: 78.4 | N24: 71.7 | O24: 71.7
A25: 18 | B25: =IF(SISWA!B25=0,"",SISWA!B25) -> 4241 | C25: =IF(SISWA!C25=0,"",SISWA!C25) -> 0057006145 | D25: =IF(SISWA!D25=0,"",SISWA!D25) -> 1-18-05-80-162-018-8 | E25: =IF(SISWA!E25=0,"",SISWA!E25) -> KHUSNI CAHYONO | F25: 70 | G25: 56 | H25: 74 | I25: 65 | J25: 75 | K25: 68 | L25: 65 | M25: 68 | N25: 66.5 | O25: 66.5
A26: 19 | B26: =IF(SISWA!B26=0,"",SISWA!B26) -> 4280 | C26: =IF(SISWA!C26=0,"",SISWA!C26) -> 0062061356 | D26: =IF(SISWA!D26=0,"",SISWA!D26) -> 1-18-05-80-162-019-7 | E26: =IF(SISWA!E26=0,"",SISWA!E26) -> MUCHAMMAD ALIEF FERDIANSYAH | F26: 79 | G26: 83 | H26: 83 | I26: 89 | J26: 92 | K26: 85.2 | L26: 65 | M26: 85.2 | N26: 75.1 | O26: 75.1
A27: 20 | B27: =IF(SISWA!B27=0,"",SISWA!B27) -> 4306 | C27: =IF(SISWA!C27=0,"",SISWA!C27) -> 0069095925 | D27: =IF(SISWA!D27=0,"",SISWA!D27) -> 1-18-05-80-162-020-6 | E27: =IF(SISWA!E27=0,"",SISWA!E27) -> LENNY AGUSTIN NINGTYAS | F27: 70 | G27: 66 | H27: 74 | I27: 63 | J27: 76 | K27: 69.8 | L27: 65 | M27: 69.8 | N27: 67.4 | O27: 67.4
A28: 21 | B28: =IF(SISWA!B28=0,"",SISWA!B28) -> 4281 | C28: =IF(SISWA!C28=0,"",SISWA!C28) -> 0069153972 | D28: =IF(SISWA!D28=0,"",SISWA!D28) -> 1-18-05-80-162-021-5 | E28: =IF(SISWA!E28=0,"",SISWA!E28) -> MUHAMMAD AGUS ANDRIANTO | F28: 78 | G28: 72 | H28: 77 | I28: 75 | J28: 84 | K28: 77.2 | L28: 65 | M28: 77.2 | N28: 71.1 | O28: 71.1
A29: 22 | B29: =IF(SISWA!B29=0,"",SISWA!B29) -> 4308 | C29: =IF(SISWA!C29=0,"",SISWA!C29) -> 0063078335 | D29: =IF(SISWA!D29=0,"",SISWA!D29) -> 1-18-05-80-162-022-4 | E29: =IF(SISWA!E29=0,"",SISWA!E29) -> MAURIS HIDAYATUR ROCHMAN | F29: 76 | G29: 77 | H29: 75 | I29: 75 | J29: 84 | K29: 77.4 | L29: 70 | M29: 77.4 | N29: 73.7 | O29: 73.7
A30: 23 | B30: =IF(SISWA!B30=0,"",SISWA!B30) -> 4314 | C30: =IF(SISWA!C30=0,"",SISWA!C30) -> 0072178353 | D30: =IF(SISWA!D30=0,"",SISWA!D30) -> 1-18-05-80-162-023-3 | E30: =IF(SISWA!E30=0,"",SISWA!E30) -> MUHAMMAD BISMAR TAUFIQUROHMAN | F30: 77 | G30: 81 | H30: 78 | I30: 78 | J30: 88 | K30: 80.4 | L30: 65 | M30: 80.4 | N30: 72.7 | O30: 72.7
A31: 24 | B31: =IF(SISWA!B31=0,"",SISWA!B31) -> 4309 | C31: =IF(SISWA!C31=0,"",SISWA!C31) -> 0072198448 | D31: =IF(SISWA!D31=0,"",SISWA!D31) -> 1-18-05-80-162-024-2 | E31: =IF(SISWA!E31=0,"",SISWA!E31) -> MAYA BUNGA ANJANI | F31: 73 | G31: 57 | H31: 75 | I31: 64 | J31: 76 | K31: 69 | L31: 65 | M31: 69 | N31: 67 | O31: 67
A32: 25 | B32: =IF(SISWA!B32=0,"",SISWA!B32) -> 4320 | C32: =IF(SISWA!C32=0,"",SISWA!C32) -> 0064566227 | D32: =IF(SISWA!D32=0,"",SISWA!D32) -> 1-18-05-80-162-025-9 | E32: =IF(SISWA!E32=0,"",SISWA!E32) -> MUHAMMAD SAHLAN SHODIQ | F32: 80 | G32: 85 | H32: 93 | I32: 88 | J32: 87 | K32: 86.6 | L32: 65 | M32: 86.6 | N32: 75.8 | O32: 75.8
A33: 26 | B33: =IF(SISWA!B33=0,"",SISWA!B33) -> 4279 | C33: =IF(SISWA!C33=0,"",SISWA!C33) -> 0066637092 | D33: =IF(SISWA!D33=0,"",SISWA!D33) -> 1-18-05-80-162-026-8 | E33: =IF(SISWA!E33=0,"",SISWA!E33) -> MITA SEPTIANI ISLAMIA | F33: 71 | G33: 67 | H33: 75 | I33: 75 | J33: 75 | K33: 72.6 | L33: 100 | M33: 72.6 | N33: 86.3 | O33: 86.3
A34: 27 | B34: =IF(SISWA!B34=0,"",SISWA!B34) -> 4321 | C34: =IF(SISWA!C34=0,"",SISWA!C34) -> 0061244045 | D34: =IF(SISWA!D34=0,"",SISWA!D34) -> 1-18-05-80-162-027-7 | E34: =IF(SISWA!E34=0,"",SISWA!E34) -> MUHAMMAD SEPTYAN EKA PRATAMA | F34: 77 | G34: 78 | H34: 78 | I34: 76 | J34: 83 | K34: 78.4 | L34: 65 | M34: 78.4 | N34: 71.7 | O34: 71.7
A35: 28 | B35: =IF(SISWA!B35=0,"",SISWA!B35) -> 4247 | C35: =IF(SISWA!C35=0,"",SISWA!C35) -> 0053546157 | D35: =IF(SISWA!D35=0,"",SISWA!D35) -> 1-18-05-80-162-028-6 | E35: =IF(SISWA!E35=0,"",SISWA!E35) -> MOCHAMAD ARIEL FRANS TITO | F35: 71 | G35: 63 | H35: 75 | I35: 67 | J35: 76 | K35: 70.4 | L35: 70 | M35: 70.4 | N35: 70.2 | O35: 70.2
A36: 29 | B36: =IF(SISWA!B36=0,"",SISWA!B36) -> 4285 | C36: =IF(SISWA!C36=0,"",SISWA!C36) -> 0067871553 | D36: =IF(SISWA!D36=0,"",SISWA!D36) -> 1-18-05-80-162-029-5 | E36: =IF(SISWA!E36=0,"",SISWA!E36) -> MUHAMMAD VERYANSYAH | F36: 75 | G36: 82 | H36: 82 | I36: 80 | J36: 88 | K36: 81.4 | L36: 65 | M36: 81.4 | N36: 73.2 | O36: 73.2
A37: 30 | B37: =IF(SISWA!B37=0,"",SISWA!B37) -> 4310 | C37: =IF(SISWA!C37=0,"",SISWA!C37) -> 0066383678 | D37: =IF(SISWA!D37=0,"",SISWA!D37) -> 1-18-05-80-162-030-4 | E37: =IF(SISWA!E37=0,"",SISWA!E37) -> MOCHAMMAD BIMA RISFANDA | F37: 73 | G37: 67 | H37: 78 | I37: 70 | J37: 77 | K37: 73 | L37: 73.3 | M37: 73 | N37: 73.15 | O37: 73.15
A38: 31 | B38: =IF(SISWA!B38=0,"",SISWA!B38) -> 4286 | C38: =IF(SISWA!C38=0,"",SISWA!C38) -> 0064443822 | D38: =IF(SISWA!D38=0,"",SISWA!D38) -> 1-18-05-80-162-031-3 | E38: =IF(SISWA!E38=0,"",SISWA!E38) -> MUHAMMAD ZIDNY NA'IM | F38: 82 | G38: 89 | H38: 86 | I38: 81 | J38: 92 | K38: 86 | L38: 65 | M38: 86 | N38: 75.5 | O38: 75.5
A39: 32 | B39: =IF(SISWA!B39=0,"",SISWA!B39) -> 4282 | C39: =IF(SISWA!C39=0,"",SISWA!C39) -> 0068336765 | D39: =IF(SISWA!D39=0,"",SISWA!D39) -> 1-18-05-80-162-032-2 | E39: =IF(SISWA!E39=0,"",SISWA!E39) -> MUHAMMAD AGUS FERDIANSYAH | F39: 78 | G39: 73 | H39: 80 | I39: 78 | J39: 83 | K39: 78.4 | L39: 65 | M39: 78.4 | N39: 71.7 | O39: 71.7
A40: 33 | B40: =IF(SISWA!B40=0,"",SISWA!B40) -> 4287 | C40: =IF(SISWA!C40=0,"",SISWA!C40) -> 0064528717 | D40: =IF(SISWA!D40=0,"",SISWA!D40) -> 1-18-05-80-162-033-9 | E40: =IF(SISWA!E40=0,"",SISWA!E40) -> MUHAMMAD FARDAN ABDILLAH | F40: 77 | H40: 79 | I40: 83 | K40: 79.66666667 | L40: 65 | M40: 79.66666667 | N40: 72.33333333 | O40: 72.33333333
A41: 34 | B41: =IF(SISWA!B41=0,"",SISWA!B41) -> 4315 | C41: =IF(SISWA!C41=0,"",SISWA!C41) -> 0067870495 | D41: =IF(SISWA!D41=0,"",SISWA!D41) -> 1-18-05-80-162-034-8 | E41: =IF(SISWA!E41=0,"",SISWA!E41) -> NABILA ARISKA PUTRI | F41: 80 | G41: 81 | H41: 79 | I41: 83 | J41: 85 | K41: 81.6 | L41: 73.3 | M41: 81.6 | N41: 77.45 | O41: 77.45
A42: 35 | B42: =IF(SISWA!B42=0,"",SISWA!B42) -> 4288 | C42: =IF(SISWA!C42=0,"",SISWA!C42) -> 0068641191 | D42: =IF(SISWA!D42=0,"",SISWA!D42) -> 1-18-05-80-162-035-7 | E42: =IF(SISWA!E42=0,"",SISWA!E42) -> MUHAMMAD FERDINAN JAYYIDAH RIFQI | F42: 79 | G42: 79 | H42: 77 | I42: 78 | J42: 85 | K42: 79.6 | L42: 65 | M42: 79.6 | N42: 72.3 | O42: 72.3
A43: 36 | B43: =IF(SISWA!B43=0,"",SISWA!B43) -> 4283 | C43: =IF(SISWA!C43=0,"",SISWA!C43) -> 0077212388 | D43: =IF(SISWA!D43=0,"",SISWA!D43) -> 1-18-05-80-162-036-6 | E43: =IF(SISWA!E43=0,"",SISWA!E43) -> NAFISA INDRIANI | F43: 79 | G43: 81 | H43: 95 | I43: 88 | J43: 94 | K43: 87.4 | L43: 68.7 | M43: 87.4 | N43: 78.05 | O43: 78.05
A44: 37 | B44: =IF(SISWA!B44=0,"",SISWA!B44) -> 4257 | C44: =IF(SISWA!C44=0,"",SISWA!C44) -> 0069944706 | D44: =IF(SISWA!D44=0,"",SISWA!D44) -> 1-18-05-80-162-037-5 | E44: =IF(SISWA!E44=0,"",SISWA!E44) -> MUHAMMAD FIRMANSYAH | F44: 74 | G44: 64 | H44: 78 | I44: 77 | J44: 79 | K44: 74.4 | L44: 65 | M44: 74.4 | N44: 69.7 | O44: 69.7
A45: 38 | B45: =IF(SISWA!B45=0,"",SISWA!B45) -> 4317 | C45: =IF(SISWA!C45=0,"",SISWA!C45) -> 0068498059 | D45: =IF(SISWA!D45=0,"",SISWA!D45) -> 1-18-05-80-162-038-4 | E45: =IF(SISWA!E45=0,"",SISWA!E45) -> NAJWA FARISYA BAROROH | F45: 77 | G45: 81 | H45: 88 | I45: 88 | J45: 90 | K45: 84.8 | L45: 65 | M45: 84.8 | N45: 74.9 | O45: 74.9
A46: 39 | B46: =IF(SISWA!B46=0,"",SISWA!B46) -> 4289 | C46: =IF(SISWA!C46=0,"",SISWA!C46) -> 0065225517 | D46: =IF(SISWA!D46=0,"",SISWA!D46) -> 1-18-05-80-162-039-3 | E46: =IF(SISWA!E46=0,"",SISWA!E46) -> NUR FITRIYAH | F46: 75 | G46: 75 | H46: 84 | I46: 83 | J46: 87 | K46: 80.8 | L46: 65 | M46: 80.8 | N46: 72.9 | O46: 72.9
A47: 40 | B47: =IF(SISWA!B47=0,"",SISWA!B47) -> 4318 | C47: =IF(SISWA!C47=0,"",SISWA!C47) -> 0061441364 | D47: =IF(SISWA!D47=0,"",SISWA!D47) -> 1-18-05-80-162-040-2 | E47: =IF(SISWA!E47=0,"",SISWA!E47) -> MUHAMMAD HILDAN DWI SAPUTRA | F47: 73 | G47: 74 | H47: 76 | I47: 75 | J47: 78 | K47: 75.2 | L47: 65 | M47: 75.2 | N47: 70.1 | O47: 70.1
A48: 41 | B48: =IF(SISWA!B48=0,"",SISWA!B48) -> 4392 | C48: =IF(SISWA!C48=0,"",SISWA!C48) -> 0075794532 | D48: =IF(SISWA!D48=0,"",SISWA!D48) -> 1-18-05-80-162-041-9 | E48: =IF(SISWA!E48=0,"",SISWA!E48) -> PUTRI NAFI'ATUS SOLIKHAH | F48: 77 | G48: 73 | H48: 84 | I48: 88 | J48: 89 | K48: 82.2 | L48: 65 | M48: 82.2 | N48: 73.6 | O48: 73.6
A49: 42 | B49: =IF(SISWA!B49=0,"",SISWA!B49) -> 4284 | C49: =IF(SISWA!C49=0,"",SISWA!C49) -> 0069578000 | D49: =IF(SISWA!D49=0,"",SISWA!D49) -> 1-18-05-80-162-042-8 | E49: =IF(SISWA!E49=0,"",SISWA!E49) -> MUHAMMAD RAYA KAFAF JAUHARI | F49: 79 | G49: 78 | H49: 82 | I49: 78 | J49: 82 | K49: 79.8 | L49: 65 | M49: 79.8 | N49: 72.4 | O49: 72.4
A50: 43 | B50: =IF(SISWA!B50=0,"",SISWA!B50) -> 4290 | C50: =IF(SISWA!C50=0,"",SISWA!C50) -> 0063558216 | D50: =IF(SISWA!D50=0,"",SISWA!D50) -> 1-18-05-80-162-043-7 | E50: =IF(SISWA!E50=0,"",SISWA!E50) -> QORIATUN SHOLIHAH | F50: 78 | G50: 76 | H50: 79 | I50: 78 | J50: 85 | K50: 79.2 | L50: 65 | M50: 79.2 | N50: 72.1 | O50: =N50 -> 72.1
A51: 44 | B51: =IF(SISWA!B51=0,"",SISWA!B51) -> 4319 | C51: =IF(SISWA!C51=0,"",SISWA!C51) -> 0065329770 | D51: =IF(SISWA!D51=0,"",SISWA!D51) -> 1-18-05-80-162-044-6 | E51: =IF(SISWA!E51=0,"",SISWA!E51) -> MUHAMMAD RUDI TANTOWIK | F51: 71 | G51: 68 | H51: 77 | I51: 70 | J51: 75 | K51: 72.2 | L51: 65 | M51: 72.2 | N51: 68.6 | O51: 68.6
A52: 45 | B52: =IF(SISWA!B52=0,"",SISWA!B52) -> 4291 | C52: =IF(SISWA!C52=0,"",SISWA!C52) -> 0067071679 | D52: =IF(SISWA!D52=0,"",SISWA!D52) -> 1-18-05-80-162-045-5 | E52: =IF(SISWA!E52=0,"",SISWA!E52) -> RACHMAD HIDAYAT | F52: 75 | G52: 77 | H52: 79 | I52: 72 | J52: 83 | K52: 77.2 | L52: 65 | M52: 77.2 | N52: 71.1 | O52: 71.1
A53: 46 | B53: =IF(SISWA!B53=0,"",SISWA!B53) -> 4322 | C53: =IF(SISWA!C53=0,"",SISWA!C53) -> 0051101989 | D53: =IF(SISWA!D53=0,"",SISWA!D53) -> 1-18-05-80-162-046-4 | E53: =IF(SISWA!E53=0,"",SISWA!E53) -> MUHAMMAD ZULDIENUR HABIBIE | F53: 70 | G53: 58 | H53: 75 | I53: 75 | J53: 75 | K53: 70.6 | L53: 65 | M53: 70.6 | N53: 67.8 | O53: 67.8
A54: 47 | B54: =IF(SISWA!B54=0,"",SISWA!B54) -> 4292 | C54: =IF(SISWA!C54=0,"",SISWA!C54) -> 0072001696 | D54: =IF(SISWA!D54=0,"",SISWA!D54) -> 1-18-05-80-162-047-3 | E54: =IF(SISWA!E54=0,"",SISWA!E54) -> RHEA RAYSHANADA NUGRAHA | F54: 78 | G54: 81 | H54: 79 | I54: 79 | J54: 86 | K54: 80.6 | L54: 65 | M54: 80.6 | N54: 72.8 | O54: 72.8
A55: 48 | B55: =IF(SISWA!B55=0,"",SISWA!B55) -> 4323 | C55: =IF(SISWA!C55=0,"",SISWA!C55) -> 0078949167 | D55: =IF(SISWA!D55=0,"",SISWA!D55) -> 1-18-05-80-162-048-2 | E55: =IF(SISWA!E55=0,"",SISWA!E55) -> MUKHAMAD KHOIRUL AMIN | F55: 70 | G55: 64 | H55: 76 | I55: 72 | J55: 77 | K55: 71.8 | L55: 65 | M55: 71.8 | N55: 68.4 | O55: 68.4
A56: 49 | B56: =IF(SISWA!B56=0,"",SISWA!B56) -> 4293 | C56: =IF(SISWA!C56=0,"",SISWA!C56) -> 0064217705 | D56: =IF(SISWA!D56=0,"",SISWA!D56) -> 1-18-05-80-162-049-9 | E56: =IF(SISWA!E56=0,"",SISWA!E56) -> RIYANTI APRILIA | F56: 79 | G56: 75 | H56: 84 | I56: 89 | J56: 89 | K56: 83.2 | L56: 65 | M56: 83.2 | N56: 74.1 | O56: 74.1
A57: 50 | B57: =IF(SISWA!B57=0,"",SISWA!B57) -> 4256 | C57: =IF(SISWA!C57=0,"",SISWA!C57) -> 0065699742 | D57: =IF(SISWA!D57=0,"",SISWA!D57) -> 1-18-05-80-162-050-8 | E57: =IF(SISWA!E57=0,"",SISWA!E57) -> MUKHAMMAD YAASIIN HASAN KHASBULLOH | F57: 77 | G57: 77 | H57: 78 | I57: 75 | J57: 79 | K57: 77.2 | L57: 65 | M57: 77.2 | N57: 71.1 | O57: 71.1
A58: 51 | B58: =IF(SISWA!B58=0,"",SISWA!B58) -> 4295 | C58: =IF(SISWA!C58=0,"",SISWA!C58) -> 0061359184 | D58: =IF(SISWA!D58=0,"",SISWA!D58) -> 1-18-05-80-162-051-7 | E58: =IF(SISWA!E58=0,"",SISWA!E58) -> SHONIA AULIA AS'AD | F58: 81 | G58: 89 | H58: 81 | I58: 90 | J58: 97 | K58: 87.6 | L58: 65 | M58: 87.6 | N58: 76.3 | O58: 76.3
A59: 52 | B59: =IF(SISWA!B59=0,"",SISWA!B59) -> 4294 | C59: =IF(SISWA!C59=0,"",SISWA!C59) -> 0064723905 | D59: =IF(SISWA!D59=0,"",SISWA!D59) -> 1-18-05-80-162-052-6 | E59: =IF(SISWA!E59=0,"",SISWA!E59) -> RIZKA AYU WULANDARI | F59: 76 | G59: 75 | H59: 76 | I59: 78 | J59: 79 | K59: 76.8 | L59: 65 | M59: 76.8 | N59: 70.9 | O59: 70.9
A60: 53 | B60: =IF(SISWA!B60=0,"",SISWA!B60) -> 4298 | C60: =IF(SISWA!C60=0,"",SISWA!C60) -> 0065530554 | D60: =IF(SISWA!D60=0,"",SISWA!D60) -> 1-18-05-80-162-053-5 | E60: =IF(SISWA!E60=0,"",SISWA!E60) -> VERLINA DWI MAULANI | F60: 78 | G60: 81 | H60: 80 | I60: 81 | J60: 85 | K60: 81 | L60: 65 | M60: 81 | N60: 73 | O60: 73
A61: 54 | B61: =IF(SISWA!B61=0,"",SISWA!B61) -> 4297 | C61: =IF(SISWA!C61=0,"",SISWA!C61) -> 0063846732 | D61: =IF(SISWA!D61=0,"",SISWA!D61) -> 1-18-05-80-162-054-4 | E61: =IF(SISWA!E61=0,"",SISWA!E61) -> USWATUN KHASANAH | F61: 75 | G61: 72 | H61: 81 | I61: 78 | J61: 78 | K61: 76.8 | L61: 65 | M61: 76.8 | N61: 70.9 | O61: 70.9
A62: 55 | B62: =IF(SISWA!B62=0,"",SISWA!B62) -> 4324 | C62: =IF(SISWA!C62=0,"",SISWA!C62) -> 0078966795 | D62: =IF(SISWA!D62=0,"",SISWA!D62) -> 1-18-05-80-162-055-3 | E62: =IF(SISWA!E62=0,"",SISWA!E62) -> VIKA KUSUMA WATI | F62: 79 | G62: 78 | H62: 80 | I62: 84 | J62: 87 | K62: 81.6 | L62: 65 | M62: 81.6 | N62: 73.3 | O62: 73.3
A63: 56 | B63: =IF(SISWA!B63=0,"",SISWA!B63) -> 4326 | C63: =IF(SISWA!C63=0,"",SISWA!C63) -> 0064124533 | D63: =IF(SISWA!D63=0,"",SISWA!D63) -> 1-18-05-80-162-056-2 | E63: =IF(SISWA!E63=0,"",SISWA!E63) -> YOHAN EGA GILANG PERMANA | F63: 71 | H63: 75 | I63: 75 | J63: 76 | K63: 74.25 | L63: 65 | M63: 74.25 | N63: 69.625 | O63: 69.625
A64: 57 | B64: =IF(SISWA!B64=0,"",SISWA!B64) ->  | C64: =IF(SISWA!C64=0,"",SISWA!C64) ->  | D64: =IF(SISWA!D64=0,"",SISWA!D64) -> 1-18-05-80-162-057-9 | E64: =IF(SISWA!E64=0,"",SISWA!E64) ->  | K64: =AVERAGE(F64:J64) ->  | M64: =K64 ->  | N64: =AVERAGE(K64:L64) -> 
A65: 58 | B65: =IF(SISWA!B65=0,"",SISWA!B65) ->  | C65: =IF(SISWA!C65=0,"",SISWA!C65) ->  | D65: =IF(SISWA!D65=0,"",SISWA!D65) -> 1-18-05-80-162-058-8 | E65: =IF(SISWA!E65=0,"",SISWA!E65) -> 
A66: 59 | B66: =IF(SISWA!B66=0,"",SISWA!B66) ->  | C66: =IF(SISWA!C66=0,"",SISWA!C66) ->  | D66: =IF(SISWA!D66=0,"",SISWA!D66) -> 1-18-05-80-162-059-7 | E66: =IF(SISWA!E66=0,"",SISWA!E66) -> 
A67: 60 | B67: =IF(SISWA!B67=0,"",SISWA!B67) ->  | C67: =IF(SISWA!C67=0,"",SISWA!C67) ->  | D67: =IF(SISWA!D67=0,"",SISWA!D67) -> 1-18-05-80-162-060-6 | E67: =IF(SISWA!E67=0,"",SISWA!E67) -> 
A68: 61 | B68: =IF(SISWA!B68=0,"",SISWA!B68) ->  | C68: =IF(SISWA!C68=0,"",SISWA!C68) ->  | D68: =IF(SISWA!D68=0,"",SISWA!D68) -> 1-18-05-80-162-061-5 | E68: =IF(SISWA!E68=0,"",SISWA!E68) -> 
A69: 62 | B69: =IF(SISWA!B69=0,"",SISWA!B69) ->  | C69: =IF(SISWA!C69=0,"",SISWA!C69) ->  | D69: =IF(SISWA!D69=0,"",SISWA!D69) -> 062-4 | E69: =IF(SISWA!E69=0,"",SISWA!E69) -> 
A70: 63 | B70: =IF(SISWA!B70=0,"",SISWA!B70) ->  | C70: =IF(SISWA!C70=0,"",SISWA!C70) ->  | D70: =IF(SISWA!D70=0,"",SISWA!D70) -> 063-3 | E70: =IF(SISWA!E70=0,"",SISWA!E70) -> 
A71: 64 | B71: =IF(SISWA!B71=0,"",SISWA!B71) ->  | C71: =IF(SISWA!C71=0,"",SISWA!C71) ->  | D71: =IF(SISWA!D71=0,"",SISWA!D71) -> 064-2 | E71: =IF(SISWA!E71=0,"",SISWA!E71) -> 
A72: 65 | B72: =IF(SISWA!B72=0,"",SISWA!B72) ->  | C72: =IF(SISWA!C72=0,"",SISWA!C72) ->  | D72: =IF(SISWA!D72=0,"",SISWA!D72) -> 065- | E72: =IF(SISWA!E72=0,"",SISWA!E72) -> 
A73: 66 | B73: =IF(SISWA!B73=0,"",SISWA!B73) ->  | C73: =IF(SISWA!C73=0,"",SISWA!C73) ->  | D73: =IF(SISWA!D73=0,"",SISWA!D73) -> 066- | E73: =IF(SISWA!E73=0,"",SISWA!E73) ->  | K73: =AVERAGE(F73:J73) ->  | N73: =AVERAGE(K73:L73) -> 
A74: 67 | B74: =IF(SISWA!B74=0,"",SISWA!B74) ->  | C74: =IF(SISWA!C74=0,"",SISWA!C74) ->  | D74: =IF(SISWA!D74=0,"",SISWA!D74) -> 067- | E74: =IF(SISWA!E74=0,"",SISWA!E74) -> 
A75: 68 | B75: =IF(SISWA!B75=0,"",SISWA!B75) ->  | C75: =IF(SISWA!C75=0,"",SISWA!C75) ->  | D75: =IF(SISWA!D75=0,"",SISWA!D75) -> 068- | E75: =IF(SISWA!E75=0,"",SISWA!E75) -> 
A76: 69 | B76: =IF(SISWA!B76=0,"",SISWA!B76) ->  | C76: =IF(SISWA!C76=0,"",SISWA!C76) ->  | D76: =IF(SISWA!D76=0,"",SISWA!D76) -> 069- | E76: =IF(SISWA!E76=0,"",SISWA!E76) -> 
A77: 70 | B77: =IF(SISWA!B77=0,"",SISWA!B77) ->  | C77: =IF(SISWA!C77=0,"",SISWA!C77) ->  | D77: =IF(SISWA!D77=0,"",SISWA!D77) -> 070- | E77: =IF(SISWA!E77=0,"",SISWA!E77) -> 
A78: 71 | B78: =IF(SISWA!B78=0,"",SISWA!B78) ->  | C78: =IF(SISWA!C78=0,"",SISWA!C78) ->  | D78: =IF(SISWA!D78=0,"",SISWA!D78) -> 071- | E78: =IF(SISWA!E78=0,"",SISWA!E78) -> 
A79: 72 | B79: =IF(SISWA!B79=0,"",SISWA!B79) ->  | C79: =IF(SISWA!C79=0,"",SISWA!C79) ->  | D79: =IF(SISWA!D79=0,"",SISWA!D79) -> 072- | E79: =IF(SISWA!E79=0,"",SISWA!E79) -> 
A80: 73 | B80: =IF(SISWA!B80=0,"",SISWA!B80) ->  | C80: =IF(SISWA!C80=0,"",SISWA!C80) ->  | D80: =IF(SISWA!D80=0,"",SISWA!D80) -> 073- | E80: =IF(SISWA!E80=0,"",SISWA!E80) -> 
A81: 74 | B81: =IF(SISWA!B81=0,"",SISWA!B81) ->  | C81: =IF(SISWA!C81=0,"",SISWA!C81) ->  | D81: =IF(SISWA!D81=0,"",SISWA!D81) -> 074- | E81: =IF(SISWA!E81=0,"",SISWA!E81) -> 
A82: 75 | B82: =IF(SISWA!B82=0,"",SISWA!B82) ->  | C82: =IF(SISWA!C82=0,"",SISWA!C82) ->  | D82: =IF(SISWA!D82=0,"",SISWA!D82) -> 075- | E82: =IF(SISWA!E82=0,"",SISWA!E82) -> 
A83: 76 | B83: =IF(SISWA!B83=0,"",SISWA!B83) ->  | C83: =IF(SISWA!C83=0,"",SISWA!C83) ->  | D83: =IF(SISWA!D83=0,"",SISWA!D83) -> 076- | E83: =IF(SISWA!E83=0,"",SISWA!E83) -> 
A84: 77 | B84: =IF(SISWA!B84=0,"",SISWA!B84) ->  | C84: =IF(SISWA!C84=0,"",SISWA!C84) ->  | D84: =IF(SISWA!D84=0,"",SISWA!D84) -> 077- | E84: =IF(SISWA!E84=0,"",SISWA!E84) -> 
A85: 78 | B85: =IF(SISWA!B85=0,"",SISWA!B85) ->  | C85: =IF(SISWA!C85=0,"",SISWA!C85) ->  | D85: =IF(SISWA!D85=0,"",SISWA!D85) -> 078- | E85: =IF(SISWA!E85=0,"",SISWA!E85) -> 
A86: 79 | B86: =IF(SISWA!B86=0,"",SISWA!B86) ->  | C86: =IF(SISWA!C86=0,"",SISWA!C86) ->  | D86: =IF(SISWA!D86=0,"",SISWA!D86) -> 079- | E86: =IF(SISWA!E86=0,"",SISWA!E86) -> 
A87: 80 | B87: =IF(SISWA!B87=0,"",SISWA!B87) ->  | C87: =IF(SISWA!C87=0,"",SISWA!C87) ->  | D87: =IF(SISWA!D87=0,"",SISWA!D87) -> 080- | E87: =IF(SISWA!E87=0,"",SISWA!E87) -> 
A88: 81 | B88: =IF(SISWA!B88=0,"",SISWA!B88) ->  | C88: =IF(SISWA!C88=0,"",SISWA!C88) ->  | D88: =IF(SISWA!D88=0,"",SISWA!D88) -> 081- | E88: =IF(SISWA!E88=0,"",SISWA!E88) -> 
A89: 82 | B89: =IF(SISWA!B89=0,"",SISWA!B89) ->  | C89: =IF(SISWA!C89=0,"",SISWA!C89) ->  | D89: =IF(SISWA!D89=0,"",SISWA!D89) -> 082- | E89: =IF(SISWA!E89=0,"",SISWA!E89) -> 
A90: 83 | B90: =IF(SISWA!B90=0,"",SISWA!B90) ->  | C90: =IF(SISWA!C90=0,"",SISWA!C90) ->  | D90: =IF(SISWA!D90=0,"",SISWA!D90) -> 083- | E90: =IF(SISWA!E90=0,"",SISWA!E90) -> 
A91: 84 | B91: =IF(SISWA!B91=0,"",SISWA!B91) ->  | C91: =IF(SISWA!C91=0,"",SISWA!C91) ->  | D91: =IF(SISWA!D91=0,"",SISWA!D91) -> 084- | E91: =IF(SISWA!E91=0,"",SISWA!E91) -> 
A92: 85 | B92: =IF(SISWA!B92=0,"",SISWA!B92) ->  | C92: =IF(SISWA!C92=0,"",SISWA!C92) ->  | D92: =IF(SISWA!D92=0,"",SISWA!D92) -> 085- | E92: =IF(SISWA!E92=0,"",SISWA!E92) -> 
A93: 86 | B93: =IF(SISWA!B93=0,"",SISWA!B93) ->  | C93: =IF(SISWA!C93=0,"",SISWA!C93) ->  | D93: =IF(SISWA!D93=0,"",SISWA!D93) -> 086- | E93: =IF(SISWA!E93=0,"",SISWA!E93) -> 
A94: 87 | B94: =IF(SISWA!B94=0,"",SISWA!B94) ->  | C94: =IF(SISWA!C94=0,"",SISWA!C94) ->  | D94: =IF(SISWA!D94=0,"",SISWA!D94) -> 087- | E94: =IF(SISWA!E94=0,"",SISWA!E94) -> 
A95: 88 | B95: =IF(SISWA!B95=0,"",SISWA!B95) ->  | C95: =IF(SISWA!C95=0,"",SISWA!C95) ->  | D95: =IF(SISWA!D95=0,"",SISWA!D95) -> 088- | E95: =IF(SISWA!E95=0,"",SISWA!E95) -> 
A96: 89 | B96: =IF(SISWA!B96=0,"",SISWA!B96) ->  | C96: =IF(SISWA!C96=0,"",SISWA!C96) ->  | D96: =IF(SISWA!D96=0,"",SISWA!D96) -> 089- | E96: =IF(SISWA!E96=0,"",SISWA!E96) -> 
A97: 90 | B97: =IF(SISWA!B97=0,"",SISWA!B97) ->  | C97: =IF(SISWA!C97=0,"",SISWA!C97) ->  | D97: =IF(SISWA!D97=0,"",SISWA!D97) -> 090- | E97: =IF(SISWA!E97=0,"",SISWA!E97) -> 
A98: 91 | B98: =IF(SISWA!B98=0,"",SISWA!B98) ->  | C98: =IF(SISWA!C98=0,"",SISWA!C98) ->  | D98: =IF(SISWA!D98=0,"",SISWA!D98) -> 091- | E98: =IF(SISWA!E98=0,"",SISWA!E98) -> 
A99: 92 | B99: =IF(SISWA!B99=0,"",SISWA!B99) ->  | C99: =IF(SISWA!C99=0,"",SISWA!C99) ->  | D99: =IF(SISWA!D99=0,"",SISWA!D99) -> 092- | E99: =IF(SISWA!E99=0,"",SISWA!E99) -> 
A100: 93 | B100: =IF(SISWA!B100=0,"",SISWA!B100) ->  | C100: =IF(SISWA!C100=0,"",SISWA!C100) ->  | D100: =IF(SISWA!D100=0,"",SISWA!D100) -> 093- | E100: =IF(SISWA!E100=0,"",SISWA!E100) -> 
A101: 94 | B101: =IF(SISWA!B101=0,"",SISWA!B101) ->  | C101: =IF(SISWA!C101=0,"",SISWA!C101) ->  | D101: =IF(SISWA!D101=0,"",SISWA!D101) -> 094- | E101: =IF(SISWA!E101=0,"",SISWA!E101) -> 
A102: 95 | B102: =IF(SISWA!B102=0,"",SISWA!B102) ->  | C102: =IF(SISWA!C102=0,"",SISWA!C102) ->  | D102: =IF(SISWA!D102=0,"",SISWA!D102) -> 095- | E102: =IF(SISWA!E102=0,"",SISWA!E102) -> 
A103: 96 | B103: =IF(SISWA!B103=0,"",SISWA!B103) ->  | C103: =IF(SISWA!C103=0,"",SISWA!C103) ->  | D103: =IF(SISWA!D103=0,"",SISWA!D103) -> 096- | E103: =IF(SISWA!E103=0,"",SISWA!E103) -> 
A104: 97 | B104: =IF(SISWA!B104=0,"",SISWA!B104) ->  | C104: =IF(SISWA!C104=0,"",SISWA!C104) ->  | D104: =IF(SISWA!D104=0,"",SISWA!D104) -> 097- | E104: =IF(SISWA!E104=0,"",SISWA!E104) -> 
A105: 98 | B105: =IF(SISWA!B105=0,"",SISWA!B105) ->  | C105: =IF(SISWA!C105=0,"",SISWA!C105) ->  | D105: =IF(SISWA!D105=0,"",SISWA!D105) -> 098- | E105: =IF(SISWA!E105=0,"",SISWA!E105) -> 
A106: 99 | B106: =IF(SISWA!B106=0,"",SISWA!B106) ->  | C106: =IF(SISWA!C106=0,"",SISWA!C106) ->  | D106: =IF(SISWA!D106=0,"",SISWA!D106) -> 099- | E106: =IF(SISWA!E106=0,"",SISWA!E106) -> 
A107: 100 | B107: =IF(SISWA!B107=0,"",SISWA!B107) ->  | C107: =IF(SISWA!C107=0,"",SISWA!C107) ->  | D107: =IF(SISWA!D107=0,"",SISWA!D107) -> 100- | E107: =IF(SISWA!E107=0,"",SISWA!E107) -> 
A108: 101 | B108: =IF(SISWA!B108=0,"",SISWA!B108) ->  | C108: =IF(SISWA!C108=0,"",SISWA!C108) ->  | D108: =IF(SISWA!D108=0,"",SISWA!D108) -> 101- | E108: =IF(SISWA!E108=0,"",SISWA!E108) -> 
A109: 102 | B109: =IF(SISWA!B109=0,"",SISWA!B109) ->  | C109: =IF(SISWA!C109=0,"",SISWA!C109) ->  | D109: =IF(SISWA!D109=0,"",SISWA!D109) -> 102- | E109: =IF(SISWA!E109=0,"",SISWA!E109) -> 
A110: 103 | B110: =IF(SISWA!B110=0,"",SISWA!B110) ->  | C110: =IF(SISWA!C110=0,"",SISWA!C110) ->  | D110: =IF(SISWA!D110=0,"",SISWA!D110) -> 103- | E110: =IF(SISWA!E110=0,"",SISWA!E110) -> 
A111: 104 | B111: =IF(SISWA!B111=0,"",SISWA!B111) ->  | C111: =IF(SISWA!C111=0,"",SISWA!C111) ->  | D111: =IF(SISWA!D111=0,"",SISWA!D111) -> 104- | E111: =IF(SISWA!E111=0,"",SISWA!E111) -> 
A112: 105 | B112: =IF(SISWA!B112=0,"",SISWA!B112) ->  | C112: =IF(SISWA!C112=0,"",SISWA!C112) ->  | D112: =IF(SISWA!D112=0,"",SISWA!D112) -> 105- | E112: =IF(SISWA!E112=0,"",SISWA!E112) -> 
A113: 106 | B113: =IF(SISWA!B113=0,"",SISWA!B113) ->  | C113: =IF(SISWA!C113=0,"",SISWA!C113) ->  | D113: =IF(SISWA!D113=0,"",SISWA!D113) -> 106- | E113: =IF(SISWA!E113=0,"",SISWA!E113) -> 
A114: 107 | B114: =IF(SISWA!B114=0,"",SISWA!B114) ->  | C114: =IF(SISWA!C114=0,"",SISWA!C114) ->  | D114: =IF(SISWA!D114=0,"",SISWA!D114) -> 107- | E114: =IF(SISWA!E114=0,"",SISWA!E114) -> 
A115: 108 | B115: =IF(SISWA!B115=0,"",SISWA!B115) ->  | C115: =IF(SISWA!C115=0,"",SISWA!C115) ->  | D115: =IF(SISWA!D115=0,"",SISWA!D115) -> 108- | E115: =IF(SISWA!E115=0,"",SISWA!E115) -> 
A116: 109 | B116: =IF(SISWA!B116=0,"",SISWA!B116) ->  | C116: =IF(SISWA!C116=0,"",SISWA!C116) ->  | D116: =IF(SISWA!D116=0,"",SISWA!D116) -> 109- | E116: =IF(SISWA!E116=0,"",SISWA!E116) -> 
A117: 110 | B117: =IF(SISWA!B117=0,"",SISWA!B117) ->  | C117: =IF(SISWA!C117=0,"",SISWA!C117) ->  | D117: =IF(SISWA!D117=0,"",SISWA!D117) -> 110- | E117: =IF(SISWA!E117=0,"",SISWA!E117) -> 
A118: 111 | B118: =IF(SISWA!B118=0,"",SISWA!B118) ->  | C118: =IF(SISWA!C118=0,"",SISWA!C118) ->  | D118: =IF(SISWA!D118=0,"",SISWA!D118) -> 111- | E118: =IF(SISWA!E118=0,"",SISWA!E118) -> 
A119: 112 | B119: =IF(SISWA!B119=0,"",SISWA!B119) ->  | C119: =IF(SISWA!C119=0,"",SISWA!C119) ->  | D119: =IF(SISWA!D119=0,"",SISWA!D119) -> 112- | E119: =IF(SISWA!E119=0,"",SISWA!E119) -> 
A120: 113 | B120: =IF(SISWA!B120=0,"",SISWA!B120) ->  | C120: =IF(SISWA!C120=0,"",SISWA!C120) ->  | D120: =IF(SISWA!D120=0,"",SISWA!D120) -> 113- | E120: =IF(SISWA!E120=0,"",SISWA!E120) -> 
A121: 114 | B121: =IF(SISWA!B121=0,"",SISWA!B121) ->  | C121: =IF(SISWA!C121=0,"",SISWA!C121) ->  | D121: =IF(SISWA!D121=0,"",SISWA!D121) -> 114- | E121: =IF(SISWA!E121=0,"",SISWA!E121) -> 
A122: 115 | B122: =IF(SISWA!B122=0,"",SISWA!B122) ->  | C122: =IF(SISWA!C122=0,"",SISWA!C122) ->  | D122: =IF(SISWA!D122=0,"",SISWA!D122) -> 115- | E122: =IF(SISWA!E122=0,"",SISWA!E122) -> 
A123: 116 | B123: =IF(SISWA!B123=0,"",SISWA!B123) ->  | C123: =IF(SISWA!C123=0,"",SISWA!C123) ->  | D123: =IF(SISWA!D123=0,"",SISWA!D123) -> 116- | E123: =IF(SISWA!E123=0,"",SISWA!E123) -> 
A124: 117 | B124: =IF(SISWA!B124=0,"",SISWA!B124) ->  | C124: =IF(SISWA!C124=0,"",SISWA!C124) ->  | D124: =IF(SISWA!D124=0,"",SISWA!D124) -> 117- | E124: =IF(SISWA!E124=0,"",SISWA!E124) -> 
A125: 118 | B125: =IF(SISWA!B125=0,"",SISWA!B125) ->  | C125: =IF(SISWA!C125=0,"",SISWA!C125) ->  | D125: =IF(SISWA!D125=0,"",SISWA!D125) -> 118- | E125: =IF(SISWA!E125=0,"",SISWA!E125) -> 
A126: 119 | B126: =IF(SISWA!B126=0,"",SISWA!B126) ->  | C126: =IF(SISWA!C126=0,"",SISWA!C126) ->  | D126: =IF(SISWA!D126=0,"",SISWA!D126) -> 119- | E126: =IF(SISWA!E126=0,"",SISWA!E126) -> 
A127: 120 | B127: =IF(SISWA!B127=0,"",SISWA!B127) ->  | C127: =IF(SISWA!C127=0,"",SISWA!C127) ->  | D127: =IF(SISWA!D127=0,"",SISWA!D127) -> 120- | E127: =IF(SISWA!E127=0,"",SISWA!E127) -> 
A128: 121 | B128: =IF(SISWA!B128=0,"",SISWA!B128) ->  | C128: =IF(SISWA!C128=0,"",SISWA!C128) ->  | D128: =IF(SISWA!D128=0,"",SISWA!D128) -> 121- | E128: =IF(SISWA!E128=0,"",SISWA!E128) -> 
A129: 122 | B129: =IF(SISWA!B129=0,"",SISWA!B129) ->  | C129: =IF(SISWA!C129=0,"",SISWA!C129) ->  | D129: =IF(SISWA!D129=0,"",SISWA!D129) -> 122- | E129: =IF(SISWA!E129=0,"",SISWA!E129) -> 
A130: 123 | B130: =IF(SISWA!B130=0,"",SISWA!B130) ->  | C130: =IF(SISWA!C130=0,"",SISWA!C130) ->  | D130: =IF(SISWA!D130=0,"",SISWA!D130) -> 123- | E130: =IF(SISWA!E130=0,"",SISWA!E130) -> 
A131: 124 | B131: =IF(SISWA!B131=0,"",SISWA!B131) ->  | C131: =IF(SISWA!C131=0,"",SISWA!C131) ->  | D131: =IF(SISWA!D131=0,"",SISWA!D131) -> 124- | E131: =IF(SISWA!E131=0,"",SISWA!E131) -> 
A132: 125 | B132: =IF(SISWA!B132=0,"",SISWA!B132) ->  | C132: =IF(SISWA!C132=0,"",SISWA!C132) ->  | D132: =IF(SISWA!D132=0,"",SISWA!D132) -> 125- | E132: =IF(SISWA!E132=0,"",SISWA!E132) -> 
A133: 126 | B133: =IF(SISWA!B133=0,"",SISWA!B133) ->  | C133: =IF(SISWA!C133=0,"",SISWA!C133) ->  | D133: =IF(SISWA!D133=0,"",SISWA!D133) -> 126- | E133: =IF(SISWA!E133=0,"",SISWA!E133) -> 
A134: 127 | B134: =IF(SISWA!B134=0,"",SISWA!B134) ->  | C134: =IF(SISWA!C134=0,"",SISWA!C134) ->  | D134: =IF(SISWA!D134=0,"",SISWA!D134) -> 127- | E134: =IF(SISWA!E134=0,"",SISWA!E134) -> 
A135: 128 | B135: =IF(SISWA!B135=0,"",SISWA!B135) ->  | C135: =IF(SISWA!C135=0,"",SISWA!C135) ->  | D135: =IF(SISWA!D135=0,"",SISWA!D135) -> 128- | E135: =IF(SISWA!E135=0,"",SISWA!E135) -> 
A136: 129 | B136: =IF(SISWA!B136=0,"",SISWA!B136) ->  | C136: =IF(SISWA!C136=0,"",SISWA!C136) ->  | D136: =IF(SISWA!D136=0,"",SISWA!D136) -> 129- | E136: =IF(SISWA!E136=0,"",SISWA!E136) -> 
A137: 130 | B137: =IF(SISWA!B137=0,"",SISWA!B137) ->  | C137: =IF(SISWA!C137=0,"",SISWA!C137) ->  | D137: =IF(SISWA!D137=0,"",SISWA!D137) -> 130- | E137: =IF(SISWA!E137=0,"",SISWA!E137) ->  | K137: =AVERAGE(F137:J137) ->  | N137: =AVERAGE(K137:L137) -> 
A138: 131 | B138: =IF(SISWA!B138=0,"",SISWA!B138) ->  | C138: =IF(SISWA!C138=0,"",SISWA!C138) ->  | D138: =IF(SISWA!D138=0,"",SISWA!D138) -> 131- | E138: =IF(SISWA!E138=0,"",SISWA!E138) -> 
A139: 132 | B139: =IF(SISWA!B139=0,"",SISWA!B139) ->  | C139: =IF(SISWA!C139=0,"",SISWA!C139) ->  | D139: =IF(SISWA!D139=0,"",SISWA!D139) -> 132- | E139: =IF(SISWA!E139=0,"",SISWA!E139) -> 
A140: 133 | B140: =IF(SISWA!B140=0,"",SISWA!B140) ->  | C140: =IF(SISWA!C140=0,"",SISWA!C140) ->  | D140: =IF(SISWA!D140=0,"",SISWA!D140) -> 133- | E140: =IF(SISWA!E140=0,"",SISWA!E140) -> 
A141: 134 | B141: =IF(SISWA!B141=0,"",SISWA!B141) ->  | C141: =IF(SISWA!C141=0,"",SISWA!C141) ->  | D141: =IF(SISWA!D141=0,"",SISWA!D141) -> 134- | E141: =IF(SISWA!E141=0,"",SISWA!E141) -> 
A142: 135 | B142: =IF(SISWA!B142=0,"",SISWA!B142) ->  | C142: =IF(SISWA!C142=0,"",SISWA!C142) ->  | D142: =IF(SISWA!D142=0,"",SISWA!D142) -> 135- | E142: =IF(SISWA!E142=0,"",SISWA!E142) -> 
A143: 136 | B143: =IF(SISWA!B143=0,"",SISWA!B143) ->  | C143: =IF(SISWA!C143=0,"",SISWA!C143) ->  | D143: =IF(SISWA!D143=0,"",SISWA!D143) -> 136- | E143: =IF(SISWA!E143=0,"",SISWA!E143) -> 
A144: 137 | B144: =IF(SISWA!B144=0,"",SISWA!B144) ->  | C144: =IF(SISWA!C144=0,"",SISWA!C144) ->  | D144: =IF(SISWA!D144=0,"",SISWA!D144) -> 137- | E144: =IF(SISWA!E144=0,"",SISWA!E144) -> 
A145: 138 | B145: =IF(SISWA!B145=0,"",SISWA!B145) ->  | C145: =IF(SISWA!C145=0,"",SISWA!C145) ->  | D145: =IF(SISWA!D145=0,"",SISWA!D145) -> 138- | E145: =IF(SISWA!E145=0,"",SISWA!E145) -> 
A146: 139 | B146: =IF(SISWA!B146=0,"",SISWA!B146) ->  | C146: =IF(SISWA!C146=0,"",SISWA!C146) ->  | D146: =IF(SISWA!D146=0,"",SISWA!D146) -> 139- | E146: =IF(SISWA!E146=0,"",SISWA!E146) -> 
A147: 140 | B147: =IF(SISWA!B147=0,"",SISWA!B147) ->  | C147: =IF(SISWA!C147=0,"",SISWA!C147) ->  | D147: =IF(SISWA!D147=0,"",SISWA!D147) -> 140- | E147: =IF(SISWA!E147=0,"",SISWA!E147) -> 
A148: 141 | B148: =IF(SISWA!B148=0,"",SISWA!B148) ->  | C148: =IF(SISWA!C148=0,"",SISWA!C148) ->  | D148: =IF(SISWA!D148=0,"",SISWA!D148) -> 141- | E148: =IF(SISWA!E148=0,"",SISWA!E148) -> 
A149: 142 | B149: =IF(SISWA!B149=0,"",SISWA!B149) ->  | C149: =IF(SISWA!C149=0,"",SISWA!C149) ->  | D149: =IF(SISWA!D149=0,"",SISWA!D149) -> 142- | E149: =IF(SISWA!E149=0,"",SISWA!E149) -> 
A150: 143 | B150: =IF(SISWA!B150=0,"",SISWA!B150) ->  | C150: =IF(SISWA!C150=0,"",SISWA!C150) ->  | D150: =IF(SISWA!D150=0,"",SISWA!D150) -> 143- | E150: =IF(SISWA!E150=0,"",SISWA!E150) -> 
A151: 144 | B151: =IF(SISWA!B151=0,"",SISWA!B151) ->  | C151: =IF(SISWA!C151=0,"",SISWA!C151) ->  | D151: =IF(SISWA!D151=0,"",SISWA!D151) -> 144- | E151: =IF(SISWA!E151=0,"",SISWA!E151) -> 
A152: 145 | B152: =IF(SISWA!B152=0,"",SISWA!B152) ->  | C152: =IF(SISWA!C152=0,"",SISWA!C152) ->  | D152: =IF(SISWA!D152=0,"",SISWA!D152) -> 145- | E152: =IF(SISWA!E152=0,"",SISWA!E152) -> 
A153: 146 | B153: =IF(SISWA!B153=0,"",SISWA!B153) ->  | C153: =IF(SISWA!C153=0,"",SISWA!C153) ->  | D153: =IF(SISWA!D153=0,"",SISWA!D153) -> 146- | E153: =IF(SISWA!E153=0,"",SISWA!E153) -> 
A154: 147 | B154: =IF(SISWA!B154=0,"",SISWA!B154) ->  | C154: =IF(SISWA!C154=0,"",SISWA!C154) ->  | D154: =IF(SISWA!D154=0,"",SISWA!D154) -> 147- | E154: =IF(SISWA!E154=0,"",SISWA!E154) -> 
A155: 148 | B155: =IF(SISWA!B155=0,"",SISWA!B155) ->  | C155: =IF(SISWA!C155=0,"",SISWA!C155) ->  | D155: =IF(SISWA!D155=0,"",SISWA!D155) -> 148- | E155: =IF(SISWA!E155=0,"",SISWA!E155) -> 
A156: 149 | B156: =IF(SISWA!B156=0,"",SISWA!B156) ->  | C156: =IF(SISWA!C156=0,"",SISWA!C156) ->  | D156: =IF(SISWA!D156=0,"",SISWA!D156) -> 149- | E156: =IF(SISWA!E156=0,"",SISWA!E156) -> 
A157: 150 | B157: =IF(SISWA!B157=0,"",SISWA!B157) ->  | C157: =IF(SISWA!C157=0,"",SISWA!C157) ->  | D157: =IF(SISWA!D157=0,"",SISWA!D157) -> 150- | E157: =IF(SISWA!E157=0,"",SISWA!E157) -> 
A158: 151 | B158: =IF(SISWA!B158=0,"",SISWA!B158) ->  | C158: =IF(SISWA!C158=0,"",SISWA!C158) ->  | D158: =IF(SISWA!D158=0,"",SISWA!D158) -> 151- | E158: =IF(SISWA!E158=0,"",SISWA!E158) -> 
A159: 152 | B159: =IF(SISWA!B159=0,"",SISWA!B159) ->  | C159: =IF(SISWA!C159=0,"",SISWA!C159) ->  | D159: =IF(SISWA!D159=0,"",SISWA!D159) -> 152- | E159: =IF(SISWA!E159=0,"",SISWA!E159) -> 
A160: 153 | B160: =IF(SISWA!B160=0,"",SISWA!B160) ->  | C160: =IF(SISWA!C160=0,"",SISWA!C160) ->  | D160: =IF(SISWA!D160=0,"",SISWA!D160) -> 153- | E160: =IF(SISWA!E160=0,"",SISWA!E160) -> 
A161: 154 | B161: =IF(SISWA!B161=0,"",SISWA!B161) ->  | C161: =IF(SISWA!C161=0,"",SISWA!C161) ->  | D161: =IF(SISWA!D161=0,"",SISWA!D161) -> 154- | E161: =IF(SISWA!E161=0,"",SISWA!E161) -> 
A162: 155 | B162: =IF(SISWA!B162=0,"",SISWA!B162) ->  | C162: =IF(SISWA!C162=0,"",SISWA!C162) ->  | D162: =IF(SISWA!D162=0,"",SISWA!D162) -> 155- | E162: =IF(SISWA!E162=0,"",SISWA!E162) -> 
A163: 156 | B163: =IF(SISWA!B163=0,"",SISWA!B163) ->  | C163: =IF(SISWA!C163=0,"",SISWA!C163) ->  | D163: =IF(SISWA!D163=0,"",SISWA!D163) -> 156- | E163: =IF(SISWA!E163=0,"",SISWA!E163) -> 
A164: 157 | B164: =IF(SISWA!B164=0,"",SISWA!B164) ->  | C164: =IF(SISWA!C164=0,"",SISWA!C164) ->  | D164: =IF(SISWA!D164=0,"",SISWA!D164) -> 157- | E164: =IF(SISWA!E164=0,"",SISWA!E164) -> 
A165: 158 | B165: =IF(SISWA!B165=0,"",SISWA!B165) ->  | C165: =IF(SISWA!C165=0,"",SISWA!C165) ->  | D165: =IF(SISWA!D165=0,"",SISWA!D165) -> 158- | E165: =IF(SISWA!E165=0,"",SISWA!E165) -> 
A166: 159 | B166: =IF(SISWA!B166=0,"",SISWA!B166) ->  | C166: =IF(SISWA!C166=0,"",SISWA!C166) ->  | D166: =IF(SISWA!D166=0,"",SISWA!D166) -> 159- | E166: =IF(SISWA!E166=0,"",SISWA!E166) -> 
A167: 160 | B167: =IF(SISWA!B167=0,"",SISWA!B167) ->  | C167: =IF(SISWA!C167=0,"",SISWA!C167) ->  | D167: =IF(SISWA!D167=0,"",SISWA!D167) -> 160- | E167: =IF(SISWA!E167=0,"",SISWA!E167) -> 
A168: 161 | B168: =IF(SISWA!B168=0,"",SISWA!B168) ->  | C168: =IF(SISWA!C168=0,"",SISWA!C168) ->  | D168: =IF(SISWA!D168=0,"",SISWA!D168) -> 161- | E168: =IF(SISWA!E168=0,"",SISWA!E168) -> 
A169: 162 | B169: =IF(SISWA!B169=0,"",SISWA!B169) ->  | C169: =IF(SISWA!C169=0,"",SISWA!C169) ->  | D169: =IF(SISWA!D169=0,"",SISWA!D169) -> 162- | E169: =IF(SISWA!E169=0,"",SISWA!E169) -> 
A170: 163 | B170: =IF(SISWA!B170=0,"",SISWA!B170) ->  | C170: =IF(SISWA!C170=0,"",SISWA!C170) ->  | D170: =IF(SISWA!D170=0,"",SISWA!D170) -> 163- | E170: =IF(SISWA!E170=0,"",SISWA!E170) -> 
A171: 164 | B171: =IF(SISWA!B171=0,"",SISWA!B171) ->  | C171: =IF(SISWA!C171=0,"",SISWA!C171) ->  | D171: =IF(SISWA!D171=0,"",SISWA!D171) -> 164- | E171: =IF(SISWA!E171=0,"",SISWA!E171) -> 
A172: 165 | B172: =IF(SISWA!B172=0,"",SISWA!B172) ->  | C172: =IF(SISWA!C172=0,"",SISWA!C172) ->  | D172: =IF(SISWA!D172=0,"",SISWA!D172) -> 165- | E172: =IF(SISWA!E172=0,"",SISWA!E172) -> 
A173: 166 | B173: =IF(SISWA!B173=0,"",SISWA!B173) ->  | C173: =IF(SISWA!C173=0,"",SISWA!C173) ->  | D173: =IF(SISWA!D173=0,"",SISWA!D173) -> 166- | E173: =IF(SISWA!E173=0,"",SISWA!E173) -> 
A174: 167 | B174: =IF(SISWA!B174=0,"",SISWA!B174) ->  | C174: =IF(SISWA!C174=0,"",SISWA!C174) ->  | D174: =IF(SISWA!D174=0,"",SISWA!D174) -> 167- | E174: =IF(SISWA!E174=0,"",SISWA!E174) -> 
A175: 168 | B175: =IF(SISWA!B175=0,"",SISWA!B175) ->  | C175: =IF(SISWA!C175=0,"",SISWA!C175) ->  | D175: =IF(SISWA!D175=0,"",SISWA!D175) -> 168- | E175: =IF(SISWA!E175=0,"",SISWA!E175) -> 
A176: 169 | B176: =IF(SISWA!B176=0,"",SISWA!B176) ->  | C176: =IF(SISWA!C176=0,"",SISWA!C176) ->  | D176: =IF(SISWA!D176=0,"",SISWA!D176) -> 169- | E176: =IF(SISWA!E176=0,"",SISWA!E176) -> 
A177: 170 | B177: =IF(SISWA!B177=0,"",SISWA!B177) ->  | C177: =IF(SISWA!C177=0,"",SISWA!C177) ->  | D177: =IF(SISWA!D177=0,"",SISWA!D177) -> 170- | E177: =IF(SISWA!E177=0,"",SISWA!E177) -> 
A178: 171 | B178: =IF(SISWA!B178=0,"",SISWA!B178) ->  | C178: =IF(SISWA!C178=0,"",SISWA!C178) ->  | D178: =IF(SISWA!D178=0,"",SISWA!D178) -> 171- | E178: =IF(SISWA!E178=0,"",SISWA!E178) -> 
A179: 172 | B179: =IF(SISWA!B179=0,"",SISWA!B179) ->  | C179: =IF(SISWA!C179=0,"",SISWA!C179) ->  | D179: =IF(SISWA!D179=0,"",SISWA!D179) -> 172- | E179: =IF(SISWA!E179=0,"",SISWA!E179) -> 
A180: 173 | B180: =IF(SISWA!B180=0,"",SISWA!B180) ->  | C180: =IF(SISWA!C180=0,"",SISWA!C180) ->  | D180: =IF(SISWA!D180=0,"",SISWA!D180) -> 173- | E180: =IF(SISWA!E180=0,"",SISWA!E180) -> 
A181: 174 | B181: =IF(SISWA!B181=0,"",SISWA!B181) ->  | C181: =IF(SISWA!C181=0,"",SISWA!C181) ->  | D181: =IF(SISWA!D181=0,"",SISWA!D181) -> 174- | E181: =IF(SISWA!E181=0,"",SISWA!E181) -> 
A182: 175 | B182: =IF(SISWA!B182=0,"",SISWA!B182) ->  | C182: =IF(SISWA!C182=0,"",SISWA!C182) ->  | D182: =IF(SISWA!D182=0,"",SISWA!D182) -> 175- | E182: =IF(SISWA!E182=0,"",SISWA!E182) -> 
A183: 176 | B183: =IF(SISWA!B183=0,"",SISWA!B183) ->  | C183: =IF(SISWA!C183=0,"",SISWA!C183) ->  | D183: =IF(SISWA!D183=0,"",SISWA!D183) -> 176- | E183: =IF(SISWA!E183=0,"",SISWA!E183) -> 
A184: 177 | B184: =IF(SISWA!B184=0,"",SISWA!B184) ->  | C184: =IF(SISWA!C184=0,"",SISWA!C184) ->  | D184: =IF(SISWA!D184=0,"",SISWA!D184) -> 177- | E184: =IF(SISWA!E184=0,"",SISWA!E184) -> 
A185: 178 | B185: =IF(SISWA!B185=0,"",SISWA!B185) ->  | C185: =IF(SISWA!C185=0,"",SISWA!C185) ->  | D185: =IF(SISWA!D185=0,"",SISWA!D185) -> 178- | E185: =IF(SISWA!E185=0,"",SISWA!E185) -> 
A186: 179 | B186: =IF(SISWA!B186=0,"",SISWA!B186) ->  | C186: =IF(SISWA!C186=0,"",SISWA!C186) ->  | D186: =IF(SISWA!D186=0,"",SISWA!D186) -> 179- | E186: =IF(SISWA!E186=0,"",SISWA!E186) -> 
A187: 180 | B187: =IF(SISWA!B187=0,"",SISWA!B187) ->  | C187: =IF(SISWA!C187=0,"",SISWA!C187) ->  | D187: =IF(SISWA!D187=0,"",SISWA!D187) -> 180- | E187: =IF(SISWA!E187=0,"",SISWA!E187) -> 
A188: 181 | B188: =IF(SISWA!B188=0,"",SISWA!B188) ->  | C188: =IF(SISWA!C188=0,"",SISWA!C188) ->  | D188: =IF(SISWA!D188=0,"",SISWA!D188) -> 181- | E188: =IF(SISWA!E188=0,"",SISWA!E188) -> 
A189: 182 | B189: =IF(SISWA!B189=0,"",SISWA!B189) ->  | C189: =IF(SISWA!C189=0,"",SISWA!C189) ->  | D189: =IF(SISWA!D189=0,"",SISWA!D189) -> 182- | E189: =IF(SISWA!E189=0,"",SISWA!E189) -> 
A190: 183 | B190: =IF(SISWA!B190=0,"",SISWA!B190) ->  | C190: =IF(SISWA!C190=0,"",SISWA!C190) ->  | D190: =IF(SISWA!D190=0,"",SISWA!D190) -> 183- | E190: =IF(SISWA!E190=0,"",SISWA!E190) -> 
A191: 184 | B191: =IF(SISWA!B191=0,"",SISWA!B191) ->  | C191: =IF(SISWA!C191=0,"",SISWA!C191) ->  | D191: =IF(SISWA!D191=0,"",SISWA!D191) -> 184- | E191: =IF(SISWA!E191=0,"",SISWA!E191) -> 
A192: 185 | B192: =IF(SISWA!B192=0,"",SISWA!B192) ->  | C192: =IF(SISWA!C192=0,"",SISWA!C192) ->  | D192: =IF(SISWA!D192=0,"",SISWA!D192) -> 185- | E192: =IF(SISWA!E192=0,"",SISWA!E192) -> 
A193: 186 | B193: =IF(SISWA!B193=0,"",SISWA!B193) ->  | C193: =IF(SISWA!C193=0,"",SISWA!C193) ->  | D193: =IF(SISWA!D193=0,"",SISWA!D193) -> 186- | E193: =IF(SISWA!E193=0,"",SISWA!E193) -> 
A194: 187 | B194: =IF(SISWA!B194=0,"",SISWA!B194) ->  | C194: =IF(SISWA!C194=0,"",SISWA!C194) ->  | D194: =IF(SISWA!D194=0,"",SISWA!D194) -> 187- | E194: =IF(SISWA!E194=0,"",SISWA!E194) -> 
A195: 188 | B195: =IF(SISWA!B195=0,"",SISWA!B195) ->  | C195: =IF(SISWA!C195=0,"",SISWA!C195) ->  | D195: =IF(SISWA!D195=0,"",SISWA!D195) -> 188- | E195: =IF(SISWA!E195=0,"",SISWA!E195) -> 
A196: 189 | B196: =IF(SISWA!B196=0,"",SISWA!B196) ->  | C196: =IF(SISWA!C196=0,"",SISWA!C196) ->  | D196: =IF(SISWA!D196=0,"",SISWA!D196) -> 189- | E196: =IF(SISWA!E196=0,"",SISWA!E196) -> 
A197: 190 | B197: =IF(SISWA!B197=0,"",SISWA!B197) ->  | C197: =IF(SISWA!C197=0,"",SISWA!C197) ->  | D197: =IF(SISWA!D197=0,"",SISWA!D197) -> 190- | E197: =IF(SISWA!E197=0,"",SISWA!E197) -> 
A198: 191 | B198: =IF(SISWA!B198=0,"",SISWA!B198) ->  | C198: =IF(SISWA!C198=0,"",SISWA!C198) ->  | D198: =IF(SISWA!D198=0,"",SISWA!D198) -> 191- | E198: =IF(SISWA!E198=0,"",SISWA!E198) -> 
A199: 192 | B199: =IF(SISWA!B199=0,"",SISWA!B199) ->  | C199: =IF(SISWA!C199=0,"",SISWA!C199) ->  | D199: =IF(SISWA!D199=0,"",SISWA!D199) -> 192- | E199: =IF(SISWA!E199=0,"",SISWA!E199) -> 
A200: 193 | B200: =IF(SISWA!B200=0,"",SISWA!B200) ->  | C200: =IF(SISWA!C200=0,"",SISWA!C200) ->  | D200: =IF(SISWA!D200=0,"",SISWA!D200) -> 193- | E200: =IF(SISWA!E200=0,"",SISWA!E200) -> 
A201: 194 | B201: =IF(SISWA!B201=0,"",SISWA!B201) ->  | C201: =IF(SISWA!C201=0,"",SISWA!C201) ->  | D201: =IF(SISWA!D201=0,"",SISWA!D201) -> 194- | E201: =IF(SISWA!E201=0,"",SISWA!E201) ->  | K201: =AVERAGE(F201:J201) ->  | N201: =AVERAGE(K201:L201) -> 
... 6 more rows

Sheet SKI
A1: DAFTAR NILAI AKHIR SEKOLAH
A2: =AA!A2 -> MADRASAH IBTIDAIYAH NURUL ISLAM LABRUK KIDUL
A3: =AA!A3 -> TAHUN PELAJARAN 2018/2019
A5: NO | B5: No Induk | C5: NISN | D5: Nomor Peserta | E5: Nama Peserta | F5: SKI | O5: rata-rata UAM & PRAKTEK
F6: Nilai Semester | K6: Rata- 2 | L6: NILAI UAMBD
F7: 7 | G7: 8 | H7: 9 | I7: 10 | J7: 11 | K7: Rapor | L7: TULIS | M7: PRAKTIK
A8: 1 | B8: =IF(SISWA!B8=0,"",SISWA!B8) -> 4270 | C8: =IF(SISWA!C8=0,"",SISWA!C8) -> 0067566336 | D8: =IF(SISWA!D8=0,"",SISWA!D8) -> 1-18-05-80-162-001-9 | E8: =IF(SISWA!E8=0,"",SISWA!E8) -> ADITYA MAULA FANDY TAULANI | F8: 83 | G8: 86 | H8: 78 | I8: 83 | J8: 91 | K8: =AVERAGE(F8:J8) -> 84.2 | L8: 65 | M8: =K8 -> 84.2 | N8: =AVERAGE(L8:M8) -> 74.6 | O8: =AVERAGE(L8:M8) -> 74.6
A9: 2 | B9: =IF(SISWA!B9=0,"",SISWA!B9) -> 4300 | C9: =IF(SISWA!C9=0,"",SISWA!C9) -> 0066364963 | D9: =IF(SISWA!D9=0,"",SISWA!D9) -> 1-18-05-80-162-002-8 | E9: =IF(SISWA!E9=0,"",SISWA!E9) -> AHMAD FERDIAN ALAMSYAH | F9: 72 | G9: 80 | H9: 72 | I9: 68 | J9: 84 | K9: =AVERAGE(F9:J9) -> 75.2 | L9: 70.31 | M9: =K9 -> 75.2 | N9: =AVERAGE(L9:M9) -> 72.755 | O9: =AVERAGE(L9:M9) -> 72.755
A10: 3 | B10: =IF(SISWA!B10=0,"",SISWA!B10) -> 4271 | C10: =IF(SISWA!C10=0,"",SISWA!C10) -> 0062805893 | D10: =IF(SISWA!D10=0,"",SISWA!D10) -> 1-18-05-80-162-003-7 | E10: =IF(SISWA!E10=0,"",SISWA!E10) -> AHMAD RAMADHANI FADLULLOH | F10: 75 | G10: 78 | H10: 73 | I10: 75 | J10: 86 | K10: 77.4 | L10: 66.11 | M10: 77.4 | N10: 71.755 | O10: 71.755
A11: 4 | B11: =IF(SISWA!B11=0,"",SISWA!B11) -> 4398 | C11: =IF(SISWA!C11=0,"",SISWA!C11) -> 0062399399 | D11: =IF(SISWA!D11=0,"",SISWA!D11) -> 1-18-05-80-162-004-6 | E11: =IF(SISWA!E11=0,"",SISWA!E11) -> ANANDA AMILIA | F11: 72 | G11: 83 | H11: 74 | I11: 74 | J11: 85 | K11: 77.6 | L11: 72.8 | M11: 77.6 | N11: 75.2 | O11: 75.2
A12: 5 | B12: =IF(SISWA!B12=0,"",SISWA!B12) -> 4272 | C12: =IF(SISWA!C12=0,"",SISWA!C12) -> 0071551428 | D12: =IF(SISWA!D12=0,"",SISWA!D12) -> 1-18-05-80-162-005-5 | E12: =IF(SISWA!E12=0,"",SISWA!E12) -> ANDINI MAULID DWI LESTARI | F12: 75 | G12: 81 | H12: 75 | I12: 69 | J12: 89 | K12: 77.8 | L12: 68.89 | M12: 77.8 | N12: 73.345 | O12: 73.345
A13: 6 | B13: =IF(SISWA!B13=0,"",SISWA!B13) -> 4301 | C13: =IF(SISWA!C13=0,"",SISWA!C13) -> 0061907599 | D13: =IF(SISWA!D13=0,"",SISWA!D13) -> 1-18-05-80-162-006-4 | E13: =IF(SISWA!E13=0,"",SISWA!E13) -> ANDRIK YUSRI | F13: 70 | G13: 72 | H13: 71 | I13: 66 | J13: 85 | K13: 72.8 | L13: 67.69 | M13: 72.8 | N13: 70.245 | O13: 70.245
A14: 7 | B14: =IF(SISWA!B14=0,"",SISWA!B14) -> 4273 | C14: =IF(SISWA!C14=0,"",SISWA!C14) -> 0067280519 | D14: =IF(SISWA!D14=0,"",SISWA!D14) -> 1-18-05-80-162-007-3 | E14: =IF(SISWA!E14=0,"",SISWA!E14) -> DEWI SAKINAH ISWARA | F14: 85 | G14: 83 | H14: 80 | I14: 77 | J14: 88 | K14: 82.6 | L14: 79.69 | M14: 82.6 | N14: 81.145 | O14: 81.145
A15: 8 | B15: =IF(SISWA!B15=0,"",SISWA!B15) -> 4307 | C15: =IF(SISWA!C15=0,"",SISWA!C15) -> 0066012198 | D15: =IF(SISWA!D15=0,"",SISWA!D15) -> 1-18-05-80-162-008-2 | E15: =IF(SISWA!E15=0,"",SISWA!E15) -> CHAKIM | F15: 70 | G15: 73 | H15: 71 | I15: 58 | J15: 84 | K15: 71.2 | L15: 65 | M15: 71.2 | N15: 68.1 | O15: 68.1
A16: 9 | B16: =IF(SISWA!B16=0,"",SISWA!B16) -> 4275 | C16: =IF(SISWA!C16=0,"",SISWA!C16) -> 0078199679 | D16: =IF(SISWA!D16=0,"",SISWA!D16) -> 1-18-05-80-162-009-9 | E16: =IF(SISWA!E16=0,"",SISWA!E16) -> HANIK APRILIA SARI | F16: 82 | G16: 82 | H16: 76 | I16: 79 | J16: 87 | K16: 81.2 | L16: 65 | M16: 81.2 | N16: 73.1 | O16: 73.1
A17: 10 | B17: =IF(SISWA!B17=0,"",SISWA!B17) -> 4238 | C17: =IF(SISWA!C17=0,"",SISWA!C17) -> 0051503260 | D17: =IF(SISWA!D17=0,"",SISWA!D17) -> 1-18-05-80-162-010-8 | E17: =IF(SISWA!E17=0,"",SISWA!E17) -> DESI NATALIA SAPUTRI | F17: 70 | G17: 73 | H17: 71 | I17: 65 | J17: 84 | K17: 72.6 | L17: 65 | M17: 72.6 | N17: 68.8 | O17: 68.8
A18: 11 | B18: =IF(SISWA!B18=0,"",SISWA!B18) -> 4391 | C18: =IF(SISWA!C18=0,"",SISWA!C18) -> 0079418518 | D18: =IF(SISWA!D18=0,"",SISWA!D18) -> 1-18-05-80-162-011-7 | E18: =IF(SISWA!E18=0,"",SISWA!E18) -> HIDAYATUL KHUMAINIA | F18: 73 | G18: 81 | H18: 77 | I18: 77 | J18: 86 | K18: 78.8 | L18: 69.79 | M18: 78.8 | N18: 74.295 | O18: 74.295
A19: 12 | B19: =IF(SISWA!B19=0,"",SISWA!B19) -> 4274 | C19: =IF(SISWA!C19=0,"",SISWA!C19) -> 0077670297 | D19: =IF(SISWA!D19=0,"",SISWA!D19) -> 1-18-05-80-162-012-6 | E19: =IF(SISWA!E19=0,"",SISWA!E19) -> DWITA FITA WULANDARI | F19: 73 | G19: 79 | H19: 72 | I19: 70 | J19: 86 | K19: 76 | L19: 65 | M19: 76 | N19: 70.5 | O19: 70.5
A20: 13 | B20: =IF(SISWA!B20=0,"",SISWA!B20) -> 4276 | C20: =IF(SISWA!C20=0,"",SISWA!C20) -> 0067236848 | D20: =IF(SISWA!D20=0,"",SISWA!D20) -> 1-18-05-80-162-013-5 | E20: =IF(SISWA!E20=0,"",SISWA!E20) -> IZZA ILMIA AZZAHRA | F20: 80 | G20: 83 | H20: 77 | I20: 75 | J20: 88 | K20: 80.6 | L20: 65 | M20: 80.6 | N20: 72.8 | O20: 72.8
A21: 14 | B21: =IF(SISWA!B21=0,"",SISWA!B21) -> 4303 | C21: =IF(SISWA!C21=0,"",SISWA!C21) -> 0064031376 | D21: =IF(SISWA!D21=0,"",SISWA!D21) -> 1-18-05-80-162-014-4 | E21: =IF(SISWA!E21=0,"",SISWA!E21) -> FARIDATUS SAHDIAH | F21: 73 | G21: 77 | H21: 72 | I21: 71 | J21: 86 | K21: 75.8 | L21: 72.11 | M21: 75.8 | N21: 73.955 | O21: 73.955
A22: 15 | B22: =IF(SISWA!B22=0,"",SISWA!B22) -> 4278 | C22: =IF(SISWA!C22=0,"",SISWA!C22) -> 0079672823 | D22: =IF(SISWA!D22=0,"",SISWA!D22) -> 1-18-05-80-162-015-3 | E22: =IF(SISWA!E22=0,"",SISWA!E22) -> KHARISYA AZZAHRO | F22: 88 | G22: 85 | H22: 80 | I22: 84 | J22: 88 | K22: 85 | L22: 65 | M22: 85 | N22: 75 | O22: 75
A23: 16 | B23: =IF(SISWA!B23=0,"",SISWA!B23) -> 4277 | C23: =IF(SISWA!C23=0,"",SISWA!C23) -> 0077101453 | D23: =IF(SISWA!D23=0,"",SISWA!D23) -> 1-18-05-80-162-016-2 | E23: =IF(SISWA!E23=0,"",SISWA!E23) -> KARINA FEBBY CAHYA AMILIA | F23: 79 | G23: 80 | H23: 72 | I23: 76 | J23: 85 | K23: 78.4 | L23: 66.79 | M23: 78.4 | N23: 72.595 | O23: 72.595
A24: 17 | B24: =IF(SISWA!B24=0,"",SISWA!B24) -> 4601 | C24: =IF(SISWA!C24=0,"",SISWA!C24) -> 0069718082 | D24: =IF(SISWA!D24=0,"",SISWA!D24) -> 1-18-05-80-162-017-9 | E24: =IF(SISWA!E24=0,"",SISWA!E24) -> MOCHAMAD RIFKY ROSAN | F24: 71 | G24: 73 | H24: 76 | I24: 85 | J24: 89 | K24: 78.8 | L24: 65 | M24: 78.8 | N24: 71.9 | O24: 71.9
A25: 18 | B25: =IF(SISWA!B25=0,"",SISWA!B25) -> 4241 | C25: =IF(SISWA!C25=0,"",SISWA!C25) -> 0057006145 | D25: =IF(SISWA!D25=0,"",SISWA!D25) -> 1-18-05-80-162-018-8 | E25: =IF(SISWA!E25=0,"",SISWA!E25) -> KHUSNI CAHYONO | F25: 70 | G25: 71 | H25: 70 | I25: 61 | J25: 82 | K25: 70.8 | L25: 69.91 | M25: 70.8 | N25: 70.355 | O25: 70.355
A26: 19 | B26: =IF(SISWA!B26=0,"",SISWA!B26) -> 4280 | C26: =IF(SISWA!C26=0,"",SISWA!C26) -> 0062061356 | D26: =IF(SISWA!D26=0,"",SISWA!D26) -> 1-18-05-80-162-019-7 | E26: =IF(SISWA!E26=0,"",SISWA!E26) -> MUCHAMMAD ALIEF FERDIANSYAH | F26: 82 | G26: 83 | H26: 73 | I26: 74 | J26: 88 | K26: 80 | L26: 65 | M26: 80 | N26: 72.5 | O26: 72.5
A27: 20 | B27: =IF(SISWA!B27=0,"",SISWA!B27) -> 4306 | C27: =IF(SISWA!C27=0,"",SISWA!C27) -> 0069095925 | D27: =IF(SISWA!D27=0,"",SISWA!D27) -> 1-18-05-80-162-020-6 | E27: =IF(SISWA!E27=0,"",SISWA!E27) -> LENNY AGUSTIN NINGTYAS | F27: 70 | G27: 73 | H27: 70 | I27: 60 | J27: 84 | K27: 71.4 | L27: 67.19 | M27: 71.4 | N27: 69.295 | O27: 69.295
A28: 21 | B28: =IF(SISWA!B28=0,"",SISWA!B28) -> 4281 | C28: =IF(SISWA!C28=0,"",SISWA!C28) -> 0069153972 | D28: =IF(SISWA!D28=0,"",SISWA!D28) -> 1-18-05-80-162-021-5 | E28: =IF(SISWA!E28=0,"",SISWA!E28) -> MUHAMMAD AGUS ANDRIANTO | F28: 75 | G28: 79 | H28: 71 | I28: 75 | J28: 85 | K28: 77 | L28: 65 | M28: 77 | N28: 71 | O28: 71
A29: 22 | B29: =IF(SISWA!B29=0,"",SISWA!B29) -> 4308 | C29: =IF(SISWA!C29=0,"",SISWA!C29) -> 0063078335 | D29: =IF(SISWA!D29=0,"",SISWA!D29) -> 1-18-05-80-162-022-4 | E29: =IF(SISWA!E29=0,"",SISWA!E29) -> MAURIS HIDAYATUR ROCHMAN | F29: 75 | G29: 78 | H29: 73 | I29: 74 | J29: 85 | K29: 77 | L29: 66.7 | M29: 77 | N29: 71.85 | O29: 71.85
A30: 23 | B30: =IF(SISWA!B30=0,"",SISWA!B30) -> 4314 | C30: =IF(SISWA!C30=0,"",SISWA!C30) -> 0072178353 | D30: =IF(SISWA!D30=0,"",SISWA!D30) -> 1-18-05-80-162-023-3 | E30: =IF(SISWA!E30=0,"",SISWA!E30) -> MUHAMMAD BISMAR TAUFIQUROHMAN | F30: 78 | G30: 86 | H30: 74 | I30: 76 | J30: 86 | K30: 80 | L30: 70.19 | M30: 80 | N30: 75.095 | O30: 75.095
A31: 24 | B31: =IF(SISWA!B31=0,"",SISWA!B31) -> 4309 | C31: =IF(SISWA!C31=0,"",SISWA!C31) -> 0072198448 | D31: =IF(SISWA!D31=0,"",SISWA!D31) -> 1-18-05-80-162-024-2 | E31: =IF(SISWA!E31=0,"",SISWA!E31) -> MAYA BUNGA ANJANI | F31: 72 | G31: 73 | H31: 72 | I31: 62 | J31: 85 | K31: 72.8 | L31: 68.89 | M31: 72.8 | N31: 70.845 | O31: 70.845
A32: 25 | B32: =IF(SISWA!B32=0,"",SISWA!B32) -> 4320 | C32: =IF(SISWA!C32=0,"",SISWA!C32) -> 0064566227 | D32: =IF(SISWA!D32=0,"",SISWA!D32) -> 1-18-05-80-162-025-9 | E32: =IF(SISWA!E32=0,"",SISWA!E32) -> MUHAMMAD SAHLAN SHODIQ | F32: 81 | G32: 86 | H32: 75 | I32: 78 | J32: 89 | K32: 81.8 | L32: 65 | M32: 81.8 | N32: 73.4 | O32: 73.4
A33: 26 | B33: =IF(SISWA!B33=0,"",SISWA!B33) -> 4279 | C33: =IF(SISWA!C33=0,"",SISWA!C33) -> 0066637092 | D33: =IF(SISWA!D33=0,"",SISWA!D33) -> 1-18-05-80-162-026-8 | E33: =IF(SISWA!E33=0,"",SISWA!E33) -> MITA SEPTIANI ISLAMIA | F33: 70 | G33: 75 | H33: 72 | I33: 74 | J33: 85 | K33: 75.2 | L33: 86.8 | M33: 75.2 | N33: 81 | O33: 81
A34: 27 | B34: =IF(SISWA!B34=0,"",SISWA!B34) -> 4321 | C34: =IF(SISWA!C34=0,"",SISWA!C34) -> 0061244045 | D34: =IF(SISWA!D34=0,"",SISWA!D34) -> 1-18-05-80-162-027-7 | E34: =IF(SISWA!E34=0,"",SISWA!E34) -> MUHAMMAD SEPTYAN EKA PRATAMA | F34: 77 | G34: 80 | H34: 77 | I34: 68 | J34: 85 | K34: 77.4 | L34: 65 | M34: 77.4 | N34: 71.2 | O34: 71.2
A35: 28 | B35: =IF(SISWA!B35=0,"",SISWA!B35) -> 4247 | C35: =IF(SISWA!C35=0,"",SISWA!C35) -> 0053546157 | D35: =IF(SISWA!D35=0,"",SISWA!D35) -> 1-18-05-80-162-028-6 | E35: =IF(SISWA!E35=0,"",SISWA!E35) -> MOCHAMAD ARIEL FRANS TITO | F35: 70 | G35: 73 | H35: 72 | I35: 65 | J35: 83 | K35: 72.6 | L35: 66.7 | M35: 72.6 | N35: 69.65 | O35: 69.65
A36: 29 | B36: =IF(SISWA!B36=0,"",SISWA!B36) -> 4285 | C36: =IF(SISWA!C36=0,"",SISWA!C36) -> 0067871553 | D36: =IF(SISWA!D36=0,"",SISWA!D36) -> 1-18-05-80-162-029-5 | E36: =IF(SISWA!E36=0,"",SISWA!E36) -> MUHAMMAD VERYANSYAH | F36: 76 | G36: 85 | H36: 76 | I36: 74 | J36: 86 | K36: 79.4 | L36: 65 | M36: 79.4 | N36: 72.2 | O36: 72.2
A37: 30 | B37: =IF(SISWA!B37=0,"",SISWA!B37) -> 4310 | C37: =IF(SISWA!C37=0,"",SISWA!C37) -> 0066383678 | D37: =IF(SISWA!D37=0,"",SISWA!D37) -> 1-18-05-80-162-030-4 | E37: =IF(SISWA!E37=0,"",SISWA!E37) -> MOCHAMMAD BIMA RISFANDA | F37: 72 | G37: 73 | H37: 70 | I37: 66 | J37: 86 | K37: 73.4 | L37: 69.7 | M37: 73.4 | N37: 71.55 | O37: 71.55
A38: 31 | B38: =IF(SISWA!B38=0,"",SISWA!B38) -> 4286 | C38: =IF(SISWA!C38=0,"",SISWA!C38) -> 0064443822 | D38: =IF(SISWA!D38=0,"",SISWA!D38) -> 1-18-05-80-162-031-3 | E38: =IF(SISWA!E38=0,"",SISWA!E38) -> MUHAMMAD ZIDNY NA'IM | F38: 85 | G38: 84 | H38: 86 | I38: 81 | J38: 88 | K38: 84.8 | L38: 65 | M38: 84.8 | N38: 74.9 | O38: 74.9
A39: 32 | B39: =IF(SISWA!B39=0,"",SISWA!B39) -> 4282 | C39: =IF(SISWA!C39=0,"",SISWA!C39) -> 0068336765 | D39: =IF(SISWA!D39=0,"",SISWA!D39) -> 1-18-05-80-162-032-2 | E39: =IF(SISWA!E39=0,"",SISWA!E39) -> MUHAMMAD AGUS FERDIANSYAH | F39: 75 | G39: 78 | H39: 73 | I39: 76 | J39: 86 | K39: 77.6 | L39: 65 | M39: 77.6 | N39: 71.3 | O39: 71.3
A40: 33 | B40: =IF(SISWA!B40=0,"",SISWA!B40) -> 4287 | C40: =IF(SISWA!C40=0,"",SISWA!C40) -> 0064528717 | D40: =IF(SISWA!D40=0,"",SISWA!D40) -> 1-18-05-80-162-033-9 | E40: =IF(SISWA!E40=0,"",SISWA!E40) -> MUHAMMAD FARDAN ABDILLAH | F40: 73 | H40: 72 | I40: 74 | K40: 73 | L40: 70.19 | M40: 73 | N40: 71.595 | O40: 71.595
A41: 34 | B41: =IF(SISWA!B41=0,"",SISWA!B41) -> 4315 | C41: =IF(SISWA!C41=0,"",SISWA!C41) -> 0067870495 | D41: =IF(SISWA!D41=0,"",SISWA!D41) -> 1-18-05-80-162-034-8 | E41: =IF(SISWA!E41=0,"",SISWA!E41) -> NABILA ARISKA PUTRI | F41: 80 | G41: 83 | H41: 81 | I41: 82 | J41: 88 | K41: 82.8 | L41: 74.99 | M41: 82.8 | N41: 78.895 | O41: 78.895
A42: 35 | B42: =IF(SISWA!B42=0,"",SISWA!B42) -> 4288 | C42: =IF(SISWA!C42=0,"",SISWA!C42) -> 0068641191 | D42: =IF(SISWA!D42=0,"",SISWA!D42) -> 1-18-05-80-162-035-7 | E42: =IF(SISWA!E42=0,"",SISWA!E42) -> MUHAMMAD FERDINAN JAYYIDAH RIFQI | F42: 82 | G42: 82 | H42: 76 | I42: 76 | J42: 86 | K42: 80.4 | L42: 65 | M42: 80.4 | N42: 72.7 | O42: 72.7
A43: 36 | B43: =IF(SISWA!B43=0,"",SISWA!B43) -> 4283 | C43: =IF(SISWA!C43=0,"",SISWA!C43) -> 0077212388 | D43: =IF(SISWA!D43=0,"",SISWA!D43) -> 1-18-05-80-162-036-6 | E43: =IF(SISWA!E43=0,"",SISWA!E43) -> NAFISA INDRIANI | F43: 85 | G43: 88 | H43: 78 | I43: 80 | J43: 89 | K43: 84 | L43: 72.89 | M43: 84 | N43: 78.445 | O43: 78.445
A44: 37 | B44: =IF(SISWA!B44=0,"",SISWA!B44) -> 4257 | C44: =IF(SISWA!C44=0,"",SISWA!C44) -> 0069944706 | D44: =IF(SISWA!D44=0,"",SISWA!D44) -> 1-18-05-80-162-037-5 | E44: =IF(SISWA!E44=0,"",SISWA!E44) -> MUHAMMAD FIRMANSYAH | F44: 72 | G44: 75 | H44: 73 | I44: 66 | J44: 85 | K44: 74.2 | L44: 65 | M44: 74.2 | N44: 69.6 | O44: 69.6
A45: 38 | B45: =IF(SISWA!B45=0,"",SISWA!B45) -> 4317 | C45: =IF(SISWA!C45=0,"",SISWA!C45) -> 0068498059 | D45: =IF(SISWA!D45=0,"",SISWA!D45) -> 1-18-05-80-162-038-4 | E45: =IF(SISWA!E45=0,"",SISWA!E45) -> NAJWA FARISYA BAROROH | F45: 79 | G45: 84 | H45: 78 | I45: 76 | J45: 88 | K45: 81 | L45: 75.89 | M45: 81 | N45: 78.445 | O45: 78.445
A46: 39 | B46: =IF(SISWA!B46=0,"",SISWA!B46) -> 4289 | C46: =IF(SISWA!C46=0,"",SISWA!C46) -> 0065225517 | D46: =IF(SISWA!D46=0,"",SISWA!D46) -> 1-18-05-80-162-039-3 | E46: =IF(SISWA!E46=0,"",SISWA!E46) -> NUR FITRIYAH | F46: 78 | G46: 79 | H46: 75 | I46: 74 | J46: 87 | K46: 78.6 | L46: 65 | M46: 78.6 | N46: 71.8 | O46: 71.8
A47: 40 | B47: =IF(SISWA!B47=0,"",SISWA!B47) -> 4318 | C47: =IF(SISWA!C47=0,"",SISWA!C47) -> 0061441364 | D47: =IF(SISWA!D47=0,"",SISWA!D47) -> 1-18-05-80-162-040-2 | E47: =IF(SISWA!E47=0,"",SISWA!E47) -> MUHAMMAD HILDAN DWI SAPUTRA | F47: 72 | G47: 74 | H47: 74 | I47: 74 | J47: 85 | K47: 75.8 | L47: 65 | M47: 75.8 | N47: 70.4 | O47: 70.4
A48: 41 | B48: =IF(SISWA!B48=0,"",SISWA!B48) -> 4392 | C48: =IF(SISWA!C48=0,"",SISWA!C48) -> 0075794532 | D48: =IF(SISWA!D48=0,"",SISWA!D48) -> 1-18-05-80-162-041-9 | E48: =IF(SISWA!E48=0,"",SISWA!E48) -> PUTRI NAFI'ATUS SOLIKHAH | F48: 76 | G48: 86 | H48: 72 | I48: 76 | J48: 85 | K48: 79 | L48: 65 | M48: 79 | N48: 72 | O48: 72
A49: 42 | B49: =IF(SISWA!B49=0,"",SISWA!B49) -> 4284 | C49: =IF(SISWA!C49=0,"",SISWA!C49) -> 0069578000 | D49: =IF(SISWA!D49=0,"",SISWA!D49) -> 1-18-05-80-162-042-8 | E49: =IF(SISWA!E49=0,"",SISWA!E49) -> MUHAMMAD RAYA KAFAF JAUHARI | F49: 83 | G49: 75 | H49: 72 | I49: 75 | J49: 89 | K49: 78.8 | L49: 65 | M49: 78.8 | N49: 71.9 | O49: 71.9
A50: 43 | B50: =IF(SISWA!B50=0,"",SISWA!B50) -> 4290 | C50: =IF(SISWA!C50=0,"",SISWA!C50) -> 0063558216 | D50: =IF(SISWA!D50=0,"",SISWA!D50) -> 1-18-05-80-162-043-7 | E50: =IF(SISWA!E50=0,"",SISWA!E50) -> QORIATUN SHOLIHAH | F50: 82 | G50: 81 | H50: 81 | I50: 73 | J50: 86 | K50: 80.6 | L50: 65 | M50: 80.6 | N50: 72.8 | O50: 72.8
A51: 44 | B51: =IF(SISWA!B51=0,"",SISWA!B51) -> 4319 | C51: =IF(SISWA!C51=0,"",SISWA!C51) -> 0065329770 | D51: =IF(SISWA!D51=0,"",SISWA!D51) -> 1-18-05-80-162-044-6 | E51: =IF(SISWA!E51=0,"",SISWA!E51) -> MUHAMMAD RUDI TANTOWIK | F51: 70 | G51: 72 | H51: 70 | I51: 64 | J51: 86 | K51: 72.4 | L51: 65 | M51: 72.4 | N51: 68.7 | O51: 68.7
A52: 45 | B52: =IF(SISWA!B52=0,"",SISWA!B52) -> 4291 | C52: =IF(SISWA!C52=0,"",SISWA!C52) -> 0067071679 | D52: =IF(SISWA!D52=0,"",SISWA!D52) -> 1-18-05-80-162-045-5 | E52: =IF(SISWA!E52=0,"",SISWA!E52) -> RACHMAD HIDAYAT | F52: 73 | G52: 74 | H52: 74 | I52: 66 | J52: 88 | K52: 75 | L52: 74.09 | M52: 75 | N52: 74.545 | O52: 74.545
A53: 46 | B53: =IF(SISWA!B53=0,"",SISWA!B53) -> 4322 | C53: =IF(SISWA!C53=0,"",SISWA!C53) -> 0051101989 | D53: =IF(SISWA!D53=0,"",SISWA!D53) -> 1-18-05-80-162-046-4 | E53: =IF(SISWA!E53=0,"",SISWA!E53) -> MUHAMMAD ZULDIENUR HABIBIE | F53: 70 | G53: 71 | H53: 71 | I53: 74 | J53: 83 | K53: 73.8 | L53: 67.81 | M53: 73.8 | N53: 70.805 | O53: 70.805
A54: 47 | B54: =IF(SISWA!B54=0,"",SISWA!B54) -> 4292 | C54: =IF(SISWA!C54=0,"",SISWA!C54) -> 0072001696 | D54: =IF(SISWA!D54=0,"",SISWA!D54) -> 1-18-05-80-162-047-3 | E54: =IF(SISWA!E54=0,"",SISWA!E54) -> RHEA RAYSHANADA NUGRAHA | F54: 79 | G54: 80 | H54: 83 | I54: 82 | J54: 89 | K54: 82.6 | L54: 84.7 | M54: 82.6 | N54: 83.65 | O54: 83.65
A55: 48 | B55: =IF(SISWA!B55=0,"",SISWA!B55) -> 4323 | C55: =IF(SISWA!C55=0,"",SISWA!C55) -> 0078949167 | D55: =IF(SISWA!D55=0,"",SISWA!D55) -> 1-18-05-80-162-048-2 | E55: =IF(SISWA!E55=0,"",SISWA!E55) -> MUKHAMAD KHOIRUL AMIN | F55: 70 | G55: 75 | H55: 73 | I55: 67 | J55: 85 | K55: 74 | L55: 65 | M55: 74 | N55: 69.5 | O55: 69.5
A56: 49 | B56: =IF(SISWA!B56=0,"",SISWA!B56) -> 4293 | C56: =IF(SISWA!C56=0,"",SISWA!C56) -> 0064217705 | D56: =IF(SISWA!D56=0,"",SISWA!D56) -> 1-18-05-80-162-049-9 | E56: =IF(SISWA!E56=0,"",SISWA!E56) -> RIYANTI APRILIA | F56: 81 | G56: 82 | H56: 74 | I56: 74 | J56: 87 | K56: 79.6 | L56: 65 | M56: 79.6 | N56: 72.3 | O56: 72.3
A57: 50 | B57: =IF(SISWA!B57=0,"",SISWA!B57) -> 4256 | C57: =IF(SISWA!C57=0,"",SISWA!C57) -> 0065699742 | D57: =IF(SISWA!D57=0,"",SISWA!D57) -> 1-18-05-80-162-050-8 | E57: =IF(SISWA!E57=0,"",SISWA!E57) -> MUKHAMMAD YAASIIN HASAN KHASBULLOH | F57: 77 | G57: 83 | H57: 70 | I57: 73 | J57: 85 | K57: 77.6 | L57: 65 | M57: 77.6 | N57: 71.3 | O57: 71.3
A58: 51 | B58: =IF(SISWA!B58=0,"",SISWA!B58) -> 4295 | C58: =IF(SISWA!C58=0,"",SISWA!C58) -> 0061359184 | D58: =IF(SISWA!D58=0,"",SISWA!D58) -> 1-18-05-80-162-051-7 | E58: =IF(SISWA!E58=0,"",SISWA!E58) -> SHONIA AULIA AS'AD | F58: 87 | G58: 92 | H58: 86 | I58: 91 | J58: 94 | K58: 90 | L58: 65 | M58: 90 | N58: 77.5 | O58: 77.5
A59: 52 | B59: =IF(SISWA!B59=0,"",SISWA!B59) -> 4294 | C59: =IF(SISWA!C59=0,"",SISWA!C59) -> 0064723905 | D59: =IF(SISWA!D59=0,"",SISWA!D59) -> 1-18-05-80-162-052-6 | E59: =IF(SISWA!E59=0,"",SISWA!E59) -> RIZKA AYU WULANDARI | F59: 72 | G59: 74 | H59: 75 | I59: 74 | J59: 85 | K59: 76 | L59: 67.69 | M59: 76 | N59: 71.845 | O59: 71.845
A60: 53 | B60: =IF(SISWA!B60=0,"",SISWA!B60) -> 4298 | C60: =IF(SISWA!C60=0,"",SISWA!C60) -> 0065530554 | D60: =IF(SISWA!D60=0,"",SISWA!D60) -> 1-18-05-80-162-053-5 | E60: =IF(SISWA!E60=0,"",SISWA!E60) -> VERLINA DWI MAULANI | F60: 80 | G60: 82 | H60: 76 | I60: 77 | J60: 86 | K60: 80.2 | L60: 65 | M60: 80.2 | N60: 72.6 | O60: 72.6
A61: 54 | B61: =IF(SISWA!B61=0,"",SISWA!B61) -> 4297 | C61: =IF(SISWA!C61=0,"",SISWA!C61) -> 0063846732 | D61: =IF(SISWA!D61=0,"",SISWA!D61) -> 1-18-05-80-162-054-4 | E61: =IF(SISWA!E61=0,"",SISWA!E61) -> USWATUN KHASANAH | F61: 72 | G61: 80 | H61: 72 | I61: 74 | J61: 86 | K61: 76.8 | L61: 97.31 | M61: 76.8 | N61: 87.055 | O61: 87.055
A62: 55 | B62: =IF(SISWA!B62=0,"",SISWA!B62) -> 4324 | C62: =IF(SISWA!C62=0,"",SISWA!C62) -> 0078966795 | D62: =IF(SISWA!D62=0,"",SISWA!D62) -> 1-18-05-80-162-055-3 | E62: =IF(SISWA!E62=0,"",SISWA!E62) -> VIKA KUSUMA WATI | F62: 79 | G62: 88 | H62: 75 | I62: 76 | J62: 86 | K62: 80.8 | L62: 65 | M62: 80.8 | N62: 72.9 | O62: 72.9
A63: 56 | B63: =IF(SISWA!B63=0,"",SISWA!B63) -> 4326 | C63: =IF(SISWA!C63=0,"",SISWA!C63) -> 0064124533 | D63: =IF(SISWA!D63=0,"",SISWA!D63) -> 1-18-05-80-162-056-2 | E63: =IF(SISWA!E63=0,"",SISWA!E63) -> YOHAN EGA GILANG PERMANA | F63: 72 | H63: 71 | I63: 74 | J63: 83 | K63: 75 | L63: 65 | M63: 75 | N63: 70 | O63: 70
A64: 57 | B64: =IF(SISWA!B64=0,"",SISWA!B64) ->  | C64: =IF(SISWA!C64=0,"",SISWA!C64) ->  | D64: =IF(SISWA!D64=0,"",SISWA!D64) -> 1-18-05-80-162-057-9 | E64: =IF(SISWA!E64=0,"",SISWA!E64) -> 
A65: 58 | B65: =IF(SISWA!B65=0,"",SISWA!B65) ->  | C65: =IF(SISWA!C65=0,"",SISWA!C65) ->  | D65: =IF(SISWA!D65=0,"",SISWA!D65) -> 1-18-05-80-162-058-8 | E65: =IF(SISWA!E65=0,"",SISWA!E65) -> 
A66: 59 | B66: =IF(SISWA!B66=0,"",SISWA!B66) ->  | C66: =IF(SISWA!C66=0,"",SISWA!C66) ->  | D66: =IF(SISWA!D66=0,"",SISWA!D66) -> 1-18-05-80-162-059-7 | E66: =IF(SISWA!E66=0,"",SISWA!E66) -> 
A67: 60 | B67: =IF(SISWA!B67=0,"",SISWA!B67) ->  | C67: =IF(SISWA!C67=0,"",SISWA!C67) ->  | D67: =IF(SISWA!D67=0,"",SISWA!D67) -> 1-18-05-80-162-060-6 | E67: =IF(SISWA!E67=0,"",SISWA!E67) -> 
A68: 61 | B68: =IF(SISWA!B68=0,"",SISWA!B68) ->  | C68: =IF(SISWA!C68=0,"",SISWA!C68) ->  | D68: =IF(SISWA!D68=0,"",SISWA!D68) -> 1-18-05-80-162-061-5 | E68: =IF(SISWA!E68=0,"",SISWA!E68) -> 
A69: 62 | B69: =IF(SISWA!B69=0,"",SISWA!B69) ->  | C69: =IF(SISWA!C69=0,"",SISWA!C69) ->  | D69: =IF(SISWA!D69=0,"",SISWA!D69) -> 062-4 | E69: =IF(SISWA!E69=0,"",SISWA!E69) -> 
A70: 63 | B70: =IF(SISWA!B70=0,"",SISWA!B70) ->  | C70: =IF(SISWA!C70=0,"",SISWA!C70) ->  | D70: =IF(SISWA!D70=0,"",SISWA!D70) -> 063-3 | E70: =IF(SISWA!E70=0,"",SISWA!E70) -> 
A71: 64 | B71: =IF(SISWA!B71=0,"",SISWA!B71) ->  | C71: =IF(SISWA!C71=0,"",SISWA!C71) ->  | D71: =IF(SISWA!D71=0,"",SISWA!D71) -> 064-2 | E71: =IF(SISWA!E71=0,"",SISWA!E71) -> 
A72: 65 | B72: =IF(SISWA!B72=0,"",SISWA!B72) ->  | C72: =IF(SISWA!C72=0,"",SISWA!C72) ->  | D72: =IF(SISWA!D72=0,"",SISWA!D72) -> 065- | E72: =IF(SISWA!E72=0,"",SISWA!E72) -> 
A73: 66 | B73: =IF(SISWA!B73=0,"",SISWA!B73) ->  | C73: =IF(SISWA!C73=0,"",SISWA!C73) ->  | D73: =IF(SISWA!D73=0,"",SISWA!D73) -> 066- | E73: =IF(SISWA!E73=0,"",SISWA!E73) ->  | K73: =AVERAGE(F73:J73) ->  | N73: =AVERAGE(L73:M73) ->  | O73: =AVERAGE(L73:M73) -> 
A74: 67 | B74: =IF(SISWA!B74=0,"",SISWA!B74) ->  | C74: =IF(SISWA!C74=0,"",SISWA!C74) ->  | D74: =IF(SISWA!D74=0,"",SISWA!D74) -> 067- | E74: =IF(SISWA!E74=0,"",SISWA!E74) -> 
A75: 68 | B75: =IF(SISWA!B75=0,"",SISWA!B75) ->  | C75: =IF(SISWA!C75=0,"",SISWA!C75) ->  | D75: =IF(SISWA!D75=0,"",SISWA!D75) -> 068- | E75: =IF(SISWA!E75=0,"",SISWA!E75) -> 
A76: 69 | B76: =IF(SISWA!B76=0,"",SISWA!B76) ->  | C76: =IF(SISWA!C76=0,"",SISWA!C76) ->  | D76: =IF(SISWA!D76=0,"",SISWA!D76) -> 069- | E76: =IF(SISWA!E76=0,"",SISWA!E76) -> 
A77: 70 | B77: =IF(SISWA!B77=0,"",SISWA!B77) ->  | C77: =IF(SISWA!C77=0,"",SISWA!C77) ->  | D77: =IF(SISWA!D77=0,"",SISWA!D77) -> 070- | E77: =IF(SISWA!E77=0,"",SISWA!E77) -> 
A78: 71 | B78: =IF(SISWA!B78=0,"",SISWA!B78) ->  | C78: =IF(SISWA!C78=0,"",SISWA!C78) ->  | D78: =IF(SISWA!D78=0,"",SISWA!D78) -> 071- | E78: =IF(SISWA!E78=0,"",SISWA!E78) -> 
A79: 72 | B79: =IF(SISWA!B79=0,"",SISWA!B79) ->  | C79: =IF(SISWA!C79=0,"",SISWA!C79) ->  | D79: =IF(SISWA!D79=0,"",SISWA!D79) -> 072- | E79: =IF(SISWA!E79=0,"",SISWA!E79) -> 
A80: 73 | B80: =IF(SISWA!B80=0,"",SISWA!B80) ->  | C80: =IF(SISWA!C80=0,"",SISWA!C80) ->  | D80: =IF(SISWA!D80=0,"",SISWA!D80) -> 073- | E80: =IF(SISWA!E80=0,"",SISWA!E80) -> 
A81: 74 | B81: =IF(SISWA!B81=0,"",SISWA!B81) ->  | C81: =IF(SISWA!C81=0,"",SISWA!C81) ->  | D81: =IF(SISWA!D81=0,"",SISWA!D81) -> 074- | E81: =IF(SISWA!E81=0,"",SISWA!E81) -> 
A82: 75 | B82: =IF(SISWA!B82=0,"",SISWA!B82) ->  | C82: =IF(SISWA!C82=0,"",SISWA!C82) ->  | D82: =IF(SISWA!D82=0,"",SISWA!D82) -> 075- | E82: =IF(SISWA!E82=0,"",SISWA!E82) -> 
A83: 76 | B83: =IF(SISWA!B83=0,"",SISWA!B83) ->  | C83: =IF(SISWA!C83=0,"",SISWA!C83) ->  | D83: =IF(SISWA!D83=0,"",SISWA!D83) -> 076- | E83: =IF(SISWA!E83=0,"",SISWA!E83) -> 
A84: 77 | B84: =IF(SISWA!B84=0,"",SISWA!B84) ->  | C84: =IF(SISWA!C84=0,"",SISWA!C84) ->  | D84: =IF(SISWA!D84=0,"",SISWA!D84) -> 077- | E84: =IF(SISWA!E84=0,"",SISWA!E84) -> 
A85: 78 | B85: =IF(SISWA!B85=0,"",SISWA!B85) ->  | C85: =IF(SISWA!C85=0,"",SISWA!C85) ->  | D85: =IF(SISWA!D85=0,"",SISWA!D85) -> 078- | E85: =IF(SISWA!E85=0,"",SISWA!E85) -> 
A86: 79 | B86: =IF(SISWA!B86=0,"",SISWA!B86) ->  | C86: =IF(SISWA!C86=0,"",SISWA!C86) ->  | D86: =IF(SISWA!D86=0,"",SISWA!D86) -> 079- | E86: =IF(SISWA!E86=0,"",SISWA!E86) -> 
A87: 80 | B87: =IF(SISWA!B87=0,"",SISWA!B87) ->  | C87: =IF(SISWA!C87=0,"",SISWA!C87) ->  | D87: =IF(SISWA!D87=0,"",SISWA!D87) -> 080- | E87: =IF(SISWA!E87=0,"",SISWA!E87) -> 
A88: 81 | B88: =IF(SISWA!B88=0,"",SISWA!B88) ->  | C88: =IF(SISWA!C88=0,"",SISWA!C88) ->  | D88: =IF(SISWA!D88=0,"",SISWA!D88) -> 081- | E88: =IF(SISWA!E88=0,"",SISWA!E88) -> 
A89: 82 | B89: =IF(SISWA!B89=0,"",SISWA!B89) ->  | C89: =IF(SISWA!C89=0,"",SISWA!C89) ->  | D89: =IF(SISWA!D89=0,"",SISWA!D89) -> 082- | E89: =IF(SISWA!E89=0,"",SISWA!E89) -> 
A90: 83 | B90: =IF(SISWA!B90=0,"",SISWA!B90) ->  | C90: =IF(SISWA!C90=0,"",SISWA!C90) ->  | D90: =IF(SISWA!D90=0,"",SISWA!D90) -> 083- | E90: =IF(SISWA!E90=0,"",SISWA!E90) -> 
A91: 84 | B91: =IF(SISWA!B91=0,"",SISWA!B91) ->  | C91: =IF(SISWA!C91=0,"",SISWA!C91) ->  | D91: =IF(SISWA!D91=0,"",SISWA!D91) -> 084- | E91: =IF(SISWA!E91=0,"",SISWA!E91) -> 
A92: 85 | B92: =IF(SISWA!B92=0,"",SISWA!B92) ->  | C92: =IF(SISWA!C92=0,"",SISWA!C92) ->  | D92: =IF(SISWA!D92=0,"",SISWA!D92) -> 085- | E92: =IF(SISWA!E92=0,"",SISWA!E92) -> 
A93: 86 | B93: =IF(SISWA!B93=0,"",SISWA!B93) ->  | C93: =IF(SISWA!C93=0,"",SISWA!C93) ->  | D93: =IF(SISWA!D93=0,"",SISWA!D93) -> 086- | E93: =IF(SISWA!E93=0,"",SISWA!E93) -> 
A94: 87 | B94: =IF(SISWA!B94=0,"",SISWA!B94) ->  | C94: =IF(SISWA!C94=0,"",SISWA!C94) ->  | D94: =IF(SISWA!D94=0,"",SISWA!D94) -> 087- | E94: =IF(SISWA!E94=0,"",SISWA!E94) -> 
A95: 88 | B95: =IF(SISWA!B95=0,"",SISWA!B95) ->  | C95: =IF(SISWA!C95=0,"",SISWA!C95) ->  | D95: =IF(SISWA!D95=0,"",SISWA!D95) -> 088- | E95: =IF(SISWA!E95=0,"",SISWA!E95) -> 
A96: 89 | B96: =IF(SISWA!B96=0,"",SISWA!B96) ->  | C96: =IF(SISWA!C96=0,"",SISWA!C96) ->  | D96: =IF(SISWA!D96=0,"",SISWA!D96) -> 089- | E96: =IF(SISWA!E96=0,"",SISWA!E96) -> 
A97: 90 | B97: =IF(SISWA!B97=0,"",SISWA!B97) ->  | C97: =IF(SISWA!C97=0,"",SISWA!C97) ->  | D97: =IF(SISWA!D97=0,"",SISWA!D97) -> 090- | E97: =IF(SISWA!E97=0,"",SISWA!E97) -> 
A98: 91 | B98: =IF(SISWA!B98=0,"",SISWA!B98) ->  | C98: =IF(SISWA!C98=0,"",SISWA!C98) ->  | D98: =IF(SISWA!D98=0,"",SISWA!D98) -> 091- | E98: =IF(SISWA!E98=0,"",SISWA!E98) -> 
A99: 92 | B99: =IF(SISWA!B99=0,"",SISWA!B99) ->  | C99: =IF(SISWA!C99=0,"",SISWA!C99) ->  | D99: =IF(SISWA!D99=0,"",SISWA!D99) -> 092- | E99: =IF(SISWA!E99=0,"",SISWA!E99) -> 
A100: 93 | B100: =IF(SISWA!B100=0,"",SISWA!B100) ->  | C100: =IF(SISWA!C100=0,"",SISWA!C100) ->  | D100: =IF(SISWA!D100=0,"",SISWA!D100) -> 093- | E100: =IF(SISWA!E100=0,"",SISWA!E100) -> 
A101: 94 | B101: =IF(SISWA!B101=0,"",SISWA!B101) ->  | C101: =IF(SISWA!C101=0,"",SISWA!C101) ->  | D101: =IF(SISWA!D101=0,"",SISWA!D101) -> 094- | E101: =IF(SISWA!E101=0,"",SISWA!E101) -> 
A102: 95 | B102: =IF(SISWA!B102=0,"",SISWA!B102) ->  | C102: =IF(SISWA!C102=0,"",SISWA!C102) ->  | D102: =IF(SISWA!D102=0,"",SISWA!D102) -> 095- | E102: =IF(SISWA!E102=0,"",SISWA!E102) -> 
A103: 96 | B103: =IF(SISWA!B103=0,"",SISWA!B103) ->  | C103: =IF(SISWA!C103=0,"",SISWA!C103) ->  | D103: =IF(SISWA!D103=0,"",SISWA!D103) -> 096- | E103: =IF(SISWA!E103=0,"",SISWA!E103) -> 
A104: 97 | B104: =IF(SISWA!B104=0,"",SISWA!B104) ->  | C104: =IF(SISWA!C104=0,"",SISWA!C104) ->  | D104: =IF(SISWA!D104=0,"",SISWA!D104) -> 097- | E104: =IF(SISWA!E104=0,"",SISWA!E104) -> 
A105: 98 | B105: =IF(SISWA!B105=0,"",SISWA!B105) ->  | C105: =IF(SISWA!C105=0,"",SISWA!C105) ->  | D105: =IF(SISWA!D105=0,"",SISWA!D105) -> 098- | E105: =IF(SISWA!E105=0,"",SISWA!E105) -> 
A106: 99 | B106: =IF(SISWA!B106=0,"",SISWA!B106) ->  | C106: =IF(SISWA!C106=0,"",SISWA!C106) ->  | D106: =IF(SISWA!D106=0,"",SISWA!D106) -> 099- | E106: =IF(SISWA!E106=0,"",SISWA!E106) -> 
A107: 100 | B107: =IF(SISWA!B107=0,"",SISWA!B107) ->  | C107: =IF(SISWA!C107=0,"",SISWA!C107) ->  | D107: =IF(SISWA!D107=0,"",SISWA!D107) -> 100- | E107: =IF(SISWA!E107=0,"",SISWA!E107) -> 
A108: 101 | B108: =IF(SISWA!B108=0,"",SISWA!B108) ->  | C108: =IF(SISWA!C108=0,"",SISWA!C108) ->  | D108: =IF(SISWA!D108=0,"",SISWA!D108) -> 101- | E108: =IF(SISWA!E108=0,"",SISWA!E108) -> 
A109: 102 | B109: =IF(SISWA!B109=0,"",SISWA!B109) ->  | C109: =IF(SISWA!C109=0,"",SISWA!C109) ->  | D109: =IF(SISWA!D109=0,"",SISWA!D109) -> 102- | E109: =IF(SISWA!E109=0,"",SISWA!E109) -> 
A110: 103 | B110: =IF(SISWA!B110=0,"",SISWA!B110) ->  | C110: =IF(SISWA!C110=0,"",SISWA!C110) ->  | D110: =IF(SISWA!D110=0,"",SISWA!D110) -> 103- | E110: =IF(SISWA!E110=0,"",SISWA!E110) -> 
A111: 104 | B111: =IF(SISWA!B111=0,"",SISWA!B111) ->  | C111: =IF(SISWA!C111=0,"",SISWA!C111) ->  | D111: =IF(SISWA!D111=0,"",SISWA!D111) -> 104- | E111: =IF(SISWA!E111=0,"",SISWA!E111) -> 
A112: 105 | B112: =IF(SISWA!B112=0,"",SISWA!B112) ->  | C112: =IF(SISWA!C112=0,"",SISWA!C112) ->  | D112: =IF(SISWA!D112=0,"",SISWA!D112) -> 105- | E112: =IF(SISWA!E112=0,"",SISWA!E112) -> 
A113: 106 | B113: =IF(SISWA!B113=0,"",SISWA!B113) ->  | C113: =IF(SISWA!C113=0,"",SISWA!C113) ->  | D113: =IF(SISWA!D113=0,"",SISWA!D113) -> 106- | E113: =IF(SISWA!E113=0,"",SISWA!E113) -> 
A114: 107 | B114: =IF(SISWA!B114=0,"",SISWA!B114) ->  | C114: =IF(SISWA!C114=0,"",SISWA!C114) ->  | D114: =IF(SISWA!D114=0,"",SISWA!D114) -> 107- | E114: =IF(SISWA!E114=0,"",SISWA!E114) -> 
A115: 108 | B115: =IF(SISWA!B115=0,"",SISWA!B115) ->  | C115: =IF(SISWA!C115=0,"",SISWA!C115) ->  | D115: =IF(SISWA!D115=0,"",SISWA!D115) -> 108- | E115: =IF(SISWA!E115=0,"",SISWA!E115) -> 
A116: 109 | B116: =IF(SISWA!B116=0,"",SISWA!B116) ->  | C116: =IF(SISWA!C116=0,"",SISWA!C116) ->  | D116: =IF(SISWA!D116=0,"",SISWA!D116) -> 109- | E116: =IF(SISWA!E116=0,"",SISWA!E116) -> 
A117: 110 | B117: =IF(SISWA!B117=0,"",SISWA!B117) ->  | C117: =IF(SISWA!C117=0,"",SISWA!C117) ->  | D117: =IF(SISWA!D117=0,"",SISWA!D117) -> 110- | E117: =IF(SISWA!E117=0,"",SISWA!E117) -> 
A118: 111 | B118: =IF(SISWA!B118=0,"",SISWA!B118) ->  | C118: =IF(SISWA!C118=0,"",SISWA!C118) ->  | D118: =IF(SISWA!D118=0,"",SISWA!D118) -> 111- | E118: =IF(SISWA!E118=0,"",SISWA!E118) -> 
A119: 112 | B119: =IF(SISWA!B119=0,"",SISWA!B119) ->  | C119: =IF(SISWA!C119=0,"",SISWA!C119) ->  | D119: =IF(SISWA!D119=0,"",SISWA!D119) -> 112- | E119: =IF(SISWA!E119=0,"",SISWA!E119) -> 
A120: 113 | B120: =IF(SISWA!B120=0,"",SISWA!B120) ->  | C120: =IF(SISWA!C120=0,"",SISWA!C120) ->  | D120: =IF(SISWA!D120=0,"",SISWA!D120) -> 113- | E120: =IF(SISWA!E120=0,"",SISWA!E120) -> 
A121: 114 | B121: =IF(SISWA!B121=0,"",SISWA!B121) ->  | C121: =IF(SISWA!C121=0,"",SISWA!C121) ->  | D121: =IF(SISWA!D121=0,"",SISWA!D121) -> 114- | E121: =IF(SISWA!E121=0,"",SISWA!E121) -> 
A122: 115 | B122: =IF(SISWA!B122=0,"",SISWA!B122) ->  | C122: =IF(SISWA!C122=0,"",SISWA!C122) ->  | D122: =IF(SISWA!D122=0,"",SISWA!D122) -> 115- | E122: =IF(SISWA!E122=0,"",SISWA!E122) -> 
A123: 116 | B123: =IF(SISWA!B123=0,"",SISWA!B123) ->  | C123: =IF(SISWA!C123=0,"",SISWA!C123) ->  | D123: =IF(SISWA!D123=0,"",SISWA!D123) -> 116- | E123: =IF(SISWA!E123=0,"",SISWA!E123) -> 
A124: 117 | B124: =IF(SISWA!B124=0,"",SISWA!B124) ->  | C124: =IF(SISWA!C124=0,"",SISWA!C124) ->  | D124: =IF(SISWA!D124=0,"",SISWA!D124) -> 117- | E124: =IF(SISWA!E124=0,"",SISWA!E124) -> 
A125: 118 | B125: =IF(SISWA!B125=0,"",SISWA!B125) ->  | C125: =IF(SISWA!C125=0,"",SISWA!C125) ->  | D125: =IF(SISWA!D125=0,"",SISWA!D125) -> 118- | E125: =IF(SISWA!E125=0,"",SISWA!E125) -> 
A126: 119 | B126: =IF(SISWA!B126=0,"",SISWA!B126) ->  | C126: =IF(SISWA!C126=0,"",SISWA!C126) ->  | D126: =IF(SISWA!D126=0,"",SISWA!D126) -> 119- | E126: =IF(SISWA!E126=0,"",SISWA!E126) -> 
A127: 120 | B127: =IF(SISWA!B127=0,"",SISWA!B127) ->  | C127: =IF(SISWA!C127=0,"",SISWA!C127) ->  | D127: =IF(SISWA!D127=0,"",SISWA!D127) -> 120- | E127: =IF(SISWA!E127=0,"",SISWA!E127) -> 
A128: 121 | B128: =IF(SISWA!B128=0,"",SISWA!B128) ->  | C128: =IF(SISWA!C128=0,"",SISWA!C128) ->  | D128: =IF(SISWA!D128=0,"",SISWA!D128) -> 121- | E128: =IF(SISWA!E128=0,"",SISWA!E128) -> 
A129: 122 | B129: =IF(SISWA!B129=0,"",SISWA!B129) ->  | C129: =IF(SISWA!C129=0,"",SISWA!C129) ->  | D129: =IF(SISWA!D129=0,"",SISWA!D129) -> 122- | E129: =IF(SISWA!E129=0,"",SISWA!E129) -> 
A130: 123 | B130: =IF(SISWA!B130=0,"",SISWA!B130) ->  | C130: =IF(SISWA!C130=0,"",SISWA!C130) ->  | D130: =IF(SISWA!D130=0,"",SISWA!D130) -> 123- | E130: =IF(SISWA!E130=0,"",SISWA!E130) -> 
A131: 124 | B131: =IF(SISWA!B131=0,"",SISWA!B131) ->  | C131: =IF(SISWA!C131=0,"",SISWA!C131) ->  | D131: =IF(SISWA!D131=0,"",SISWA!D131) -> 124- | E131: =IF(SISWA!E131=0,"",SISWA!E131) -> 
A132: 125 | B132: =IF(SISWA!B132=0,"",SISWA!B132) ->  | C132: =IF(SISWA!C132=0,"",SISWA!C132) ->  | D132: =IF(SISWA!D132=0,"",SISWA!D132) -> 125- | E132: =IF(SISWA!E132=0,"",SISWA!E132) -> 
A133: 126 | B133: =IF(SISWA!B133=0,"",SISWA!B133) ->  | C133: =IF(SISWA!C133=0,"",SISWA!C133) ->  | D133: =IF(SISWA!D133=0,"",SISWA!D133) -> 126- | E133: =IF(SISWA!E133=0,"",SISWA!E133) -> 
A134: 127 | B134: =IF(SISWA!B134=0,"",SISWA!B134) ->  | C134: =IF(SISWA!C134=0,"",SISWA!C134) ->  | D134: =IF(SISWA!D134=0,"",SISWA!D134) -> 127- | E134: =IF(SISWA!E134=0,"",SISWA!E134) -> 
A135: 128 | B135: =IF(SISWA!B135=0,"",SISWA!B135) ->  | C135: =IF(SISWA!C135=0,"",SISWA!C135) ->  | D135: =IF(SISWA!D135=0,"",SISWA!D135) -> 128- | E135: =IF(SISWA!E135=0,"",SISWA!E135) -> 
A136: 129 | B136: =IF(SISWA!B136=0,"",SISWA!B136) ->  | C136: =IF(SISWA!C136=0,"",SISWA!C136) ->  | D136: =IF(SISWA!D136=0,"",SISWA!D136) -> 129- | E136: =IF(SISWA!E136=0,"",SISWA!E136) -> 
A137: 130 | B137: =IF(SISWA!B137=0,"",SISWA!B137) ->  | C137: =IF(SISWA!C137=0,"",SISWA!C137) ->  | D137: =IF(SISWA!D137=0,"",SISWA!D137) -> 130- | E137: =IF(SISWA!E137=0,"",SISWA!E137) ->  | K137: =AVERAGE(F137:J137) ->  | N137: =AVERAGE(L137:M137) ->  | O137: =AVERAGE(L137:M137) -> 
A138: 131 | B138: =IF(SISWA!B138=0,"",SISWA!B138) ->  | C138: =IF(SISWA!C138=0,"",SISWA!C138) ->  | D138: =IF(SISWA!D138=0,"",SISWA!D138) -> 131- | E138: =IF(SISWA!E138=0,"",SISWA!E138) -> 
A139: 132 | B139: =IF(SISWA!B139=0,"",SISWA!B139) ->  | C139: =IF(SISWA!C139=0,"",SISWA!C139) ->  | D139: =IF(SISWA!D139=0,"",SISWA!D139) -> 132- | E139: =IF(SISWA!E139=0,"",SISWA!E139) -> 
A140: 133 | B140: =IF(SISWA!B140=0,"",SISWA!B140) ->  | C140: =IF(SISWA!C140=0,"",SISWA!C140) ->  | D140: =IF(SISWA!D140=0,"",SISWA!D140) -> 133- | E140: =IF(SISWA!E140=0,"",SISWA!E140) -> 
A141: 134 | B141: =IF(SISWA!B141=0,"",SISWA!B141) ->  | C141: =IF(SISWA!C141=0,"",SISWA!C141) ->  | D141: =IF(SISWA!D141=0,"",SISWA!D141) -> 134- | E141: =IF(SISWA!E141=0,"",SISWA!E141) -> 
A142: 135 | B142: =IF(SISWA!B142=0,"",SISWA!B142) ->  | C142: =IF(SISWA!C142=0,"",SISWA!C142) ->  | D142: =IF(SISWA!D142=0,"",SISWA!D142) -> 135- | E142: =IF(SISWA!E142=0,"",SISWA!E142) -> 
A143: 136 | B143: =IF(SISWA!B143=0,"",SISWA!B143) ->  | C143: =IF(SISWA!C143=0,"",SISWA!C143) ->  | D143: =IF(SISWA!D143=0,"",SISWA!D143) -> 136- | E143: =IF(SISWA!E143=0,"",SISWA!E143) -> 
A144: 137 | B144: =IF(SISWA!B144=0,"",SISWA!B144) ->  | C144: =IF(SISWA!C144=0,"",SISWA!C144) ->  | D144: =IF(SISWA!D144=0,"",SISWA!D144) -> 137- | E144: =IF(SISWA!E144=0,"",SISWA!E144) -> 
A145: 138 | B145: =IF(SISWA!B145=0,"",SISWA!B145) ->  | C145: =IF(SISWA!C145=0,"",SISWA!C145) ->  | D145: =IF(SISWA!D145=0,"",SISWA!D145) -> 138- | E145: =IF(SISWA!E145=0,"",SISWA!E145) -> 
A146: 139 | B146: =IF(SISWA!B146=0,"",SISWA!B146) ->  | C146: =IF(SISWA!C146=0,"",SISWA!C146) ->  | D146: =IF(SISWA!D146=0,"",SISWA!D146) -> 139- | E146: =IF(SISWA!E146=0,"",SISWA!E146) -> 
A147: 140 | B147: =IF(SISWA!B147=0,"",SISWA!B147) ->  | C147: =IF(SISWA!C147=0,"",SISWA!C147) ->  | D147: =IF(SISWA!D147=0,"",SISWA!D147) -> 140- | E147: =IF(SISWA!E147=0,"",SISWA!E147) -> 
A148: 141 | B148: =IF(SISWA!B148=0,"",SISWA!B148) ->  | C148: =IF(SISWA!C148=0,"",SISWA!C148) ->  | D148: =IF(SISWA!D148=0,"",SISWA!D148) -> 141- | E148: =IF(SISWA!E148=0,"",SISWA!E148) -> 
A149: 142 | B149: =IF(SISWA!B149=0,"",SISWA!B149) ->  | C149: =IF(SISWA!C149=0,"",SISWA!C149) ->  | D149: =IF(SISWA!D149=0,"",SISWA!D149) -> 142- | E149: =IF(SISWA!E149=0,"",SISWA!E149) -> 
A150: 143 | B150: =IF(SISWA!B150=0,"",SISWA!B150) ->  | C150: =IF(SISWA!C150=0,"",SISWA!C150) ->  | D150: =IF(SISWA!D150=0,"",SISWA!D150) -> 143- | E150: =IF(SISWA!E150=0,"",SISWA!E150) -> 
A151: 144 | B151: =IF(SISWA!B151=0,"",SISWA!B151) ->  | C151: =IF(SISWA!C151=0,"",SISWA!C151) ->  | D151: =IF(SISWA!D151=0,"",SISWA!D151) -> 144- | E151: =IF(SISWA!E151=0,"",SISWA!E151) -> 
A152: 145 | B152: =IF(SISWA!B152=0,"",SISWA!B152) ->  | C152: =IF(SISWA!C152=0,"",SISWA!C152) ->  | D152: =IF(SISWA!D152=0,"",SISWA!D152) -> 145- | E152: =IF(SISWA!E152=0,"",SISWA!E152) -> 
A153: 146 | B153: =IF(SISWA!B153=0,"",SISWA!B153) ->  | C153: =IF(SISWA!C153=0,"",SISWA!C153) ->  | D153: =IF(SISWA!D153=0,"",SISWA!D153) -> 146- | E153: =IF(SISWA!E153=0,"",SISWA!E153) -> 
A154: 147 | B154: =IF(SISWA!B154=0,"",SISWA!B154) ->  | C154: =IF(SISWA!C154=0,"",SISWA!C154) ->  | D154: =IF(SISWA!D154=0,"",SISWA!D154) -> 147- | E154: =IF(SISWA!E154=0,"",SISWA!E154) -> 
A155: 148 | B155: =IF(SISWA!B155=0,"",SISWA!B155) ->  | C155: =IF(SISWA!C155=0,"",SISWA!C155) ->  | D155: =IF(SISWA!D155=0,"",SISWA!D155) -> 148- | E155: =IF(SISWA!E155=0,"",SISWA!E155) -> 
A156: 149 | B156: =IF(SISWA!B156=0,"",SISWA!B156) ->  | C156: =IF(SISWA!C156=0,"",SISWA!C156) ->  | D156: =IF(SISWA!D156=0,"",SISWA!D156) -> 149- | E156: =IF(SISWA!E156=0,"",SISWA!E156) -> 
A157: 150 | B157: =IF(SISWA!B157=0,"",SISWA!B157) ->  | C157: =IF(SISWA!C157=0,"",SISWA!C157) ->  | D157: =IF(SISWA!D157=0,"",SISWA!D157) -> 150- | E157: =IF(SISWA!E157=0,"",SISWA!E157) -> 
A158: 151 | B158: =IF(SISWA!B158=0,"",SISWA!B158) ->  | C158: =IF(SISWA!C158=0,"",SISWA!C158) ->  | D158: =IF(SISWA!D158=0,"",SISWA!D158) -> 151- | E158: =IF(SISWA!E158=0,"",SISWA!E158) -> 
A159: 152 | B159: =IF(SISWA!B159=0,"",SISWA!B159) ->  | C159: =IF(SISWA!C159=0,"",SISWA!C159) ->  | D159: =IF(SISWA!D159=0,"",SISWA!D159) -> 152- | E159: =IF(SISWA!E159=0,"",SISWA!E159) -> 
A160: 153 | B160: =IF(SISWA!B160=0,"",SISWA!B160) ->  | C160: =IF(SISWA!C160=0,"",SISWA!C160) ->  | D160: =IF(SISWA!D160=0,"",SISWA!D160) -> 153- | E160: =IF(SISWA!E160=0,"",SISWA!E160) -> 
A161: 154 | B161: =IF(SISWA!B161=0,"",SISWA!B161) ->  | C161: =IF(SISWA!C161=0,"",SISWA!C161) ->  | D161: =IF(SISWA!D161=0,"",SISWA!D161) -> 154- | E161: =IF(SISWA!E161=0,"",SISWA!E161) -> 
A162: 155 | B162: =IF(SISWA!B162=0,"",SISWA!B162) ->  | C162: =IF(SISWA!C162=0,"",SISWA!C162) ->  | D162: =IF(SISWA!D162=0,"",SISWA!D162) -> 155- | E162: =IF(SISWA!E162=0,"",SISWA!E162) -> 
A163: 156 | B163: =IF(SISWA!B163=0,"",SISWA!B163) ->  | C163: =IF(SISWA!C163=0,"",SISWA!C163) ->  | D163: =IF(SISWA!D163=0,"",SISWA!D163) -> 156- | E163: =IF(SISWA!E163=0,"",SISWA!E163) -> 
A164: 157 | B164: =IF(SISWA!B164=0,"",SISWA!B164) ->  | C164: =IF(SISWA!C164=0,"",SISWA!C164) ->  | D164: =IF(SISWA!D164=0,"",SISWA!D164) -> 157- | E164: =IF(SISWA!E164=0,"",SISWA!E164) -> 
A165: 158 | B165: =IF(SISWA!B165=0,"",SISWA!B165) ->  | C165: =IF(SISWA!C165=0,"",SISWA!C165) ->  | D165: =IF(SISWA!D165=0,"",SISWA!D165) -> 158- | E165: =IF(SISWA!E165=0,"",SISWA!E165) -> 
A166: 159 | B166: =IF(SISWA!B166=0,"",SISWA!B166) ->  | C166: =IF(SISWA!C166=0,"",SISWA!C166) ->  | D166: =IF(SISWA!D166=0,"",SISWA!D166) -> 159- | E166: =IF(SISWA!E166=0,"",SISWA!E166) -> 
A167: 160 | B167: =IF(SISWA!B167=0,"",SISWA!B167) ->  | C167: =IF(SISWA!C167=0,"",SISWA!C167) ->  | D167: =IF(SISWA!D167=0,"",SISWA!D167) -> 160- | E167: =IF(SISWA!E167=0,"",SISWA!E167) -> 
A168: 161 | B168: =IF(SISWA!B168=0,"",SISWA!B168) ->  | C168: =IF(SISWA!C168=0,"",SISWA!C168) ->  | D168: =IF(SISWA!D168=0,"",SISWA!D168) -> 161- | E168: =IF(SISWA!E168=0,"",SISWA!E168) -> 
A169: 162 | B169: =IF(SISWA!B169=0,"",SISWA!B169) ->  | C169: =IF(SISWA!C169=0,"",SISWA!C169) ->  | D169: =IF(SISWA!D169=0,"",SISWA!D169) -> 162- | E169: =IF(SISWA!E169=0,"",SISWA!E169) -> 
A170: 163 | B170: =IF(SISWA!B170=0,"",SISWA!B170) ->  | C170: =IF(SISWA!C170=0,"",SISWA!C170) ->  | D170: =IF(SISWA!D170=0,"",SISWA!D170) -> 163- | E170: =IF(SISWA!E170=0,"",SISWA!E170) -> 
A171: 164 | B171: =IF(SISWA!B171=0,"",SISWA!B171) ->  | C171: =IF(SISWA!C171=0,"",SISWA!C171) ->  | D171: =IF(SISWA!D171=0,"",SISWA!D171) -> 164- | E171: =IF(SISWA!E171=0,"",SISWA!E171) -> 
A172: 165 | B172: =IF(SISWA!B172=0,"",SISWA!B172) ->  | C172: =IF(SISWA!C172=0,"",SISWA!C172) ->  | D172: =IF(SISWA!D172=0,"",SISWA!D172) -> 165- | E172: =IF(SISWA!E172=0,"",SISWA!E172) -> 
A173: 166 | B173: =IF(SISWA!B173=0,"",SISWA!B173) ->  | C173: =IF(SISWA!C173=0,"",SISWA!C173) ->  | D173: =IF(SISWA!D173=0,"",SISWA!D173) -> 166- | E173: =IF(SISWA!E173=0,"",SISWA!E173) -> 
A174: 167 | B174: =IF(SISWA!B174=0,"",SISWA!B174) ->  | C174: =IF(SISWA!C174=0,"",SISWA!C174) ->  | D174: =IF(SISWA!D174=0,"",SISWA!D174) -> 167- | E174: =IF(SISWA!E174=0,"",SISWA!E174) -> 
A175: 168 | B175: =IF(SISWA!B175=0,"",SISWA!B175) ->  | C175: =IF(SISWA!C175=0,"",SISWA!C175) ->  | D175: =IF(SISWA!D175=0,"",SISWA!D175) -> 168- | E175: =IF(SISWA!E175=0,"",SISWA!E175) -> 
A176: 169 | B176: =IF(SISWA!B176=0,"",SISWA!B176) ->  | C176: =IF(SISWA!C176=0,"",SISWA!C176) ->  | D176: =IF(SISWA!D176=0,"",SISWA!D176) -> 169- | E176: =IF(SISWA!E176=0,"",SISWA!E176) -> 
A177: 170 | B177: =IF(SISWA!B177=0,"",SISWA!B177) ->  | C177: =IF(SISWA!C177=0,"",SISWA!C177) ->  | D177: =IF(SISWA!D177=0,"",SISWA!D177) -> 170- | E177: =IF(SISWA!E177=0,"",SISWA!E177) -> 
A178: 171 | B178: =IF(SISWA!B178=0,"",SISWA!B178) ->  | C178: =IF(SISWA!C178=0,"",SISWA!C178) ->  | D178: =IF(SISWA!D178=0,"",SISWA!D178) -> 171- | E178: =IF(SISWA!E178=0,"",SISWA!E178) -> 
A179: 172 | B179: =IF(SISWA!B179=0,"",SISWA!B179) ->  | C179: =IF(SISWA!C179=0,"",SISWA!C179) ->  | D179: =IF(SISWA!D179=0,"",SISWA!D179) -> 172- | E179: =IF(SISWA!E179=0,"",SISWA!E179) -> 
A180: 173 | B180: =IF(SISWA!B180=0,"",SISWA!B180) ->  | C180: =IF(SISWA!C180=0,"",SISWA!C180) ->  | D180: =IF(SISWA!D180=0,"",SISWA!D180) -> 173- | E180: =IF(SISWA!E180=0,"",SISWA!E180) -> 
A181: 174 | B181: =IF(SISWA!B181=0,"",SISWA!B181) ->  | C181: =IF(SISWA!C181=0,"",SISWA!C181) ->  | D181: =IF(SISWA!D181=0,"",SISWA!D181) -> 174- | E181: =IF(SISWA!E181=0,"",SISWA!E181) -> 
A182: 175 | B182: =IF(SISWA!B182=0,"",SISWA!B182) ->  | C182: =IF(SISWA!C182=0,"",SISWA!C182) ->  | D182: =IF(SISWA!D182=0,"",SISWA!D182) -> 175- | E182: =IF(SISWA!E182=0,"",SISWA!E182) -> 
A183: 176 | B183: =IF(SISWA!B183=0,"",SISWA!B183) ->  | C183: =IF(SISWA!C183=0,"",SISWA!C183) ->  | D183: =IF(SISWA!D183=0,"",SISWA!D183) -> 176- | E183: =IF(SISWA!E183=0,"",SISWA!E183) -> 
A184: 177 | B184: =IF(SISWA!B184=0,"",SISWA!B184) ->  | C184: =IF(SISWA!C184=0,"",SISWA!C184) ->  | D184: =IF(SISWA!D184=0,"",SISWA!D184) -> 177- | E184: =IF(SISWA!E184=0,"",SISWA!E184) -> 
A185: 178 | B185: =IF(SISWA!B185=0,"",SISWA!B185) ->  | C185: =IF(SISWA!C185=0,"",SISWA!C185) ->  | D185: =IF(SISWA!D185=0,"",SISWA!D185) -> 178- | E185: =IF(SISWA!E185=0,"",SISWA!E185) -> 
A186: 179 | B186: =IF(SISWA!B186=0,"",SISWA!B186) ->  | C186: =IF(SISWA!C186=0,"",SISWA!C186) ->  | D186: =IF(SISWA!D186=0,"",SISWA!D186) -> 179- | E186: =IF(SISWA!E186=0,"",SISWA!E186) -> 
A187: 180 | B187: =IF(SISWA!B187=0,"",SISWA!B187) ->  | C187: =IF(SISWA!C187=0,"",SISWA!C187) ->  | D187: =IF(SISWA!D187=0,"",SISWA!D187) -> 180- | E187: =IF(SISWA!E187=0,"",SISWA!E187) -> 
A188: 181 | B188: =IF(SISWA!B188=0,"",SISWA!B188) ->  | C188: =IF(SISWA!C188=0,"",SISWA!C188) ->  | D188: =IF(SISWA!D188=0,"",SISWA!D188) -> 181- | E188: =IF(SISWA!E188=0,"",SISWA!E188) -> 
A189: 182 | B189: =IF(SISWA!B189=0,"",SISWA!B189) ->  | C189: =IF(SISWA!C189=0,"",SISWA!C189) ->  | D189: =IF(SISWA!D189=0,"",SISWA!D189) -> 182- | E189: =IF(SISWA!E189=0,"",SISWA!E189) -> 
A190: 183 | B190: =IF(SISWA!B190=0,"",SISWA!B190) ->  | C190: =IF(SISWA!C190=0,"",SISWA!C190) ->  | D190: =IF(SISWA!D190=0,"",SISWA!D190) -> 183- | E190: =IF(SISWA!E190=0,"",SISWA!E190) -> 
A191: 184 | B191: =IF(SISWA!B191=0,"",SISWA!B191) ->  | C191: =IF(SISWA!C191=0,"",SISWA!C191) ->  | D191: =IF(SISWA!D191=0,"",SISWA!D191) -> 184- | E191: =IF(SISWA!E191=0,"",SISWA!E191) -> 
A192: 185 | B192: =IF(SISWA!B192=0,"",SISWA!B192) ->  | C192: =IF(SISWA!C192=0,"",SISWA!C192) ->  | D192: =IF(SISWA!D192=0,"",SISWA!D192) -> 185- | E192: =IF(SISWA!E192=0,"",SISWA!E192) -> 
A193: 186 | B193: =IF(SISWA!B193=0,"",SISWA!B193) ->  | C193: =IF(SISWA!C193=0,"",SISWA!C193) ->  | D193: =IF(SISWA!D193=0,"",SISWA!D193) -> 186- | E193: =IF(SISWA!E193=0,"",SISWA!E193) -> 
A194: 187 | B194: =IF(SISWA!B194=0,"",SISWA!B194) ->  | C194: =IF(SISWA!C194=0,"",SISWA!C194) ->  | D194: =IF(SISWA!D194=0,"",SISWA!D194) -> 187- | E194: =IF(SISWA!E194=0,"",SISWA!E194) -> 
A195: 188 | B195: =IF(SISWA!B195=0,"",SISWA!B195) ->  | C195: =IF(SISWA!C195=0,"",SISWA!C195) ->  | D195: =IF(SISWA!D195=0,"",SISWA!D195) -> 188- | E195: =IF(SISWA!E195=0,"",SISWA!E195) -> 
A196: 189 | B196: =IF(SISWA!B196=0,"",SISWA!B196) ->  | C196: =IF(SISWA!C196=0,"",SISWA!C196) ->  | D196: =IF(SISWA!D196=0,"",SISWA!D196) -> 189- | E196: =IF(SISWA!E196=0,"",SISWA!E196) -> 
A197: 190 | B197: =IF(SISWA!B197=0,"",SISWA!B197) ->  | C197: =IF(SISWA!C197=0,"",SISWA!C197) ->  | D197: =IF(SISWA!D197=0,"",SISWA!D197) -> 190- | E197: =IF(SISWA!E197=0,"",SISWA!E197) -> 
A198: 191 | B198: =IF(SISWA!B198=0,"",SISWA!B198) ->  | C198: =IF(SISWA!C198=0,"",SISWA!C198) ->  | D198: =IF(SISWA!D198=0,"",SISWA!D198) -> 191- | E198: =IF(SISWA!E198=0,"",SISWA!E198) -> 
A199: 192 | B199: =IF(SISWA!B199=0,"",SISWA!B199) ->  | C199: =IF(SISWA!C199=0,"",SISWA!C199) ->  | D199: =IF(SISWA!D199=0,"",SISWA!D199) -> 192- | E199: =IF(SISWA!E199=0,"",SISWA!E199) -> 
A200: 193 | B200: =IF(SISWA!B200=0,"",SISWA!B200) ->  | C200: =IF(SISWA!C200=0,"",SISWA!C200) ->  | D200: =IF(SISWA!D200=0,"",SISWA!D200) -> 193- | E200: =IF(SISWA!E200=0,"",SISWA!E200) -> 
A201: 194 | B201: =IF(SISWA!B201=0,"",SISWA!B201) ->  | C201: =IF(SISWA!C201=0,"",SISWA!C201) ->  | D201: =IF(SISWA!D201=0,"",SISWA!D201) -> 194- | E201: =IF(SISWA!E201=0,"",SISWA!E201) ->  | K201: =AVERAGE(F201:J201) ->  | N201: =AVERAGE(L201:M201) ->  | O201: =AVERAGE(L201:M201) -> 
... 6 more rows

Sheet IPS
A1: DAFTAR NILAI AKHIR SEKOLAH
A2: =AA!A2 -> MADRASAH IBTIDAIYAH NURUL ISLAM LABRUK KIDUL
A3: =AA!A3 -> TAHUN PELAJARAN 2018/2019
A5: NO | B5: No Induk | C5: NISN | D5: Nomor Peserta | E5: Nama Peserta | F5: IPS | N5: rata-rata UAM & PRAKTEK
F6: Nilai Semester | K6: Rata- 2 | L6: NILAI UAM
F7: 7 | G7: 8 | H7: 9 | I7: 10 | J7: 11 | K7: Rapor | L7: TULIS | M7: PRAKTIK
A8: 1 | B8: =IF(SISWA!B8=0,"",SISWA!B8) -> 4270 | C8: =IF(SISWA!C8=0,"",SISWA!C8) -> 0067566336 | D8: =IF(SISWA!D8=0,"",SISWA!D8) -> 1-18-05-80-162-001-9 | E8: =IF(SISWA!E8=0,"",SISWA!E8) -> ADITYA MAULA FANDY TAULANI | F8: 81 | G8: 80 | H8: 83 | I8: 86 | J8: 87 | K8: =AVERAGE(F8:J8) -> 83.4 | L8: 65 | N8: =AVERAGE(F8:J8) -> 83.4 | O8: =AVERAGE(L8,F8:J8) -> 80.33333333
A9: 2 | B9: =IF(SISWA!B9=0,"",SISWA!B9) -> 4300 | C9: =IF(SISWA!C9=0,"",SISWA!C9) -> 0066364963 | D9: =IF(SISWA!D9=0,"",SISWA!D9) -> 1-18-05-80-162-002-8 | E9: =IF(SISWA!E9=0,"",SISWA!E9) -> AHMAD FERDIAN ALAMSYAH | F9: 66 | G9: 68 | H9: 84 | I9: 72 | J9: 79 | K9: =AVERAGE(F9:J9) -> 73.8 | L9: 65 | N9: =AVERAGE(F9:J9) -> 73.8 | O9: =AVERAGE(L9,F9:J9) -> 72.33333333
A10: 3 | B10: =IF(SISWA!B10=0,"",SISWA!B10) -> 4271 | C10: =IF(SISWA!C10=0,"",SISWA!C10) -> 0062805893 | D10: =IF(SISWA!D10=0,"",SISWA!D10) -> 1-18-05-80-162-003-7 | E10: =IF(SISWA!E10=0,"",SISWA!E10) -> AHMAD RAMADHANI FADLULLOH | F10: 74 | G10: 74 | H10: 80 | I10: 81 | J10: 84 | K10: 78.6 | L10: 65 | N10: 78.6 | O10: 76.33333333
A11: 4 | B11: =IF(SISWA!B11=0,"",SISWA!B11) -> 4398 | C11: =IF(SISWA!C11=0,"",SISWA!C11) -> 0062399399 | D11: =IF(SISWA!D11=0,"",SISWA!D11) -> 1-18-05-80-162-004-6 | E11: =IF(SISWA!E11=0,"",SISWA!E11) -> ANANDA AMILIA | F11: 72 | G11: 74 | H11: 76 | I11: 75 | J11: 84 | K11: 76.2 | L11: 65 | N11: 76.2 | O11: 74.33333333
A12: 5 | B12: =IF(SISWA!B12=0,"",SISWA!B12) -> 4272 | C12: =IF(SISWA!C12=0,"",SISWA!C12) -> 0071551428 | D12: =IF(SISWA!D12=0,"",SISWA!D12) -> 1-18-05-80-162-005-5 | E12: =IF(SISWA!E12=0,"",SISWA!E12) -> ANDINI MAULID DWI LESTARI | F12: 73 | G12: 76 | H12: 76 | I12: 74 | J12: 83 | K12: 76.4 | L12: 72 | N12: 76.4 | O12: 75.66666667
A13: 6 | B13: =IF(SISWA!B13=0,"",SISWA!B13) -> 4301 | C13: =IF(SISWA!C13=0,"",SISWA!C13) -> 0061907599 | D13: =IF(SISWA!D13=0,"",SISWA!D13) -> 1-18-05-80-162-006-4 | E13: =IF(SISWA!E13=0,"",SISWA!E13) -> ANDRIK YUSRI | F13: 64 | G13: 65 | H13: 73 | I13: 71 | J13: 79 | K13: 70.4 | L13: 65 | N13: 70.4 | O13: 69.5
A14: 7 | B14: =IF(SISWA!B14=0,"",SISWA!B14) -> 4273 | C14: =IF(SISWA!C14=0,"",SISWA!C14) -> 0067280519 | D14: =IF(SISWA!D14=0,"",SISWA!D14) -> 1-18-05-80-162-007-3 | E14: =IF(SISWA!E14=0,"",SISWA!E14) -> DEWI SAKINAH ISWARA | F14: 78 | G14: 79 | H14: 78 | I14: 76 | J14: 84 | K14: 79 | L14: 65 | N14: 79 | O14: 76.66666667
A15: 8 | B15: =IF(SISWA!B15=0,"",SISWA!B15) -> 4307 | C15: =IF(SISWA!C15=0,"",SISWA!C15) -> 0066012198 | D15: =IF(SISWA!D15=0,"",SISWA!D15) -> 1-18-05-80-162-008-2 | E15: =IF(SISWA!E15=0,"",SISWA!E15) -> CHAKIM | F15: 67 | G15: 62 | H15: 73 | I15: 71 | J15: 79 | K15: 70.4 | L15: 65 | N15: 70.4 | O15: 69.5
A16: 9 | B16: =IF(SISWA!B16=0,"",SISWA!B16) -> 4275 | C16: =IF(SISWA!C16=0,"",SISWA!C16) -> 0078199679 | D16: =IF(SISWA!D16=0,"",SISWA!D16) -> 1-18-05-80-162-009-9 | E16: =IF(SISWA!E16=0,"",SISWA!E16) -> HANIK APRILIA SARI | F16: 78 | G16: 79 | H16: 76 | I16: 77 | J16: 84 | K16: 78.8 | L16: 65 | N16: 78.8 | O16: 76.5
A17: 10 | B17: =IF(SISWA!B17=0,"",SISWA!B17) -> 4238 | C17: =IF(SISWA!C17=0,"",SISWA!C17) -> 0051503260 | D17: =IF(SISWA!D17=0,"",SISWA!D17) -> 1-18-05-80-162-010-8 | E17: =IF(SISWA!E17=0,"",SISWA!E17) -> DESI NATALIA SAPUTRI | F17: 65 | G17: 64 | H17: 74 | I17: 72 | J17: 79 | K17: 70.8 | L17: 76 | N17: 70.8 | O17: 71.66666667
A18: 11 | B18: =IF(SISWA!B18=0,"",SISWA!B18) -> 4391 | C18: =IF(SISWA!C18=0,"",SISWA!C18) -> 0079418518 | D18: =IF(SISWA!D18=0,"",SISWA!D18) -> 1-18-05-80-162-011-7 | E18: =IF(SISWA!E18=0,"",SISWA!E18) -> HIDAYATUL KHUMAINIA | F18: 68 | G18: 68 | H18: 74 | I18: 75 | J18: 84 | K18: 73.8 | L18: 65 | N18: 73.8 | O18: 72.33333333
A19: 12 | B19: =IF(SISWA!B19=0,"",SISWA!B19) -> 4274 | C19: =IF(SISWA!C19=0,"",SISWA!C19) -> 0077670297 | D19: =IF(SISWA!D19=0,"",SISWA!D19) -> 1-18-05-80-162-012-6 | E19: =IF(SISWA!E19=0,"",SISWA!E19) -> DWITA FITA WULANDARI | F19: 70 | G19: 69 | H19: 75 | I19: 74 | J19: 83 | K19: 74.2 | L19: 82 | N19: 74.2 | O19: 75.5
A20: 13 | B20: =IF(SISWA!B20=0,"",SISWA!B20) -> 4276 | C20: =IF(SISWA!C20=0,"",SISWA!C20) -> 0067236848 | D20: =IF(SISWA!D20=0,"",SISWA!D20) -> 1-18-05-80-162-013-5 | E20: =IF(SISWA!E20=0,"",SISWA!E20) -> IZZA ILMIA AZZAHRA | F20: 77 | G20: 81 | H20: 76 | I20: 75 | J20: 85 | K20: 78.8 | L20: 65 | N20: 78.8 | O20: 76.5
A21: 14 | B21: =IF(SISWA!B21=0,"",SISWA!B21) -> 4303 | C21: =IF(SISWA!C21=0,"",SISWA!C21) -> 0064031376 | D21: =IF(SISWA!D21=0,"",SISWA!D21) -> 1-18-05-80-162-014-4 | E21: =IF(SISWA!E21=0,"",SISWA!E21) -> FARIDATUS SAHDIAH | F21: 70 | G21: 67 | H21: 75 | I21: 72 | J21: 79 | K21: 72.6 | L21: 65 | N21: 72.6 | O21: 71.33333333
A22: 15 | B22: =IF(SISWA!B22=0,"",SISWA!B22) -> 4278 | C22: =IF(SISWA!C22=0,"",SISWA!C22) -> 0079672823 | D22: =IF(SISWA!D22=0,"",SISWA!D22) -> 1-18-05-80-162-015-3 | E22: =IF(SISWA!E22=0,"",SISWA!E22) -> KHARISYA AZZAHRO | F22: 84 | G22: 82 | H22: 77 | I22: 76 | J22: 93 | K22: 82.4 | L22: 65 | N22: 82.4 | O22: 79.5
A23: 16 | B23: =IF(SISWA!B23=0,"",SISWA!B23) -> 4277 | C23: =IF(SISWA!C23=0,"",SISWA!C23) -> 0077101453 | D23: =IF(SISWA!D23=0,"",SISWA!D23) -> 1-18-05-80-162-016-2 | E23: =IF(SISWA!E23=0,"",SISWA!E23) -> KARINA FEBBY CAHYA AMILIA | F23: 77 | G23: 77 | H23: 73 | I23: 72 | J23: 86 | K23: 77 | L23: 65 | N23: 77 | O23: 75
A24: 17 | B24: =IF(SISWA!B24=0,"",SISWA!B24) -> 4601 | C24: =IF(SISWA!C24=0,"",SISWA!C24) -> 0069718082 | D24: =IF(SISWA!D24=0,"",SISWA!D24) -> 1-18-05-80-162-017-9 | E24: =IF(SISWA!E24=0,"",SISWA!E24) -> MOCHAMAD RIFKY ROSAN | F24: 78 | G24: 78 | H24: 75 | I24: 76 | J24: 80 | K24: 77.4 | L24: 65 | N24: 77.4 | O24: 75.33333333
A25: 18 | B25: =IF(SISWA!B25=0,"",SISWA!B25) -> 4241 | C25: =IF(SISWA!C25=0,"",SISWA!C25) -> 0057006145 | D25: =IF(SISWA!D25=0,"",SISWA!D25) -> 1-18-05-80-162-018-8 | E25: =IF(SISWA!E25=0,"",SISWA!E25) -> KHUSNI CAHYONO | F25: 63 | G25: 69 | H25: 73 | I25: 69 | J25: 79 | K25: 70.6 | L25: 65 | N25: 70.6 | O25: 69.66666667
A26: 19 | B26: =IF(SISWA!B26=0,"",SISWA!B26) -> 4280 | C26: =IF(SISWA!C26=0,"",SISWA!C26) -> 0062061356 | D26: =IF(SISWA!D26=0,"",SISWA!D26) -> 1-18-05-80-162-019-7 | E26: =IF(SISWA!E26=0,"",SISWA!E26) -> MUCHAMMAD ALIEF FERDIANSYAH | F26: 79 | G26: 79 | H26: 78 | I26: 81 | J26: 86 | K26: 80.6 | L26: 74 | N26: 80.6 | O26: 79.5
A27: 20 | B27: =IF(SISWA!B27=0,"",SISWA!B27) -> 4306 | C27: =IF(SISWA!C27=0,"",SISWA!C27) -> 0069095925 | D27: =IF(SISWA!D27=0,"",SISWA!D27) -> 1-18-05-80-162-020-6 | E27: =IF(SISWA!E27=0,"",SISWA!E27) -> LENNY AGUSTIN NINGTYAS | F27: 65 | G27: 61 | H27: 73 | I27: 70 | J27: 79 | K27: 69.6 | L27: 65 | N27: 69.6 | O27: 68.83333333
A28: 21 | B28: =IF(SISWA!B28=0,"",SISWA!B28) -> 4281 | C28: =IF(SISWA!C28=0,"",SISWA!C28) -> 0069153972 | D28: =IF(SISWA!D28=0,"",SISWA!D28) -> 1-18-05-80-162-021-5 | E28: =IF(SISWA!E28=0,"",SISWA!E28) -> MUHAMMAD AGUS ANDRIANTO | F28: 74 | G28: 80 | H28: 74 | I28: 75 | J28: 83 | K28: 77.2 | L28: 65 | N28: 77.2 | O28: 75.16666667
A29: 22 | B29: =IF(SISWA!B29=0,"",SISWA!B29) -> 4308 | C29: =IF(SISWA!C29=0,"",SISWA!C29) -> 0063078335 | D29: =IF(SISWA!D29=0,"",SISWA!D29) -> 1-18-05-80-162-022-4 | E29: =IF(SISWA!E29=0,"",SISWA!E29) -> MAURIS HIDAYATUR ROCHMAN | F29: 73 | G29: 76 | H29: 73 | I29: 73 | J29: 86 | K29: 76.2 | L29: 65 | N29: 76.2 | O29: 74.33333333
A30: 23 | B30: =IF(SISWA!B30=0,"",SISWA!B30) -> 4314 | C30: =IF(SISWA!C30=0,"",SISWA!C30) -> 0072178353 | D30: =IF(SISWA!D30=0,"",SISWA!D30) -> 1-18-05-80-162-023-3 | E30: =IF(SISWA!E30=0,"",SISWA!E30) -> MUHAMMAD BISMAR TAUFIQUROHMAN | F30: 71 | G30: 76 | H30: 76 | I30: 77 | J30: 84 | K30: 76.8 | L30: 65 | N30: 76.8 | O30: 74.83333333
A31: 24 | B31: =IF(SISWA!B31=0,"",SISWA!B31) -> 4309 | C31: =IF(SISWA!C31=0,"",SISWA!C31) -> 0072198448 | D31: =IF(SISWA!D31=0,"",SISWA!D31) -> 1-18-05-80-162-024-2 | E31: =IF(SISWA!E31=0,"",SISWA!E31) -> MAYA BUNGA ANJANI | F31: 65 | G31: 65 | H31: 74 | I31: 72 | J31: 79 | K31: 71 | L31: 65 | N31: 71 | O31: 70
A32: 25 | B32: =IF(SISWA!B32=0,"",SISWA!B32) -> 4320 | C32: =IF(SISWA!C32=0,"",SISWA!C32) -> 0064566227 | D32: =IF(SISWA!D32=0,"",SISWA!D32) -> 1-18-05-80-162-025-9 | E32: =IF(SISWA!E32=0,"",SISWA!E32) -> MUHAMMAD SAHLAN SHODIQ | F32: 77 | G32: 78 | H32: 75 | I32: 76 | J32: 83 | K32: 77.8 | L32: 65 | N32: 77.8 | O32: 75.66666667
A33: 26 | B33: =IF(SISWA!B33=0,"",SISWA!B33) -> 4279 | C33: =IF(SISWA!C33=0,"",SISWA!C33) -> 0066637092 | D33: =IF(SISWA!D33=0,"",SISWA!D33) -> 1-18-05-80-162-026-8 | E33: =IF(SISWA!E33=0,"",SISWA!E33) -> MITA SEPTIANI ISLAMIA | F33: 66 | G33: 59 | H33: 70 | I33: 71 | J33: 79 | K33: 69 | L33: 65 | N33: 69 | O33: 68.33333333
A34: 27 | B34: =IF(SISWA!B34=0,"",SISWA!B34) -> 4321 | C34: =IF(SISWA!C34=0,"",SISWA!C34) -> 0061244045 | D34: =IF(SISWA!D34=0,"",SISWA!D34) -> 1-18-05-80-162-027-7 | E34: =IF(SISWA!E34=0,"",SISWA!E34) -> MUHAMMAD SEPTYAN EKA PRATAMA | F34: 76 | G34: 77 | H34: 76 | I34: 76 | J34: 84 | K34: 77.8 | L34: 77 | N34: 77.8 | O34: 77.66666667
A35: 28 | B35: =IF(SISWA!B35=0,"",SISWA!B35) -> 4247 | C35: =IF(SISWA!C35=0,"",SISWA!C35) -> 0053546157 | D35: =IF(SISWA!D35=0,"",SISWA!D35) -> 1-18-05-80-162-028-6 | E35: =IF(SISWA!E35=0,"",SISWA!E35) -> MOCHAMAD ARIEL FRANS TITO | F35: 65 | G35: 68 | H35: 73 | I35: 74 | J35: 79 | K35: 71.8 | L35: 65 | N35: 71.8 | O35: 70.66666667
A36: 29 | B36: =IF(SISWA!B36=0,"",SISWA!B36) -> 4285 | C36: =IF(SISWA!C36=0,"",SISWA!C36) -> 0067871553 | D36: =IF(SISWA!D36=0,"",SISWA!D36) -> 1-18-05-80-162-029-5 | E36: =IF(SISWA!E36=0,"",SISWA!E36) -> MUHAMMAD VERYANSYAH | F36: 76 | G36: 82 | H36: 80 | I36: 76 | J36: 85 | K36: 79.8 | L36: 65 | N36: 79.8 | O36: 77.33333333
A37: 30 | B37: =IF(SISWA!B37=0,"",SISWA!B37) -> 4310 | C37: =IF(SISWA!C37=0,"",SISWA!C37) -> 0066383678 | D37: =IF(SISWA!D37=0,"",SISWA!D37) -> 1-18-05-80-162-030-4 | E37: =IF(SISWA!E37=0,"",SISWA!E37) -> MOCHAMMAD BIMA RISFANDA | F37: 66 | G37: 61 | H37: 75 | I37: 75 | J37: 80 | K37: 71.4 | L37: 65 | N37: 71.4 | O37: 70.33333333
A38: 31 | B38: =IF(SISWA!B38=0,"",SISWA!B38) -> 4286 | C38: =IF(SISWA!C38=0,"",SISWA!C38) -> 0064443822 | D38: =IF(SISWA!D38=0,"",SISWA!D38) -> 1-18-05-80-162-031-3 | E38: =IF(SISWA!E38=0,"",SISWA!E38) -> MUHAMMAD ZIDNY NA'IM | F38: 82 | G38: 85 | H38: 81 | I38: 77 | J38: 85 | K38: 82 | L38: 80 | N38: 82 | O38: 81.66666667
A39: 32 | B39: =IF(SISWA!B39=0,"",SISWA!B39) -> 4282 | C39: =IF(SISWA!C39=0,"",SISWA!C39) -> 0068336765 | D39: =IF(SISWA!D39=0,"",SISWA!D39) -> 1-18-05-80-162-032-2 | E39: =IF(SISWA!E39=0,"",SISWA!E39) -> MUHAMMAD AGUS FERDIANSYAH | F39: 74 | G39: 76 | H39: 72 | I39: 72 | J39: 86 | K39: 76 | L39: 70 | N39: 76 | O39: 75
A40: 33 | B40: =IF(SISWA!B40=0,"",SISWA!B40) -> 4287 | C40: =IF(SISWA!C40=0,"",SISWA!C40) -> 0064528717 | D40: =IF(SISWA!D40=0,"",SISWA!D40) -> 1-18-05-80-162-033-9 | E40: =IF(SISWA!E40=0,"",SISWA!E40) -> MUHAMMAD FARDAN ABDILLAH | F40: 74 | H40: 71 | I40: 68 | K40: 71 | L40: 65 | N40: 71 | O40: 69.5
A41: 34 | B41: =IF(SISWA!B41=0,"",SISWA!B41) -> 4315 | C41: =IF(SISWA!C41=0,"",SISWA!C41) -> 0067870495 | D41: =IF(SISWA!D41=0,"",SISWA!D41) -> 1-18-05-80-162-034-8 | E41: =IF(SISWA!E41=0,"",SISWA!E41) -> NABILA ARISKA PUTRI | F41: 79 | G41: 76 | H41: 80 | I41: 77 | J41: 83 | K41: 79 | L41: 65 | N41: 79 | O41: 76.66666667
A42: 35 | B42: =IF(SISWA!B42=0,"",SISWA!B42) -> 4288 | C42: =IF(SISWA!C42=0,"",SISWA!C42) -> 0068641191 | D42: =IF(SISWA!D42=0,"",SISWA!D42) -> 1-18-05-80-162-035-7 | E42: =IF(SISWA!E42=0,"",SISWA!E42) -> MUHAMMAD FERDINAN JAYYIDAH RIFQI | F42: 76 | G42: 76 | H42: 74 | I42: 70 | J42: 84 | K42: 76 | L42: 65 | N42: 76 | O42: 74.16666667
A43: 36 | B43: =IF(SISWA!B43=0,"",SISWA!B43) -> 4283 | C43: =IF(SISWA!C43=0,"",SISWA!C43) -> 0077212388 | D43: =IF(SISWA!D43=0,"",SISWA!D43) -> 1-18-05-80-162-036-6 | E43: =IF(SISWA!E43=0,"",SISWA!E43) -> NAFISA INDRIANI | F43: 78 | G43: 81 | H43: 88 | I43: 84 | J43: 88 | K43: 83.8 | L43: 70 | N43: 83.8 | O43: 81.5
A44: 37 | B44: =IF(SISWA!B44=0,"",SISWA!B44) -> 4257 | C44: =IF(SISWA!C44=0,"",SISWA!C44) -> 0069944706 | D44: =IF(SISWA!D44=0,"",SISWA!D44) -> 1-18-05-80-162-037-5 | E44: =IF(SISWA!E44=0,"",SISWA!E44) -> MUHAMMAD FIRMANSYAH | F44: 68 | G44: 65 | H44: 76 | I44: 76 | J44: 80 | K44: 73 | L44: 65 | N44: 73 | O44: 71.66666667
A45: 38 | B45: =IF(SISWA!B45=0,"",SISWA!B45) -> 4317 | C45: =IF(SISWA!C45=0,"",SISWA!C45) -> 0068498059 | D45: =IF(SISWA!D45=0,"",SISWA!D45) -> 1-18-05-80-162-038-4 | E45: =IF(SISWA!E45=0,"",SISWA!E45) -> NAJWA FARISYA BAROROH | F45: 75 | G45: 76 | H45: 75 | I45: 78 | J45: 84 | K45: 77.6 | L45: 65 | N45: 77.6 | O45: 75.5
A46: 39 | B46: =IF(SISWA!B46=0,"",SISWA!B46) -> 4289 | C46: =IF(SISWA!C46=0,"",SISWA!C46) -> 0065225517 | D46: =IF(SISWA!D46=0,"",SISWA!D46) -> 1-18-05-80-162-039-3 | E46: =IF(SISWA!E46=0,"",SISWA!E46) -> NUR FITRIYAH | F46: 74 | G46: 77 | H46: 76 | I46: 75 | J46: 84 | K46: 77.2 | L46: 65 | N46: 77.2 | O46: 75.16666667
A47: 40 | B47: =IF(SISWA!B47=0,"",SISWA!B47) -> 4318 | C47: =IF(SISWA!C47=0,"",SISWA!C47) -> 0061441364 | D47: =IF(SISWA!D47=0,"",SISWA!D47) -> 1-18-05-80-162-040-2 | E47: =IF(SISWA!E47=0,"",SISWA!E47) -> MUHAMMAD HILDAN DWI SAPUTRA | F47: 67 | G47: 67 | H47: 71 | I47: 70 | J47: 79 | K47: 70.8 | L47: 65 | N47: 70.8 | O47: 69.83333333
A48: 41 | B48: =IF(SISWA!B48=0,"",SISWA!B48) -> 4392 | C48: =IF(SISWA!C48=0,"",SISWA!C48) -> 0075794532 | D48: =IF(SISWA!D48=0,"",SISWA!D48) -> 1-18-05-80-162-041-9 | E48: =IF(SISWA!E48=0,"",SISWA!E48) -> PUTRI NAFI'ATUS SOLIKHAH | F48: 72 | G48: 67 | H48: 74 | I48: 72 | J48: 83 | K48: 73.6 | L48: 65 | N48: 73.6 | O48: 72.16666667
A49: 42 | B49: =IF(SISWA!B49=0,"",SISWA!B49) -> 4284 | C49: =IF(SISWA!C49=0,"",SISWA!C49) -> 0069578000 | D49: =IF(SISWA!D49=0,"",SISWA!D49) -> 1-18-05-80-162-042-8 | E49: =IF(SISWA!E49=0,"",SISWA!E49) -> MUHAMMAD RAYA KAFAF JAUHARI | F49: 79 | G49: 72 | H49: 74 | I49: 76 | J49: 80 | K49: 76.2 | L49: 65 | N49: 76.2 | O49: 74.33333333
A50: 43 | B50: =IF(SISWA!B50=0,"",SISWA!B50) -> 4290 | C50: =IF(SISWA!C50=0,"",SISWA!C50) -> 0063558216 | D50: =IF(SISWA!D50=0,"",SISWA!D50) -> 1-18-05-80-162-043-7 | E50: =IF(SISWA!E50=0,"",SISWA!E50) -> QORIATUN SHOLIHAH | F50: 77 | G50: 76 | H50: 79 | I50: 76 | J50: 85 | K50: 78.6 | L50: 68 | N50: 78.6 | O50: 76.83333333
A51: 44 | B51: =IF(SISWA!B51=0,"",SISWA!B51) -> 4319 | C51: =IF(SISWA!C51=0,"",SISWA!C51) -> 0065329770 | D51: =IF(SISWA!D51=0,"",SISWA!D51) -> 1-18-05-80-162-044-6 | E51: =IF(SISWA!E51=0,"",SISWA!E51) -> MUHAMMAD RUDI TANTOWIK | F51: 65 | G51: 61 | H51: 74 | I51: 71 | J51: 79 | K51: 70 | L51: 77 | N51: 70 | O51: 71.16666667
A52: 45 | B52: =IF(SISWA!B52=0,"",SISWA!B52) -> 4291 | C52: =IF(SISWA!C52=0,"",SISWA!C52) -> 0067071679 | D52: =IF(SISWA!D52=0,"",SISWA!D52) -> 1-18-05-80-162-045-5 | E52: =IF(SISWA!E52=0,"",SISWA!E52) -> RACHMAD HIDAYAT | F52: 74 | G52: 74 | H52: 77 | I52: 75 | J52: 81 | K52: 76.2 | L52: 72 | N52: 76.2 | O52: 75.5
A53: 46 | B53: =IF(SISWA!B53=0,"",SISWA!B53) -> 4322 | C53: =IF(SISWA!C53=0,"",SISWA!C53) -> 0051101989 | D53: =IF(SISWA!D53=0,"",SISWA!D53) -> 1-18-05-80-162-046-4 | E53: =IF(SISWA!E53=0,"",SISWA!E53) -> MUHAMMAD ZULDIENUR HABIBIE | F53: 63 | G53: 64 | H53: 72 | I53: 72 | J53: 79 | K53: 70 | L53: 77 | N53: 70 | O53: 71.16666667
A54: 47 | B54: =IF(SISWA!B54=0,"",SISWA!B54) -> 4292 | C54: =IF(SISWA!C54=0,"",SISWA!C54) -> 0072001696 | D54: =IF(SISWA!D54=0,"",SISWA!D54) -> 1-18-05-80-162-047-3 | E54: =IF(SISWA!E54=0,"",SISWA!E54) -> RHEA RAYSHANADA NUGRAHA | F54: 77 | G54: 77 | H54: 79 | I54: 77 | J54: 84 | K54: 78.8 | L54: 65 | N54: 78.8 | O54: 76.5
A55: 48 | B55: =IF(SISWA!B55=0,"",SISWA!B55) -> 4323 | C55: =IF(SISWA!C55=0,"",SISWA!C55) -> 0078949167 | D55: =IF(SISWA!D55=0,"",SISWA!D55) -> 1-18-05-80-162-048-2 | E55: =IF(SISWA!E55=0,"",SISWA!E55) -> MUKHAMAD KHOIRUL AMIN | F55: 66 | G55: 67 | H55: 76 | I55: 73 | J55: 80 | K55: 72.4 | L55: 68 | N55: 72.4 | O55: 71.66666667
A56: 49 | B56: =IF(SISWA!B56=0,"",SISWA!B56) -> 4293 | C56: =IF(SISWA!C56=0,"",SISWA!C56) -> 0064217705 | D56: =IF(SISWA!D56=0,"",SISWA!D56) -> 1-18-05-80-162-049-9 | E56: =IF(SISWA!E56=0,"",SISWA!E56) -> RIYANTI APRILIA | F56: 79 | G56: 75 | H56: 74 | I56: 72 | J56: 85 | K56: 77 | L56: 65 | N56: 77 | O56: 75
A57: 50 | B57: =IF(SISWA!B57=0,"",SISWA!B57) -> 4256 | C57: =IF(SISWA!C57=0,"",SISWA!C57) -> 0065699742 | D57: =IF(SISWA!D57=0,"",SISWA!D57) -> 1-18-05-80-162-050-8 | E57: =IF(SISWA!E57=0,"",SISWA!E57) -> MUKHAMMAD YAASIIN HASAN KHASBULLOH | F57: 71 | G57: 69 | H57: 74 | I57: 73 | J57: 82 | K57: 73.8 | L57: 65 | N57: 73.8 | O57: 72.33333333
A58: 51 | B58: =IF(SISWA!B58=0,"",SISWA!B58) -> 4295 | C58: =IF(SISWA!C58=0,"",SISWA!C58) -> 0061359184 | D58: =IF(SISWA!D58=0,"",SISWA!D58) -> 1-18-05-80-162-051-7 | E58: =IF(SISWA!E58=0,"",SISWA!E58) -> SHONIA AULIA AS'AD | F58: 82 | G58: 84 | H58: 82 | I58: 83 | J58: 94 | K58: 85 | L58: 65 | N58: 85 | O58: 81.66666667
A59: 52 | B59: =IF(SISWA!B59=0,"",SISWA!B59) -> 4294 | C59: =IF(SISWA!C59=0,"",SISWA!C59) -> 0064723905 | D59: =IF(SISWA!D59=0,"",SISWA!D59) -> 1-18-05-80-162-052-6 | E59: =IF(SISWA!E59=0,"",SISWA!E59) -> RIZKA AYU WULANDARI | F59: 74 | G59: 74 | H59: 75 | I59: 75 | J59: 80 | K59: 75.6 | L59: 76 | N59: 75.6 | O59: 75.66666667
A60: 53 | B60: =IF(SISWA!B60=0,"",SISWA!B60) -> 4298 | C60: =IF(SISWA!C60=0,"",SISWA!C60) -> 0065530554 | D60: =IF(SISWA!D60=0,"",SISWA!D60) -> 1-18-05-80-162-053-5 | E60: =IF(SISWA!E60=0,"",SISWA!E60) -> VERLINA DWI MAULANI | F60: 78 | G60: 77 | H60: 79 | I60: 78 | J60: 84 | K60: 79.2 | L60: 76 | N60: 79.2 | O60: 78.66666667
A61: 54 | B61: =IF(SISWA!B61=0,"",SISWA!B61) -> 4297 | C61: =IF(SISWA!C61=0,"",SISWA!C61) -> 0063846732 | D61: =IF(SISWA!D61=0,"",SISWA!D61) -> 1-18-05-80-162-054-4 | E61: =IF(SISWA!E61=0,"",SISWA!E61) -> USWATUN KHASANAH | F61: 69 | G61: 69 | H61: 74 | I61: 73 | J61: 84 | K61: 73.8 | L61: 65 | N61: 73.8 | O61: 72.33333333
A62: 55 | B62: =IF(SISWA!B62=0,"",SISWA!B62) -> 4324 | C62: =IF(SISWA!C62=0,"",SISWA!C62) -> 0078966795 | D62: =IF(SISWA!D62=0,"",SISWA!D62) -> 1-18-05-80-162-055-3 | E62: =IF(SISWA!E62=0,"",SISWA!E62) -> VIKA KUSUMA WATI | F62: 76 | G62: 76 | H62: 74 | I62: 76 | J62: 83 | K62: 77 | L62: 65 | N62: 77 | O62: 75
A63: 56 | B63: =IF(SISWA!B63=0,"",SISWA!B63) -> 4326 | C63: =IF(SISWA!C63=0,"",SISWA!C63) -> 0064124533 | D63: =IF(SISWA!D63=0,"",SISWA!D63) -> 1-18-05-80-162-056-2 | E63: =IF(SISWA!E63=0,"",SISWA!E63) -> YOHAN EGA GILANG PERMANA | F63: 66 | H63: 70 | I63: 70 | J63: 79 | K63: 71.25 | L63: 65 | N63: 71.25 | O63: 70
A64: 57 | B64: =IF(SISWA!B64=0,"",SISWA!B64) ->  | C64: =IF(SISWA!C64=0,"",SISWA!C64) ->  | D64: =IF(SISWA!D64=0,"",SISWA!D64) -> 1-18-05-80-162-057-9 | E64: =IF(SISWA!E64=0,"",SISWA!E64) ->  | K64: =AVERAGE(F64:J64) -> 
A65: 58 | B65: =IF(SISWA!B65=0,"",SISWA!B65) ->  | C65: =IF(SISWA!C65=0,"",SISWA!C65) ->  | D65: =IF(SISWA!D65=0,"",SISWA!D65) -> 1-18-05-80-162-058-8 | E65: =IF(SISWA!E65=0,"",SISWA!E65) -> 
A66: 59 | B66: =IF(SISWA!B66=0,"",SISWA!B66) ->  | C66: =IF(SISWA!C66=0,"",SISWA!C66) ->  | D66: =IF(SISWA!D66=0,"",SISWA!D66) -> 1-18-05-80-162-059-7 | E66: =IF(SISWA!E66=0,"",SISWA!E66) -> 
A67: 60 | B67: =IF(SISWA!B67=0,"",SISWA!B67) ->  | C67: =IF(SISWA!C67=0,"",SISWA!C67) ->  | D67: =IF(SISWA!D67=0,"",SISWA!D67) -> 1-18-05-80-162-060-6 | E67: =IF(SISWA!E67=0,"",SISWA!E67) -> 
A68: 61 | B68: =IF(SISWA!B68=0,"",SISWA!B68) ->  | C68: =IF(SISWA!C68=0,"",SISWA!C68) ->  | D68: =IF(SISWA!D68=0,"",SISWA!D68) -> 1-18-05-80-162-061-5 | E68: =IF(SISWA!E68=0,"",SISWA!E68) ->  | K68: =AVERAGE(F68:J68) -> 
A69: 62 | B69: =IF(SISWA!B69=0,"",SISWA!B69) ->  | C69: =IF(SISWA!C69=0,"",SISWA!C69) ->  | D69: =IF(SISWA!D69=0,"",SISWA!D69) -> 062-4 | E69: =IF(SISWA!E69=0,"",SISWA!E69) -> 
A70: 63 | B70: =IF(SISWA!B70=0,"",SISWA!B70) ->  | C70: =IF(SISWA!C70=0,"",SISWA!C70) ->  | D70: =IF(SISWA!D70=0,"",SISWA!D70) -> 063-3 | E70: =IF(SISWA!E70=0,"",SISWA!E70) -> 
A71: 64 | B71: =IF(SISWA!B71=0,"",SISWA!B71) ->  | C71: =IF(SISWA!C71=0,"",SISWA!C71) ->  | D71: =IF(SISWA!D71=0,"",SISWA!D71) -> 064-2 | E71: =IF(SISWA!E71=0,"",SISWA!E71) -> 
A72: 65 | B72: =IF(SISWA!B72=0,"",SISWA!B72) ->  | C72: =IF(SISWA!C72=0,"",SISWA!C72) ->  | D72: =IF(SISWA!D72=0,"",SISWA!D72) -> 065- | E72: =IF(SISWA!E72=0,"",SISWA!E72) -> 
A73: 66 | B73: =IF(SISWA!B73=0,"",SISWA!B73) ->  | C73: =IF(SISWA!C73=0,"",SISWA!C73) ->  | D73: =IF(SISWA!D73=0,"",SISWA!D73) -> 066- | E73: =IF(SISWA!E73=0,"",SISWA!E73) -> 
A74: 67 | B74: =IF(SISWA!B74=0,"",SISWA!B74) ->  | C74: =IF(SISWA!C74=0,"",SISWA!C74) ->  | D74: =IF(SISWA!D74=0,"",SISWA!D74) -> 067- | E74: =IF(SISWA!E74=0,"",SISWA!E74) -> 
A75: 68 | B75: =IF(SISWA!B75=0,"",SISWA!B75) ->  | C75: =IF(SISWA!C75=0,"",SISWA!C75) ->  | D75: =IF(SISWA!D75=0,"",SISWA!D75) -> 068- | E75: =IF(SISWA!E75=0,"",SISWA!E75) -> 
A76: 69 | B76: =IF(SISWA!B76=0,"",SISWA!B76) ->  | C76: =IF(SISWA!C76=0,"",SISWA!C76) ->  | D76: =IF(SISWA!D76=0,"",SISWA!D76) -> 069- | E76: =IF(SISWA!E76=0,"",SISWA!E76) -> 
A77: 70 | B77: =IF(SISWA!B77=0,"",SISWA!B77) ->  | C77: =IF(SISWA!C77=0,"",SISWA!C77) ->  | D77: =IF(SISWA!D77=0,"",SISWA!D77) -> 070- | E77: =IF(SISWA!E77=0,"",SISWA!E77) -> 
A78: 71 | B78: =IF(SISWA!B78=0,"",SISWA!B78) ->  | C78: =IF(SISWA!C78=0,"",SISWA!C78) ->  | D78: =IF(SISWA!D78=0,"",SISWA!D78) -> 071- | E78: =IF(SISWA!E78=0,"",SISWA!E78) -> 
A79: 72 | B79: =IF(SISWA!B79=0,"",SISWA!B79) ->  | C79: =IF(SISWA!C79=0,"",SISWA!C79) ->  | D79: =IF(SISWA!D79=0,"",SISWA!D79) -> 072- | E79: =IF(SISWA!E79=0,"",SISWA!E79) -> 
A80: 73 | B80: =IF(SISWA!B80=0,"",SISWA!B80) ->  | C80: =IF(SISWA!C80=0,"",SISWA!C80) ->  | D80: =IF(SISWA!D80=0,"",SISWA!D80) -> 073- | E80: =IF(SISWA!E80=0,"",SISWA!E80) -> 
A81: 74 | B81: =IF(SISWA!B81=0,"",SISWA!B81) ->  | C81: =IF(SISWA!C81=0,"",SISWA!C81) ->  | D81: =IF(SISWA!D81=0,"",SISWA!D81) -> 074- | E81: =IF(SISWA!E81=0,"",SISWA!E81) -> 
A82: 75 | B82: =IF(SISWA!B82=0,"",SISWA!B82) ->  | C82: =IF(SISWA!C82=0,"",SISWA!C82) ->  | D82: =IF(SISWA!D82=0,"",SISWA!D82) -> 075- | E82: =IF(SISWA!E82=0,"",SISWA!E82) -> 
A83: 76 | B83: =IF(SISWA!B83=0,"",SISWA!B83) ->  | C83: =IF(SISWA!C83=0,"",SISWA!C83) ->  | D83: =IF(SISWA!D83=0,"",SISWA!D83) -> 076- | E83: =IF(SISWA!E83=0,"",SISWA!E83) -> 
A84: 77 | B84: =IF(SISWA!B84=0,"",SISWA!B84) ->  | C84: =IF(SISWA!C84=0,"",SISWA!C84) ->  | D84: =IF(SISWA!D84=0,"",SISWA!D84) -> 077- | E84: =IF(SISWA!E84=0,"",SISWA!E84) -> 
A85: 78 | B85: =IF(SISWA!B85=0,"",SISWA!B85) ->  | C85: =IF(SISWA!C85=0,"",SISWA!C85) ->  | D85: =IF(SISWA!D85=0,"",SISWA!D85) -> 078- | E85: =IF(SISWA!E85=0,"",SISWA!E85) -> 
A86: 79 | B86: =IF(SISWA!B86=0,"",SISWA!B86) ->  | C86: =IF(SISWA!C86=0,"",SISWA!C86) ->  | D86: =IF(SISWA!D86=0,"",SISWA!D86) -> 079- | E86: =IF(SISWA!E86=0,"",SISWA!E86) -> 
A87: 80 | B87: =IF(SISWA!B87=0,"",SISWA!B87) ->  | C87: =IF(SISWA!C87=0,"",SISWA!C87) ->  | D87: =IF(SISWA!D87=0,"",SISWA!D87) -> 080- | E87: =IF(SISWA!E87=0,"",SISWA!E87) -> 
A88: 81 | B88: =IF(SISWA!B88=0,"",SISWA!B88) ->  | C88: =IF(SISWA!C88=0,"",SISWA!C88) ->  | D88: =IF(SISWA!D88=0,"",SISWA!D88) -> 081- | E88: =IF(SISWA!E88=0,"",SISWA!E88) -> 
A89: 82 | B89: =IF(SISWA!B89=0,"",SISWA!B89) ->  | C89: =IF(SISWA!C89=0,"",SISWA!C89) ->  | D89: =IF(SISWA!D89=0,"",SISWA!D89) -> 082- | E89: =IF(SISWA!E89=0,"",SISWA!E89) -> 
A90: 83 | B90: =IF(SISWA!B90=0,"",SISWA!B90) ->  | C90: =IF(SISWA!C90=0,"",SISWA!C90) ->  | D90: =IF(SISWA!D90=0,"",SISWA!D90) -> 083- | E90: =IF(SISWA!E90=0,"",SISWA!E90) -> 
A91: 84 | B91: =IF(SISWA!B91=0,"",SISWA!B91) ->  | C91: =IF(SISWA!C91=0,"",SISWA!C91) ->  | D91: =IF(SISWA!D91=0,"",SISWA!D91) -> 084- | E91: =IF(SISWA!E91=0,"",SISWA!E91) -> 
A92: 85 | B92: =IF(SISWA!B92=0,"",SISWA!B92) ->  | C92: =IF(SISWA!C92=0,"",SISWA!C92) ->  | D92: =IF(SISWA!D92=0,"",SISWA!D92) -> 085- | E92: =IF(SISWA!E92=0,"",SISWA!E92) -> 
A93: 86 | B93: =IF(SISWA!B93=0,"",SISWA!B93) ->  | C93: =IF(SISWA!C93=0,"",SISWA!C93) ->  | D93: =IF(SISWA!D93=0,"",SISWA!D93) -> 086- | E93: =IF(SISWA!E93=0,"",SISWA!E93) -> 
A94: 87 | B94: =IF(SISWA!B94=0,"",SISWA!B94) ->  | C94: =IF(SISWA!C94=0,"",SISWA!C94) ->  | D94: =IF(SISWA!D94=0,"",SISWA!D94) -> 087- | E94: =IF(SISWA!E94=0,"",SISWA!E94) -> 
A95: 88 | B95: =IF(SISWA!B95=0,"",SISWA!B95) ->  | C95: =IF(SISWA!C95=0,"",SISWA!C95) ->  | D95: =IF(SISWA!D95=0,"",SISWA!D95) -> 088- | E95: =IF(SISWA!E95=0,"",SISWA!E95) -> 
A96: 89 | B96: =IF(SISWA!B96=0,"",SISWA!B96) ->  | C96: =IF(SISWA!C96=0,"",SISWA!C96) ->  | D96: =IF(SISWA!D96=0,"",SISWA!D96) -> 089- | E96: =IF(SISWA!E96=0,"",SISWA!E96) -> 
A97: 90 | B97: =IF(SISWA!B97=0,"",SISWA!B97) ->  | C97: =IF(SISWA!C97=0,"",SISWA!C97) ->  | D97: =IF(SISWA!D97=0,"",SISWA!D97) -> 090- | E97: =IF(SISWA!E97=0,"",SISWA!E97) -> 
A98: 91 | B98: =IF(SISWA!B98=0,"",SISWA!B98) ->  | C98: =IF(SISWA!C98=0,"",SISWA!C98) ->  | D98: =IF(SISWA!D98=0,"",SISWA!D98) -> 091- | E98: =IF(SISWA!E98=0,"",SISWA!E98) -> 
A99: 92 | B99: =IF(SISWA!B99=0,"",SISWA!B99) ->  | C99: =IF(SISWA!C99=0,"",SISWA!C99) ->  | D99: =IF(SISWA!D99=0,"",SISWA!D99) -> 092- | E99: =IF(SISWA!E99=0,"",SISWA!E99) -> 
A100: 93 | B100: =IF(SISWA!B100=0,"",SISWA!B100) ->  | C100: =IF(SISWA!C100=0,"",SISWA!C100) ->  | D100: =IF(SISWA!D100=0,"",SISWA!D100) -> 093- | E100: =IF(SISWA!E100=0,"",SISWA!E100) -> 
A101: 94 | B101: =IF(SISWA!B101=0,"",SISWA!B101) ->  | C101: =IF(SISWA!C101=0,"",SISWA!C101) ->  | D101: =IF(SISWA!D101=0,"",SISWA!D101) -> 094- | E101: =IF(SISWA!E101=0,"",SISWA!E101) -> 
A102: 95 | B102: =IF(SISWA!B102=0,"",SISWA!B102) ->  | C102: =IF(SISWA!C102=0,"",SISWA!C102) ->  | D102: =IF(SISWA!D102=0,"",SISWA!D102) -> 095- | E102: =IF(SISWA!E102=0,"",SISWA!E102) -> 
A103: 96 | B103: =IF(SISWA!B103=0,"",SISWA!B103) ->  | C103: =IF(SISWA!C103=0,"",SISWA!C103) ->  | D103: =IF(SISWA!D103=0,"",SISWA!D103) -> 096- | E103: =IF(SISWA!E103=0,"",SISWA!E103) -> 
A104: 97 | B104: =IF(SISWA!B104=0,"",SISWA!B104) ->  | C104: =IF(SISWA!C104=0,"",SISWA!C104) ->  | D104: =IF(SISWA!D104=0,"",SISWA!D104) -> 097- | E104: =IF(SISWA!E104=0,"",SISWA!E104) -> 
A105: 98 | B105: =IF(SISWA!B105=0,"",SISWA!B105) ->  | C105: =IF(SISWA!C105=0,"",SISWA!C105) ->  | D105: =IF(SISWA!D105=0,"",SISWA!D105) -> 098- | E105: =IF(SISWA!E105=0,"",SISWA!E105) -> 
A106: 99 | B106: =IF(SISWA!B106=0,"",SISWA!B106) ->  | C106: =IF(SISWA!C106=0,"",SISWA!C106) ->  | D106: =IF(SISWA!D106=0,"",SISWA!D106) -> 099- | E106: =IF(SISWA!E106=0,"",SISWA!E106) -> 
A107: 100 | B107: =IF(SISWA!B107=0,"",SISWA!B107) ->  | C107: =IF(SISWA!C107=0,"",SISWA!C107) ->  | D107: =IF(SISWA!D107=0,"",SISWA!D107) -> 100- | E107: =IF(SISWA!E107=0,"",SISWA!E107) -> 
A108: 101 | B108: =IF(SISWA!B108=0,"",SISWA!B108) ->  | C108: =IF(SISWA!C108=0,"",SISWA!C108) ->  | D108: =IF(SISWA!D108=0,"",SISWA!D108) -> 101- | E108: =IF(SISWA!E108=0,"",SISWA!E108) -> 
A109: 102 | B109: =IF(SISWA!B109=0,"",SISWA!B109) ->  | C109: =IF(SISWA!C109=0,"",SISWA!C109) ->  | D109: =IF(SISWA!D109=0,"",SISWA!D109) -> 102- | E109: =IF(SISWA!E109=0,"",SISWA!E109) -> 
A110: 103 | B110: =IF(SISWA!B110=0,"",SISWA!B110) ->  | C110: =IF(SISWA!C110=0,"",SISWA!C110) ->  | D110: =IF(SISWA!D110=0,"",SISWA!D110) -> 103- | E110: =IF(SISWA!E110=0,"",SISWA!E110) -> 
A111: 104 | B111: =IF(SISWA!B111=0,"",SISWA!B111) ->  | C111: =IF(SISWA!C111=0,"",SISWA!C111) ->  | D111: =IF(SISWA!D111=0,"",SISWA!D111) -> 104- | E111: =IF(SISWA!E111=0,"",SISWA!E111) -> 
A112: 105 | B112: =IF(SISWA!B112=0,"",SISWA!B112) ->  | C112: =IF(SISWA!C112=0,"",SISWA!C112) ->  | D112: =IF(SISWA!D112=0,"",SISWA!D112) -> 105- | E112: =IF(SISWA!E112=0,"",SISWA!E112) -> 
A113: 106 | B113: =IF(SISWA!B113=0,"",SISWA!B113) ->  | C113: =IF(SISWA!C113=0,"",SISWA!C113) ->  | D113: =IF(SISWA!D113=0,"",SISWA!D113) -> 106- | E113: =IF(SISWA!E113=0,"",SISWA!E113) -> 
A114: 107 | B114: =IF(SISWA!B114=0,"",SISWA!B114) ->  | C114: =IF(SISWA!C114=0,"",SISWA!C114) ->  | D114: =IF(SISWA!D114=0,"",SISWA!D114) -> 107- | E114: =IF(SISWA!E114=0,"",SISWA!E114) -> 
A115: 108 | B115: =IF(SISWA!B115=0,"",SISWA!B115) ->  | C115: =IF(SISWA!C115=0,"",SISWA!C115) ->  | D115: =IF(SISWA!D115=0,"",SISWA!D115) -> 108- | E115: =IF(SISWA!E115=0,"",SISWA!E115) -> 
A116: 109 | B116: =IF(SISWA!B116=0,"",SISWA!B116) ->  | C116: =IF(SISWA!C116=0,"",SISWA!C116) ->  | D116: =IF(SISWA!D116=0,"",SISWA!D116) -> 109- | E116: =IF(SISWA!E116=0,"",SISWA!E116) -> 
A117: 110 | B117: =IF(SISWA!B117=0,"",SISWA!B117) ->  | C117: =IF(SISWA!C117=0,"",SISWA!C117) ->  | D117: =IF(SISWA!D117=0,"",SISWA!D117) -> 110- | E117: =IF(SISWA!E117=0,"",SISWA!E117) -> 
A118: 111 | B118: =IF(SISWA!B118=0,"",SISWA!B118) ->  | C118: =IF(SISWA!C118=0,"",SISWA!C118) ->  | D118: =IF(SISWA!D118=0,"",SISWA!D118) -> 111- | E118: =IF(SISWA!E118=0,"",SISWA!E118) -> 
A119: 112 | B119: =IF(SISWA!B119=0,"",SISWA!B119) ->  | C119: =IF(SISWA!C119=0,"",SISWA!C119) ->  | D119: =IF(SISWA!D119=0,"",SISWA!D119) -> 112- | E119: =IF(SISWA!E119=0,"",SISWA!E119) -> 
A120: 113 | B120: =IF(SISWA!B120=0,"",SISWA!B120) ->  | C120: =IF(SISWA!C120=0,"",SISWA!C120) ->  | D120: =IF(SISWA!D120=0,"",SISWA!D120) -> 113- | E120: =IF(SISWA!E120=0,"",SISWA!E120) -> 
A121: 114 | B121: =IF(SISWA!B121=0,"",SISWA!B121) ->  | C121: =IF(SISWA!C121=0,"",SISWA!C121) ->  | D121: =IF(SISWA!D121=0,"",SISWA!D121) -> 114- | E121: =IF(SISWA!E121=0,"",SISWA!E121) -> 
A122: 115 | B122: =IF(SISWA!B122=0,"",SISWA!B122) ->  | C122: =IF(SISWA!C122=0,"",SISWA!C122) ->  | D122: =IF(SISWA!D122=0,"",SISWA!D122) -> 115- | E122: =IF(SISWA!E122=0,"",SISWA!E122) -> 
A123: 116 | B123: =IF(SISWA!B123=0,"",SISWA!B123) ->  | C123: =IF(SISWA!C123=0,"",SISWA!C123) ->  | D123: =IF(SISWA!D123=0,"",SISWA!D123) -> 116- | E123: =IF(SISWA!E123=0,"",SISWA!E123) -> 
A124: 117 | B124: =IF(SISWA!B124=0,"",SISWA!B124) ->  | C124: =IF(SISWA!C124=0,"",SISWA!C124) ->  | D124: =IF(SISWA!D124=0,"",SISWA!D124) -> 117- | E124: =IF(SISWA!E124=0,"",SISWA!E124) -> 
A125: 118 | B125: =IF(SISWA!B125=0,"",SISWA!B125) ->  | C125: =IF(SISWA!C125=0,"",SISWA!C125) ->  | D125: =IF(SISWA!D125=0,"",SISWA!D125) -> 118- | E125: =IF(SISWA!E125=0,"",SISWA!E125) -> 
A126: 119 | B126: =IF(SISWA!B126=0,"",SISWA!B126) ->  | C126: =IF(SISWA!C126=0,"",SISWA!C126) ->  | D126: =IF(SISWA!D126=0,"",SISWA!D126) -> 119- | E126: =IF(SISWA!E126=0,"",SISWA!E126) -> 
A127: 120 | B127: =IF(SISWA!B127=0,"",SISWA!B127) ->  | C127: =IF(SISWA!C127=0,"",SISWA!C127) ->  | D127: =IF(SISWA!D127=0,"",SISWA!D127) -> 120- | E127: =IF(SISWA!E127=0,"",SISWA!E127) -> 
A128: 121 | B128: =IF(SISWA!B128=0,"",SISWA!B128) ->  | C128: =IF(SISWA!C128=0,"",SISWA!C128) ->  | D128: =IF(SISWA!D128=0,"",SISWA!D128) -> 121- | E128: =IF(SISWA!E128=0,"",SISWA!E128) -> 
A129: 122 | B129: =IF(SISWA!B129=0,"",SISWA!B129) ->  | C129: =IF(SISWA!C129=0,"",SISWA!C129) ->  | D129: =IF(SISWA!D129=0,"",SISWA!D129) -> 122- | E129: =IF(SISWA!E129=0,"",SISWA!E129) -> 
A130: 123 | B130: =IF(SISWA!B130=0,"",SISWA!B130) ->  | C130: =IF(SISWA!C130=0,"",SISWA!C130) ->  | D130: =IF(SISWA!D130=0,"",SISWA!D130) -> 123- | E130: =IF(SISWA!E130=0,"",SISWA!E130) -> 
A131: 124 | B131: =IF(SISWA!B131=0,"",SISWA!B131) ->  | C131: =IF(SISWA!C131=0,"",SISWA!C131) ->  | D131: =IF(SISWA!D131=0,"",SISWA!D131) -> 124- | E131: =IF(SISWA!E131=0,"",SISWA!E131) -> 
A132: 125 | B132: =IF(SISWA!B132=0,"",SISWA!B132) ->  | C132: =IF(SISWA!C132=0,"",SISWA!C132) ->  | D132: =IF(SISWA!D132=0,"",SISWA!D132) -> 125- | E132: =IF(SISWA!E132=0,"",SISWA!E132) ->  | K132: =AVERAGE(F132:J132) -> 
A133: 126 | B133: =IF(SISWA!B133=0,"",SISWA!B133) ->  | C133: =IF(SISWA!C133=0,"",SISWA!C133) ->  | D133: =IF(SISWA!D133=0,"",SISWA!D133) -> 126- | E133: =IF(SISWA!E133=0,"",SISWA!E133) -> 
A134: 127 | B134: =IF(SISWA!B134=0,"",SISWA!B134) ->  | C134: =IF(SISWA!C134=0,"",SISWA!C134) ->  | D134: =IF(SISWA!D134=0,"",SISWA!D134) -> 127- | E134: =IF(SISWA!E134=0,"",SISWA!E134) -> 
A135: 128 | B135: =IF(SISWA!B135=0,"",SISWA!B135) ->  | C135: =IF(SISWA!C135=0,"",SISWA!C135) ->  | D135: =IF(SISWA!D135=0,"",SISWA!D135) -> 128- | E135: =IF(SISWA!E135=0,"",SISWA!E135) -> 
A136: 129 | B136: =IF(SISWA!B136=0,"",SISWA!B136) ->  | C136: =IF(SISWA!C136=0,"",SISWA!C136) ->  | D136: =IF(SISWA!D136=0,"",SISWA!D136) -> 129- | E136: =IF(SISWA!E136=0,"",SISWA!E136) -> 
A137: 130 | B137: =IF(SISWA!B137=0,"",SISWA!B137) ->  | C137: =IF(SISWA!C137=0,"",SISWA!C137) ->  | D137: =IF(SISWA!D137=0,"",SISWA!D137) -> 130- | E137: =IF(SISWA!E137=0,"",SISWA!E137) -> 
A138: 131 | B138: =IF(SISWA!B138=0,"",SISWA!B138) ->  | C138: =IF(SISWA!C138=0,"",SISWA!C138) ->  | D138: =IF(SISWA!D138=0,"",SISWA!D138) -> 131- | E138: =IF(SISWA!E138=0,"",SISWA!E138) -> 
A139: 132 | B139: =IF(SISWA!B139=0,"",SISWA!B139) ->  | C139: =IF(SISWA!C139=0,"",SISWA!C139) ->  | D139: =IF(SISWA!D139=0,"",SISWA!D139) -> 132- | E139: =IF(SISWA!E139=0,"",SISWA!E139) -> 
A140: 133 | B140: =IF(SISWA!B140=0,"",SISWA!B140) ->  | C140: =IF(SISWA!C140=0,"",SISWA!C140) ->  | D140: =IF(SISWA!D140=0,"",SISWA!D140) -> 133- | E140: =IF(SISWA!E140=0,"",SISWA!E140) -> 
A141: 134 | B141: =IF(SISWA!B141=0,"",SISWA!B141) ->  | C141: =IF(SISWA!C141=0,"",SISWA!C141) ->  | D141: =IF(SISWA!D141=0,"",SISWA!D141) -> 134- | E141: =IF(SISWA!E141=0,"",SISWA!E141) -> 
A142: 135 | B142: =IF(SISWA!B142=0,"",SISWA!B142) ->  | C142: =IF(SISWA!C142=0,"",SISWA!C142) ->  | D142: =IF(SISWA!D142=0,"",SISWA!D142) -> 135- | E142: =IF(SISWA!E142=0,"",SISWA!E142) -> 
A143: 136 | B143: =IF(SISWA!B143=0,"",SISWA!B143) ->  | C143: =IF(SISWA!C143=0,"",SISWA!C143) ->  | D143: =IF(SISWA!D143=0,"",SISWA!D143) -> 136- | E143: =IF(SISWA!E143=0,"",SISWA!E143) -> 
A144: 137 | B144: =IF(SISWA!B144=0,"",SISWA!B144) ->  | C144: =IF(SISWA!C144=0,"",SISWA!C144) ->  | D144: =IF(SISWA!D144=0,"",SISWA!D144) -> 137- | E144: =IF(SISWA!E144=0,"",SISWA!E144) -> 
A145: 138 | B145: =IF(SISWA!B145=0,"",SISWA!B145) ->  | C145: =IF(SISWA!C145=0,"",SISWA!C145) ->  | D145: =IF(SISWA!D145=0,"",SISWA!D145) -> 138- | E145: =IF(SISWA!E145=0,"",SISWA!E145) -> 
A146: 139 | B146: =IF(SISWA!B146=0,"",SISWA!B146) ->  | C146: =IF(SISWA!C146=0,"",SISWA!C146) ->  | D146: =IF(SISWA!D146=0,"",SISWA!D146) -> 139- | E146: =IF(SISWA!E146=0,"",SISWA!E146) -> 
A147: 140 | B147: =IF(SISWA!B147=0,"",SISWA!B147) ->  | C147: =IF(SISWA!C147=0,"",SISWA!C147) ->  | D147: =IF(SISWA!D147=0,"",SISWA!D147) -> 140- | E147: =IF(SISWA!E147=0,"",SISWA!E147) -> 
A148: 141 | B148: =IF(SISWA!B148=0,"",SISWA!B148) ->  | C148: =IF(SISWA!C148=0,"",SISWA!C148) ->  | D148: =IF(SISWA!D148=0,"",SISWA!D148) -> 141- | E148: =IF(SISWA!E148=0,"",SISWA!E148) -> 
A149: 142 | B149: =IF(SISWA!B149=0,"",SISWA!B149) ->  | C149: =IF(SISWA!C149=0,"",SISWA!C149) ->  | D149: =IF(SISWA!D149=0,"",SISWA!D149) -> 142- | E149: =IF(SISWA!E149=0,"",SISWA!E149) -> 
A150: 143 | B150: =IF(SISWA!B150=0,"",SISWA!B150) ->  | C150: =IF(SISWA!C150=0,"",SISWA!C150) ->  | D150: =IF(SISWA!D150=0,"",SISWA!D150) -> 143- | E150: =IF(SISWA!E150=0,"",SISWA!E150) -> 
A151: 144 | B151: =IF(SISWA!B151=0,"",SISWA!B151) ->  | C151: =IF(SISWA!C151=0,"",SISWA!C151) ->  | D151: =IF(SISWA!D151=0,"",SISWA!D151) -> 144- | E151: =IF(SISWA!E151=0,"",SISWA!E151) -> 
A152: 145 | B152: =IF(SISWA!B152=0,"",SISWA!B152) ->  | C152: =IF(SISWA!C152=0,"",SISWA!C152) ->  | D152: =IF(SISWA!D152=0,"",SISWA!D152) -> 145- | E152: =IF(SISWA!E152=0,"",SISWA!E152) -> 
A153: 146 | B153: =IF(SISWA!B153=0,"",SISWA!B153) ->  | C153: =IF(SISWA!C153=0,"",SISWA!C153) ->  | D153: =IF(SISWA!D153=0,"",SISWA!D153) -> 146- | E153: =IF(SISWA!E153=0,"",SISWA!E153) -> 
A154: 147 | B154: =IF(SISWA!B154=0,"",SISWA!B154) ->  | C154: =IF(SISWA!C154=0,"",SISWA!C154) ->  | D154: =IF(SISWA!D154=0,"",SISWA!D154) -> 147- | E154: =IF(SISWA!E154=0,"",SISWA!E154) -> 
A155: 148 | B155: =IF(SISWA!B155=0,"",SISWA!B155) ->  | C155: =IF(SISWA!C155=0,"",SISWA!C155) ->  | D155: =IF(SISWA!D155=0,"",SISWA!D155) -> 148- | E155: =IF(SISWA!E155=0,"",SISWA!E155) -> 
A156: 149 | B156: =IF(SISWA!B156=0,"",SISWA!B156) ->  | C156: =IF(SISWA!C156=0,"",SISWA!C156) ->  | D156: =IF(SISWA!D156=0,"",SISWA!D156) -> 149- | E156: =IF(SISWA!E156=0,"",SISWA!E156) -> 
A157: 150 | B157: =IF(SISWA!B157=0,"",SISWA!B157) ->  | C157: =IF(SISWA!C157=0,"",SISWA!C157) ->  | D157: =IF(SISWA!D157=0,"",SISWA!D157) -> 150- | E157: =IF(SISWA!E157=0,"",SISWA!E157) -> 
A158: 151 | B158: =IF(SISWA!B158=0,"",SISWA!B158) ->  | C158: =IF(SISWA!C158=0,"",SISWA!C158) ->  | D158: =IF(SISWA!D158=0,"",SISWA!D158) -> 151- | E158: =IF(SISWA!E158=0,"",SISWA!E158) -> 
A159: 152 | B159: =IF(SISWA!B159=0,"",SISWA!B159) ->  | C159: =IF(SISWA!C159=0,"",SISWA!C159) ->  | D159: =IF(SISWA!D159=0,"",SISWA!D159) -> 152- | E159: =IF(SISWA!E159=0,"",SISWA!E159) -> 
A160: 153 | B160: =IF(SISWA!B160=0,"",SISWA!B160) ->  | C160: =IF(SISWA!C160=0,"",SISWA!C160) ->  | D160: =IF(SISWA!D160=0,"",SISWA!D160) -> 153- | E160: =IF(SISWA!E160=0,"",SISWA!E160) -> 
A161: 154 | B161: =IF(SISWA!B161=0,"",SISWA!B161) ->  | C161: =IF(SISWA!C161=0,"",SISWA!C161) ->  | D161: =IF(SISWA!D161=0,"",SISWA!D161) -> 154- | E161: =IF(SISWA!E161=0,"",SISWA!E161) -> 
A162: 155 | B162: =IF(SISWA!B162=0,"",SISWA!B162) ->  | C162: =IF(SISWA!C162=0,"",SISWA!C162) ->  | D162: =IF(SISWA!D162=0,"",SISWA!D162) -> 155- | E162: =IF(SISWA!E162=0,"",SISWA!E162) -> 
A163: 156 | B163: =IF(SISWA!B163=0,"",SISWA!B163) ->  | C163: =IF(SISWA!C163=0,"",SISWA!C163) ->  | D163: =IF(SISWA!D163=0,"",SISWA!D163) -> 156- | E163: =IF(SISWA!E163=0,"",SISWA!E163) -> 
A164: 157 | B164: =IF(SISWA!B164=0,"",SISWA!B164) ->  | C164: =IF(SISWA!C164=0,"",SISWA!C164) ->  | D164: =IF(SISWA!D164=0,"",SISWA!D164) -> 157- | E164: =IF(SISWA!E164=0,"",SISWA!E164) -> 
A165: 158 | B165: =IF(SISWA!B165=0,"",SISWA!B165) ->  | C165: =IF(SISWA!C165=0,"",SISWA!C165) ->  | D165: =IF(SISWA!D165=0,"",SISWA!D165) -> 158- | E165: =IF(SISWA!E165=0,"",SISWA!E165) -> 
A166: 159 | B166: =IF(SISWA!B166=0,"",SISWA!B166) ->  | C166: =IF(SISWA!C166=0,"",SISWA!C166) ->  | D166: =IF(SISWA!D166=0,"",SISWA!D166) -> 159- | E166: =IF(SISWA!E166=0,"",SISWA!E166) -> 
A167: 160 | B167: =IF(SISWA!B167=0,"",SISWA!B167) ->  | C167: =IF(SISWA!C167=0,"",SISWA!C167) ->  | D167: =IF(SISWA!D167=0,"",SISWA!D167) -> 160- | E167: =IF(SISWA!E167=0,"",SISWA!E167) -> 
A168: 161 | B168: =IF(SISWA!B168=0,"",SISWA!B168) ->  | C168: =IF(SISWA!C168=0,"",SISWA!C168) ->  | D168: =IF(SISWA!D168=0,"",SISWA!D168) -> 161- | E168: =IF(SISWA!E168=0,"",SISWA!E168) -> 
A169: 162 | B169: =IF(SISWA!B169=0,"",SISWA!B169) ->  | C169: =IF(SISWA!C169=0,"",SISWA!C169) ->  | D169: =IF(SISWA!D169=0,"",SISWA!D169) -> 162- | E169: =IF(SISWA!E169=0,"",SISWA!E169) -> 
A170: 163 | B170: =IF(SISWA!B170=0,"",SISWA!B170) ->  | C170: =IF(SISWA!C170=0,"",SISWA!C170) ->  | D170: =IF(SISWA!D170=0,"",SISWA!D170) -> 163- | E170: =IF(SISWA!E170=0,"",SISWA!E170) -> 
A171: 164 | B171: =IF(SISWA!B171=0,"",SISWA!B171) ->  | C171: =IF(SISWA!C171=0,"",SISWA!C171) ->  | D171: =IF(SISWA!D171=0,"",SISWA!D171) -> 164- | E171: =IF(SISWA!E171=0,"",SISWA!E171) -> 
A172: 165 | B172: =IF(SISWA!B172=0,"",SISWA!B172) ->  | C172: =IF(SISWA!C172=0,"",SISWA!C172) ->  | D172: =IF(SISWA!D172=0,"",SISWA!D172) -> 165- | E172: =IF(SISWA!E172=0,"",SISWA!E172) -> 
A173: 166 | B173: =IF(SISWA!B173=0,"",SISWA!B173) ->  | C173: =IF(SISWA!C173=0,"",SISWA!C173) ->  | D173: =IF(SISWA!D173=0,"",SISWA!D173) -> 166- | E173: =IF(SISWA!E173=0,"",SISWA!E173) -> 
A174: 167 | B174: =IF(SISWA!B174=0,"",SISWA!B174) ->  | C174: =IF(SISWA!C174=0,"",SISWA!C174) ->  | D174: =IF(SISWA!D174=0,"",SISWA!D174) -> 167- | E174: =IF(SISWA!E174=0,"",SISWA!E174) -> 
A175: 168 | B175: =IF(SISWA!B175=0,"",SISWA!B175) ->  | C175: =IF(SISWA!C175=0,"",SISWA!C175) ->  | D175: =IF(SISWA!D175=0,"",SISWA!D175) -> 168- | E175: =IF(SISWA!E175=0,"",SISWA!E175) -> 
A176: 169 | B176: =IF(SISWA!B176=0,"",SISWA!B176) ->  | C176: =IF(SISWA!C176=0,"",SISWA!C176) ->  | D176: =IF(SISWA!D176=0,"",SISWA!D176) -> 169- | E176: =IF(SISWA!E176=0,"",SISWA!E176) -> 
A177: 170 | B177: =IF(SISWA!B177=0,"",SISWA!B177) ->  | C177: =IF(SISWA!C177=0,"",SISWA!C177) ->  | D177: =IF(SISWA!D177=0,"",SISWA!D177) -> 170- | E177: =IF(SISWA!E177=0,"",SISWA!E177) -> 
A178: 171 | B178: =IF(SISWA!B178=0,"",SISWA!B178) ->  | C178: =IF(SISWA!C178=0,"",SISWA!C178) ->  | D178: =IF(SISWA!D178=0,"",SISWA!D178) -> 171- | E178: =IF(SISWA!E178=0,"",SISWA!E178) -> 
A179: 172 | B179: =IF(SISWA!B179=0,"",SISWA!B179) ->  | C179: =IF(SISWA!C179=0,"",SISWA!C179) ->  | D179: =IF(SISWA!D179=0,"",SISWA!D179) -> 172- | E179: =IF(SISWA!E179=0,"",SISWA!E179) -> 
A180: 173 | B180: =IF(SISWA!B180=0,"",SISWA!B180) ->  | C180: =IF(SISWA!C180=0,"",SISWA!C180) ->  | D180: =IF(SISWA!D180=0,"",SISWA!D180) -> 173- | E180: =IF(SISWA!E180=0,"",SISWA!E180) -> 
A181: 174 | B181: =IF(SISWA!B181=0,"",SISWA!B181) ->  | C181: =IF(SISWA!C181=0,"",SISWA!C181) ->  | D181: =IF(SISWA!D181=0,"",SISWA!D181) -> 174- | E181: =IF(SISWA!E181=0,"",SISWA!E181) -> 
A182: 175 | B182: =IF(SISWA!B182=0,"",SISWA!B182) ->  | C182: =IF(SISWA!C182=0,"",SISWA!C182) ->  | D182: =IF(SISWA!D182=0,"",SISWA!D182) -> 175- | E182: =IF(SISWA!E182=0,"",SISWA!E182) -> 
A183: 176 | B183: =IF(SISWA!B183=0,"",SISWA!B183) ->  | C183: =IF(SISWA!C183=0,"",SISWA!C183) ->  | D183: =IF(SISWA!D183=0,"",SISWA!D183) -> 176- | E183: =IF(SISWA!E183=0,"",SISWA!E183) -> 
A184: 177 | B184: =IF(SISWA!B184=0,"",SISWA!B184) ->  | C184: =IF(SISWA!C184=0,"",SISWA!C184) ->  | D184: =IF(SISWA!D184=0,"",SISWA!D184) -> 177- | E184: =IF(SISWA!E184=0,"",SISWA!E184) -> 
A185: 178 | B185: =IF(SISWA!B185=0,"",SISWA!B185) ->  | C185: =IF(SISWA!C185=0,"",SISWA!C185) ->  | D185: =IF(SISWA!D185=0,"",SISWA!D185) -> 178- | E185: =IF(SISWA!E185=0,"",SISWA!E185) -> 
A186: 179 | B186: =IF(SISWA!B186=0,"",SISWA!B186) ->  | C186: =IF(SISWA!C186=0,"",SISWA!C186) ->  | D186: =IF(SISWA!D186=0,"",SISWA!D186) -> 179- | E186: =IF(SISWA!E186=0,"",SISWA!E186) -> 
A187: 180 | B187: =IF(SISWA!B187=0,"",SISWA!B187) ->  | C187: =IF(SISWA!C187=0,"",SISWA!C187) ->  | D187: =IF(SISWA!D187=0,"",SISWA!D187) -> 180- | E187: =IF(SISWA!E187=0,"",SISWA!E187) -> 
A188: 181 | B188: =IF(SISWA!B188=0,"",SISWA!B188) ->  | C188: =IF(SISWA!C188=0,"",SISWA!C188) ->  | D188: =IF(SISWA!D188=0,"",SISWA!D188) -> 181- | E188: =IF(SISWA!E188=0,"",SISWA!E188) -> 
A189: 182 | B189: =IF(SISWA!B189=0,"",SISWA!B189) ->  | C189: =IF(SISWA!C189=0,"",SISWA!C189) ->  | D189: =IF(SISWA!D189=0,"",SISWA!D189) -> 182- | E189: =IF(SISWA!E189=0,"",SISWA!E189) -> 
A190: 183 | B190: =IF(SISWA!B190=0,"",SISWA!B190) ->  | C190: =IF(SISWA!C190=0,"",SISWA!C190) ->  | D190: =IF(SISWA!D190=0,"",SISWA!D190) -> 183- | E190: =IF(SISWA!E190=0,"",SISWA!E190) -> 
A191: 184 | B191: =IF(SISWA!B191=0,"",SISWA!B191) ->  | C191: =IF(SISWA!C191=0,"",SISWA!C191) ->  | D191: =IF(SISWA!D191=0,"",SISWA!D191) -> 184- | E191: =IF(SISWA!E191=0,"",SISWA!E191) -> 
A192: 185 | B192: =IF(SISWA!B192=0,"",SISWA!B192) ->  | C192: =IF(SISWA!C192=0,"",SISWA!C192) ->  | D192: =IF(SISWA!D192=0,"",SISWA!D192) -> 185- | E192: =IF(SISWA!E192=0,"",SISWA!E192) -> 
A193: 186 | B193: =IF(SISWA!B193=0,"",SISWA!B193) ->  | C193: =IF(SISWA!C193=0,"",SISWA!C193) ->  | D193: =IF(SISWA!D193=0,"",SISWA!D193) -> 186- | E193: =IF(SISWA!E193=0,"",SISWA!E193) -> 
A194: 187 | B194: =IF(SISWA!B194=0,"",SISWA!B194) ->  | C194: =IF(SISWA!C194=0,"",SISWA!C194) ->  | D194: =IF(SISWA!D194=0,"",SISWA!D194) -> 187- | E194: =IF(SISWA!E194=0,"",SISWA!E194) -> 
A195: 188 | B195: =IF(SISWA!B195=0,"",SISWA!B195) ->  | C195: =IF(SISWA!C195=0,"",SISWA!C195) ->  | D195: =IF(SISWA!D195=0,"",SISWA!D195) -> 188- | E195: =IF(SISWA!E195=0,"",SISWA!E195) -> 
A196: 189 | B196: =IF(SISWA!B196=0,"",SISWA!B196) ->  | C196: =IF(SISWA!C196=0,"",SISWA!C196) ->  | D196: =IF(SISWA!D196=0,"",SISWA!D196) -> 189- | E196: =IF(SISWA!E196=0,"",SISWA!E196) ->  | K196: =AVERAGE(F196:J196) -> 
A197: 190 | B197: =IF(SISWA!B197=0,"",SISWA!B197) ->  | C197: =IF(SISWA!C197=0,"",SISWA!C197) ->  | D197: =IF(SISWA!D197=0,"",SISWA!D197) -> 190- | E197: =IF(SISWA!E197=0,"",SISWA!E197) -> 
A198: 191 | B198: =IF(SISWA!B198=0,"",SISWA!B198) ->  | C198: =IF(SISWA!C198=0,"",SISWA!C198) ->  | D198: =IF(SISWA!D198=0,"",SISWA!D198) -> 191- | E198: =IF(SISWA!E198=0,"",SISWA!E198) -> 
A199: 192 | B199: =IF(SISWA!B199=0,"",SISWA!B199) ->  | C199: =IF(SISWA!C199=0,"",SISWA!C199) ->  | D199: =IF(SISWA!D199=0,"",SISWA!D199) -> 192- | E199: =IF(SISWA!E199=0,"",SISWA!E199) -> 
A200: 193 | B200: =IF(SISWA!B200=0,"",SISWA!B200) ->  | C200: =IF(SISWA!C200=0,"",SISWA!C200) ->  | D200: =IF(SISWA!D200=0,"",SISWA!D200) -> 193- | E200: =IF(SISWA!E200=0,"",SISWA!E200) -> 
A201: 194 | B201: =IF(SISWA!B201=0,"",SISWA!B201) ->  | C201: =IF(SISWA!C201=0,"",SISWA!C201) ->  | D201: =IF(SISWA!D201=0,"",SISWA!D201) -> 194- | E201: =IF(SISWA!E201=0,"",SISWA!E201) -> 
... 6 more rows

Sheet PKn
A1: DAFTAR NILAI AKHIR SEKOLAH
A2: =AA!A2 -> MADRASAH IBTIDAIYAH NURUL ISLAM LABRUK KIDUL
A3: =AA!A3 -> TAHUN PELAJARAN 2018/2019
A5: NO | B5: No Induk | C5: NISN | D5: Nomor Peserta | E5: Nama Peserta | F5: PKn | N5: rata-rata UAM & PRAKTEK
F6: Nilai Semester | K6: Rata- 2 | L6: NILAI UAM
F7: 7 | G7: 8 | H7: 9 | I7: 10 | J7: 11 | K7: Rapor | L7: TULIS | M7: PRAKTIK
A8: 1 | B8: =IF(SISWA!B8=0,"",SISWA!B8) -> 4270 | C8: =IF(SISWA!C8=0,"",SISWA!C8) -> 0067566336 | D8: =IF(SISWA!D8=0,"",SISWA!D8) -> 1-18-05-80-162-001-9 | E8: =IF(SISWA!E8=0,"",SISWA!E8) -> ADITYA MAULA FANDY TAULANI | F8: 80 | G8: 82 | H8: 89 | I8: 93 | J8: 93 | K8: =AVERAGE(F8:J8) -> 87.4 | L8: 65 | N8: =AVERAGE(L8:M8) -> 65 | O8: =AVERAGE(L8,F8:J8) -> 83.66666667
A9: 2 | B9: =IF(SISWA!B9=0,"",SISWA!B9) -> 4300 | C9: =IF(SISWA!C9=0,"",SISWA!C9) -> 0066364963 | D9: =IF(SISWA!D9=0,"",SISWA!D9) -> 1-18-05-80-162-002-8 | E9: =IF(SISWA!E9=0,"",SISWA!E9) -> AHMAD FERDIAN ALAMSYAH | F9: 72 | G9: 66 | H9: 75 | I9: 73 | J9: 78 | K9: =AVERAGE(F9:J9) -> 72.8 | L9: 68 | N9: =AVERAGE(L9:M9) -> 68 | O9: =AVERAGE(L9,F9:J9) -> 72
A10: 3 | B10: =IF(SISWA!B10=0,"",SISWA!B10) -> 4271 | C10: =IF(SISWA!C10=0,"",SISWA!C10) -> 0062805893 | D10: =IF(SISWA!D10=0,"",SISWA!D10) -> 1-18-05-80-162-003-7 | E10: =IF(SISWA!E10=0,"",SISWA!E10) -> AHMAD RAMADHANI FADLULLOH | F10: 73 | G10: 74 | H10: 80 | I10: 82 | J10: 85 | K10: 78.8 | L10: 68 | N10: 68 | O10: 77
A11: 4 | B11: =IF(SISWA!B11=0,"",SISWA!B11) -> 4398 | C11: =IF(SISWA!C11=0,"",SISWA!C11) -> 0062399399 | D11: =IF(SISWA!D11=0,"",SISWA!D11) -> 1-18-05-80-162-004-6 | E11: =IF(SISWA!E11=0,"",SISWA!E11) -> ANANDA AMILIA | F11: 77 | G11: 76 | H11: 79 | I11: 83 | J11: 83 | K11: 79.6 | L11: 65 | N11: 65 | O11: 77.16666667
A12: 5 | B12: =IF(SISWA!B12=0,"",SISWA!B12) -> 4272 | C12: =IF(SISWA!C12=0,"",SISWA!C12) -> 0071551428 | D12: =IF(SISWA!D12=0,"",SISWA!D12) -> 1-18-05-80-162-005-5 | E12: =IF(SISWA!E12=0,"",SISWA!E12) -> ANDINI MAULID DWI LESTARI | F12: 81 | G12: 73 | H12: 76 | I12: 75 | J12: 82 | K12: 77.4 | L12: 65 | N12: 65 | O12: 75.33333333
A13: 6 | B13: =IF(SISWA!B13=0,"",SISWA!B13) -> 4301 | C13: =IF(SISWA!C13=0,"",SISWA!C13) -> 0061907599 | D13: =IF(SISWA!D13=0,"",SISWA!D13) -> 1-18-05-80-162-006-4 | E13: =IF(SISWA!E13=0,"",SISWA!E13) -> ANDRIK YUSRI | F13: 67 | G13: 64 | H13: 74 | I13: 70 | J13: 78 | K13: 70.6 | L13: 65 | N13: 65 | O13: 69.66666667
A14: 7 | B14: =IF(SISWA!B14=0,"",SISWA!B14) -> 4273 | C14: =IF(SISWA!C14=0,"",SISWA!C14) -> 0067280519 | D14: =IF(SISWA!D14=0,"",SISWA!D14) -> 1-18-05-80-162-007-3 | E14: =IF(SISWA!E14=0,"",SISWA!E14) -> DEWI SAKINAH ISWARA | F14: 79 | G14: 83 | H14: 85 | I14: 90 | J14: 84 | K14: 84.2 | L14: 65 | N14: 65 | O14: 81
A15: 8 | B15: =IF(SISWA!B15=0,"",SISWA!B15) -> 4307 | C15: =IF(SISWA!C15=0,"",SISWA!C15) -> 0066012198 | D15: =IF(SISWA!D15=0,"",SISWA!D15) -> 1-18-05-80-162-008-2 | E15: =IF(SISWA!E15=0,"",SISWA!E15) -> CHAKIM | F15: 67 | G15: 66 | H15: 73 | I15: 71 | J15: 79 | K15: 71.2 | L15: 65 | N15: 65 | O15: 70.16666667
A16: 9 | B16: =IF(SISWA!B16=0,"",SISWA!B16) -> 4275 | C16: =IF(SISWA!C16=0,"",SISWA!C16) -> 0078199679 | D16: =IF(SISWA!D16=0,"",SISWA!D16) -> 1-18-05-80-162-009-9 | E16: =IF(SISWA!E16=0,"",SISWA!E16) -> HANIK APRILIA SARI | F16: 77 | G16: 80 | H16: 82 | I16: 85 | J16: 82 | K16: 81.2 | L16: 65 | N16: 65 | O16: 78.5
A17: 10 | B17: =IF(SISWA!B17=0,"",SISWA!B17) -> 4238 | C17: =IF(SISWA!C17=0,"",SISWA!C17) -> 0051503260 | D17: =IF(SISWA!D17=0,"",SISWA!D17) -> 1-18-05-80-162-010-8 | E17: =IF(SISWA!E17=0,"",SISWA!E17) -> DESI NATALIA SAPUTRI | F17: 69 | G17: 63 | H17: 74 | I17: 71 | J17: 78 | K17: 71 | L17: 74 | N17: 74 | O17: 71.5
A18: 11 | B18: =IF(SISWA!B18=0,"",SISWA!B18) -> 4391 | C18: =IF(SISWA!C18=0,"",SISWA!C18) -> 0079418518 | D18: =IF(SISWA!D18=0,"",SISWA!D18) -> 1-18-05-80-162-011-7 | E18: =IF(SISWA!E18=0,"",SISWA!E18) -> HIDAYATUL KHUMAINIA | F18: 73 | G18: 70 | H18: 77 | I18: 76 | J18: 83 | K18: 75.8 | L18: 65 | N18: 65 | O18: 74
A19: 12 | B19: =IF(SISWA!B19=0,"",SISWA!B19) -> 4274 | C19: =IF(SISWA!C19=0,"",SISWA!C19) -> 0077670297 | D19: =IF(SISWA!D19=0,"",SISWA!D19) -> 1-18-05-80-162-012-6 | E19: =IF(SISWA!E19=0,"",SISWA!E19) -> DWITA FITA WULANDARI | F19: 76 | G19: 72 | H19: 76 | I19: 72 | J19: 83 | K19: 75.8 | L19: 82 | N19: 82 | O19: 76.83333333
A20: 13 | B20: =IF(SISWA!B20=0,"",SISWA!B20) -> 4276 | C20: =IF(SISWA!C20=0,"",SISWA!C20) -> 0067236848 | D20: =IF(SISWA!D20=0,"",SISWA!D20) -> 1-18-05-80-162-013-5 | E20: =IF(SISWA!E20=0,"",SISWA!E20) -> IZZA ILMIA AZZAHRA | F20: 78 | G20: 80 | H20: 80 | I20: 84 | J20: 86 | K20: 81.6 | L20: 65 | N20: 65 | O20: 78.83333333
A21: 14 | B21: =IF(SISWA!B21=0,"",SISWA!B21) -> 4303 | C21: =IF(SISWA!C21=0,"",SISWA!C21) -> 0064031376 | D21: =IF(SISWA!D21=0,"",SISWA!D21) -> 1-18-05-80-162-014-4 | E21: =IF(SISWA!E21=0,"",SISWA!E21) -> FARIDATUS SAHDIAH | F21: 74 | G21: 70 | H21: 76 | I21: 74 | J21: 79 | K21: 74.6 | L21: 65 | N21: 65 | O21: 73
A22: 15 | B22: =IF(SISWA!B22=0,"",SISWA!B22) -> 4278 | C22: =IF(SISWA!C22=0,"",SISWA!C22) -> 0079672823 | D22: =IF(SISWA!D22=0,"",SISWA!D22) -> 1-18-05-80-162-015-3 | E22: =IF(SISWA!E22=0,"",SISWA!E22) -> KHARISYA AZZAHRO | F22: 85 | G22: 85 | H22: 79 | I22: 75 | J22: 92 | K22: 83.2 | L22: 65 | N22: 65 | O22: 80.16666667
A23: 16 | B23: =IF(SISWA!B23=0,"",SISWA!B23) -> 4277 | C23: =IF(SISWA!C23=0,"",SISWA!C23) -> 0077101453 | D23: =IF(SISWA!D23=0,"",SISWA!D23) -> 1-18-05-80-162-016-2 | E23: =IF(SISWA!E23=0,"",SISWA!E23) -> KARINA FEBBY CAHYA AMILIA | F23: 76 | G23: 79 | H23: 81 | I23: 85 | J23: 85 | K23: 81.2 | L23: 65 | N23: 65 | O23: 78.5
A24: 17 | B24: =IF(SISWA!B24=0,"",SISWA!B24) -> 4601 | C24: =IF(SISWA!C24=0,"",SISWA!C24) -> 0069718082 | D24: =IF(SISWA!D24=0,"",SISWA!D24) -> 1-18-05-80-162-017-9 | E24: =IF(SISWA!E24=0,"",SISWA!E24) -> MOCHAMAD RIFKY ROSAN | F24: 76 | G24: 77 | H24: 75 | I24: 77 | J24: 83 | K24: 77.6 | L24: 65 | N24: 65 | O24: 75.5
A25: 18 | B25: =IF(SISWA!B25=0,"",SISWA!B25) -> 4241 | C25: =IF(SISWA!C25=0,"",SISWA!C25) -> 0057006145 | D25: =IF(SISWA!D25=0,"",SISWA!D25) -> 1-18-05-80-162-018-8 | E25: =IF(SISWA!E25=0,"",SISWA!E25) -> KHUSNI CAHYONO | F25: 70 | G25: 61 | H25: 72 | I25: 71 | J25: 77 | K25: 70.2 | L25: 65 | N25: 65 | O25: 69.33333333
A26: 19 | B26: =IF(SISWA!B26=0,"",SISWA!B26) -> 4280 | C26: =IF(SISWA!C26=0,"",SISWA!C26) -> 0062061356 | D26: =IF(SISWA!D26=0,"",SISWA!D26) -> 1-18-05-80-162-019-7 | E26: =IF(SISWA!E26=0,"",SISWA!E26) -> MUCHAMMAD ALIEF FERDIANSYAH | F26: 77 | G26: 79 | H26: 81 | I26: 84 | J26: 86 | K26: 81.4 | L26: 72 | N26: 72 | O26: 79.83333333
A27: 20 | B27: =IF(SISWA!B27=0,"",SISWA!B27) -> 4306 | C27: =IF(SISWA!C27=0,"",SISWA!C27) -> 0069095925 | D27: =IF(SISWA!D27=0,"",SISWA!D27) -> 1-18-05-80-162-020-6 | E27: =IF(SISWA!E27=0,"",SISWA!E27) -> LENNY AGUSTIN NINGTYAS | F27: 70 | G27: 66 | H27: 73 | I27: 70 | J27: 78 | K27: 71.4 | L27: 65 | N27: 65 | O27: 70.33333333
A28: 21 | B28: =IF(SISWA!B28=0,"",SISWA!B28) -> 4281 | C28: =IF(SISWA!C28=0,"",SISWA!C28) -> 0069153972 | D28: =IF(SISWA!D28=0,"",SISWA!D28) -> 1-18-05-80-162-021-5 | E28: =IF(SISWA!E28=0,"",SISWA!E28) -> MUHAMMAD AGUS ANDRIANTO | F28: 74 | G28: 75 | H28: 74 | I28: 72 | J28: 82 | K28: 75.4 | L28: 65 | N28: 65 | O28: 73.66666667
A29: 22 | B29: =IF(SISWA!B29=0,"",SISWA!B29) -> 4308 | C29: =IF(SISWA!C29=0,"",SISWA!C29) -> 0063078335 | D29: =IF(SISWA!D29=0,"",SISWA!D29) -> 1-18-05-80-162-022-4 | E29: =IF(SISWA!E29=0,"",SISWA!E29) -> MAURIS HIDAYATUR ROCHMAN | F29: 71 | G29: 74 | H29: 73 | I29: 81 | J29: 87 | K29: 77.2 | L29: 65 | N29: 65 | O29: 75.16666667
A30: 23 | B30: =IF(SISWA!B30=0,"",SISWA!B30) -> 4314 | C30: =IF(SISWA!C30=0,"",SISWA!C30) -> 0072178353 | D30: =IF(SISWA!D30=0,"",SISWA!D30) -> 1-18-05-80-162-023-3 | E30: =IF(SISWA!E30=0,"",SISWA!E30) -> MUHAMMAD BISMAR TAUFIQUROHMAN | F30: 76 | G30: 75 | H30: 81 | I30: 82 | J30: 84 | K30: 79.6 | L30: 65 | N30: 65 | O30: 77.16666667
A31: 24 | B31: =IF(SISWA!B31=0,"",SISWA!B31) -> 4309 | C31: =IF(SISWA!C31=0,"",SISWA!C31) -> 0072198448 | D31: =IF(SISWA!D31=0,"",SISWA!D31) -> 1-18-05-80-162-024-2 | E31: =IF(SISWA!E31=0,"",SISWA!E31) -> MAYA BUNGA ANJANI | F31: 67 | G31: 64 | H31: 75 | I31: 72 | J31: 78 | K31: 71.2 | L31: 65 | N31: 65 | O31: 70.16666667
A32: 25 | B32: =IF(SISWA!B32=0,"",SISWA!B32) -> 4320 | C32: =IF(SISWA!C32=0,"",SISWA!C32) -> 0064566227 | D32: =IF(SISWA!D32=0,"",SISWA!D32) -> 1-18-05-80-162-025-9 | E32: =IF(SISWA!E32=0,"",SISWA!E32) -> MUHAMMAD SAHLAN SHODIQ | F32: 83 | G32: 79 | H32: 84 | I32: 88 | J32: 81 | K32: 83 | L32: 65 | N32: 65 | O32: 80
A33: 26 | B33: =IF(SISWA!B33=0,"",SISWA!B33) -> 4279 | C33: =IF(SISWA!C33=0,"",SISWA!C33) -> 0066637092 | D33: =IF(SISWA!D33=0,"",SISWA!D33) -> 1-18-05-80-162-026-8 | E33: =IF(SISWA!E33=0,"",SISWA!E33) -> MITA SEPTIANI ISLAMIA | F33: 70 | G33: 63 | H33: 74 | I33: 79 | J33: 77 | K33: 72.6 | L33: 65 | N33: 65 | O33: 71.33333333
A34: 27 | B34: =IF(SISWA!B34=0,"",SISWA!B34) -> 4321 | C34: =IF(SISWA!C34=0,"",SISWA!C34) -> 0061244045 | D34: =IF(SISWA!D34=0,"",SISWA!D34) -> 1-18-05-80-162-027-7 | E34: =IF(SISWA!E34=0,"",SISWA!E34) -> MUHAMMAD SEPTYAN EKA PRATAMA | F34: 75 | G34: 81 | H34: 76 | I34: 77 | J34: 81 | K34: 78 | L34: 68 | N34: 68 | O34: 76.33333333
A35: 28 | B35: =IF(SISWA!B35=0,"",SISWA!B35) -> 4247 | C35: =IF(SISWA!C35=0,"",SISWA!C35) -> 0053546157 | D35: =IF(SISWA!D35=0,"",SISWA!D35) -> 1-18-05-80-162-028-6 | E35: =IF(SISWA!E35=0,"",SISWA!E35) -> MOCHAMAD ARIEL FRANS TITO | F35: 72 | G35: 68 | H35: 73 | I35: 72 | J35: 76 | K35: 72.2 | L35: 65 | N35: 65 | O35: 71
A36: 29 | B36: =IF(SISWA!B36=0,"",SISWA!B36) -> 4285 | C36: =IF(SISWA!C36=0,"",SISWA!C36) -> 0067871553 | D36: =IF(SISWA!D36=0,"",SISWA!D36) -> 1-18-05-80-162-029-5 | E36: =IF(SISWA!E36=0,"",SISWA!E36) -> MUHAMMAD VERYANSYAH | F36: 75 | G36: 77 | H36: 80 | I36: 78 | J36: 83 | K36: 78.6 | L36: 65 | N36: 65 | O36: 76.33333333
A37: 30 | B37: =IF(SISWA!B37=0,"",SISWA!B37) -> 4310 | C37: =IF(SISWA!C37=0,"",SISWA!C37) -> 0066383678 | D37: =IF(SISWA!D37=0,"",SISWA!D37) -> 1-18-05-80-162-030-4 | E37: =IF(SISWA!E37=0,"",SISWA!E37) -> MOCHAMMAD BIMA RISFANDA | F37: 72 | G37: 65 | H37: 75 | I37: 75 | J37: 79 | K37: 73.2 | L37: 65 | N37: 65 | O37: 71.83333333
A38: 31 | B38: =IF(SISWA!B38=0,"",SISWA!B38) -> 4286 | C38: =IF(SISWA!C38=0,"",SISWA!C38) -> 0064443822 | D38: =IF(SISWA!D38=0,"",SISWA!D38) -> 1-18-05-80-162-031-3 | E38: =IF(SISWA!E38=0,"",SISWA!E38) -> MUHAMMAD ZIDNY NA'IM | F38: 83 | G38: 81 | H38: 79 | I38: 78 | J38: 90 | K38: 82.2 | L38: 68 | N38: 68 | O38: 79.83333333
A39: 32 | B39: =IF(SISWA!B39=0,"",SISWA!B39) -> 4282 | C39: =IF(SISWA!C39=0,"",SISWA!C39) -> 0068336765 | D39: =IF(SISWA!D39=0,"",SISWA!D39) -> 1-18-05-80-162-032-2 | E39: =IF(SISWA!E39=0,"",SISWA!E39) -> MUHAMMAD AGUS FERDIANSYAH | F39: 72 | G39: 74 | H39: 76 | I39: 84 | J39: 82 | K39: 77.6 | L39: 65 | N39: 65 | O39: 75.5
A40: 33 | B40: =IF(SISWA!B40=0,"",SISWA!B40) -> 4287 | C40: =IF(SISWA!C40=0,"",SISWA!C40) -> 0064528717 | D40: =IF(SISWA!D40=0,"",SISWA!D40) -> 1-18-05-80-162-033-9 | E40: =IF(SISWA!E40=0,"",SISWA!E40) -> MUHAMMAD FARDAN ABDILLAH | F40: 73 | H40: 75 | I40: 74 | K40: 74 | L40: 65 | N40: 65 | O40: 71.75
A41: 34 | B41: =IF(SISWA!B41=0,"",SISWA!B41) -> 4315 | C41: =IF(SISWA!C41=0,"",SISWA!C41) -> 0067870495 | D41: =IF(SISWA!D41=0,"",SISWA!D41) -> 1-18-05-80-162-034-8 | E41: =IF(SISWA!E41=0,"",SISWA!E41) -> NABILA ARISKA PUTRI | F41: 78 | G41: 80 | H41: 78 | I41: 77 | J41: 84 | K41: 79.4 | L41: 65 | N41: 65 | O41: 77
A42: 35 | B42: =IF(SISWA!B42=0,"",SISWA!B42) -> 4288 | C42: =IF(SISWA!C42=0,"",SISWA!C42) -> 0068641191 | D42: =IF(SISWA!D42=0,"",SISWA!D42) -> 1-18-05-80-162-035-7 | E42: =IF(SISWA!E42=0,"",SISWA!E42) -> MUHAMMAD FERDINAN JAYYIDAH RIFQI | F42: 76 | G42: 76 | H42: 79 | I42: 85 | J42: 88 | K42: 80.8 | L42: 65 | N42: 65 | O42: 78.16666667
A43: 36 | B43: =IF(SISWA!B43=0,"",SISWA!B43) -> 4283 | C43: =IF(SISWA!C43=0,"",SISWA!C43) -> 0077212388 | D43: =IF(SISWA!D43=0,"",SISWA!D43) -> 1-18-05-80-162-036-6 | E43: =IF(SISWA!E43=0,"",SISWA!E43) -> NAFISA INDRIANI | F43: 79 | G43: 79 | H43: 88 | I43: 89 | J43: 91 | K43: 85.2 | L43: 72 | N43: 72 | O43: 83
A44: 37 | B44: =IF(SISWA!B44=0,"",SISWA!B44) -> 4257 | C44: =IF(SISWA!C44=0,"",SISWA!C44) -> 0069944706 | D44: =IF(SISWA!D44=0,"",SISWA!D44) -> 1-18-05-80-162-037-5 | E44: =IF(SISWA!E44=0,"",SISWA!E44) -> MUHAMMAD FIRMANSYAH | F44: 69 | G44: 67 | H44: 75 | I44: 74 | J44: 81 | K44: 73.2 | L44: 65 | N44: 65 | O44: 71.83333333
A45: 38 | B45: =IF(SISWA!B45=0,"",SISWA!B45) -> 4317 | C45: =IF(SISWA!C45=0,"",SISWA!C45) -> 0068498059 | D45: =IF(SISWA!D45=0,"",SISWA!D45) -> 1-18-05-80-162-038-4 | E45: =IF(SISWA!E45=0,"",SISWA!E45) -> NAJWA FARISYA BAROROH | F45: 79 | G45: 74 | H45: 81 | I45: 81 | J45: 86 | K45: 80.2 | L45: 65 | N45: 65 | O45: 77.66666667
A46: 39 | B46: =IF(SISWA!B46=0,"",SISWA!B46) -> 4289 | C46: =IF(SISWA!C46=0,"",SISWA!C46) -> 0065225517 | D46: =IF(SISWA!D46=0,"",SISWA!D46) -> 1-18-05-80-162-039-3 | E46: =IF(SISWA!E46=0,"",SISWA!E46) -> NUR FITRIYAH | F46: 74 | G46: 77 | H46: 80 | I46: 84 | J46: 82 | K46: 79.4 | L46: 65 | N46: 65 | O46: 77
A47: 40 | B47: =IF(SISWA!B47=0,"",SISWA!B47) -> 4318 | C47: =IF(SISWA!C47=0,"",SISWA!C47) -> 0061441364 | D47: =IF(SISWA!D47=0,"",SISWA!D47) -> 1-18-05-80-162-040-2 | E47: =IF(SISWA!E47=0,"",SISWA!E47) -> MUHAMMAD HILDAN DWI SAPUTRA | F47: 71 | G47: 67 | H47: 73 | I47: 73 | J47: 79 | K47: 72.6 | L47: 65 | N47: 65 | O47: 71.33333333
A48: 41 | B48: =IF(SISWA!B48=0,"",SISWA!B48) -> 4392 | C48: =IF(SISWA!C48=0,"",SISWA!C48) -> 0075794532 | D48: =IF(SISWA!D48=0,"",SISWA!D48) -> 1-18-05-80-162-041-9 | E48: =IF(SISWA!E48=0,"",SISWA!E48) -> PUTRI NAFI'ATUS SOLIKHAH | F48: 77 | G48: 73 | H48: 77 | I48: 80 | J48: 83 | K48: 78 | L48: 65 | N48: 65 | O48: 75.83333333
A49: 42 | B49: =IF(SISWA!B49=0,"",SISWA!B49) -> 4284 | C49: =IF(SISWA!C49=0,"",SISWA!C49) -> 0069578000 | D49: =IF(SISWA!D49=0,"",SISWA!D49) -> 1-18-05-80-162-042-8 | E49: =IF(SISWA!E49=0,"",SISWA!E49) -> MUHAMMAD RAYA KAFAF JAUHARI | F49: 79 | G49: 74 | H49: 76 | I49: 76 | J49: 79 | K49: 76.8 | L49: 65 | N49: 65 | O49: 74.83333333
A50: 43 | B50: =IF(SISWA!B50=0,"",SISWA!B50) -> 4290 | C50: =IF(SISWA!C50=0,"",SISWA!C50) -> 0063558216 | D50: =IF(SISWA!D50=0,"",SISWA!D50) -> 1-18-05-80-162-043-7 | E50: =IF(SISWA!E50=0,"",SISWA!E50) -> QORIATUN SHOLIHAH | F50: 76 | G50: 76 | H50: 78 | I50: 76 | J50: 81 | K50: 77.4 | L50: 65 | N50: 65 | O50: 75.33333333
A51: 44 | B51: =IF(SISWA!B51=0,"",SISWA!B51) -> 4319 | C51: =IF(SISWA!C51=0,"",SISWA!C51) -> 0065329770 | D51: =IF(SISWA!D51=0,"",SISWA!D51) -> 1-18-05-80-162-044-6 | E51: =IF(SISWA!E51=0,"",SISWA!E51) -> MUHAMMAD RUDI TANTOWIK | F51: 73 | G51: 66 | H51: 74 | I51: 72 | J51: 78 | K51: 72.6 | L51: 72 | N51: 72 | O51: 72.5
A52: 45 | B52: =IF(SISWA!B52=0,"",SISWA!B52) -> 4291 | C52: =IF(SISWA!C52=0,"",SISWA!C52) -> 0067071679 | D52: =IF(SISWA!D52=0,"",SISWA!D52) -> 1-18-05-80-162-045-5 | E52: =IF(SISWA!E52=0,"",SISWA!E52) -> RACHMAD HIDAYAT | F52: 73 | G52: 69 | H52: 77 | I52: 75 | J52: 79 | K52: 74.6 | L52: 72 | N52: 72 | O52: 74.16666667
A53: 46 | B53: =IF(SISWA!B53=0,"",SISWA!B53) -> 4322 | C53: =IF(SISWA!C53=0,"",SISWA!C53) -> 0051101989 | D53: =IF(SISWA!D53=0,"",SISWA!D53) -> 1-18-05-80-162-046-4 | E53: =IF(SISWA!E53=0,"",SISWA!E53) -> MUHAMMAD ZULDIENUR HABIBIE | F53: 69 | G53: 62 | H53: 72 | I53: 73 | J53: 78 | K53: 70.8 | L53: 70 | N53: 70 | O53: 70.66666667
A54: 47 | B54: =IF(SISWA!B54=0,"",SISWA!B54) -> 4292 | C54: =IF(SISWA!C54=0,"",SISWA!C54) -> 0072001696 | D54: =IF(SISWA!D54=0,"",SISWA!D54) -> 1-18-05-80-162-047-3 | E54: =IF(SISWA!E54=0,"",SISWA!E54) -> RHEA RAYSHANADA NUGRAHA | F54: 76 | G54: 80 | H54: 77 | I54: 78 | J54: 81 | K54: 78.4 | L54: 65 | N54: 65 | O54: 76.16666667
A55: 48 | B55: =IF(SISWA!B55=0,"",SISWA!B55) -> 4323 | C55: =IF(SISWA!C55=0,"",SISWA!C55) -> 0078949167 | D55: =IF(SISWA!D55=0,"",SISWA!D55) -> 1-18-05-80-162-048-2 | E55: =IF(SISWA!E55=0,"",SISWA!E55) -> MUKHAMAD KHOIRUL AMIN | F55: 72 | G55: 63 | H55: 75 | I55: 73 | J55: 79 | K55: 72.4 | L55: 65 | N55: 65 | O55: 71.16666667
A56: 49 | B56: =IF(SISWA!B56=0,"",SISWA!B56) -> 4293 | C56: =IF(SISWA!C56=0,"",SISWA!C56) -> 0064217705 | D56: =IF(SISWA!D56=0,"",SISWA!D56) -> 1-18-05-80-162-049-9 | E56: =IF(SISWA!E56=0,"",SISWA!E56) -> RIYANTI APRILIA | F56: 78 | G56: 76 | H56: 78 | I56: 75 | J56: 85 | K56: 78.4 | L56: 65 | N56: 65 | O56: 76.16666667
A57: 50 | B57: =IF(SISWA!B57=0,"",SISWA!B57) -> 4256 | C57: =IF(SISWA!C57=0,"",SISWA!C57) -> 0065699742 | D57: =IF(SISWA!D57=0,"",SISWA!D57) -> 1-18-05-80-162-050-8 | E57: =IF(SISWA!E57=0,"",SISWA!E57) -> MUKHAMMAD YAASIIN HASAN KHASBULLOH | F57: 74 | G57: 71 | H57: 75 | I57: 72 | J57: 81 | K57: 74.6 | L57: 70 | N57: 70 | O57: 73.83333333
A58: 51 | B58: =IF(SISWA!B58=0,"",SISWA!B58) -> 4295 | C58: =IF(SISWA!C58=0,"",SISWA!C58) -> 0061359184 | D58: =IF(SISWA!D58=0,"",SISWA!D58) -> 1-18-05-80-162-051-7 | E58: =IF(SISWA!E58=0,"",SISWA!E58) -> SHONIA AULIA AS'AD | F58: 83 | G58: 87 | H58: 80 | I58: 84 | J58: 91 | K58: 85 | L58: 65 | N58: 65 | O58: 81.66666667
A59: 52 | B59: =IF(SISWA!B59=0,"",SISWA!B59) -> 4294 | C59: =IF(SISWA!C59=0,"",SISWA!C59) -> 0064723905 | D59: =IF(SISWA!D59=0,"",SISWA!D59) -> 1-18-05-80-162-052-6 | E59: =IF(SISWA!E59=0,"",SISWA!E59) -> RIZKA AYU WULANDARI | F59: 74 | G59: 72 | H59: 77 | I59: 83 | J59: 79 | K59: 77 | L59: 74 | N59: 74 | O59: 76.5
A60: 53 | B60: =IF(SISWA!B60=0,"",SISWA!B60) -> 4298 | C60: =IF(SISWA!C60=0,"",SISWA!C60) -> 0065530554 | D60: =IF(SISWA!D60=0,"",SISWA!D60) -> 1-18-05-80-162-053-5 | E60: =IF(SISWA!E60=0,"",SISWA!E60) -> VERLINA DWI MAULANI | F60: 78 | G60: 74 | H60: 78 | I60: 75 | J60: 84 | K60: 77.8 | L60: 79 | N60: 79 | O60: 78
A61: 54 | B61: =IF(SISWA!B61=0,"",SISWA!B61) -> 4297 | C61: =IF(SISWA!C61=0,"",SISWA!C61) -> 0063846732 | D61: =IF(SISWA!D61=0,"",SISWA!D61) -> 1-18-05-80-162-054-4 | E61: =IF(SISWA!E61=0,"",SISWA!E61) -> USWATUN KHASANAH | F61: 74 | G61: 70 | H61: 77 | I61: 79 | J61: 81 | K61: 76.2 | L61: 84 | N61: 84 | O61: 77.5
A62: 55 | B62: =IF(SISWA!B62=0,"",SISWA!B62) -> 4324 | C62: =IF(SISWA!C62=0,"",SISWA!C62) -> 0078966795 | D62: =IF(SISWA!D62=0,"",SISWA!D62) -> 1-18-05-80-162-055-3 | E62: =IF(SISWA!E62=0,"",SISWA!E62) -> VIKA KUSUMA WATI | F62: 80 | G62: 75 | H62: 81 | I62: 81 | J62: 81 | K62: 79.6 | L62: 89 | N62: 89 | O62: 81.16666667
A63: 56 | B63: =IF(SISWA!B63=0,"",SISWA!B63) -> 4326 | C63: =IF(SISWA!C63=0,"",SISWA!C63) -> 0064124533 | D63: =IF(SISWA!D63=0,"",SISWA!D63) -> 1-18-05-80-162-056-2 | E63: =IF(SISWA!E63=0,"",SISWA!E63) -> YOHAN EGA GILANG PERMANA | F63: 71 | H63: 72 | I63: 74 | J63: 78 | K63: 73.75 | L63: 94 | N63: 94 | O63: 77.8
A64: 57 | B64: =IF(SISWA!B64=0,"",SISWA!B64) ->  | C64: =IF(SISWA!C64=0,"",SISWA!C64) ->  | D64: =IF(SISWA!D64=0,"",SISWA!D64) -> 1-18-05-80-162-057-9 | E64: =IF(SISWA!E64=0,"",SISWA!E64) ->  | K64: =AVERAGE(F64:J64) -> 
A65: 58 | B65: =IF(SISWA!B65=0,"",SISWA!B65) ->  | C65: =IF(SISWA!C65=0,"",SISWA!C65) ->  | D65: =IF(SISWA!D65=0,"",SISWA!D65) -> 1-18-05-80-162-058-8 | E65: =IF(SISWA!E65=0,"",SISWA!E65) -> 
A66: 59 | B66: =IF(SISWA!B66=0,"",SISWA!B66) ->  | C66: =IF(SISWA!C66=0,"",SISWA!C66) ->  | D66: =IF(SISWA!D66=0,"",SISWA!D66) -> 1-18-05-80-162-059-7 | E66: =IF(SISWA!E66=0,"",SISWA!E66) -> 
A67: 60 | B67: =IF(SISWA!B67=0,"",SISWA!B67) ->  | C67: =IF(SISWA!C67=0,"",SISWA!C67) ->  | D67: =IF(SISWA!D67=0,"",SISWA!D67) -> 1-18-05-80-162-060-6 | E67: =IF(SISWA!E67=0,"",SISWA!E67) -> 
A68: 61 | B68: =IF(SISWA!B68=0,"",SISWA!B68) ->  | C68: =IF(SISWA!C68=0,"",SISWA!C68) ->  | D68: =IF(SISWA!D68=0,"",SISWA!D68) -> 1-18-05-80-162-061-5 | E68: =IF(SISWA!E68=0,"",SISWA!E68) -> 
A69: 62 | B69: =IF(SISWA!B69=0,"",SISWA!B69) ->  | C69: =IF(SISWA!C69=0,"",SISWA!C69) ->  | D69: =IF(SISWA!D69=0,"",SISWA!D69) -> 062-4 | E69: =IF(SISWA!E69=0,"",SISWA!E69) -> 
A70: 63 | B70: =IF(SISWA!B70=0,"",SISWA!B70) ->  | C70: =IF(SISWA!C70=0,"",SISWA!C70) ->  | D70: =IF(SISWA!D70=0,"",SISWA!D70) -> 063-3 | E70: =IF(SISWA!E70=0,"",SISWA!E70) -> 
A71: 64 | B71: =IF(SISWA!B71=0,"",SISWA!B71) ->  | C71: =IF(SISWA!C71=0,"",SISWA!C71) ->  | D71: =IF(SISWA!D71=0,"",SISWA!D71) -> 064-2 | E71: =IF(SISWA!E71=0,"",SISWA!E71) -> 
A72: 65 | B72: =IF(SISWA!B72=0,"",SISWA!B72) ->  | C72: =IF(SISWA!C72=0,"",SISWA!C72) ->  | D72: =IF(SISWA!D72=0,"",SISWA!D72) -> 065- | E72: =IF(SISWA!E72=0,"",SISWA!E72) -> 
A73: 66 | B73: =IF(SISWA!B73=0,"",SISWA!B73) ->  | C73: =IF(SISWA!C73=0,"",SISWA!C73) ->  | D73: =IF(SISWA!D73=0,"",SISWA!D73) -> 066- | E73: =IF(SISWA!E73=0,"",SISWA!E73) ->  | K73: =AVERAGE(F73:J73) -> 
A74: 67 | B74: =IF(SISWA!B74=0,"",SISWA!B74) ->  | C74: =IF(SISWA!C74=0,"",SISWA!C74) ->  | D74: =IF(SISWA!D74=0,"",SISWA!D74) -> 067- | E74: =IF(SISWA!E74=0,"",SISWA!E74) -> 
A75: 68 | B75: =IF(SISWA!B75=0,"",SISWA!B75) ->  | C75: =IF(SISWA!C75=0,"",SISWA!C75) ->  | D75: =IF(SISWA!D75=0,"",SISWA!D75) -> 068- | E75: =IF(SISWA!E75=0,"",SISWA!E75) -> 
A76: 69 | B76: =IF(SISWA!B76=0,"",SISWA!B76) ->  | C76: =IF(SISWA!C76=0,"",SISWA!C76) ->  | D76: =IF(SISWA!D76=0,"",SISWA!D76) -> 069- | E76: =IF(SISWA!E76=0,"",SISWA!E76) -> 
A77: 70 | B77: =IF(SISWA!B77=0,"",SISWA!B77) ->  | C77: =IF(SISWA!C77=0,"",SISWA!C77) ->  | D77: =IF(SISWA!D77=0,"",SISWA!D77) -> 070- | E77: =IF(SISWA!E77=0,"",SISWA!E77) -> 
A78: 71 | B78: =IF(SISWA!B78=0,"",SISWA!B78) ->  | C78: =IF(SISWA!C78=0,"",SISWA!C78) ->  | D78: =IF(SISWA!D78=0,"",SISWA!D78) -> 071- | E78: =IF(SISWA!E78=0,"",SISWA!E78) -> 
A79: 72 | B79: =IF(SISWA!B79=0,"",SISWA!B79) ->  | C79: =IF(SISWA!C79=0,"",SISWA!C79) ->  | D79: =IF(SISWA!D79=0,"",SISWA!D79) -> 072- | E79: =IF(SISWA!E79=0,"",SISWA!E79) -> 
A80: 73 | B80: =IF(SISWA!B80=0,"",SISWA!B80) ->  | C80: =IF(SISWA!C80=0,"",SISWA!C80) ->  | D80: =IF(SISWA!D80=0,"",SISWA!D80) -> 073- | E80: =IF(SISWA!E80=0,"",SISWA!E80) -> 
A81: 74 | B81: =IF(SISWA!B81=0,"",SISWA!B81) ->  | C81: =IF(SISWA!C81=0,"",SISWA!C81) ->  | D81: =IF(SISWA!D81=0,"",SISWA!D81) -> 074- | E81: =IF(SISWA!E81=0,"",SISWA!E81) -> 
A82: 75 | B82: =IF(SISWA!B82=0,"",SISWA!B82) ->  | C82: =IF(SISWA!C82=0,"",SISWA!C82) ->  | D82: =IF(SISWA!D82=0,"",SISWA!D82) -> 075- | E82: =IF(SISWA!E82=0,"",SISWA!E82) -> 
A83: 76 | B83: =IF(SISWA!B83=0,"",SISWA!B83) ->  | C83: =IF(SISWA!C83=0,"",SISWA!C83) ->  | D83: =IF(SISWA!D83=0,"",SISWA!D83) -> 076- | E83: =IF(SISWA!E83=0,"",SISWA!E83) -> 
A84: 77 | B84: =IF(SISWA!B84=0,"",SISWA!B84) ->  | C84: =IF(SISWA!C84=0,"",SISWA!C84) ->  | D84: =IF(SISWA!D84=0,"",SISWA!D84) -> 077- | E84: =IF(SISWA!E84=0,"",SISWA!E84) -> 
A85: 78 | B85: =IF(SISWA!B85=0,"",SISWA!B85) ->  | C85: =IF(SISWA!C85=0,"",SISWA!C85) ->  | D85: =IF(SISWA!D85=0,"",SISWA!D85) -> 078- | E85: =IF(SISWA!E85=0,"",SISWA!E85) -> 
A86: 79 | B86: =IF(SISWA!B86=0,"",SISWA!B86) ->  | C86: =IF(SISWA!C86=0,"",SISWA!C86) ->  | D86: =IF(SISWA!D86=0,"",SISWA!D86) -> 079- | E86: =IF(SISWA!E86=0,"",SISWA!E86) -> 
A87: 80 | B87: =IF(SISWA!B87=0,"",SISWA!B87) ->  | C87: =IF(SISWA!C87=0,"",SISWA!C87) ->  | D87: =IF(SISWA!D87=0,"",SISWA!D87) -> 080- | E87: =IF(SISWA!E87=0,"",SISWA!E87) -> 
A88: 81 | B88: =IF(SISWA!B88=0,"",SISWA!B88) ->  | C88: =IF(SISWA!C88=0,"",SISWA!C88) ->  | D88: =IF(SISWA!D88=0,"",SISWA!D88) -> 081- | E88: =IF(SISWA!E88=0,"",SISWA!E88) -> 
A89: 82 | B89: =IF(SISWA!B89=0,"",SISWA!B89) ->  | C89: =IF(SISWA!C89=0,"",SISWA!C89) ->  | D89: =IF(SISWA!D89=0,"",SISWA!D89) -> 082- | E89: =IF(SISWA!E89=0,"",SISWA!E89) -> 
A90: 83 | B90: =IF(SISWA!B90=0,"",SISWA!B90) ->  | C90: =IF(SISWA!C90=0,"",SISWA!C90) ->  | D90: =IF(SISWA!D90=0,"",SISWA!D90) -> 083- | E90: =IF(SISWA!E90=0,"",SISWA!E90) -> 
A91: 84 | B91: =IF(SISWA!B91=0,"",SISWA!B91) ->  | C91: =IF(SISWA!C91=0,"",SISWA!C91) ->  | D91: =IF(SISWA!D91=0,"",SISWA!D91) -> 084- | E91: =IF(SISWA!E91=0,"",SISWA!E91) -> 
A92: 85 | B92: =IF(SISWA!B92=0,"",SISWA!B92) ->  | C92: =IF(SISWA!C92=0,"",SISWA!C92) ->  | D92: =IF(SISWA!D92=0,"",SISWA!D92) -> 085- | E92: =IF(SISWA!E92=0,"",SISWA!E92) -> 
A93: 86 | B93: =IF(SISWA!B93=0,"",SISWA!B93) ->  | C93: =IF(SISWA!C93=0,"",SISWA!C93) ->  | D93: =IF(SISWA!D93=0,"",SISWA!D93) -> 086- | E93: =IF(SISWA!E93=0,"",SISWA!E93) -> 
A94: 87 | B94: =IF(SISWA!B94=0,"",SISWA!B94) ->  | C94: =IF(SISWA!C94=0,"",SISWA!C94) ->  | D94: =IF(SISWA!D94=0,"",SISWA!D94) -> 087- | E94: =IF(SISWA!E94=0,"",SISWA!E94) -> 
A95: 88 | B95: =IF(SISWA!B95=0,"",SISWA!B95) ->  | C95: =IF(SISWA!C95=0,"",SISWA!C95) ->  | D95: =IF(SISWA!D95=0,"",SISWA!D95) -> 088- | E95: =IF(SISWA!E95=0,"",SISWA!E95) -> 
A96: 89 | B96: =IF(SISWA!B96=0,"",SISWA!B96) ->  | C96: =IF(SISWA!C96=0,"",SISWA!C96) ->  | D96: =IF(SISWA!D96=0,"",SISWA!D96) -> 089- | E96: =IF(SISWA!E96=0,"",SISWA!E96) -> 
A97: 90 | B97: =IF(SISWA!B97=0,"",SISWA!B97) ->  | C97: =IF(SISWA!C97=0,"",SISWA!C97) ->  | D97: =IF(SISWA!D97=0,"",SISWA!D97) -> 090- | E97: =IF(SISWA!E97=0,"",SISWA!E97) -> 
A98: 91 | B98: =IF(SISWA!B98=0,"",SISWA!B98) ->  | C98: =IF(SISWA!C98=0,"",SISWA!C98) ->  | D98: =IF(SISWA!D98=0,"",SISWA!D98) -> 091- | E98: =IF(SISWA!E98=0,"",SISWA!E98) -> 
A99: 92 | B99: =IF(SISWA!B99=0,"",SISWA!B99) ->  | C99: =IF(SISWA!C99=0,"",SISWA!C99) ->  | D99: =IF(SISWA!D99=0,"",SISWA!D99) -> 092- | E99: =IF(SISWA!E99=0,"",SISWA!E99) -> 
A100: 93 | B100: =IF(SISWA!B100=0,"",SISWA!B100) ->  | C100: =IF(SISWA!C100=0,"",SISWA!C100) ->  | D100: =IF(SISWA!D100=0,"",SISWA!D100) -> 093- | E100: =IF(SISWA!E100=0,"",SISWA!E100) -> 
A101: 94 | B101: =IF(SISWA!B101=0,"",SISWA!B101) ->  | C101: =IF(SISWA!C101=0,"",SISWA!C101) ->  | D101: =IF(SISWA!D101=0,"",SISWA!D101) -> 094- | E101: =IF(SISWA!E101=0,"",SISWA!E101) -> 
A102: 95 | B102: =IF(SISWA!B102=0,"",SISWA!B102) ->  | C102: =IF(SISWA!C102=0,"",SISWA!C102) ->  | D102: =IF(SISWA!D102=0,"",SISWA!D102) -> 095- | E102: =IF(SISWA!E102=0,"",SISWA!E102) -> 
A103: 96 | B103: =IF(SISWA!B103=0,"",SISWA!B103) ->  | C103: =IF(SISWA!C103=0,"",SISWA!C103) ->  | D103: =IF(SISWA!D103=0,"",SISWA!D103) -> 096- | E103: =IF(SISWA!E103=0,"",SISWA!E103) -> 
A104: 97 | B104: =IF(SISWA!B104=0,"",SISWA!B104) ->  | C104: =IF(SISWA!C104=0,"",SISWA!C104) ->  | D104: =IF(SISWA!D104=0,"",SISWA!D104) -> 097- | E104: =IF(SISWA!E104=0,"",SISWA!E104) -> 
A105: 98 | B105: =IF(SISWA!B105=0,"",SISWA!B105) ->  | C105: =IF(SISWA!C105=0,"",SISWA!C105) ->  | D105: =IF(SISWA!D105=0,"",SISWA!D105) -> 098- | E105: =IF(SISWA!E105=0,"",SISWA!E105) -> 
A106: 99 | B106: =IF(SISWA!B106=0,"",SISWA!B106) ->  | C106: =IF(SISWA!C106=0,"",SISWA!C106) ->  | D106: =IF(SISWA!D106=0,"",SISWA!D106) -> 099- | E106: =IF(SISWA!E106=0,"",SISWA!E106) -> 
A107: 100 | B107: =IF(SISWA!B107=0,"",SISWA!B107) ->  | C107: =IF(SISWA!C107=0,"",SISWA!C107) ->  | D107: =IF(SISWA!D107=0,"",SISWA!D107) -> 100- | E107: =IF(SISWA!E107=0,"",SISWA!E107) -> 
A108: 101 | B108: =IF(SISWA!B108=0,"",SISWA!B108) ->  | C108: =IF(SISWA!C108=0,"",SISWA!C108) ->  | D108: =IF(SISWA!D108=0,"",SISWA!D108) -> 101- | E108: =IF(SISWA!E108=0,"",SISWA!E108) -> 
A109: 102 | B109: =IF(SISWA!B109=0,"",SISWA!B109) ->  | C109: =IF(SISWA!C109=0,"",SISWA!C109) ->  | D109: =IF(SISWA!D109=0,"",SISWA!D109) -> 102- | E109: =IF(SISWA!E109=0,"",SISWA!E109) -> 
A110: 103 | B110: =IF(SISWA!B110=0,"",SISWA!B110) ->  | C110: =IF(SISWA!C110=0,"",SISWA!C110) ->  | D110: =IF(SISWA!D110=0,"",SISWA!D110) -> 103- | E110: =IF(SISWA!E110=0,"",SISWA!E110) -> 
A111: 104 | B111: =IF(SISWA!B111=0,"",SISWA!B111) ->  | C111: =IF(SISWA!C111=0,"",SISWA!C111) ->  | D111: =IF(SISWA!D111=0,"",SISWA!D111) -> 104- | E111: =IF(SISWA!E111=0,"",SISWA!E111) -> 
A112: 105 | B112: =IF(SISWA!B112=0,"",SISWA!B112) ->  | C112: =IF(SISWA!C112=0,"",SISWA!C112) ->  | D112: =IF(SISWA!D112=0,"",SISWA!D112) -> 105- | E112: =IF(SISWA!E112=0,"",SISWA!E112) -> 
A113: 106 | B113: =IF(SISWA!B113=0,"",SISWA!B113) ->  | C113: =IF(SISWA!C113=0,"",SISWA!C113) ->  | D113: =IF(SISWA!D113=0,"",SISWA!D113) -> 106- | E113: =IF(SISWA!E113=0,"",SISWA!E113) -> 
A114: 107 | B114: =IF(SISWA!B114=0,"",SISWA!B114) ->  | C114: =IF(SISWA!C114=0,"",SISWA!C114) ->  | D114: =IF(SISWA!D114=0,"",SISWA!D114) -> 107- | E114: =IF(SISWA!E114=0,"",SISWA!E114) -> 
A115: 108 | B115: =IF(SISWA!B115=0,"",SISWA!B115) ->  | C115: =IF(SISWA!C115=0,"",SISWA!C115) ->  | D115: =IF(SISWA!D115=0,"",SISWA!D115) -> 108- | E115: =IF(SISWA!E115=0,"",SISWA!E115) -> 
A116: 109 | B116: =IF(SISWA!B116=0,"",SISWA!B116) ->  | C116: =IF(SISWA!C116=0,"",SISWA!C116) ->  | D116: =IF(SISWA!D116=0,"",SISWA!D116) -> 109- | E116: =IF(SISWA!E116=0,"",SISWA!E116) -> 
A117: 110 | B117: =IF(SISWA!B117=0,"",SISWA!B117) ->  | C117: =IF(SISWA!C117=0,"",SISWA!C117) ->  | D117: =IF(SISWA!D117=0,"",SISWA!D117) -> 110- | E117: =IF(SISWA!E117=0,"",SISWA!E117) -> 
A118: 111 | B118: =IF(SISWA!B118=0,"",SISWA!B118) ->  | C118: =IF(SISWA!C118=0,"",SISWA!C118) ->  | D118: =IF(SISWA!D118=0,"",SISWA!D118) -> 111- | E118: =IF(SISWA!E118=0,"",SISWA!E118) -> 
A119: 112 | B119: =IF(SISWA!B119=0,"",SISWA!B119) ->  | C119: =IF(SISWA!C119=0,"",SISWA!C119) ->  | D119: =IF(SISWA!D119=0,"",SISWA!D119) -> 112- | E119: =IF(SISWA!E119=0,"",SISWA!E119) -> 
A120: 113 | B120: =IF(SISWA!B120=0,"",SISWA!B120) ->  | C120: =IF(SISWA!C120=0,"",SISWA!C120) ->  | D120: =IF(SISWA!D120=0,"",SISWA!D120) -> 113- | E120: =IF(SISWA!E120=0,"",SISWA!E120) -> 
A121: 114 | B121: =IF(SISWA!B121=0,"",SISWA!B121) ->  | C121: =IF(SISWA!C121=0,"",SISWA!C121) ->  | D121: =IF(SISWA!D121=0,"",SISWA!D121) -> 114- | E121: =IF(SISWA!E121=0,"",SISWA!E121) -> 
A122: 115 | B122: =IF(SISWA!B122=0,"",SISWA!B122) ->  | C122: =IF(SISWA!C122=0,"",SISWA!C122) ->  | D122: =IF(SISWA!D122=0,"",SISWA!D122) -> 115- | E122: =IF(SISWA!E122=0,"",SISWA!E122) -> 
A123: 116 | B123: =IF(SISWA!B123=0,"",SISWA!B123) ->  | C123: =IF(SISWA!C123=0,"",SISWA!C123) ->  | D123: =IF(SISWA!D123=0,"",SISWA!D123) -> 116- | E123: =IF(SISWA!E123=0,"",SISWA!E123) -> 
A124: 117 | B124: =IF(SISWA!B124=0,"",SISWA!B124) ->  | C124: =IF(SISWA!C124=0,"",SISWA!C124) ->  | D124: =IF(SISWA!D124=0,"",SISWA!D124) -> 117- | E124: =IF(SISWA!E124=0,"",SISWA!E124) -> 
A125: 118 | B125: =IF(SISWA!B125=0,"",SISWA!B125) ->  | C125: =IF(SISWA!C125=0,"",SISWA!C125) ->  | D125: =IF(SISWA!D125=0,"",SISWA!D125) -> 118- | E125: =IF(SISWA!E125=0,"",SISWA!E125) -> 
A126: 119 | B126: =IF(SISWA!B126=0,"",SISWA!B126) ->  | C126: =IF(SISWA!C126=0,"",SISWA!C126) ->  | D126: =IF(SISWA!D126=0,"",SISWA!D126) -> 119- | E126: =IF(SISWA!E126=0,"",SISWA!E126) -> 
A127: 120 | B127: =IF(SISWA!B127=0,"",SISWA!B127) ->  | C127: =IF(SISWA!C127=0,"",SISWA!C127) ->  | D127: =IF(SISWA!D127=0,"",SISWA!D127) -> 120- | E127: =IF(SISWA!E127=0,"",SISWA!E127) -> 
A128: 121 | B128: =IF(SISWA!B128=0,"",SISWA!B128) ->  | C128: =IF(SISWA!C128=0,"",SISWA!C128) ->  | D128: =IF(SISWA!D128=0,"",SISWA!D128) -> 121- | E128: =IF(SISWA!E128=0,"",SISWA!E128) -> 
A129: 122 | B129: =IF(SISWA!B129=0,"",SISWA!B129) ->  | C129: =IF(SISWA!C129=0,"",SISWA!C129) ->  | D129: =IF(SISWA!D129=0,"",SISWA!D129) -> 122- | E129: =IF(SISWA!E129=0,"",SISWA!E129) -> 
A130: 123 | B130: =IF(SISWA!B130=0,"",SISWA!B130) ->  | C130: =IF(SISWA!C130=0,"",SISWA!C130) ->  | D130: =IF(SISWA!D130=0,"",SISWA!D130) -> 123- | E130: =IF(SISWA!E130=0,"",SISWA!E130) -> 
A131: 124 | B131: =IF(SISWA!B131=0,"",SISWA!B131) ->  | C131: =IF(SISWA!C131=0,"",SISWA!C131) ->  | D131: =IF(SISWA!D131=0,"",SISWA!D131) -> 124- | E131: =IF(SISWA!E131=0,"",SISWA!E131) -> 
A132: 125 | B132: =IF(SISWA!B132=0,"",SISWA!B132) ->  | C132: =IF(SISWA!C132=0,"",SISWA!C132) ->  | D132: =IF(SISWA!D132=0,"",SISWA!D132) -> 125- | E132: =IF(SISWA!E132=0,"",SISWA!E132) -> 
A133: 126 | B133: =IF(SISWA!B133=0,"",SISWA!B133) ->  | C133: =IF(SISWA!C133=0,"",SISWA!C133) ->  | D133: =IF(SISWA!D133=0,"",SISWA!D133) -> 126- | E133: =IF(SISWA!E133=0,"",SISWA!E133) -> 
A134: 127 | B134: =IF(SISWA!B134=0,"",SISWA!B134) ->  | C134: =IF(SISWA!C134=0,"",SISWA!C134) ->  | D134: =IF(SISWA!D134=0,"",SISWA!D134) -> 127- | E134: =IF(SISWA!E134=0,"",SISWA!E134) -> 
A135: 128 | B135: =IF(SISWA!B135=0,"",SISWA!B135) ->  | C135: =IF(SISWA!C135=0,"",SISWA!C135) ->  | D135: =IF(SISWA!D135=0,"",SISWA!D135) -> 128- | E135: =IF(SISWA!E135=0,"",SISWA!E135) -> 
A136: 129 | B136: =IF(SISWA!B136=0,"",SISWA!B136) ->  | C136: =IF(SISWA!C136=0,"",SISWA!C136) ->  | D136: =IF(SISWA!D136=0,"",SISWA!D136) -> 129- | E136: =IF(SISWA!E136=0,"",SISWA!E136) -> 
A137: 130 | B137: =IF(SISWA!B137=0,"",SISWA!B137) ->  | C137: =IF(SISWA!C137=0,"",SISWA!C137) ->  | D137: =IF(SISWA!D137=0,"",SISWA!D137) -> 130- | E137: =IF(SISWA!E137=0,"",SISWA!E137) ->  | K137: =AVERAGE(F137:J137) -> 
A138: 131 | B138: =IF(SISWA!B138=0,"",SISWA!B138) ->  | C138: =IF(SISWA!C138=0,"",SISWA!C138) ->  | D138: =IF(SISWA!D138=0,"",SISWA!D138) -> 131- | E138: =IF(SISWA!E138=0,"",SISWA!E138) -> 
A139: 132 | B139: =IF(SISWA!B139=0,"",SISWA!B139) ->  | C139: =IF(SISWA!C139=0,"",SISWA!C139) ->  | D139: =IF(SISWA!D139=0,"",SISWA!D139) -> 132- | E139: =IF(SISWA!E139=0,"",SISWA!E139) -> 
A140: 133 | B140: =IF(SISWA!B140=0,"",SISWA!B140) ->  | C140: =IF(SISWA!C140=0,"",SISWA!C140) ->  | D140: =IF(SISWA!D140=0,"",SISWA!D140) -> 133- | E140: =IF(SISWA!E140=0,"",SISWA!E140) -> 
A141: 134 | B141: =IF(SISWA!B141=0,"",SISWA!B141) ->  | C141: =IF(SISWA!C141=0,"",SISWA!C141) ->  | D141: =IF(SISWA!D141=0,"",SISWA!D141) -> 134- | E141: =IF(SISWA!E141=0,"",SISWA!E141) -> 
A142: 135 | B142: =IF(SISWA!B142=0,"",SISWA!B142) ->  | C142: =IF(SISWA!C142=0,"",SISWA!C142) ->  | D142: =IF(SISWA!D142=0,"",SISWA!D142) -> 135- | E142: =IF(SISWA!E142=0,"",SISWA!E142) -> 
A143: 136 | B143: =IF(SISWA!B143=0,"",SISWA!B143) ->  | C143: =IF(SISWA!C143=0,"",SISWA!C143) ->  | D143: =IF(SISWA!D143=0,"",SISWA!D143) -> 136- | E143: =IF(SISWA!E143=0,"",SISWA!E143) -> 
A144: 137 | B144: =IF(SISWA!B144=0,"",SISWA!B144) ->  | C144: =IF(SISWA!C144=0,"",SISWA!C144) ->  | D144: =IF(SISWA!D144=0,"",SISWA!D144) -> 137- | E144: =IF(SISWA!E144=0,"",SISWA!E144) -> 
A145: 138 | B145: =IF(SISWA!B145=0,"",SISWA!B145) ->  | C145: =IF(SISWA!C145=0,"",SISWA!C145) ->  | D145: =IF(SISWA!D145=0,"",SISWA!D145) -> 138- | E145: =IF(SISWA!E145=0,"",SISWA!E145) -> 
A146: 139 | B146: =IF(SISWA!B146=0,"",SISWA!B146) ->  | C146: =IF(SISWA!C146=0,"",SISWA!C146) ->  | D146: =IF(SISWA!D146=0,"",SISWA!D146) -> 139- | E146: =IF(SISWA!E146=0,"",SISWA!E146) -> 
A147: 140 | B147: =IF(SISWA!B147=0,"",SISWA!B147) ->  | C147: =IF(SISWA!C147=0,"",SISWA!C147) ->  | D147: =IF(SISWA!D147=0,"",SISWA!D147) -> 140- | E147: =IF(SISWA!E147=0,"",SISWA!E147) -> 
A148: 141 | B148: =IF(SISWA!B148=0,"",SISWA!B148) ->  | C148: =IF(SISWA!C148=0,"",SISWA!C148) ->  | D148: =IF(SISWA!D148=0,"",SISWA!D148) -> 141- | E148: =IF(SISWA!E148=0,"",SISWA!E148) -> 
A149: 142 | B149: =IF(SISWA!B149=0,"",SISWA!B149) ->  | C149: =IF(SISWA!C149=0,"",SISWA!C149) ->  | D149: =IF(SISWA!D149=0,"",SISWA!D149) -> 142- | E149: =IF(SISWA!E149=0,"",SISWA!E149) -> 
A150: 143 | B150: =IF(SISWA!B150=0,"",SISWA!B150) ->  | C150: =IF(SISWA!C150=0,"",SISWA!C150) ->  | D150: =IF(SISWA!D150=0,"",SISWA!D150) -> 143- | E150: =IF(SISWA!E150=0,"",SISWA!E150) -> 
A151: 144 | B151: =IF(SISWA!B151=0,"",SISWA!B151) ->  | C151: =IF(SISWA!C151=0,"",SISWA!C151) ->  | D151: =IF(SISWA!D151=0,"",SISWA!D151) -> 144- | E151: =IF(SISWA!E151=0,"",SISWA!E151) -> 
A152: 145 | B152: =IF(SISWA!B152=0,"",SISWA!B152) ->  | C152: =IF(SISWA!C152=0,"",SISWA!C152) ->  | D152: =IF(SISWA!D152=0,"",SISWA!D152) -> 145- | E152: =IF(SISWA!E152=0,"",SISWA!E152) -> 
A153: 146 | B153: =IF(SISWA!B153=0,"",SISWA!B153) ->  | C153: =IF(SISWA!C153=0,"",SISWA!C153) ->  | D153: =IF(SISWA!D153=0,"",SISWA!D153) -> 146- | E153: =IF(SISWA!E153=0,"",SISWA!E153) -> 
A154: 147 | B154: =IF(SISWA!B154=0,"",SISWA!B154) ->  | C154: =IF(SISWA!C154=0,"",SISWA!C154) ->  | D154: =IF(SISWA!D154=0,"",SISWA!D154) -> 147- | E154: =IF(SISWA!E154=0,"",SISWA!E154) -> 
A155: 148 | B155: =IF(SISWA!B155=0,"",SISWA!B155) ->  | C155: =IF(SISWA!C155=0,"",SISWA!C155) ->  | D155: =IF(SISWA!D155=0,"",SISWA!D155) -> 148- | E155: =IF(SISWA!E155=0,"",SISWA!E155) -> 
A156: 149 | B156: =IF(SISWA!B156=0,"",SISWA!B156) ->  | C156: =IF(SISWA!C156=0,"",SISWA!C156) ->  | D156: =IF(SISWA!D156=0,"",SISWA!D156) -> 149- | E156: =IF(SISWA!E156=0,"",SISWA!E156) -> 
A157: 150 | B157: =IF(SISWA!B157=0,"",SISWA!B157) ->  | C157: =IF(SISWA!C157=0,"",SISWA!C157) ->  | D157: =IF(SISWA!D157=0,"",SISWA!D157) -> 150- | E157: =IF(SISWA!E157=0,"",SISWA!E157) -> 
A158: 151 | B158: =IF(SISWA!B158=0,"",SISWA!B158) ->  | C158: =IF(SISWA!C158=0,"",SISWA!C158) ->  | D158: =IF(SISWA!D158=0,"",SISWA!D158) -> 151- | E158: =IF(SISWA!E158=0,"",SISWA!E158) -> 
A159: 152 | B159: =IF(SISWA!B159=0,"",SISWA!B159) ->  | C159: =IF(SISWA!C159=0,"",SISWA!C159) ->  | D159: =IF(SISWA!D159=0,"",SISWA!D159) -> 152- | E159: =IF(SISWA!E159=0,"",SISWA!E159) -> 
A160: 153 | B160: =IF(SISWA!B160=0,"",SISWA!B160) ->  | C160: =IF(SISWA!C160=0,"",SISWA!C160) ->  | D160: =IF(SISWA!D160=0,"",SISWA!D160) -> 153- | E160: =IF(SISWA!E160=0,"",SISWA!E160) -> 
A161: 154 | B161: =IF(SISWA!B161=0,"",SISWA!B161) ->  | C161: =IF(SISWA!C161=0,"",SISWA!C161) ->  | D161: =IF(SISWA!D161=0,"",SISWA!D161) -> 154- | E161: =IF(SISWA!E161=0,"",SISWA!E161) -> 
A162: 155 | B162: =IF(SISWA!B162=0,"",SISWA!B162) ->  | C162: =IF(SISWA!C162=0,"",SISWA!C162) ->  | D162: =IF(SISWA!D162=0,"",SISWA!D162) -> 155- | E162: =IF(SISWA!E162=0,"",SISWA!E162) -> 
A163: 156 | B163: =IF(SISWA!B163=0,"",SISWA!B163) ->  | C163: =IF(SISWA!C163=0,"",SISWA!C163) ->  | D163: =IF(SISWA!D163=0,"",SISWA!D163) -> 156- | E163: =IF(SISWA!E163=0,"",SISWA!E163) -> 
A164: 157 | B164: =IF(SISWA!B164=0,"",SISWA!B164) ->  | C164: =IF(SISWA!C164=0,"",SISWA!C164) ->  | D164: =IF(SISWA!D164=0,"",SISWA!D164) -> 157- | E164: =IF(SISWA!E164=0,"",SISWA!E164) -> 
A165: 158 | B165: =IF(SISWA!B165=0,"",SISWA!B165) ->  | C165: =IF(SISWA!C165=0,"",SISWA!C165) ->  | D165: =IF(SISWA!D165=0,"",SISWA!D165) -> 158- | E165: =IF(SISWA!E165=0,"",SISWA!E165) -> 
A166: 159 | B166: =IF(SISWA!B166=0,"",SISWA!B166) ->  | C166: =IF(SISWA!C166=0,"",SISWA!C166) ->  | D166: =IF(SISWA!D166=0,"",SISWA!D166) -> 159- | E166: =IF(SISWA!E166=0,"",SISWA!E166) -> 
A167: 160 | B167: =IF(SISWA!B167=0,"",SISWA!B167) ->  | C167: =IF(SISWA!C167=0,"",SISWA!C167) ->  | D167: =IF(SISWA!D167=0,"",SISWA!D167) -> 160- | E167: =IF(SISWA!E167=0,"",SISWA!E167) -> 
A168: 161 | B168: =IF(SISWA!B168=0,"",SISWA!B168) ->  | C168: =IF(SISWA!C168=0,"",SISWA!C168) ->  | D168: =IF(SISWA!D168=0,"",SISWA!D168) -> 161- | E168: =IF(SISWA!E168=0,"",SISWA!E168) -> 
A169: 162 | B169: =IF(SISWA!B169=0,"",SISWA!B169) ->  | C169: =IF(SISWA!C169=0,"",SISWA!C169) ->  | D169: =IF(SISWA!D169=0,"",SISWA!D169) -> 162- | E169: =IF(SISWA!E169=0,"",SISWA!E169) -> 
A170: 163 | B170: =IF(SISWA!B170=0,"",SISWA!B170) ->  | C170: =IF(SISWA!C170=0,"",SISWA!C170) ->  | D170: =IF(SISWA!D170=0,"",SISWA!D170) -> 163- | E170: =IF(SISWA!E170=0,"",SISWA!E170) -> 
A171: 164 | B171: =IF(SISWA!B171=0,"",SISWA!B171) ->  | C171: =IF(SISWA!C171=0,"",SISWA!C171) ->  | D171: =IF(SISWA!D171=0,"",SISWA!D171) -> 164- | E171: =IF(SISWA!E171=0,"",SISWA!E171) -> 
A172: 165 | B172: =IF(SISWA!B172=0,"",SISWA!B172) ->  | C172: =IF(SISWA!C172=0,"",SISWA!C172) ->  | D172: =IF(SISWA!D172=0,"",SISWA!D172) -> 165- | E172: =IF(SISWA!E172=0,"",SISWA!E172) -> 
A173: 166 | B173: =IF(SISWA!B173=0,"",SISWA!B173) ->  | C173: =IF(SISWA!C173=0,"",SISWA!C173) ->  | D173: =IF(SISWA!D173=0,"",SISWA!D173) -> 166- | E173: =IF(SISWA!E173=0,"",SISWA!E173) -> 
A174: 167 | B174: =IF(SISWA!B174=0,"",SISWA!B174) ->  | C174: =IF(SISWA!C174=0,"",SISWA!C174) ->  | D174: =IF(SISWA!D174=0,"",SISWA!D174) -> 167- | E174: =IF(SISWA!E174=0,"",SISWA!E174) -> 
A175: 168 | B175: =IF(SISWA!B175=0,"",SISWA!B175) ->  | C175: =IF(SISWA!C175=0,"",SISWA!C175) ->  | D175: =IF(SISWA!D175=0,"",SISWA!D175) -> 168- | E175: =IF(SISWA!E175=0,"",SISWA!E175) -> 
A176: 169 | B176: =IF(SISWA!B176=0,"",SISWA!B176) ->  | C176: =IF(SISWA!C176=0,"",SISWA!C176) ->  | D176: =IF(SISWA!D176=0,"",SISWA!D176) -> 169- | E176: =IF(SISWA!E176=0,"",SISWA!E176) -> 
A177: 170 | B177: =IF(SISWA!B177=0,"",SISWA!B177) ->  | C177: =IF(SISWA!C177=0,"",SISWA!C177) ->  | D177: =IF(SISWA!D177=0,"",SISWA!D177) -> 170- | E177: =IF(SISWA!E177=0,"",SISWA!E177) -> 
A178: 171 | B178: =IF(SISWA!B178=0,"",SISWA!B178) ->  | C178: =IF(SISWA!C178=0,"",SISWA!C178) ->  | D178: =IF(SISWA!D178=0,"",SISWA!D178) -> 171- | E178: =IF(SISWA!E178=0,"",SISWA!E178) -> 
A179: 172 | B179: =IF(SISWA!B179=0,"",SISWA!B179) ->  | C179: =IF(SISWA!C179=0,"",SISWA!C179) ->  | D179: =IF(SISWA!D179=0,"",SISWA!D179) -> 172- | E179: =IF(SISWA!E179=0,"",SISWA!E179) -> 
A180: 173 | B180: =IF(SISWA!B180=0,"",SISWA!B180) ->  | C180: =IF(SISWA!C180=0,"",SISWA!C180) ->  | D180: =IF(SISWA!D180=0,"",SISWA!D180) -> 173- | E180: =IF(SISWA!E180=0,"",SISWA!E180) -> 
A181: 174 | B181: =IF(SISWA!B181=0,"",SISWA!B181) ->  | C181: =IF(SISWA!C181=0,"",SISWA!C181) ->  | D181: =IF(SISWA!D181=0,"",SISWA!D181) -> 174- | E181: =IF(SISWA!E181=0,"",SISWA!E181) -> 
A182: 175 | B182: =IF(SISWA!B182=0,"",SISWA!B182) ->  | C182: =IF(SISWA!C182=0,"",SISWA!C182) ->  | D182: =IF(SISWA!D182=0,"",SISWA!D182) -> 175- | E182: =IF(SISWA!E182=0,"",SISWA!E182) -> 
A183: 176 | B183: =IF(SISWA!B183=0,"",SISWA!B183) ->  | C183: =IF(SISWA!C183=0,"",SISWA!C183) ->  | D183: =IF(SISWA!D183=0,"",SISWA!D183) -> 176- | E183: =IF(SISWA!E183=0,"",SISWA!E183) -> 
A184: 177 | B184: =IF(SISWA!B184=0,"",SISWA!B184) ->  | C184: =IF(SISWA!C184=0,"",SISWA!C184) ->  | D184: =IF(SISWA!D184=0,"",SISWA!D184) -> 177- | E184: =IF(SISWA!E184=0,"",SISWA!E184) -> 
A185: 178 | B185: =IF(SISWA!B185=0,"",SISWA!B185) ->  | C185: =IF(SISWA!C185=0,"",SISWA!C185) ->  | D185: =IF(SISWA!D185=0,"",SISWA!D185) -> 178- | E185: =IF(SISWA!E185=0,"",SISWA!E185) -> 
A186: 179 | B186: =IF(SISWA!B186=0,"",SISWA!B186) ->  | C186: =IF(SISWA!C186=0,"",SISWA!C186) ->  | D186: =IF(SISWA!D186=0,"",SISWA!D186) -> 179- | E186: =IF(SISWA!E186=0,"",SISWA!E186) -> 
A187: 180 | B187: =IF(SISWA!B187=0,"",SISWA!B187) ->  | C187: =IF(SISWA!C187=0,"",SISWA!C187) ->  | D187: =IF(SISWA!D187=0,"",SISWA!D187) -> 180- | E187: =IF(SISWA!E187=0,"",SISWA!E187) -> 
A188: 181 | B188: =IF(SISWA!B188=0,"",SISWA!B188) ->  | C188: =IF(SISWA!C188=0,"",SISWA!C188) ->  | D188: =IF(SISWA!D188=0,"",SISWA!D188) -> 181- | E188: =IF(SISWA!E188=0,"",SISWA!E188) -> 
A189: 182 | B189: =IF(SISWA!B189=0,"",SISWA!B189) ->  | C189: =IF(SISWA!C189=0,"",SISWA!C189) ->  | D189: =IF(SISWA!D189=0,"",SISWA!D189) -> 182- | E189: =IF(SISWA!E189=0,"",SISWA!E189) -> 
A190: 183 | B190: =IF(SISWA!B190=0,"",SISWA!B190) ->  | C190: =IF(SISWA!C190=0,"",SISWA!C190) ->  | D190: =IF(SISWA!D190=0,"",SISWA!D190) -> 183- | E190: =IF(SISWA!E190=0,"",SISWA!E190) -> 
A191: 184 | B191: =IF(SISWA!B191=0,"",SISWA!B191) ->  | C191: =IF(SISWA!C191=0,"",SISWA!C191) ->  | D191: =IF(SISWA!D191=0,"",SISWA!D191) -> 184- | E191: =IF(SISWA!E191=0,"",SISWA!E191) -> 
A192: 185 | B192: =IF(SISWA!B192=0,"",SISWA!B192) ->  | C192: =IF(SISWA!C192=0,"",SISWA!C192) ->  | D192: =IF(SISWA!D192=0,"",SISWA!D192) -> 185- | E192: =IF(SISWA!E192=0,"",SISWA!E192) -> 
A193: 186 | B193: =IF(SISWA!B193=0,"",SISWA!B193) ->  | C193: =IF(SISWA!C193=0,"",SISWA!C193) ->  | D193: =IF(SISWA!D193=0,"",SISWA!D193) -> 186- | E193: =IF(SISWA!E193=0,"",SISWA!E193) -> 
A194: 187 | B194: =IF(SISWA!B194=0,"",SISWA!B194) ->  | C194: =IF(SISWA!C194=0,"",SISWA!C194) ->  | D194: =IF(SISWA!D194=0,"",SISWA!D194) -> 187- | E194: =IF(SISWA!E194=0,"",SISWA!E194) -> 
A195: 188 | B195: =IF(SISWA!B195=0,"",SISWA!B195) ->  | C195: =IF(SISWA!C195=0,"",SISWA!C195) ->  | D195: =IF(SISWA!D195=0,"",SISWA!D195) -> 188- | E195: =IF(SISWA!E195=0,"",SISWA!E195) -> 
A196: 189 | B196: =IF(SISWA!B196=0,"",SISWA!B196) ->  | C196: =IF(SISWA!C196=0,"",SISWA!C196) ->  | D196: =IF(SISWA!D196=0,"",SISWA!D196) -> 189- | E196: =IF(SISWA!E196=0,"",SISWA!E196) -> 
A197: 190 | B197: =IF(SISWA!B197=0,"",SISWA!B197) ->  | C197: =IF(SISWA!C197=0,"",SISWA!C197) ->  | D197: =IF(SISWA!D197=0,"",SISWA!D197) -> 190- | E197: =IF(SISWA!E197=0,"",SISWA!E197) -> 
